Workbook

Sheet Directions
A1: Welcome to the Ultimate Financial Goal Planner!
B3: PURPOSE | C3: This tool will help you improve your understanding of your future savings goals. Each savings goal is is a variable in your finances, and by planning for each variable, you can more accurately plan for your future. Looking at multiple savings goals allows you to create a specific plan for each goal by determining how much money per month you will need to save to achieve it!
B5: KEY
C6: Static Entries. These entries are relative to your current financial situation. Once you input these areas, they should remain consistent throughout your planning stages.
C7: Play With These Numbers! This section is for you to input ideas and try out different arrangements.
B8: * | C8: Increase Savings Input. We recommend that you increase the amount of money you save annually as your salary also increases. This space allows you to estimate your annual salary increase. Many sources estimate the average cost of living adjustment in the US is approximately 1 - 3% annually.
C9: Autocalculated by Stocks for the Week
B10: ** | C10: Anticipated Investment Returns. This section represents the returns on your money that you reasonably expect over the course of your investment. You will be able to input values of 0%, 2%, 6%, and 10%. Depending on the length of time for that goal, as well as the type of investments you have planned (savings account, CD, stock market, or a mix). For example, CDs and savings account can yield anticipated returns of as low as 1%, whereas the stock market's 20-year historical return is approximately 10%. These are guidelines only.
B12: ADDITIONAL CONTENT INFORMATION
B13: This Goal Planer is intended to be used with the Wealth Calculator app on CalculateMyWealth.com. If you haven't used that yet, we recommend that you pause and do that now (it's free!). This spreadsheet, the data, and the calculations are for informational and planning purposes only. We can not guarantee any returns and this should act as planning tool of what is possible for in your financial goals.
B15: For general financial information, check out our Blog!
B16: Learn more about how to effectively use the Financial Goal Planner
A17: © All Rights Reserved by Stocks for the Week, LLC 2015

Sheet Wealth Calculator_Advanced
B1: Financial Goal Planner: Advanced Wealth Calculator
B3: PURPOSE | C3: Once you've used our Wealth Calculator, this is the next, more advanced step in planning for your future wealth goals. This Ultimate Financial Goal Planner incorporates 401K/403B savings, current retirement savings, company contributions, and input increases to help you more accurately plan for your financial future.
B5: PRIMARY INPUTS | E5: KEY
B6: Current Bank Account (BA) savings | C6: 0 | F6: Static Entries. These entries are relative to your current financial situation. They should remain consistent.
B7: Current Retirement Savings Account(s) 401K/ 403B US & Canada only | C7: 0 | F7: Play With These Numbers! These are items to change to determine the correct savings, etc.
B8: Initial Monthly Contribution to BA | C8: 0 | E8: * | F8: Increase Savings Input. We recommend increasing your annual savings as your salary also increases. The average annual cost of living adjustment in the US is approximately 1 - 3%.
B9: Initial Annual to BA | C9: =C8*12 -> 0 | F9: Autocalculated by Stocks for the Week
B10: Increase Savings Input * | C10: 0
B11: Current Salary | C11: 0
B12: Current Personal Contribution to Retirement Savings Account(s) 401K/ 403B US & Canada only | C12: 0
B13: Company contribution to 401K US & Canada only | C13: 0
B14: How many years until retirement? | C14: 1
C16: 0% BA plus 401K | D16: 2% BA plus 401K | E16: 6% BA plus 401K | F16: 10% BA plus 401K
B17: Bank account and other investments | C17: ='401 K back data'!B13 -> 0 | D17: ='401 K back data'!C13 -> 0 | E17: ='401 K back data'!E13 -> 0 | F17: ='401 K back data'!G13 -> 0
B18: Retirement Savings Accounts (401K / 403B) | C18: ='401 K back data'!B14 -> 0 | D18: ='401 K back data'!C14 -> 0 | E18: ='401 K back data'!E14 -> 0 | F18: ='401 K back data'!G14 -> 0
B19: Total retirement savings | C19: =SUM(C17:C18) -> 0 | D19: =SUM(D17:D18) -> 0 | E19: 0 | F19: 0
B21: © All Rights Reserved by Stocks for the Week, LLC 2015

Sheet Multiple Goals Saving Tool
B1: Financial Goal Planner: Multiple Goals
B3: PURPOSE | C3: The Multiple Goals section helps you determine the amount of money you should save per month for each of your goals. Each goal is unique and therefore each goal may have different timeframes, investment goals, and amounts. Use this tool to determine the amount you need to save per month to achieve your financial goals.
B5: PRIMARY INPUTS | E5: KEY
B6: Current Bank Account savings | C6: 0 | F6: Static Entries. These entries are relative to your current financial situation. They should remain consistent.
B7: Increase Savings Input * | C7: 0 | F7: Play With These Numbers! These are items to change to determine the correct savings, etc.
B8: How many goals? | C8: =7-(COUNTIF(B14:B20,"")) -> 1 | E8: * | F8: Increase Savings Input. We recommend that you might want to increase the amount of money you save per year as your salary increases annually - average adjustment in the US is 1 - 3% annually.
F9: Autocalculated by Stocks for the Week
E10: ** | F10: Anticipated Investment Returns. This section represents the returns on your money that you reasonably expect over the course of your investment. You will be able to input values of 0%, 2%, 6%, and 10%. Depending on the length of time for that goal, as well as the type of investments you have planned (savings account, CD, stock market, or a mix).
B12: DEFINE YOUR GOALS
B13: What? | C13: How much? | D13: How many years until goal? | E13: What is your investment goal?** | F13: Initial input per year | G13: Initial input per month
B14: Kids College | C14: 200000 | D14: 25 | E14: 0.1 | F14: =IF(D14<63,'Multiple Goal Back data_1'!I2,'Multiple Goal Back data_1'!K2) -> 2033.614438 | G14: =F14/12 -> 169.4678698 | M14: 0
F15: =IF(D15<63,'Multiple Goal Back data_2'!I2,'Multiple Goal Back data_2'!I2) -> 0 | G15: =F15/12 -> 0 | M15: 0.02
F16: =IF(D16<63,'Multiple Goal Back data_3'!I2,'Multiple Goal Back data_3'!K2) -> 0 | G16: 0 | M16: 0.06
F17: =IF(D17<63,'Multiple Goal Back data_4'!I2,'Multiple Goal Back data_4'!K2) -> 0 | G17: 0 | M17: 0.1
F18: =IF(D18<63,'Multiple Goal Back data_5'!I2,'Multiple Goal Back data_5'!K2) -> 0 | G18: 0
F19: =IF(D19<63,'Multiple Goal Back data_6'!I2,'Multiple Goal Back data_6'!K2) -> 0 | G19: 0
F20: =IF(D20<63,'Multiple Goal Back data_7'!I2,'Multiple Goal Back data_7'!K2) -> 0 | G20: 0
B21: TOTAL | F21: =SUM(F14:F20) -> 2033.614438 | G21: =SUM(G14:G20) -> 169.4678698
B23: © All Rights Reserved by Stocks for the Week, LLC 2015

Sheet 401 K back data (hidden)
A1: Current Bank Account | B1: ='Wealth Calculator_Advanced'!C6 -> 0 | G1: static entries
A2: Current 401 Account(s) | B2: ='Wealth Calculator_Advanced'!C7 -> 0 | G2: items to change/ play with
A3: Initial Monthly Contribution to BA | B3: ='Wealth Calculator_Advanced'!C8 -> 0
A4: Initial Annual per year to BA | B4: =B3*12 -> 0
A5: Increase input per year (based on Salary increase) | B5: ='Wealth Calculator_Advanced'!C10 -> 0 | C5: *cola - we recommend pulling a % of your salary out so as your salary increases so do your savings contributions
A6: Current Salary | B6: ='Wealth Calculator_Advanced'!C11 -> 0
A7: Current Personal Contribution to 401K | B7: ='Wealth Calculator_Advanced'!C12 -> 0
A8: Company contribution to 401K | B8: ='Wealth Calculator_Advanced'!C13 -> 0
A10: How many years til retirement? | B10: ='Wealth Calculator_Advanced'!C14 -> 1
B12: 0% BA plus 401K | C12: 2% BA plus 401K | D12: 0% BA plus 401K | E12: 6% BA plus 401K | F12: 0% BA plus 401K | G12: 10% BA plus 401K
A13: BA | B13: =VLOOKUP(B10,$A$20:$M$94,3,FALSE) -> 0 | C13: =VLOOKUP(B10,$A$20:$M$94,5,FALSE) -> 0 | E13: =VLOOKUP(B10,$A$20:$M$94,7,FALSE) -> 0 | G13: =VLOOKUP(B10,$A$20:$M$94,9,FALSE) -> 0
A14: 401K | B14: =VLOOKUP(B10,$A$20:$M$94,13,FALSE) -> 0 | C14: =VLOOKUP(B10,$A$20:$M$94,13,FALSE) -> 0 | D14: =VLOOKUP(D10,$A$20:$M$94,13,FALSE) ->  | E14: =VLOOKUP(B10,$A$20:$M$94,13,FALSE) -> 0 | F14: =VLOOKUP(F10,$A$20:$M$69,13,FALSE) ->  | G14: =VLOOKUP(B10,$A$20:$M$94,13,FALSE) -> 0
A15: Bank Account and 401K | B15: =SUM(B13:B14) -> 0 | C15: =SUM(C13:C14) -> 0 | E15: 0 | G15: 0
A16: Purpose: This chart demonstrates the math for all aspects of the 401K and savings chart
C17: 0 | E17: 0.02 | G17: 0.06 | I17: 0.1 | M17: 0.05
A18: Years | B18: Your Annual BA Contribution | C18: 0% total account | D18: 0.02 | E18: 2% total account | F18: 0.06 | G18: 6% total account | H18: 0.1 | I18: 10% total account | J18: Per month Contribution | K18: Salary | L18: Annual 401K Contribution | M18: Total 401K Account
A19: Current Bank Account | B19: =$B$1 -> 0 | C19: =$B$1 -> 0 | D19: =$B$1 -> 0 | E19: 0 | F19: 0 | G19: 0 | H19: 0 | I19: 0 | L19: =K19*($B$7+$B$8) -> 0 | M19: =B2 -> 0
A20: 1 | B20: =$B$4+B19 -> 0 | C20: =B20+C19 -> 0 | D20: =$B$4 -> 0 | E20: =D20+E19 -> 0 | F20: 0 | G20: =F20+G19 -> 0 | H20: =$B$4 -> 0 | I20: =H20+I19 -> 0 | J20: =B20/12 -> 0 | K20: =B6 -> 0 | L20: =K20*($B$7+$B$8) -> 0 | M20: =(M19+(M19*$M$17))+L20 -> 0
A21: 2 | B21: =B20+(B20*($B$5)) -> 0 | C21: =C20+B21 -> 0 | D21: =D20+(D20*($B$5+$D$18)) -> 0 | E21: =(E20+(E20*$E$17))+B21 -> 0 | F21: =F20+(F20*($B$5+$F$18)) -> 0 | G21: =(G20+(G20*$G$17))+B21 -> 0 | H21: =H20+(H20*($B$5+$H$18)) -> 0 | I21: =(I20+(I20*$I$17))+B21 -> 0 | J21: 0 | K21: =K20+(K20*0.03) -> 0 | L21: =K21*($B$7+$B$8) -> 0 | M21: =(M20+(M20*$M$17))+L21 -> 0
A22: =A21+1 -> 3 | B22: =B21+(B21*($B$5)) -> 0 | C22: =C21+B22 -> 0 | D22: 0 | E22: 0 | F22: 0 | G22: =(G21+(G21*$G$17))+B22 -> 0 | H22: 0 | I22: 0 | J22: 0 | K22: 0 | L22: 0 | M22: 0
A23: =A22+1 -> 4 | B23: 0 | C23: 0 | D23: 0 | E23: 0 | F23: 0 | G23: 0 | H23: 0 | I23: 0 | J23: 0 | K23: 0 | L23: 0 | M23: 0
A24: 5 | B24: 0 | C24: 0 | D24: 0 | E24: 0 | F24: 0 | G24: 0 | H24: 0 | I24: 0 | J24: 0 | K24: 0 | L24: 0 | M24: 0
A25: 6 | B25: 0 | C25: 0 | D25: 0 | E25: 0 | F25: 0 | G25: 0 | H25: 0 | I25: 0 | J25: 0 | K25: 0 | L25: 0 | M25: 0
A26: 7 | B26: 0 | C26: 0 | D26: 0 | E26: 0 | F26: 0 | G26: 0 | H26: 0 | I26: 0 | J26: 0 | K26: 0 | L26: 0 | M26: 0
A27: 8 | B27: 0 | C27: 0 | D27: 0 | E27: 0 | F27: 0 | G27: 0 | H27: 0 | I27: 0 | J27: 0 | K27: 0 | L27: 0 | M27: 0
A28: 9 | B28: 0 | C28: 0 | D28: 0 | E28: 0 | F28: 0 | G28: 0 | H28: 0 | I28: 0 | J28: 0 | K28: 0 | L28: 0 | M28: 0
A29: 10 | B29: 0 | C29: 0 | D29: 0 | E29: 0 | F29: 0 | G29: 0 | H29: 0 | I29: 0 | J29: 0 | K29: 0 | L29: 0 | M29: 0
A30: 11 | B30: 0 | C30: 0 | D30: 0 | E30: 0 | F30: 0 | G30: 0 | H30: 0 | I30: 0 | J30: 0 | K30: 0 | L30: 0 | M30: 0
A31: 12 | B31: 0 | C31: =C30+B31 -> 0 | D31: 0 | E31: 0 | F31: 0 | G31: 0 | H31: 0 | I31: 0 | J31: 0 | K31: 0 | L31: 0 | M31: 0
A32: 13 | B32: 0 | C32: 0 | D32: 0 | E32: 0 | F32: 0 | G32: 0 | H32: 0 | I32: 0 | J32: 0 | K32: 0 | L32: 0 | M32: 0
A33: 14 | B33: 0 | C33: 0 | D33: 0 | E33: 0 | F33: 0 | G33: 0 | H33: 0 | I33: 0 | J33: 0 | K33: 0 | L33: 0 | M33: 0
A34: 15 | B34: 0 | C34: 0 | D34: 0 | E34: 0 | F34: 0 | G34: 0 | H34: 0 | I34: 0 | J34: 0 | K34: 0 | L34: 0 | M34: 0
A35: 16 | B35: 0 | C35: 0 | D35: 0 | E35: 0 | F35: 0 | G35: 0 | H35: 0 | I35: 0 | J35: 0 | K35: 0 | L35: 0 | M35: 0
A36: 17 | B36: 0 | C36: 0 | D36: 0 | E36: 0 | F36: 0 | G36: 0 | H36: 0 | I36: 0 | J36: 0 | K36: 0 | L36: 0 | M36: 0
A37: 18 | B37: 0 | C37: 0 | D37: 0 | E37: 0 | F37: 0 | G37: 0 | H37: 0 | I37: 0 | J37: 0 | K37: 0 | L37: 0 | M37: 0
A38: 19 | B38: 0 | C38: 0 | D38: 0 | E38: 0 | F38: 0 | G38: 0 | H38: 0 | I38: 0 | J38: 0 | K38: 0 | L38: 0 | M38: 0
A39: 20 | B39: 0 | C39: 0 | D39: 0 | E39: 0 | F39: 0 | G39: 0 | H39: 0 | I39: 0 | J39: 0 | K39: 0 | L39: 0 | M39: 0
A40: 21 | B40: 0 | C40: 0 | D40: 0 | E40: 0 | F40: 0 | G40: 0 | H40: 0 | I40: 0 | J40: 0 | K40: 0 | L40: 0 | M40: 0
A41: 22 | B41: 0 | C41: 0 | D41: 0 | E41: 0 | F41: 0 | G41: 0 | H41: 0 | I41: 0 | J41: 0 | K41: 0 | L41: 0 | M41: 0
A42: 23 | B42: 0 | C42: 0 | D42: 0 | E42: 0 | F42: 0 | G42: 0 | H42: 0 | I42: 0 | J42: 0 | K42: 0 | L42: 0 | M42: 0
A43: 24 | B43: 0 | C43: 0 | D43: 0 | E43: 0 | F43: 0 | G43: 0 | H43: 0 | I43: 0 | J43: 0 | K43: 0 | L43: 0 | M43: 0
A44: 25 | B44: 0 | C44: 0 | D44: 0 | E44: 0 | F44: 0 | G44: 0 | H44: 0 | I44: 0 | J44: 0 | K44: 0 | L44: 0 | M44: 0
A45: 26 | B45: 0 | C45: 0 | D45: 0 | E45: 0 | F45: 0 | G45: 0 | H45: 0 | I45: 0 | J45: 0 | K45: 0 | L45: 0 | M45: 0
A46: 27 | B46: 0 | C46: 0 | D46: 0 | E46: 0 | F46: 0 | G46: 0 | H46: 0 | I46: 0 | J46: 0 | K46: 0 | L46: 0 | M46: 0
A47: 28 | B47: 0 | C47: 0 | D47: 0 | E47: 0 | F47: 0 | G47: 0 | H47: 0 | I47: 0 | J47: 0 | K47: 0 | L47: 0 | M47: 0
A48: 29 | B48: 0 | C48: 0 | D48: 0 | E48: 0 | F48: 0 | G48: 0 | H48: 0 | I48: 0 | J48: 0 | K48: 0 | L48: 0 | M48: 0
A49: 30 | B49: 0 | C49: 0 | D49: 0 | E49: 0 | F49: 0 | G49: 0 | H49: 0 | I49: 0 | J49: 0 | K49: 0 | L49: 0 | M49: 0
A50: 31 | B50: 0 | C50: 0 | D50: 0 | E50: 0 | F50: 0 | G50: 0 | H50: 0 | I50: 0 | J50: 0 | K50: 0 | L50: 0 | M50: 0
A51: 32 | B51: 0 | C51: 0 | D51: 0 | E51: 0 | F51: 0 | G51: 0 | H51: 0 | I51: 0 | J51: 0 | K51: 0 | L51: 0 | M51: 0
A52: =A51+1 -> 33 | B52: 0 | C52: 0 | D52: 0 | E52: 0 | F52: 0 | G52: 0 | H52: 0 | I52: 0 | J52: =B52/12 -> 0 | K52: 0 | L52: 0 | M52: 0
A53: 34 | B53: 0 | C53: 0 | D53: =D52+(D52*($B$5+$D$18)) -> 0 | E53: =(E52+(E52*$E$17))+B53 -> 0 | F53: =F52+(F52*($B$5+$F$18)) -> 0 | G53: =(G52+(G52*$G$17))+B53 -> 0 | H53: =H52+(H52*($B$5+$H$18)) -> 0 | I53: =(I52+(I52*$I$17))+B53 -> 0 | J53: 0 | K53: 0 | L53: 0 | M53: 0
A54: 35 | B54: 0 | C54: 0 | D54: 0 | E54: 0 | F54: 0 | G54: 0 | H54: 0 | I54: 0 | J54: 0 | K54: 0 | L54: 0 | M54: 0
A55: 36 | B55: 0 | C55: 0 | D55: 0 | E55: 0 | F55: 0 | G55: 0 | H55: 0 | I55: 0 | J55: 0 | K55: 0 | L55: 0 | M55: 0
A56: 37 | B56: 0 | C56: 0 | D56: 0 | E56: 0 | F56: 0 | G56: 0 | H56: 0 | I56: 0 | J56: 0 | K56: 0 | L56: 0 | M56: 0
A57: 38 | B57: 0 | C57: 0 | D57: 0 | E57: 0 | F57: 0 | G57: 0 | H57: 0 | I57: 0 | J57: 0 | K57: 0 | L57: 0 | M57: 0
A58: 39 | B58: 0 | C58: 0 | D58: 0 | E58: 0 | F58: 0 | G58: 0 | H58: 0 | I58: 0 | J58: 0 | K58: 0 | L58: 0 | M58: 0
A59: 40 | B59: 0 | C59: 0 | D59: 0 | E59: 0 | F59: 0 | G59: 0 | H59: 0 | I59: 0 | J59: 0 | K59: 0 | L59: 0 | M59: 0
A60: 41 | B60: 0 | C60: 0 | D60: 0 | E60: 0 | F60: 0 | G60: 0 | H60: 0 | I60: 0 | J60: 0 | K60: 0 | L60: 0 | M60: 0
A61: 42 | B61: 0 | C61: 0 | D61: 0 | E61: 0 | F61: 0 | G61: 0 | H61: 0 | I61: 0 | J61: 0 | K61: 0 | L61: 0 | M61: 0
A62: 43 | B62: 0 | C62: 0 | D62: 0 | E62: 0 | F62: 0 | G62: 0 | H62: 0 | I62: 0 | J62: 0 | K62: 0 | L62: 0 | M62: 0
A63: 44 | B63: 0 | C63: 0 | D63: 0 | E63: 0 | F63: 0 | G63: 0 | H63: 0 | I63: 0 | J63: 0 | K63: 0 | L63: 0 | M63: 0
A64: 45 | B64: 0 | C64: 0 | D64: 0 | E64: 0 | F64: 0 | G64: 0 | H64: 0 | I64: 0 | J64: 0 | K64: 0 | L64: 0 | M64: 0
A65: 46 | B65: 0 | C65: 0 | D65: 0 | E65: 0 | F65: 0 | G65: 0 | H65: 0 | I65: 0 | J65: 0 | K65: 0 | L65: 0 | M65: 0
A66: 47 | B66: 0 | C66: 0 | D66: 0 | E66: 0 | F66: 0 | G66: 0 | H66: 0 | I66: 0 | J66: 0 | K66: 0 | L66: 0 | M66: 0
A67: 48 | B67: 0 | C67: 0 | D67: 0 | E67: 0 | F67: 0 | G67: 0 | H67: 0 | I67: 0 | J67: 0 | K67: 0 | L67: 0 | M67: 0
A68: 49 | B68: 0 | C68: 0 | D68: 0 | E68: 0 | F68: 0 | G68: 0 | H68: 0 | I68: 0 | J68: 0 | K68: 0 | L68: 0 | M68: 0
A69: 50 | B69: 0 | C69: 0 | D69: 0 | E69: 0 | F69: 0 | G69: 0 | H69: 0 | I69: 0 | J69: 0 | K69: 0 | L69: 0 | M69: 0
A70: 51 | B70: 0 | C70: =C69+B70 -> 0 | D70: 0 | E70: =(E69+(E69*$E$17))+B70 -> 0 | F70: 0 | G70: =(G69+(G69*$G$17))+B70 -> 0 | H70: 0 | I70: =(I69+(I69*$I$17))+B70 -> 0 | J70: =B70/12 -> 0 | K70: 0 | L70: =K70*($B$7+$B$8) -> 0 | M70: =(M69+(M69*$M$17))+L70 -> 0
A71: 52 | B71: 0 | C71: 0 | D71: 0 | E71: 0 | F71: 0 | G71: 0 | H71: 0 | I71: 0 | J71: 0 | K71: 0 | L71: 0 | M71: 0
A72: 53 | B72: 0 | C72: 0 | D72: 0 | E72: 0 | F72: 0 | G72: 0 | H72: 0 | I72: 0 | J72: 0 | K72: 0 | L72: 0 | M72: 0
A73: 54 | B73: 0 | C73: 0 | D73: 0 | E73: 0 | F73: 0 | G73: 0 | H73: 0 | I73: 0 | J73: 0 | K73: 0 | L73: 0 | M73: 0
A74: 55 | B74: 0 | C74: 0 | D74: 0 | E74: 0 | F74: 0 | G74: 0 | H74: 0 | I74: 0 | J74: 0 | K74: 0 | L74: 0 | M74: 0
A75: 56 | B75: 0 | C75: 0 | D75: 0 | E75: 0 | F75: 0 | G75: 0 | H75: 0 | I75: 0 | J75: 0 | K75: 0 | L75: 0 | M75: 0
A76: 57 | B76: 0 | C76: 0 | D76: 0 | E76: 0 | F76: 0 | G76: 0 | H76: 0 | I76: 0 | J76: 0 | K76: 0 | L76: 0 | M76: 0
A77: 58 | B77: 0 | C77: 0 | D77: 0 | E77: 0 | F77: 0 | G77: 0 | H77: 0 | I77: 0 | J77: 0 | K77: 0 | L77: 0 | M77: 0
A78: 59 | B78: 0 | C78: =C77+B78 -> 0 | D78: 0 | E78: =(E77+(E77*$E$17))+B78 -> 0 | F78: 0 | G78: =(G77+(G77*$G$17))+B78 -> 0 | H78: 0 | I78: =(I77+(I77*$I$17))+B78 -> 0 | J78: =B78/12 -> 0 | K78: 0 | L78: =K78*($B$7+$B$8) -> 0 | M78: =(M77+(M77*$M$17))+L78 -> 0
A79: 60 | B79: 0 | C79: 0 | D79: 0 | E79: 0 | F79: 0 | G79: 0 | H79: 0 | I79: 0 | J79: 0 | K79: 0 | L79: 0 | M79: 0
A80: 61 | B80: 0 | C80: 0 | D80: 0 | E80: 0 | F80: 0 | G80: 0 | H80: 0 | I80: 0 | J80: 0 | K80: 0 | L80: 0 | M80: 0
A81: 62 | B81: 0 | C81: 0 | D81: 0 | E81: 0 | F81: 0 | G81: 0 | H81: 0 | I81: 0 | J81: 0 | K81: 0 | L81: 0 | M81: 0
A82: 63 | B82: 0 | C82: 0 | D82: 0 | E82: 0 | F82: 0 | G82: 0 | H82: 0 | I82: 0 | J82: 0 | K82: 0 | L82: 0 | M82: 0
A83: 64 | B83: 0 | C83: 0 | D83: 0 | E83: 0 | F83: 0 | G83: 0 | H83: 0 | I83: 0 | J83: 0 | K83: 0 | L83: 0 | M83: 0
A84: 65 | B84: 0 | C84: 0 | D84: 0 | E84: 0 | F84: 0 | G84: 0 | H84: 0 | I84: 0 | J84: 0 | K84: 0 | L84: 0 | M84: 0
A85: 66 | B85: 0 | C85: 0 | D85: 0 | E85: 0 | F85: 0 | G85: 0 | H85: 0 | I85: 0 | J85: 0 | K85: =K84+(K84*0.03) -> 0 | L85: 0 | M85: 0
A86: 67 | B86: =B85+(B85*($B$5)) -> 0 | C86: 0 | D86: 0 | E86: 0 | F86: 0 | G86: 0 | H86: 0 | I86: 0 | J86: 0 | K86: 0 | L86: 0 | M86: 0
A87: 68 | B87: 0 | C87: 0 | D87: 0 | E87: 0 | F87: 0 | G87: 0 | H87: 0 | I87: 0 | J87: 0 | K87: 0 | L87: 0 | M87: 0
A88: =A87+1 -> 69 | B88: 0 | C88: 0 | D88: 0 | E88: 0 | F88: 0 | G88: 0 | H88: 0 | I88: 0 | J88: 0 | K88: 0 | L88: 0 | M88: 0
A89: 70 | B89: 0 | C89: 0 | D89: 0 | E89: 0 | F89: 0 | G89: 0 | H89: 0 | I89: 0 | J89: 0 | K89: 0 | L89: 0 | M89: 0
A90: 71 | B90: 0 | C90: 0 | D90: 0 | E90: 0 | F90: 0 | G90: 0 | H90: 0 | I90: 0 | J90: 0 | K90: 0 | L90: 0 | M90: 0
A91: 72 | B91: 0 | C91: 0 | D91: 0 | E91: 0 | F91: 0 | G91: 0 | H91: 0 | I91: 0 | J91: 0 | K91: 0 | L91: 0 | M91: 0
A92: 73 | B92: 0 | C92: 0 | D92: 0 | E92: 0 | F92: 0 | G92: 0 | H92: 0 | I92: 0 | J92: 0 | K92: 0 | L92: 0 | M92: 0
A93: 74 | B93: 0 | C93: 0 | D93: 0 | E93: 0 | F93: 0 | G93: 0 | H93: 0 | I93: 0 | J93: 0 | K93: 0 | L93: 0 | M93: 0
A94: 75 | B94: 0 | C94: 0 | D94: 0 | E94: 0 | F94: 0 | G94: 0 | H94: 0 | I94: 0 | J94: 0 | K94: 0 | L94: 0 | M94: 0

Sheet Multiple Goal Back data_1 (hidden)
A1: Goal | B1: Current Balance | C1: Interest | D1: Increase | E1: Year | F1: Years | G1: Starting Amount | I1: Starting Amount | K1: Starting Amount when Year > 63 | P1: Series Sum
A2: ='Multiple Goals Saving Tool'!C14 -> 200000 | B2: =('Multiple Goals Saving Tool'!C6)/('Multiple Goals Saving Tool'!C8) -> 0 | C2: =1+('Multiple Goals Saving Tool'!E14) -> 1.1 | D2: =1+('Multiple Goals Saving Tool'!C7) -> 1 | E2: ='Multiple Goals Saving Tool'!D14 -> 25 | F2: 1 | G2: =(A2-((C2^(E2)*B2)))/(D2^0) -> 200000 | I2: =IF(E2=10,'Multiple Goal Back data_1'!G11,IF(E2=5,'Multiple Goal Back data_1'!G6,IF(E2=1,'Multiple Goal Back data_1'!G2,IF(E2=2,'Multiple Goal Back data_1'!G3,IF(E2=3,'Multiple Goal Back data_1'!G4,IF(E2=4,'Multiple Goal Back data_1'!G5,IF(E2=6,'Multiple Goal Back data_1'!G7,IF(E2=7,'Multiple Goal Back data_1'!G8,IF(E2=8,'Multiple Goal Back data_1'!G9,IF(E2=9,'Multiple Goal Back data_1'!G10,IF(E2=11,'Multiple Goal Back data_1'!G12,IF(E2=12,'Multiple Goal Back data_1'!G13,IF(E2=13,'Multiple Goal Back data_1'!G14,IF(E2=14,'Multiple Goal Back data_1'!G15,IF(E2=15,'Multiple Goal Back data_1'!G16,IF(E2=16,'Multiple Goal Back data_1'!G17,IF(E2=17,'Multiple Goal Back data_1'!G18,IF(E2=18,'Multiple Goal Back data_1'!G19,IF(E2=19,'Multiple Goal Back data_1'!G20,IF(E2=20,'Multiple Goal Back data_1'!G21,IF(E2=21,'Multiple Goal Back data_1'!G22,IF(E2=22,'Multiple Goal Back data_1'!G23,IF(E2=23,'Multiple Goal Back data_1'!G24,IF(E2=24,'Multiple Goal Back data_1'!G25,IF(E2=25,'Multiple Goal Back data_1'!G26,IF(E2=26,'Multiple Goal Back data_1'!G27,IF(E2=27,'Multiple Goal Back data_1'!G28,IF(E2=28,'Multiple Goal Back data_1'!G29,IF(E2=29,'Multiple Goal Back data_1'!G30,IF(E2=30,'Multiple Goal Back data_1'!G31,IF(E2=31,'Multiple Goal Back data_1'!G32,IF(E2=32,'Multiple Goal Back data_1'!G33,IF(E2=33,'Multiple Goal Back data_1'!G34,IF(E2=34,'Multiple Goal Back data_1'!G35,IF(E2=35,'Multiple Goal Back data_1'!G36,IF(E2=36,'Multiple Goal Back data_1'!G37,IF(E2=37,'Multiple Goal Back data_1'!G38,IF(E2=38,'Multiple Goal Back data_1'!G39,IF(E2=39,'Multiple Goal Back data_1'!G40,IF(E2=40,'Multiple Goal Back data_1'!G41,IF(E2=41,'Multiple Goal Back data_1'!G42,IF(E2=42,'Multiple Goal Back data_1'!G43,IF(E2=43,'Multiple Goal Back data_1'!G44,IF(E2=44,'Multiple Goal Back data_1'!G45,IF(E2=45,'Multiple Goal Back data_1'!G46,IF(E2=46,'Multiple Goal Back data_1'!G47,IF(E2=47,'Multiple Goal Back data_1'!G48,IF(E2=48,'Multiple Goal Back data_1'!G49,IF(E2=49,'Multiple Goal Back data_1'!G50,IF(E2=50,'Multiple Goal Back data_1'!G51,IF(E2=51,'Multiple Goal Back data_1'!G52,IF(E2=52,'Multiple Goal Back data_1'!G53,IF(E2=53,'Multiple Goal Back data_1'!G54,IF(E2=54,'Multiple Goal Back data_1'!G55,IF(E2=55,'Multiple Goal Back data_1'!G56,IF(E2=56,'Multiple Goal Back data_1'!G57,IF(E2=57,'Multiple Goal Back data_1'!G58,IF(E2=58,'Multiple Goal Back data_1'!G59,IF(E2=59,'Multiple Goal Back data_1'!G60,IF(E2=60,'Multiple Goal Back data_1'!G61,IF(E2=61,'Multiple Goal Back data_1'!G62,IF(E2=62,'Multiple Goal Back data_1'!G63,IF(E2=63,'Multiple Goal Back data_1'!G64,IF(E2>63,K2,)))))))))))))))))))))))))))))))))))))))))))))))))))))))))))))))) -> 2033.614438 | K2: =IF(E2=64, 'Multiple Goal Back data_1'!G65,IF(E2=65, 'Multiple Goal Back data_1'!G66,IF(E2=66, 'Multiple Goal Back data_1'!G67,IF(E2=67, 'Multiple Goal Back data_1'!G68,IF(E2=68, 'Multiple Goal Back data_1'!G69,IF(E2=69, 'Multiple Goal Back data_1'!G70,IF(E2=70, 'Multiple Goal Back data_1'!G71,IF(E2=71,'Multiple Goal Back data_1'!G72, IF(E2=72, 'Multiple Goal Back data_1'!G73,IF(E2=73, 'Multiple Goal Back data_1'!G74,IF(E2=74, 'Multiple Goal Back data_1'!G75,IF(E2=75, 'Multiple Goal Back data_1'!G76,IF(E2=76, 'Multiple Goal Back data_1'!G77,IF(E2=77, 'Multiple Goal Back data_1'!G78,IF(E2=78, 'Multiple Goal Back data_1'!G79,IF(E2=79, 'Multiple Goal Back data_1'!G80,IF(E2=80, 'Multiple Goal Back data_1'!G81,IF(E2=81, 'Multiple Goal Back data_1'!G82,IF(E2=82, 'Multiple Goal Back data_1'!G83,IF(E2=83, 'Multiple Goal Back data_1'!G84,IF(E2=84, 'Multiple Goal Back data_1'!G85,IF(E2=85, 'Multiple Goal Back data_1'!G86,IF(E2=86, 'Multiple Goal Back data_1'!G87,IF(E2=87, 'Multiple Goal Back data_1'!G88,IF(E2=88, 'Multiple Goal Back data_1'!G89,IF(E2=89, 'Multiple Goal Back data_1'!G90,IF(E2=90, 'Multiple Goal Back data_1'!G91,IF(E2=91, 'Multiple Goal Back data_1'!G92,IF(E2=92, 'Multiple Goal Back data_1'!G93,IF(E2=93, 'Multiple Goal Back data_1'!G94,IF(E2=94, 'Multiple Goal Back data_1'!G95,IF(E2=95, 'Multiple Goal Back data_1'!G96,IF(E2=96, 'Multiple Goal Back data_1'!G97,IF(E2=97, 'Multiple Goal Back data_1'!G98,IF(E2=98, 'Multiple Goal Back data_1'!G99,IF(E2=99, 'Multiple Goal Back data_1'!G100,IF(E2=100, 'Multiple Goal Back data_1'!G101,))))))))))))))))))))))))))))))))))))) -> 0 | P2: =SERIESSUM(1.03, 1,1, {1,1,1,1,1,1,1,1,1}) -> 10.46387931
F3: 2 | G3: =(A2-((C2^(E2)*B2)))/((D2^1)+C2*((D2^0))) -> 95238.09524
F4: 3 | G4: =(A2-((C2^(E2)*B2)))/((D2^2)+C2*((D2^1)+C2*(D2^0))) -> 60422.96073
F5: 4 | G5: =(A2-((C2^(E2)*B2)))/((D2^3)+C2*((D2^2)+C2*((D2^1)+C2*(D2^0)))) -> 43094.16074
F6: 5 | G6: =(A2-((C2^(E2)*B2)))/((D2^4)+C2*((D2^3)+C2*((D2^2)+C2*((D2^1)+C2*(D2^0))))) -> 32759.49616
F7: 6 | G7: =(A2-((C2^(E2)*B2)))/((D2^5)+C2*((D2^4)+C2*((D2^3)+C2*((D2^2)+C2*((D2^1)+C2*(D2^0)))))) -> 25921.47607
F8: 7 | G8: =(A2-((C2^(E2)*B2)))/((D2^6)+C2*((D2^5)+C2*((D2^4)+C2*((D2^3)+C2*((D2^2)+C2*((D2^1)+C2*(D2^0))))))) -> 21081.09994
F9: 8 | G9: =(A2-((C2^(E2)*B2)))/((D2^7)+C2*((D2^6)+C2*((D2^5)+C2*((D2^4)+C2*((D2^3)+C2*((D2^2)+C2*((D2^1)+C2*(D2^0)))))))) -> 17488.80351
F10: 9 | G10: =(A2-((C2^(E2)*B2)))/((D2^8)+C2*((D2^7)+C2*((D2^6)+C2*((D2^5)+C2*((D2^4)+C2*((D2^3)+C2*((D2^2)+C2*((D2^1)+C2*(D2^0))))))))) -> 14728.10781
F11: 10 | G11: =(A2-((C2^(E2)*B2)))/((D2^9)+C2*((D2^8)+C2*((D2^7)+C2*((D2^6)+C2*((D2^5)+C2*((D2^4)+C2*((D2^3)+C2*((D2^2)+C2*((D2^1)+C2*(D2^0)))))))))) -> 12549.07898
F12: 11 | G12: =(A2-((C2^(E2)*B2)))/((D2^10)+(C2*((D2^9)+C2*((D2^8)+C2*((D2^7)+C2*((D2^6)+C2*((D2^5)+C2*((D2^4)+C2*((D2^3)+C2*((D2^2)+C2*((D2^1)+C2*(D2^0)))))))))))) -> 10792.6284
F13: 12 | G13: =(A2-((C2^(E2)*B2)))/((D2^11)+C2*((D2^10)+(C2*((D2^9)+C2*((D2^8)+C2*((D2^7)+C2*((D2^6)+C2*((D2^5)+C2*((D2^4)+C2*((D2^3)+C2*((D2^2)+C2*((D2^1)+C2*(D2^0))))))))))))) -> 9352.66302
F14: 13 | G14: =(A2-((C2^(E2)*B2)))/((D2^12)+C2*((D2^11)+C2*((D2^10)+(C2*((D2^9)+C2*((D2^8)+C2*((D2^7)+C2*((D2^6)+C2*((D2^5)+C2*((D2^4)+C2*((D2^3)+C2*((D2^2)+C2*((D2^1)+C2*(D2^0)))))))))))))) -> 8155.704753
F15: 14 | G15: =(A2-((C2^(E2)*B2)))/((D2^13)+C2*((D2^12)+C2*((D2^11)+C2*((D2^10)+(C2*((D2^9)+C2*((D2^8)+C2*((D2^7)+C2*((D2^6)+C2*((D2^5)+C2*((D2^4)+C2*((D2^3)+C2*((D2^2)+C2*((D2^1)+C2*(D2^0))))))))))))))) -> 7149.244646
F16: 15 | G16: =(A2-((C2^(E2)*B2)))/((D2^14)+C2*((D2^13)+C2*((D2^12)+C2*((D2^11)+C2*((D2^10)+(C2*((D2^9)+C2*((D2^8)+C2*((D2^7)+C2*((D2^6)+C2*((D2^5)+C2*((D2^4)+C2*((D2^3)+C2*((D2^2)+C2*((D2^1)+C2*(D2^0)))))))))))))))) -> 6294.755377
F17: 16 | G17: =(A2-((C2^(E2)*B2)))/((D2^15)+C2*((D2^14)+C2*((D2^13)+C2*((D2^12)+C2*((D2^11)+C2*((D2^10)+(C2*((D2^9)+C2*((D2^8)+C2*((D2^7)+C2*((D2^6)+C2*((D2^5)+C2*((D2^4)+C2*((D2^3)+C2*((D2^2)+C2*((D2^1)+C2*(D2^0))))))))))))))))) -> 5563.324141
F18: 17 | G18: =(A2-((C2^(E2)*B2)))/((D2^16)+C2*((D2^15)+C2*((D2^14)+C2*((D2^13)+C2*((D2^12)+C2*((D2^11)+C2*((D2^10)+(C2*((D2^9)+C2*((D2^8)+C2*((D2^7)+C2*((D2^6)+C2*((D2^5)+C2*((D2^4)+C2*((D2^3)+C2*((D2^2)+C2*((D2^1)+C2*(D2^0)))))))))))))))))) -> 4932.826879
F19: 18 | G19: =(A2-((C2^(E2)*B2)))/((D2^17)+C2*((D2^16)+C2*((D2^15)+C2*((D2^14)+C2*((D2^13)+C2*((D2^12)+C2*((D2^11)+C2*((D2^10)+(C2*((D2^9)+C2*((D2^8)+C2*((D2^7)+C2*((D2^6)+C2*((D2^5)+C2*((D2^4)+C2*((D2^3)+C2*((D2^2)+C2*((D2^1)+C2*(D2^0))))))))))))))))))) -> 4386.044444
F20: 19 | G20: =(A2-((C2^(E2)*B2)))/((D2^18)+C2*((D2^17)+C2*((D2^16)+C2*((D2^15)+C2*((D2^14)+C2*((D2^13)+C2*((D2^12)+C2*((D2^11)+C2*((D2^10)+(C2*((D2^9)+C2*((D2^8)+C2*((D2^7)+C2*((D2^6)+C2*((D2^5)+C2*((D2^4)+C2*((D2^3)+C2*((D2^2)+C2*((D2^1)+C2*(D2^0)))))))))))))))))))) -> 3909.373647
F21: 20 | G21: =(A2-((C2^(E2)*B2)))/((D2^19)+C2*((D2^18)+C2*((D2^17)+C2*((D2^16)+C2*((D2^15)+C2*((D2^14)+C2*((D2^13)+C2*((D2^12)+C2*((D2^11)+C2*((D2^10)+(C2*((D2^9)+C2*((D2^8)+C2*((D2^7)+C2*((D2^6)+C2*((D2^5)+C2*((D2^4)+C2*((D2^3)+C2*((D2^2)+C2*((D2^1)+C2*(D2^0))))))))))))))))))))) -> 3491.924955
F22: 21 | G22: =(A2-((C2^(E2)*B2)))/((D2^20)+(C2*((D2^19)+C2*((D2^18)+C2*((D2^17)+C2*((D2^16)+C2*((D2^15)+C2*((D2^14)+C2*((D2^13)+C2*((D2^12)+C2*((D2^11)+C2*((D2^10)+(C2*((D2^9)+C2*((D2^8)+C2*((D2^7)+C2*((D2^6)+C2*((D2^5)+C2*((D2^4)+C2*((D2^3)+C2*((D2^2)+C2*((D2^1)+C2*(D2^0))))))))))))))))))))))) -> 3124.877962
F23: 22 | G23: =(A2-((C2^(E2)*B2)))/((D2^21)+C2*((D2^20)+(C2*((D2^19)+C2*((D2^18)+C2*((D2^17)+C2*((D2^16)+C2*((D2^15)+C2*((D2^14)+C2*((D2^13)+C2*((D2^12)+C2*((D2^11)+C2*((D2^10)+(C2*((D2^9)+C2*((D2^8)+C2*((D2^7)+C2*((D2^6)+C2*((D2^5)+C2*((D2^4)+C2*((D2^3)+C2*((D2^2)+C2*((D2^1)+C2*(D2^0)))))))))))))))))))))))) -> 2801.01259
F24: 23 | G24: =(A2-((C2^(E2)*B2)))/((D2^22)+C2*((D2^21)+C2*((D2^20)+(C2*((D2^19)+C2*((D2^18)+C2*((D2^17)+C2*((D2^16)+C2*((D2^15)+C2*((D2^14)+C2*((D2^13)+C2*((D2^12)+C2*((D2^11)+C2*((D2^10)+(C2*((D2^9)+C2*((D2^8)+C2*((D2^7)+C2*((D2^6)+C2*((D2^5)+C2*((D2^4)+C2*((D2^3)+C2*((D2^2)+C2*((D2^1)+C2*(D2^0))))))))))))))))))))))))) -> 2514.362531
F25: 24 | G25: =(A2-((C2^(E2)*B2)))/((D2^23)+C2*((D2^22)+C2*((D2^21)+C2*((D2^20)+(C2*((D2^19)+C2*((D2^18)+C2*((D2^17)+C2*((D2^16)+C2*((D2^15)+C2*((D2^14)+C2*((D2^13)+C2*((D2^12)+C2*((D2^11)+C2*((D2^10)+(C2*((D2^9)+C2*((D2^8)+C2*((D2^7)+C2*((D2^6)+C2*((D2^5)+C2*((D2^4)+C2*((D2^3)+C2*((D2^2)+C2*((D2^1)+C2*(D2^0)))))))))))))))))))))))))) -> 2259.95527
F26: 25 | G26: =(A2-((C2^(E2)*B2)))/((D2^24)+C2*((D2^23)+C2*((D2^22)+C2*((D2^21)+C2*((D2^20)+(C2*((D2^19)+C2*((D2^18)+C2*((D2^17)+C2*((D2^16)+C2*((D2^15)+C2*((D2^14)+C2*((D2^13)+C2*((D2^12)+C2*((D2^11)+C2*((D2^10)+(C2*((D2^9)+C2*((D2^8)+C2*((D2^7)+C2*((D2^6)+C2*((D2^5)+C2*((D2^4)+C2*((D2^3)+C2*((D2^2)+C2*((D2^1)+C2*(D2^0))))))))))))))))))))))))))) -> 2033.614438
F27: 26 | G27: =(A2-((C2^(E2)*B2)))/((D2^25)+C2*((D2^24)+C2*((D2^23)+C2*((D2^22)+C2*((D2^21)+C2*((D2^20)+(C2*((D2^19)+C2*((D2^18)+C2*((D2^17)+C2*((D2^16)+C2*((D2^15)+C2*((D2^14)+C2*((D2^13)+C2*((D2^12)+C2*((D2^11)+C2*((D2^10)+(C2*((D2^9)+C2*((D2^8)+C2*((D2^7)+C2*((D2^6)+C2*((D2^5)+C2*((D2^4)+C2*((D2^3)+C2*((D2^2)+C2*((D2^1)+C2*(D2^0)))))))))))))))))))))))))))) -> 1831.807714
F28: 27 | G28: =(A2-((C2^(E2)*B2)))/((D2^26)+C2*((D2^25)+C2*((D2^24)+C2*((D2^23)+C2*((D2^22)+C2*((D2^21)+C2*((D2^20)+(C2*((D2^19)+C2*((D2^18)+C2*((D2^17)+C2*((D2^16)+C2*((D2^15)+C2*((D2^14)+C2*((D2^13)+C2*((D2^12)+C2*((D2^11)+C2*((D2^10)+(C2*((D2^9)+C2*((D2^8)+C2*((D2^7)+C2*((D2^6)+C2*((D2^5)+C2*((D2^4)+C2*((D2^3)+C2*((D2^2)+C2*((D2^1)+C2*(D2^0))))))))))))))))))))))))))))) -> 1651.528455
F29: 28 | G29: =(A2-((C2^(E2)*B2)))/((D2^27)+C2*((D2^26)+C2*((D2^25)+C2*((D2^24)+C2*((D2^23)+C2*((D2^22)+C2*((D2^21)+C2*((D2^20)+(C2*((D2^19)+C2*((D2^18)+C2*((D2^17)+C2*((D2^16)+C2*((D2^15)+C2*((D2^14)+C2*((D2^13)+C2*((D2^12)+C2*((D2^11)+C2*((D2^10)+(C2*((D2^9)+C2*((D2^8)+C2*((D2^7)+C2*((D2^6)+C2*((D2^5)+C2*((D2^4)+C2*((D2^3)+C2*((D2^2)+C2*((D2^1)+C2*(D2^0)))))))))))))))))))))))))))))) -> 1490.202632
F30: 29 | G30: =(A2-((C2^(E2)*B2)))/((D2^28)+C2*((D2^27)+C2*((D2^26)+C2*((D2^25)+C2*((D2^24)+C2*((D2^23)+C2*((D2^22)+C2*((D2^21)+C2*((D2^20)+(C2*((D2^19)+C2*((D2^18)+C2*((D2^17)+C2*((D2^16)+C2*((D2^15)+C2*((D2^14)+C2*((D2^13)+C2*((D2^12)+C2*((D2^11)+C2*((D2^10)+(C2*((D2^9)+C2*((D2^8)+C2*((D2^7)+C2*((D2^6)+C2*((D2^5)+C2*((D2^4)+C2*((D2^3)+C2*((D2^2)+C2*((D2^1)+C2*(D2^0))))))))))))))))))))))))))))))) -> 1345.614943
F31: 30 | G31: =(A2-((C2^(E2)*B2)))/((D2^29)+C2*((D2^28)+C2*((D2^27)+C2*((D2^26)+C2*((D2^25)+C2*((D2^24)+C2*((D2^23)+C2*((D2^22)+C2*((D2^21)+C2*((D2^20)+(C2*((D2^19)+C2*((D2^18)+C2*((D2^17)+C2*((D2^16)+C2*((D2^15)+C2*((D2^14)+C2*((D2^13)+C2*((D2^12)+C2*((D2^11)+C2*((D2^10)+(C2*((D2^9)+C2*((D2^8)+C2*((D2^7)+C2*((D2^6)+C2*((D2^5)+C2*((D2^4)+C2*((D2^3)+C2*((D2^2)+C2*((D2^1)+C2*(D2^0)))))))))))))))))))))))))))))))) -> 1215.849651
F32: 31 | G32: =(A2-((C2^(E2)*B2)))/((D2^30)+(C2*((D2^29)+C2*((D2^28)+C2*((D2^27)+C2*((D2^26)+C2*((D2^25)+C2*((D2^24)+C2*((D2^23)+C2*((D2^22)+C2*((D2^21)+C2*((D2^20)+(C2*((D2^19)+C2*((D2^18)+C2*((D2^17)+C2*((D2^16)+C2*((D2^15)+C2*((D2^14)+C2*((D2^13)+C2*((D2^12)+C2*((D2^11)+C2*((D2^10)+(C2*((D2^9)+C2*((D2^8)+C2*((D2^7)+C2*((D2^6)+C2*((D2^5)+C2*((D2^4)+C2*((D2^3)+C2*((D2^2)+C2*((D2^1)+C2*(D2^0)))))))))))))))))))))))))))))))))) -> 1099.242801
F33: 32 | G33: =(A2-((C2^(E2)*B2)))/((D2^31)+C2*((D2^30)+(C2*((D2^29)+C2*((D2^28)+C2*((D2^27)+C2*((D2^26)+C2*((D2^25)+C2*((D2^24)+C2*((D2^23)+C2*((D2^22)+C2*((D2^21)+C2*((D2^20)+(C2*((D2^19)+C2*((D2^18)+C2*((D2^17)+C2*((D2^16)+C2*((D2^15)+C2*((D2^14)+C2*((D2^13)+C2*((D2^12)+C2*((D2^11)+C2*((D2^10)+(C2*((D2^9)+C2*((D2^8)+C2*((D2^7)+C2*((D2^6)+C2*((D2^5)+C2*((D2^4)+C2*((D2^3)+C2*((D2^2)+C2*((D2^1)+C2*(D2^0))))))))))))))))))))))))))))))))))) -> 994.3433425
F34: 33 | G34: =(A2-((C2^(E2)*B2)))/((D2^32)+C2*((D2^31)+C2*((D2^30)+(C2*((D2^29)+C2*((D2^28)+C2*((D2^27)+C2*((D2^26)+C2*((D2^25)+C2*((D2^24)+C2*((D2^23)+C2*((D2^22)+C2*((D2^21)+C2*((D2^20)+(C2*((D2^19)+C2*((D2^18)+C2*((D2^17)+C2*((D2^16)+C2*((D2^15)+C2*((D2^14)+C2*((D2^13)+C2*((D2^12)+C2*((D2^11)+C2*((D2^10)+(C2*((D2^9)+C2*((D2^8)+C2*((D2^7)+C2*((D2^6)+C2*((D2^5)+C2*((D2^4)+C2*((D2^3)+C2*((D2^2)+C2*((D2^1)+C2*(D2^0)))))))))))))))))))))))))))))))))))) -> 899.8812617
F35: 34 | G35: =(A2-((C2^(E2)*B2)))/((D2^33)+C2*((D2^32)+C2*((D2^31)+C2*((D2^30)+(C2*((D2^29)+C2*((D2^28)+C2*((D2^27)+C2*((D2^26)+C2*((D2^25)+C2*((D2^24)+C2*((D2^23)+C2*((D2^22)+C2*((D2^21)+C2*((D2^20)+(C2*((D2^19)+C2*((D2^18)+C2*((D2^17)+C2*((D2^16)+C2*((D2^15)+C2*((D2^14)+C2*((D2^13)+C2*((D2^12)+C2*((D2^11)+C2*((D2^10)+(C2*((D2^9)+C2*((D2^8)+C2*((D2^7)+C2*((D2^6)+C2*((D2^5)+C2*((D2^4)+C2*((D2^3)+C2*((D2^2)+C2*((D2^1)+C2*(D2^0))))))))))))))))))))))))))))))))))))) -> 814.7412815
F36: 35 | G36: =(A2-((C2^(E2)*B2)))/((D2^34)+C2*((D2^33)+C2*((D2^32)+C2*((D2^31)+C2*((D2^30)+(C2*((D2^29)+C2*((D2^28)+C2*((D2^27)+C2*((D2^26)+C2*((D2^25)+C2*((D2^24)+C2*((D2^23)+C2*((D2^22)+C2*((D2^21)+C2*((D2^20)+(C2*((D2^19)+C2*((D2^18)+C2*((D2^17)+C2*((D2^16)+C2*((D2^15)+C2*((D2^14)+C2*((D2^13)+C2*((D2^12)+C2*((D2^11)+C2*((D2^10)+(C2*((D2^9)+C2*((D2^8)+C2*((D2^7)+C2*((D2^6)+C2*((D2^5)+C2*((D2^4)+C2*((D2^3)+C2*((D2^2)+C2*((D2^1)+C2*(D2^0)))))))))))))))))))))))))))))))))))))) -> 737.941024
F37: 36 | G37: =(A2-((C2^(E2)*B2)))/((D2^35)+C2*((D2^34)+C2*((D2^33)+C2*((D2^32)+C2*((D2^31)+C2*((D2^30)+(C2*((D2^29)+C2*((D2^28)+C2*((D2^27)+C2*((D2^26)+C2*((D2^25)+C2*((D2^24)+C2*((D2^23)+C2*((D2^22)+C2*((D2^21)+C2*((D2^20)+(C2*((D2^19)+C2*((D2^18)+C2*((D2^17)+C2*((D2^16)+C2*((D2^15)+C2*((D2^14)+C2*((D2^13)+C2*((D2^12)+C2*((D2^11)+C2*((D2^10)+(C2*((D2^9)+C2*((D2^8)+C2*((D2^7)+C2*((D2^6)+C2*((D2^5)+C2*((D2^4)+C2*((D2^3)+C2*((D2^2)+C2*((D2^1)+C2*(D2^0))))))))))))))))))))))))))))))))))))))) -> 668.6127637
F38: 37 | G38: =(A2-((C2^(E2)*B2)))/((D2^36)+C2*((D2^35)+C2*((D2^34)+C2*((D2^33)+C2*((D2^32)+C2*((D2^31)+C2*((D2^30)+(C2*((D2^29)+C2*((D2^28)+C2*((D2^27)+C2*((D2^26)+C2*((D2^25)+C2*((D2^24)+C2*((D2^23)+C2*((D2^22)+C2*((D2^21)+C2*((D2^20)+(C2*((D2^19)+C2*((D2^18)+C2*((D2^17)+C2*((D2^16)+C2*((D2^15)+C2*((D2^14)+C2*((D2^13)+C2*((D2^12)+C2*((D2^11)+C2*((D2^10)+(C2*((D2^9)+C2*((D2^8)+C2*((D2^7)+C2*((D2^6)+C2*((D2^5)+C2*((D2^4)+C2*((D2^3)+C2*((D2^2)+C2*((D2^1)+C2*(D2^0)))))))))))))))))))))))))))))))))))))))) -> 605.9880971
F39: 38 | G39: =(A2-((C2^(E2)*B2)))/((D2^37)+C2*((D2^36)+C2*((D2^35)+C2*((D2^34)+C2*((D2^33)+C2*((D2^32)+C2*((D2^31)+C2*((D2^30)+(C2*((D2^29)+C2*((D2^28)+C2*((D2^27)+C2*((D2^26)+C2*((D2^25)+C2*((D2^24)+C2*((D2^23)+C2*((D2^22)+C2*((D2^21)+C2*((D2^20)+(C2*((D2^19)+C2*((D2^18)+C2*((D2^17)+C2*((D2^16)+C2*((D2^15)+C2*((D2^14)+C2*((D2^13)+C2*((D2^12)+C2*((D2^11)+C2*((D2^10)+(C2*((D2^9)+C2*((D2^8)+C2*((D2^7)+C2*((D2^6)+C2*((D2^5)+C2*((D2^4)+C2*((D2^3)+C2*((D2^2)+C2*((D2^1)+C2*(D2^0))))))))))))))))))))))))))))))))))))))))) -> 549.3849939
F40: 39 | G40: =(A2-((C2^(E2)*B2)))/((D2^38)+C2*((D2^37)+C2*((D2^36)+C2*((D2^35)+C2*((D2^34)+C2*((D2^33)+C2*((D2^32)+C2*((D2^31)+C2*((D2^30)+(C2*((D2^29)+C2*((D2^28)+C2*((D2^27)+C2*((D2^26)+C2*((D2^25)+C2*((D2^24)+C2*((D2^23)+C2*((D2^22)+C2*((D2^21)+C2*((D2^20)+(C2*((D2^19)+C2*((D2^18)+C2*((D2^17)+C2*((D2^16)+C2*((D2^15)+C2*((D2^14)+C2*((D2^13)+C2*((D2^12)+C2*((D2^11)+C2*((D2^10)+(C2*((D2^9)+C2*((D2^8)+C2*((D2^7)+C2*((D2^6)+C2*((D2^5)+C2*((D2^4)+C2*((D2^3)+C2*((D2^2)+C2*((D2^1)+C2*(D2^0)))))))))))))))))))))))))))))))))))))))))) -> 498.1968042
F41: 40 | G41: =(A2-((C2^(E2)*B2)))/((D2^39)+C2*((D2^38)+C2*((D2^37)+C2*((D2^36)+C2*((D2^35)+C2*((D2^34)+C2*((D2^33)+C2*((D2^32)+C2*((D2^31)+C2*((D2^30)+(C2*((D2^29)+C2*((D2^28)+C2*((D2^27)+C2*((D2^26)+C2*((D2^25)+C2*((D2^24)+C2*((D2^23)+C2*((D2^22)+C2*((D2^21)+C2*((D2^20)+(C2*((D2^19)+C2*((D2^18)+C2*((D2^17)+C2*((D2^16)+C2*((D2^15)+C2*((D2^14)+C2*((D2^13)+C2*((D2^12)+C2*((D2^11)+C2*((D2^10)+(C2*((D2^9)+C2*((D2^8)+C2*((D2^7)+C2*((D2^6)+C2*((D2^5)+C2*((D2^4)+C2*((D2^3)+C2*((D2^2)+C2*((D2^1)+C2*(D2^0))))))))))))))))))))))))))))))))))))))))))) -> 451.8828829
F42: 41 | G42: =(A2-((C2^(E2)*B2)))/((D2^40)+(C2*((D2^39)+C2*((D2^38)+C2*((D2^37)+C2*((D2^36)+C2*((D2^35)+C2*((D2^34)+C2*((D2^33)+C2*((D2^32)+C2*((D2^31)+C2*((D2^30)+(C2*((D2^29)+C2*((D2^28)+C2*((D2^27)+C2*((D2^26)+C2*((D2^25)+C2*((D2^24)+C2*((D2^23)+C2*((D2^22)+C2*((D2^21)+C2*((D2^20)+(C2*((D2^19)+C2*((D2^18)+C2*((D2^17)+C2*((D2^16)+C2*((D2^15)+C2*((D2^14)+C2*((D2^13)+C2*((D2^12)+C2*((D2^11)+C2*((D2^10)+(C2*((D2^9)+C2*((D2^8)+C2*((D2^7)+C2*((D2^6)+C2*((D2^5)+C2*((D2^4)+C2*((D2^3)+C2*((D2^2)+C2*((D2^1)+C2*(D2^0))))))))))))))))))))))))))))))))))))))))))))) -> 409.9605564
F43: 42 | G43: =(A2-((C2^(E2)*B2)))/((D2^41)+C2*((D2^40)+(C2*((D2^39)+C2*((D2^38)+C2*((D2^37)+C2*((D2^36)+C2*((D2^35)+C2*((D2^34)+C2*((D2^33)+C2*((D2^32)+C2*((D2^31)+C2*((D2^30)+(C2*((D2^29)+C2*((D2^28)+C2*((D2^27)+C2*((D2^26)+C2*((D2^25)+C2*((D2^24)+C2*((D2^23)+C2*((D2^22)+C2*((D2^21)+C2*((D2^20)+(C2*((D2^19)+C2*((D2^18)+C2*((D2^17)+C2*((D2^16)+C2*((D2^15)+C2*((D2^14)+C2*((D2^13)+C2*((D2^12)+C2*((D2^11)+C2*((D2^10)+(C2*((D2^9)+C2*((D2^8)+C2*((D2^7)+C2*((D2^6)+C2*((D2^5)+C2*((D2^4)+C2*((D2^3)+C2*((D2^2)+C2*((D2^1)+C2*(D2^0)))))))))))))))))))))))))))))))))))))))))))))) -> 371.9982122
F44: 43 | G44: =(A2-((C2^(E2)*B2)))/((D2^42)+C2*((D2^41)+C2*((D2^40)+(C2*((D2^39)+C2*((D2^38)+C2*((D2^37)+C2*((D2^36)+C2*((D2^35)+C2*((D2^34)+C2*((D2^33)+C2*((D2^32)+C2*((D2^31)+C2*((D2^30)+(C2*((D2^29)+C2*((D2^28)+C2*((D2^27)+C2*((D2^26)+C2*((D2^25)+C2*((D2^24)+C2*((D2^23)+C2*((D2^22)+C2*((D2^21)+C2*((D2^20)+(C2*((D2^19)+C2*((D2^18)+C2*((D2^17)+C2*((D2^16)+C2*((D2^15)+C2*((D2^14)+C2*((D2^13)+C2*((D2^12)+C2*((D2^11)+C2*((D2^10)+(C2*((D2^9)+C2*((D2^8)+C2*((D2^7)+C2*((D2^6)+C2*((D2^5)+C2*((D2^4)+C2*((D2^3)+C2*((D2^2)+C2*((D2^1)+C2*(D2^0))))))))))))))))))))))))))))))))))))))))))))))) -> 337.609329
F45: 44 | G45: =(A2-((C2^(E2)*B2)))/((D2^43)+C2*((D2^42)+C2*((D2^41)+C2*((D2^40)+(C2*((D2^39)+C2*((D2^38)+C2*((D2^37)+C2*((D2^36)+C2*((D2^35)+C2*((D2^34)+C2*((D2^33)+C2*((D2^32)+C2*((D2^31)+C2*((D2^30)+(C2*((D2^29)+C2*((D2^28)+C2*((D2^27)+C2*((D2^26)+C2*((D2^25)+C2*((D2^24)+C2*((D2^23)+C2*((D2^22)+C2*((D2^21)+C2*((D2^20)+(C2*((D2^19)+C2*((D2^18)+C2*((D2^17)+C2*((D2^16)+C2*((D2^15)+C2*((D2^14)+C2*((D2^13)+C2*((D2^12)+C2*((D2^11)+C2*((D2^10)+(C2*((D2^9)+C2*((D2^8)+C2*((D2^7)+C2*((D2^6)+C2*((D2^5)+C2*((D2^4)+C2*((D2^3)+C2*((D2^2)+C2*((D2^1)+C2*(D2^0)))))))))))))))))))))))))))))))))))))))))))))))) -> 306.4473015
F46: 45 | G46: =(A2-((C2^(E2)*B2)))/((D2^44)+C2*((D2^43)+C2*((D2^42)+C2*((D2^41)+C2*((D2^40)+(C2*((D2^39)+C2*((D2^38)+C2*((D2^37)+C2*((D2^36)+C2*((D2^35)+C2*((D2^34)+C2*((D2^33)+C2*((D2^32)+C2*((D2^31)+C2*((D2^30)+(C2*((D2^29)+C2*((D2^28)+C2*((D2^27)+C2*((D2^26)+C2*((D2^25)+C2*((D2^24)+C2*((D2^23)+C2*((D2^22)+C2*((D2^21)+C2*((D2^20)+(C2*((D2^19)+C2*((D2^18)+C2*((D2^17)+C2*((D2^16)+C2*((D2^15)+C2*((D2^14)+C2*((D2^13)+C2*((D2^12)+C2*((D2^11)+C2*((D2^10)+(C2*((D2^9)+C2*((D2^8)+C2*((D2^7)+C2*((D2^6)+C2*((D2^5)+C2*((D2^4)+C2*((D2^3)+C2*((D2^2)+C2*((D2^1)+C2*(D2^0))))))))))))))))))))))))))))))))))))))))))))))))) -> 278.2009381
F47: 46 | G47: =(A2-((C2^(E2)*B2)))/((D2^45)+C2*((D2^44)+C2*((D2^43)+C2*((D2^42)+C2*((D2^41)+C2*((D2^40)+(C2*((D2^39)+C2*((D2^38)+C2*((D2^37)+C2*((D2^36)+C2*((D2^35)+C2*((D2^34)+C2*((D2^33)+C2*((D2^32)+C2*((D2^31)+C2*((D2^30)+(C2*((D2^29)+C2*((D2^28)+C2*((D2^27)+C2*((D2^26)+C2*((D2^25)+C2*((D2^24)+C2*((D2^23)+C2*((D2^22)+C2*((D2^21)+C2*((D2^20)+(C2*((D2^19)+C2*((D2^18)+C2*((D2^17)+C2*((D2^16)+C2*((D2^15)+C2*((D2^14)+C2*((D2^13)+C2*((D2^12)+C2*((D2^11)+C2*((D2^10)+(C2*((D2^9)+C2*((D2^8)+C2*((D2^7)+C2*((D2^6)+C2*((D2^5)+C2*((D2^4)+C2*((D2^3)+C2*((D2^2)+C2*((D2^1)+C2*(D2^0)))))))))))))))))))))))))))))))))))))))))))))))))) -> 252.5905304
F48: 47 | G48: =(A2-((C2^(E2)*B2)))/((D2^46)+C2*((D2^45)+C2*((D2^44)+C2*((D2^43)+C2*((D2^42)+C2*((D2^41)+C2*((D2^40)+(C2*((D2^39)+C2*((D2^38)+C2*((D2^37)+C2*((D2^36)+C2*((D2^35)+C2*((D2^34)+C2*((D2^33)+C2*((D2^32)+C2*((D2^31)+C2*((D2^30)+(C2*((D2^29)+C2*((D2^28)+C2*((D2^27)+C2*((D2^26)+C2*((D2^25)+C2*((D2^24)+C2*((D2^23)+C2*((D2^22)+C2*((D2^21)+C2*((D2^20)+(C2*((D2^19)+C2*((D2^18)+C2*((D2^17)+C2*((D2^16)+C2*((D2^15)+C2*((D2^14)+C2*((D2^13)+C2*((D2^12)+C2*((D2^11)+C2*((D2^10)+(C2*((D2^9)+C2*((D2^8)+C2*((D2^7)+C2*((D2^6)+C2*((D2^5)+C2*((D2^4)+C2*((D2^3)+C2*((D2^2)+C2*((D2^1)+C2*(D2^0))))))))))))))))))))))))))))))))))))))))))))))))))) -> 229.3644128
F49: 48 | G49: =(A2-((C2^(E2)*B2)))/((D2^47)+C2*((D2^46)+C2*((D2^45)+C2*((D2^44)+C2*((D2^43)+C2*((D2^42)+C2*((D2^41)+C2*((D2^40)+(C2*((D2^39)+C2*((D2^38)+C2*((D2^37)+C2*((D2^36)+C2*((D2^35)+C2*((D2^34)+C2*((D2^33)+C2*((D2^32)+C2*((D2^31)+C2*((D2^30)+(C2*((D2^29)+C2*((D2^28)+C2*((D2^27)+C2*((D2^26)+C2*((D2^25)+C2*((D2^24)+C2*((D2^23)+C2*((D2^22)+C2*((D2^21)+C2*((D2^20)+(C2*((D2^19)+C2*((D2^18)+C2*((D2^17)+C2*((D2^16)+C2*((D2^15)+C2*((D2^14)+C2*((D2^13)+C2*((D2^12)+C2*((D2^11)+C2*((D2^10)+(C2*((D2^9)+C2*((D2^8)+C2*((D2^7)+C2*((D2^6)+C2*((D2^5)+C2*((D2^4)+C2*((D2^3)+C2*((D2^2)+C2*((D2^1)+C2*(D2^0)))))))))))))))))))))))))))))))))))))))))))))))))))) -> 208.2959403
F50: 49 | G50: =(A2-((C2^(E2)*B2)))/((D2^48)+C2*((D2^47)+C2*((D2^46)+C2*((D2^45)+C2*((D2^44)+C2*((D2^43)+C2*((D2^42)+C2*((D2^41)+C2*((D2^40)+(C2*((D2^39)+C2*((D2^38)+C2*((D2^37)+C2*((D2^36)+C2*((D2^35)+C2*((D2^34)+C2*((D2^33)+C2*((D2^32)+C2*((D2^31)+C2*((D2^30)+(C2*((D2^29)+C2*((D2^28)+C2*((D2^27)+C2*((D2^26)+C2*((D2^25)+C2*((D2^24)+C2*((D2^23)+C2*((D2^22)+C2*((D2^21)+C2*((D2^20)+(C2*((D2^19)+C2*((D2^18)+C2*((D2^17)+C2*((D2^16)+C2*((D2^15)+C2*((D2^14)+C2*((D2^13)+C2*((D2^12)+C2*((D2^11)+C2*((D2^10)+(C2*((D2^9)+C2*((D2^8)+C2*((D2^7)+C2*((D2^6)+C2*((D2^5)+C2*((D2^4)+C2*((D2^3)+C2*((D2^2)+C2*((D2^1)+C2*(D2^0))))))))))))))))))))))))))))))))))))))))))))))))))))) -> 189.1808294
F51: 50 | G51: =(A2-((C2^(E2)*B2)))/((D2^49)+C2*((D2^48)+C2*((D2^47)+C2*((D2^46)+C2*((D2^45)+C2*((D2^44)+C2*((D2^43)+C2*((D2^42)+C2*((D2^41)+C2*((D2^40)+(C2*((D2^39)+C2*((D2^38)+C2*((D2^37)+C2*((D2^36)+C2*((D2^35)+C2*((D2^34)+C2*((D2^33)+C2*((D2^32)+C2*((D2^31)+C2*((D2^30)+(C2*((D2^29)+C2*((D2^28)+C2*((D2^27)+C2*((D2^26)+C2*((D2^25)+C2*((D2^24)+C2*((D2^23)+C2*((D2^22)+C2*((D2^21)+C2*((D2^20)+(C2*((D2^19)+C2*((D2^18)+C2*((D2^17)+C2*((D2^16)+C2*((D2^15)+C2*((D2^14)+C2*((D2^13)+C2*((D2^12)+C2*((D2^11)+C2*((D2^10)+(C2*((D2^9)+C2*((D2^8)+C2*((D2^7)+C2*((D2^6)+C2*((D2^5)+C2*((D2^4)+C2*((D2^3)+C2*((D2^2)+C2*((D2^1)+C2*(D2^0)))))))))))))))))))))))))))))))))))))))))))))))))))))) -> 171.8348092
F52: 51 | G52: =(A2-((C2^(E2)*B2)))/((D2^50)+(C2*((D2^49)+C2*((D2^48)+C2*((D2^47)+C2*((D2^46)+C2*((D2^45)+C2*((D2^44)+C2*((D2^43)+C2*((D2^42)+C2*((D2^41)+C2*((D2^40)+(C2*((D2^39)+C2*((D2^38)+C2*((D2^37)+C2*((D2^36)+C2*((D2^35)+C2*((D2^34)+C2*((D2^33)+C2*((D2^32)+C2*((D2^31)+C2*((D2^30)+(C2*((D2^29)+C2*((D2^28)+C2*((D2^27)+C2*((D2^26)+C2*((D2^25)+C2*((D2^24)+C2*((D2^23)+C2*((D2^22)+C2*((D2^21)+C2*((D2^20)+(C2*((D2^19)+C2*((D2^18)+C2*((D2^17)+C2*((D2^16)+C2*((D2^15)+C2*((D2^14)+C2*((D2^13)+C2*((D2^12)+C2*((D2^11)+C2*((D2^10)+(C2*((D2^9)+C2*((D2^8)+C2*((D2^7)+C2*((D2^6)+C2*((D2^5)+C2*((D2^4)+C2*((D2^3)+C2*((D2^2)+C2*((D2^1)+C2*(D2^0)))))))))))))))))))))))))))))))))))))))))))))))))))))))) -> 156.0915449
F53: 52 | G53: =(A2-((C2^(E2)*B2)))/((D2^51)+C2*((D2^50)+(C2*((D2^49)+C2*((D2^48)+C2*((D2^47)+C2*((D2^46)+C2*((D2^45)+C2*((D2^44)+C2*((D2^43)+C2*((D2^42)+C2*((D2^41)+C2*((D2^40)+(C2*((D2^39)+C2*((D2^38)+C2*((D2^37)+C2*((D2^36)+C2*((D2^35)+C2*((D2^34)+C2*((D2^33)+C2*((D2^32)+C2*((D2^31)+C2*((D2^30)+(C2*((D2^29)+C2*((D2^28)+C2*((D2^27)+C2*((D2^26)+C2*((D2^25)+C2*((D2^24)+C2*((D2^23)+C2*((D2^22)+C2*((D2^21)+C2*((D2^20)+(C2*((D2^19)+C2*((D2^18)+C2*((D2^17)+C2*((D2^16)+C2*((D2^15)+C2*((D2^14)+C2*((D2^13)+C2*((D2^12)+C2*((D2^11)+C2*((D2^10)+(C2*((D2^9)+C2*((D2^8)+C2*((D2^7)+C2*((D2^6)+C2*((D2^5)+C2*((D2^4)+C2*((D2^3)+C2*((D2^2)+C2*((D2^1)+C2*(D2^0))))))))))))))))))))))))))))))))))))))))))))))))))))))))) -> 141.8007958
F54: 53 | G54: =(A2-((C2^(E2)*B2)))/((D2^52)+C2*((D2^51)+C2*((D2^50)+(C2*((D2^49)+C2*((D2^48)+C2*((D2^47)+C2*((D2^46)+C2*((D2^45)+C2*((D2^44)+C2*((D2^43)+C2*((D2^42)+C2*((D2^41)+C2*((D2^40)+(C2*((D2^39)+C2*((D2^38)+C2*((D2^37)+C2*((D2^36)+C2*((D2^35)+C2*((D2^34)+C2*((D2^33)+C2*((D2^32)+C2*((D2^31)+C2*((D2^30)+(C2*((D2^29)+C2*((D2^28)+C2*((D2^27)+C2*((D2^26)+C2*((D2^25)+C2*((D2^24)+C2*((D2^23)+C2*((D2^22)+C2*((D2^21)+C2*((D2^20)+(C2*((D2^19)+C2*((D2^18)+C2*((D2^17)+C2*((D2^16)+C2*((D2^15)+C2*((D2^14)+C2*((D2^13)+C2*((D2^12)+C2*((D2^11)+C2*((D2^10)+(C2*((D2^9)+C2*((D2^8)+C2*((D2^7)+C2*((D2^6)+C2*((D2^5)+C2*((D2^4)+C2*((D2^3)+C2*((D2^2)+C2*((D2^1)+C2*(D2^0)))))))))))))))))))))))))))))))))))))))))))))))))))))))))) -> 128.8267792
F55: 54 | G55: =(A2-((C2^(E2)*B2)))/((D2^53)+C2*((D2^52)+C2*((D2^51)+C2*((D2^50)+(C2*((D2^49)+C2*((D2^48)+C2*((D2^47)+C2*((D2^46)+C2*((D2^45)+C2*((D2^44)+C2*((D2^43)+C2*((D2^42)+C2*((D2^41)+C2*((D2^40)+(C2*((D2^39)+C2*((D2^38)+C2*((D2^37)+C2*((D2^36)+C2*((D2^35)+C2*((D2^34)+C2*((D2^33)+C2*((D2^32)+C2*((D2^31)+C2*((D2^30)+(C2*((D2^29)+C2*((D2^28)+C2*((D2^27)+C2*((D2^26)+C2*((D2^25)+C2*((D2^24)+C2*((D2^23)+C2*((D2^22)+C2*((D2^21)+C2*((D2^20)+(C2*((D2^19)+C2*((D2^18)+C2*((D2^17)+C2*((D2^16)+C2*((D2^15)+C2*((D2^14)+C2*((D2^13)+C2*((D2^12)+C2*((D2^11)+C2*((D2^10)+(C2*((D2^9)+C2*((D2^8)+C2*((D2^7)+C2*((D2^6)+C2*((D2^5)+C2*((D2^4)+C2*((D2^3)+C2*((D2^2)+C2*((D2^1)+C2*(D2^0))))))))))))))))))))))))))))))))))))))))))))))))))))))))))) -> 117.046714
F56: 55 | G56: =(A2-((C2^(E2)*B2)))/((D2^54)+C2*((D2^53)+C2*((D2^52)+C2*((D2^51)+C2*((D2^50)+(C2*((D2^49)+C2*((D2^48)+C2*((D2^47)+C2*((D2^46)+C2*((D2^45)+C2*((D2^44)+C2*((D2^43)+C2*((D2^42)+C2*((D2^41)+C2*((D2^40)+(C2*((D2^39)+C2*((D2^38)+C2*((D2^37)+C2*((D2^36)+C2*((D2^35)+C2*((D2^34)+C2*((D2^33)+C2*((D2^32)+C2*((D2^31)+C2*((D2^30)+(C2*((D2^29)+C2*((D2^28)+C2*((D2^27)+C2*((D2^26)+C2*((D2^25)+C2*((D2^24)+C2*((D2^23)+C2*((D2^22)+C2*((D2^21)+C2*((D2^20)+(C2*((D2^19)+C2*((D2^18)+C2*((D2^17)+C2*((D2^16)+C2*((D2^15)+C2*((D2^14)+C2*((D2^13)+C2*((D2^12)+C2*((D2^11)+C2*((D2^10)+(C2*((D2^9)+C2*((D2^8)+C2*((D2^7)+C2*((D2^6)+C2*((D2^5)+C2*((D2^4)+C2*((D2^3)+C2*((D2^2)+C2*((D2^1)+C2*(D2^0)))))))))))))))))))))))))))))))))))))))))))))))))))))))))))) -> 106.3495225
F57: 56 | G57: =(A2-((C2^(E2)*B2)))/((D2^55)+C2*((D2^54)+C2*((D2^53)+C2*((D2^52)+C2*((D2^51)+C2*((D2^50)+(C2*((D2^49)+C2*((D2^48)+C2*((D2^47)+C2*((D2^46)+C2*((D2^45)+C2*((D2^44)+C2*((D2^43)+C2*((D2^42)+C2*((D2^41)+C2*((D2^40)+(C2*((D2^39)+C2*((D2^38)+C2*((D2^37)+C2*((D2^36)+C2*((D2^35)+C2*((D2^34)+C2*((D2^33)+C2*((D2^32)+C2*((D2^31)+C2*((D2^30)+(C2*((D2^29)+C2*((D2^28)+C2*((D2^27)+C2*((D2^26)+C2*((D2^25)+C2*((D2^24)+C2*((D2^23)+C2*((D2^22)+C2*((D2^21)+C2*((D2^20)+(C2*((D2^19)+C2*((D2^18)+C2*((D2^17)+C2*((D2^16)+C2*((D2^15)+C2*((D2^14)+C2*((D2^13)+C2*((D2^12)+C2*((D2^11)+C2*((D2^10)+(C2*((D2^9)+C2*((D2^8)+C2*((D2^7)+C2*((D2^6)+C2*((D2^5)+C2*((D2^4)+C2*((D2^3)+C2*((D2^2)+C2*((D2^1)+C2*(D2^0))))))))))))))))))))))))))))))))))))))))))))))))))))))))))))) -> 96.63467021
F58: 57 | G58: =(A2-((C2^(E2)*B2)))/((D2^56)+C2*((D2^55)+C2*((D2^54)+C2*((D2^53)+C2*((D2^52)+C2*((D2^51)+C2*((D2^50)+(C2*((D2^49)+C2*((D2^48)+C2*((D2^47)+C2*((D2^46)+C2*((D2^45)+C2*((D2^44)+C2*((D2^43)+C2*((D2^42)+C2*((D2^41)+C2*((D2^40)+(C2*((D2^39)+C2*((D2^38)+C2*((D2^37)+C2*((D2^36)+C2*((D2^35)+C2*((D2^34)+C2*((D2^33)+C2*((D2^32)+C2*((D2^31)+C2*((D2^30)+(C2*((D2^29)+C2*((D2^28)+C2*((D2^27)+C2*((D2^26)+C2*((D2^25)+C2*((D2^24)+C2*((D2^23)+C2*((D2^22)+C2*((D2^21)+C2*((D2^20)+(C2*((D2^19)+C2*((D2^18)+C2*((D2^17)+C2*((D2^16)+C2*((D2^15)+C2*((D2^14)+C2*((D2^13)+C2*((D2^12)+C2*((D2^11)+C2*((D2^10)+(C2*((D2^9)+C2*((D2^8)+C2*((D2^7)+C2*((D2^6)+C2*((D2^5)+C2*((D2^4)+C2*((D2^3)+C2*((D2^2)+C2*((D2^1)+C2*(D2^0)))))))))))))))))))))))))))))))))))))))))))))))))))))))))))))) -> 87.81112928
F59: 58 | G59: =(A2-((C2^(E2)*B2)))/((D2^57)+C2*((D2^56)+C2*((D2^55)+C2*((D2^54)+C2*((D2^53)+C2*((D2^52)+C2*((D2^51)+C2*((D2^50)+(C2*((D2^49)+C2*((D2^48)+C2*((D2^47)+C2*((D2^46)+C2*((D2^45)+C2*((D2^44)+C2*((D2^43)+C2*((D2^42)+C2*((D2^41)+C2*((D2^40)+(C2*((D2^39)+C2*((D2^38)+C2*((D2^37)+C2*((D2^36)+C2*((D2^35)+C2*((D2^34)+C2*((D2^33)+C2*((D2^32)+C2*((D2^31)+C2*((D2^30)+(C2*((D2^29)+C2*((D2^28)+C2*((D2^27)+C2*((D2^26)+C2*((D2^25)+C2*((D2^24)+C2*((D2^23)+C2*((D2^22)+C2*((D2^21)+C2*((D2^20)+(C2*((D2^19)+C2*((D2^18)+C2*((D2^17)+C2*((D2^16)+C2*((D2^15)+C2*((D2^14)+C2*((D2^13)+C2*((D2^12)+C2*((D2^11)+C2*((D2^10)+(C2*((D2^9)+C2*((D2^8)+C2*((D2^7)+C2*((D2^6)+C2*((D2^5)+C2*((D2^4)+C2*((D2^3)+C2*((D2^2)+C2*((D2^1)+C2*(D2^0))))))))))))))))))))))))))))))))))))))))))))))))))))))))))))))) -> 79.79644927
F60: 59 | G60: =(A2-((C2^(E2)*B2)))/((D2^58)+C2*((D2^57)+C2*((D2^56)+C2*((D2^55)+C2*((D2^54)+C2*((D2^53)+C2*((D2^52)+C2*((D2^51)+C2*((D2^50)+(C2*((D2^49)+C2*((D2^48)+C2*((D2^47)+C2*((D2^46)+C2*((D2^45)+C2*((D2^44)+C2*((D2^43)+C2*((D2^42)+C2*((D2^41)+C2*((D2^40)+(C2*((D2^39)+C2*((D2^38)+C2*((D2^37)+C2*((D2^36)+C2*((D2^35)+C2*((D2^34)+C2*((D2^33)+C2*((D2^32)+C2*((D2^31)+C2*((D2^30)+(C2*((D2^29)+C2*((D2^28)+C2*((D2^27)+C2*((D2^26)+C2*((D2^25)+C2*((D2^24)+C2*((D2^23)+C2*((D2^22)+C2*((D2^21)+C2*((D2^20)+(C2*((D2^19)+C2*((D2^18)+C2*((D2^17)+C2*((D2^16)+C2*((D2^15)+C2*((D2^14)+C2*((D2^13)+C2*((D2^12)+C2*((D2^11)+C2*((D2^10)+(C2*((D2^9)+C2*((D2^8)+C2*((D2^7)+C2*((D2^6)+C2*((D2^5)+C2*((D2^4)+C2*((D2^3)+C2*((D2^2)+C2*((D2^1)+C2*(D2^0)))))))))))))))))))))))))))))))))))))))))))))))))))))))))))))))) -> 72.51592428
F61: 60 | G61: =(A2-((C2^(E2)*B2)))/((D2^59)+C2*((D2^58)+C2*((D2^57)+C2*((D2^56)+C2*((D2^55)+C2*((D2^54)+C2*((D2^53)+C2*((D2^52)+C2*((D2^51)+C2*((D2^50)+(C2*((D2^49)+C2*((D2^48)+C2*((D2^47)+C2*((D2^46)+C2*((D2^45)+C2*((D2^44)+C2*((D2^43)+C2*((D2^42)+C2*((D2^41)+C2*((D2^40)+(C2*((D2^39)+C2*((D2^38)+C2*((D2^37)+C2*((D2^36)+C2*((D2^35)+C2*((D2^34)+C2*((D2^33)+C2*((D2^32)+C2*((D2^31)+C2*((D2^30)+(C2*((D2^29)+C2*((D2^28)+C2*((D2^27)+C2*((D2^26)+C2*((D2^25)+C2*((D2^24)+C2*((D2^23)+C2*((D2^22)+C2*((D2^21)+C2*((D2^20)+(C2*((D2^19)+C2*((D2^18)+C2*((D2^17)+C2*((D2^16)+C2*((D2^15)+C2*((D2^14)+C2*((D2^13)+C2*((D2^12)+C2*((D2^11)+C2*((D2^10)+(C2*((D2^9)+C2*((D2^8)+C2*((D2^7)+C2*((D2^6)+C2*((D2^5)+C2*((D2^4)+C2*((D2^3)+C2*((D2^2)+C2*((D2^1)+C2*(D2^0))))))))))))))))))))))))))))))))))))))))))))))))))))))))))))))))) -> 65.9018451
F62: 61 | G62: =(A2-((C2^(E2)*B2)))/((D2^60)+(C2*((D2^59)+C2*((D2^58)+C2*((D2^57)+C2*((D2^56)+C2*((D2^55)+C2*((D2^54)+C2*((D2^53)+C2*((D2^52)+C2*((D2^51)+C2*((D2^50)+(C2*((D2^49)+C2*((D2^48)+C2*((D2^47)+C2*((D2^46)+C2*((D2^45)+C2*((D2^44)+C2*((D2^43)+C2*((D2^42)+C2*((D2^41)+C2*((D2^40)+(C2*((D2^39)+C2*((D2^38)+C2*((D2^37)+C2*((D2^36)+C2*((D2^35)+C2*((D2^34)+C2*((D2^33)+C2*((D2^32)+C2*((D2^31)+C2*((D2^30)+(C2*((D2^29)+C2*((D2^28)+C2*((D2^27)+C2*((D2^26)+C2*((D2^25)+C2*((D2^24)+C2*((D2^23)+C2*((D2^22)+C2*((D2^21)+C2*((D2^20)+(C2*((D2^19)+C2*((D2^18)+C2*((D2^17)+C2*((D2^16)+C2*((D2^15)+C2*((D2^14)+C2*((D2^13)+C2*((D2^12)+C2*((D2^11)+C2*((D2^10)+(C2*((D2^9)+C2*((D2^8)+C2*((D2^7)+C2*((D2^6)+C2*((D2^5)+C2*((D2^4)+C2*((D2^3)+C2*((D2^2)+C2*((D2^1)+C2*(D2^0))))))))))))))))))))))))))))))))))))))))))))))))))))))))))))))))))) -> 59.89282715
F63: 62 | G63: =(A2-((C2^(E2)*B2)))/((D2^61)+C2*((D2^60)+(C2*((D2^59)+C2*((D2^58)+C2*((D2^57)+C2*((D2^56)+C2*((D2^55)+C2*((D2^54)+C2*((D2^53)+C2*((D2^52)+C2*((D2^51)+C2*((D2^50)+(C2*((D2^49)+C2*((D2^48)+C2*((D2^47)+C2*((D2^46)+C2*((D2^45)+C2*((D2^44)+C2*((D2^43)+C2*((D2^42)+C2*((D2^41)+C2*((D2^40)+(C2*((D2^39)+C2*((D2^38)+C2*((D2^37)+C2*((D2^36)+C2*((D2^35)+C2*((D2^34)+C2*((D2^33)+C2*((D2^32)+C2*((D2^31)+C2*((D2^30)+(C2*((D2^29)+C2*((D2^28)+C2*((D2^27)+C2*((D2^26)+C2*((D2^25)+C2*((D2^24)+C2*((D2^23)+C2*((D2^22)+C2*((D2^21)+C2*((D2^20)+(C2*((D2^19)+C2*((D2^18)+C2*((D2^17)+C2*((D2^16)+C2*((D2^15)+C2*((D2^14)+C2*((D2^13)+C2*((D2^12)+C2*((D2^11)+C2*((D2^10)+(C2*((D2^9)+C2*((D2^8)+C2*((D2^7)+C2*((D2^6)+C2*((D2^5)+C2*((D2^4)+C2*((D2^3)+C2*((D2^2)+C2*((D2^1)+C2*(D2^0)))))))))))))))))))))))))))))))))))))))))))))))))))))))))))))))))))) -> 54.43320578
F64: 63 | G64: =(A2-((C2^(E2)*B2)))/((D2^62)+C2*((D2^61)+C2*((D2^60)+(C2*((D2^59)+C2*((D2^58)+C2*((D2^57)+C2*((D2^56)+C2*((D2^55)+C2*((D2^54)+C2*((D2^53)+C2*((D2^52)+C2*((D2^51)+C2*((D2^50)+(C2*((D2^49)+C2*((D2^48)+C2*((D2^47)+C2*((D2^46)+C2*((D2^45)+C2*((D2^44)+C2*((D2^43)+C2*((D2^42)+C2*((D2^41)+C2*((D2^40)+(C2*((D2^39)+C2*((D2^38)+C2*((D2^37)+C2*((D2^36)+C2*((D2^35)+C2*((D2^34)+C2*((D2^33)+C2*((D2^32)+C2*((D2^31)+C2*((D2^30)+(C2*((D2^29)+C2*((D2^28)+C2*((D2^27)+C2*((D2^26)+C2*((D2^25)+C2*((D2^24)+C2*((D2^23)+C2*((D2^22)+C2*((D2^21)+C2*((D2^20)+(C2*((D2^19)+C2*((D2^18)+C2*((D2^17)+C2*((D2^16)+C2*((D2^15)+C2*((D2^14)+C2*((D2^13)+C2*((D2^12)+C2*((D2^11)+C2*((D2^10)+(C2*((D2^9)+C2*((D2^8)+C2*((D2^7)+C2*((D2^6)+C2*((D2^5)+C2*((D2^4)+C2*((D2^3)+C2*((D2^2)+C2*((D2^1)+C2*(D2^0))))))))))))))))))))))))))))))))))))))))))))))))))))))))))))))))))))) -> 49.47249186
F65: 64 | G65: =(A2-((C2^(E2)*B2)))/((D2^63)+C2*((D2^62)+C2*((D2^61)+C2*((D2^60)+(C2*((D2^59)+C2*((D2^58)+C2*((D2^57)+C2*((D2^56)+C2*((D2^55)+C2*((D2^54)+C2*((D2^53)+C2*((D2^52)+C2*((D2^51)+C2*((D2^50)+(C2*((D2^49)+C2*((D2^48)+C2*((D2^47)+C2*((D2^46)+C2*((D2^45)+C2*((D2^44)+C2*((D2^43)+C2*((D2^42)+C2*((D2^41)+C2*((D2^40)+(C2*((D2^39)+C2*((D2^38)+C2*((D2^37)+C2*((D2^36)+C2*((D2^35)+C2*((D2^34)+C2*((D2^33)+C2*((D2^32)+C2*((D2^31)+C2*((D2^30)+(C2*((D2^29)+C2*((D2^28)+C2*((D2^27)+C2*((D2^26)+C2*((D2^25)+C2*((D2^24)+C2*((D2^23)+C2*((D2^22)+C2*((D2^21)+C2*((D2^20)+(C2*((D2^19)+C2*((D2^18)+C2*((D2^17)+C2*((D2^16)+C2*((D2^15)+C2*((D2^14)+C2*((D2^13)+C2*((D2^12)+C2*((D2^11)+C2*((D2^10)+(C2*((D2^9)+C2*((D2^8)+C2*((D2^7)+C2*((D2^6)+C2*((D2^5)+C2*((D2^4)+C2*((D2^3)+C2*((D2^2)+C2*((D2^1)+C2*(D2^0)))))))))))))))))))))))))))))))))))))))))))))))))))))))))))))))))))))) -> 44.96488112
F66: 65 | G66: =(A2-((C2^(E2)*B2)))/((D2^64)+C2*((D2^63)+C2*((D2^62)+C2*((D2^61)+C2*((D2^60)+(C2*((D2^59)+C2*((D2^58)+C2*((D2^57)+C2*((D2^56)+C2*((D2^55)+C2*((D2^54)+C2*((D2^53)+C2*((D2^52)+C2*((D2^51)+C2*((D2^50)+(C2*((D2^49)+C2*((D2^48)+C2*((D2^47)+C2*((D2^46)+C2*((D2^45)+C2*((D2^44)+C2*((D2^43)+C2*((D2^42)+C2*((D2^41)+C2*((D2^40)+(C2*((D2^39)+C2*((D2^38)+C2*((D2^37)+C2*((D2^36)+C2*((D2^35)+C2*((D2^34)+C2*((D2^33)+C2*((D2^32)+C2*((D2^31)+C2*((D2^30)+(C2*((D2^29)+C2*((D2^28)+C2*((D2^27)+C2*((D2^26)+C2*((D2^25)+C2*((D2^24)+C2*((D2^23)+C2*((D2^22)+C2*((D2^21)+C2*((D2^20)+(C2*((D2^19)+C2*((D2^18)+C2*((D2^17)+C2*((D2^16)+C2*((D2^15)+C2*((D2^14)+C2*((D2^13)+C2*((D2^12)+C2*((D2^11)+C2*((D2^10)+(C2*((D2^9)+C2*((D2^8)+C2*((D2^7)+C2*((D2^6)+C2*((D2^5)+C2*((D2^4)+C2*((D2^3)+C2*((D2^2)+C2*((D2^1)+C2*(D2^0))))))))))))))))))))))))))))))))))))))))))))))))))))))))))))))))))))))) -> 40.86881165
F67: 66 | G67: =(A2-((C2^(E2)*B2)))/((D2^65)+C2*((D2^64)+C2*((D2^63)+C2*((D2^62)+C2*((D2^61)+C2*((D2^60)+(C2*((D2^59)+C2*((D2^58)+C2*((D2^57)+C2*((D2^56)+C2*((D2^55)+C2*((D2^54)+C2*((D2^53)+C2*((D2^52)+C2*((D2^51)+C2*((D2^50)+(C2*((D2^49)+C2*((D2^48)+C2*((D2^47)+C2*((D2^46)+C2*((D2^45)+C2*((D2^44)+C2*((D2^43)+C2*((D2^42)+C2*((D2^41)+C2*((D2^40)+(C2*((D2^39)+C2*((D2^38)+C2*((D2^37)+C2*((D2^36)+C2*((D2^35)+C2*((D2^34)+C2*((D2^33)+C2*((D2^32)+C2*((D2^31)+C2*((D2^30)+(C2*((D2^29)+C2*((D2^28)+C2*((D2^27)+C2*((D2^26)+C2*((D2^25)+C2*((D2^24)+C2*((D2^23)+C2*((D2^22)+C2*((D2^21)+C2*((D2^20)+(C2*((D2^19)+C2*((D2^18)+C2*((D2^17)+C2*((D2^16)+C2*((D2^15)+C2*((D2^14)+C2*((D2^13)+C2*((D2^12)+C2*((D2^11)+C2*((D2^10)+(C2*((D2^9)+C2*((D2^8)+C2*((D2^7)+C2*((D2^6)+C2*((D2^5)+C2*((D2^4)+C2*((D2^3)+C2*((D2^2)+C2*((D2^1)+C2*(D2^0)))))))))))))))))))))))))))))))))))))))))))))))))))))))))))))))))))))))) -> 37.14656452
F68: 67 | G68: =(A2-((C2^(E2)*B2)))/((D2^66)+C2*((D2^65)+C2*((D2^64)+C2*((D2^63)+C2*((D2^62)+C2*((D2^61)+C2*((D2^60)+(C2*((D2^59)+C2*((D2^58)+C2*((D2^57)+C2*((D2^56)+C2*((D2^55)+C2*((D2^54)+C2*((D2^53)+C2*((D2^52)+C2*((D2^51)+C2*((D2^50)+(C2*((D2^49)+C2*((D2^48)+C2*((D2^47)+C2*((D2^46)+C2*((D2^45)+C2*((D2^44)+C2*((D2^43)+C2*((D2^42)+C2*((D2^41)+C2*((D2^40)+(C2*((D2^39)+C2*((D2^38)+C2*((D2^37)+C2*((D2^36)+C2*((D2^35)+C2*((D2^34)+C2*((D2^33)+C2*((D2^32)+C2*((D2^31)+C2*((D2^30)+(C2*((D2^29)+C2*((D2^28)+C2*((D2^27)+C2*((D2^26)+C2*((D2^25)+C2*((D2^24)+C2*((D2^23)+C2*((D2^22)+C2*((D2^21)+C2*((D2^20)+(C2*((D2^19)+C2*((D2^18)+C2*((D2^17)+C2*((D2^16)+C2*((D2^15)+C2*((D2^14)+C2*((D2^13)+C2*((D2^12)+C2*((D2^11)+C2*((D2^10)+(C2*((D2^9)+C2*((D2^8)+C2*((D2^7)+C2*((D2^6)+C2*((D2^5)+C2*((D2^4)+C2*((D2^3)+C2*((D2^2)+C2*((D2^1)+C2*(D2^0))))))))))))))))))))))))))))))))))))))))))))))))))))))))))))))))))))))))) -> 33.76390314
F69: 68 | G69: =(A2-((C2^(E2)*B2)))/((D2^67)+C2*((D2^66)+C2*((D2^65)+C2*((D2^64)+C2*((D2^63)+C2*((D2^62)+C2*((D2^61)+C2*((D2^60)+(C2*((D2^59)+C2*((D2^58)+C2*((D2^57)+C2*((D2^56)+C2*((D2^55)+C2*((D2^54)+C2*((D2^53)+C2*((D2^52)+C2*((D2^51)+C2*((D2^50)+(C2*((D2^49)+C2*((D2^48)+C2*((D2^47)+C2*((D2^46)+C2*((D2^45)+C2*((D2^44)+C2*((D2^43)+C2*((D2^42)+C2*((D2^41)+C2*((D2^40)+(C2*((D2^39)+C2*((D2^38)+C2*((D2^37)+C2*((D2^36)+C2*((D2^35)+C2*((D2^34)+C2*((D2^33)+C2*((D2^32)+C2*((D2^31)+C2*((D2^30)+(C2*((D2^29)+C2*((D2^28)+C2*((D2^27)+C2*((D2^26)+C2*((D2^25)+C2*((D2^24)+C2*((D2^23)+C2*((D2^22)+C2*((D2^21)+C2*((D2^20)+(C2*((D2^19)+C2*((D2^18)+C2*((D2^17)+C2*((D2^16)+C2*((D2^15)+C2*((D2^14)+C2*((D2^13)+C2*((D2^12)+C2*((D2^11)+C2*((D2^10)+(C2*((D2^9)+C2*((D2^8)+C2*((D2^7)+C2*((D2^6)+C2*((D2^5)+C2*((D2^4)+C2*((D2^3)+C2*((D2^2)+C2*((D2^1)+C2*(D2^0)))))))))))))))))))))))))))))))))))))))))))))))))))))))))))))))))))))))))) -> 30.68974737
F70: 69 | G70: =(A2-((C2^(E2)*B2)))/((D2^68)+C2*((D2^67)+C2*((D2^66)+C2*((D2^65)+C2*((D2^64)+C2*((D2^63)+C2*((D2^62)+C2*((D2^61)+C2*((D2^60)+(C2*((D2^59)+C2*((D2^58)+C2*((D2^57)+C2*((D2^56)+C2*((D2^55)+C2*((D2^54)+C2*((D2^53)+C2*((D2^52)+C2*((D2^51)+C2*((D2^50)+(C2*((D2^49)+C2*((D2^48)+C2*((D2^47)+C2*((D2^46)+C2*((D2^45)+C2*((D2^44)+C2*((D2^43)+C2*((D2^42)+C2*((D2^41)+C2*((D2^40)+(C2*((D2^39)+C2*((D2^38)+C2*((D2^37)+C2*((D2^36)+C2*((D2^35)+C2*((D2^34)+C2*((D2^33)+C2*((D2^32)+C2*((D2^31)+C2*((D2^30)+(C2*((D2^29)+C2*((D2^28)+C2*((D2^27)+C2*((D2^26)+C2*((D2^25)+C2*((D2^24)+C2*((D2^23)+C2*((D2^22)+C2*((D2^21)+C2*((D2^20)+(C2*((D2^19)+C2*((D2^18)+C2*((D2^17)+C2*((D2^16)+C2*((D2^15)+C2*((D2^14)+C2*((D2^13)+C2*((D2^12)+C2*((D2^11)+C2*((D2^10)+(C2*((D2^9)+C2*((D2^8)+C2*((D2^7)+C2*((D2^6)+C2*((D2^5)+C2*((D2^4)+C2*((D2^3)+C2*((D2^2)+C2*((D2^1)+C2*(D2^0))))))))))))))))))))))))))))))))))))))))))))))))))))))))))))))))))))))))))) -> 27.8958789
F71: 70 | G71: =(A2-((C2^(E2)*B2)))/((D2^69)+C2*((D2^68)+C2*((D2^67)+C2*((D2^66)+C2*((D2^65)+C2*((D2^64)+C2*((D2^63)+C2*((D2^62)+C2*((D2^61)+C2*((D2^60)+(C2*((D2^59)+C2*((D2^58)+C2*((D2^57)+C2*((D2^56)+C2*((D2^55)+C2*((D2^54)+C2*((D2^53)+C2*((D2^52)+C2*((D2^51)+C2*((D2^50)+(C2*((D2^49)+C2*((D2^48)+C2*((D2^47)+C2*((D2^46)+C2*((D2^45)+C2*((D2^44)+C2*((D2^43)+C2*((D2^42)+C2*((D2^41)+C2*((D2^40)+(C2*((D2^39)+C2*((D2^38)+C2*((D2^37)+C2*((D2^36)+C2*((D2^35)+C2*((D2^34)+C2*((D2^33)+C2*((D2^32)+C2*((D2^31)+C2*((D2^30)+(C2*((D2^29)+C2*((D2^28)+C2*((D2^27)+C2*((D2^26)+C2*((D2^25)+C2*((D2^24)+C2*((D2^23)+C2*((D2^22)+C2*((D2^21)+C2*((D2^20)+(C2*((D2^19)+C2*((D2^18)+C2*((D2^17)+C2*((D2^16)+C2*((D2^15)+C2*((D2^14)+C2*((D2^13)+C2*((D2^12)+C2*((D2^11)+C2*((D2^10)+(C2*((D2^9)+C2*((D2^8)+C2*((D2^7)+C2*((D2^6)+C2*((D2^5)+C2*((D2^4)+C2*((D2^3)+C2*((D2^2)+C2*((D2^1)+C2*(D2^0)))))))))))))))))))))))))))))))))))))))))))))))))))))))))))))))))))))))))))) -> 25.35667469
F72: 71 | G72: =(A2-((C2^(E2)*B2)))/((D2^70)+(C2*((D2^69)+C2*((D2^68)+C2*((D2^67)+C2*((D2^66)+C2*((D2^65)+C2*((D2^64)+C2*((D2^63)+C2*((D2^62)+C2*((D2^61)+C2*((D2^60)+(C2*((D2^59)+C2*((D2^58)+C2*((D2^57)+C2*((D2^56)+C2*((D2^55)+C2*((D2^54)+C2*((D2^53)+C2*((D2^52)+C2*((D2^51)+C2*((D2^50)+(C2*((D2^49)+C2*((D2^48)+C2*((D2^47)+C2*((D2^46)+C2*((D2^45)+C2*((D2^44)+C2*((D2^43)+C2*((D2^42)+C2*((D2^41)+C2*((D2^40)+(C2*((D2^39)+C2*((D2^38)+C2*((D2^37)+C2*((D2^36)+C2*((D2^35)+C2*((D2^34)+C2*((D2^33)+C2*((D2^32)+C2*((D2^31)+C2*((D2^30)+(C2*((D2^29)+C2*((D2^28)+C2*((D2^27)+C2*((D2^26)+C2*((D2^25)+C2*((D2^24)+C2*((D2^23)+C2*((D2^22)+C2*((D2^21)+C2*((D2^20)+(C2*((D2^19)+C2*((D2^18)+C2*((D2^17)+C2*((D2^16)+C2*((D2^15)+C2*((D2^14)+C2*((D2^13)+C2*((D2^12)+C2*((D2^11)+C2*((D2^10)+(C2*((D2^9)+C2*((D2^8)+C2*((D2^7)+C2*((D2^6)+C2*((D2^5)+C2*((D2^4)+C2*((D2^3)+C2*((D2^2)+C2*((D2^1)+C2*(D2^0)))))))))))))))))))))))))))))))))))))))))))))))))))))))))))))))))))))))))))))) -> 23.04886589
F73: 72 | G73: =(A2-((C2^(E2)*B2)))/((D2^71)+C2*((D2^70)+(C2*((D2^69)+C2*((D2^68)+C2*((D2^67)+C2*((D2^66)+C2*((D2^65)+C2*((D2^64)+C2*((D2^63)+C2*((D2^62)+C2*((D2^61)+C2*((D2^60)+(C2*((D2^59)+C2*((D2^58)+C2*((D2^57)+C2*((D2^56)+C2*((D2^55)+C2*((D2^54)+C2*((D2^53)+C2*((D2^52)+C2*((D2^51)+C2*((D2^50)+(C2*((D2^49)+C2*((D2^48)+C2*((D2^47)+C2*((D2^46)+C2*((D2^45)+C2*((D2^44)+C2*((D2^43)+C2*((D2^42)+C2*((D2^41)+C2*((D2^40)+(C2*((D2^39)+C2*((D2^38)+C2*((D2^37)+C2*((D2^36)+C2*((D2^35)+C2*((D2^34)+C2*((D2^33)+C2*((D2^32)+C2*((D2^31)+C2*((D2^30)+(C2*((D2^29)+C2*((D2^28)+C2*((D2^27)+C2*((D2^26)+C2*((D2^25)+C2*((D2^24)+C2*((D2^23)+C2*((D2^22)+C2*((D2^21)+C2*((D2^20)+(C2*((D2^19)+C2*((D2^18)+C2*((D2^17)+C2*((D2^16)+C2*((D2^15)+C2*((D2^14)+C2*((D2^13)+C2*((D2^12)+C2*((D2^11)+C2*((D2^10)+(C2*((D2^9)+C2*((D2^8)+C2*((D2^7)+C2*((D2^6)+C2*((D2^5)+C2*((D2^4)+C2*((D2^3)+C2*((D2^2)+C2*((D2^1)+C2*(D2^0))))))))))))))))))))))))))))))))))))))))))))))))))))))))))))))))))))))))))))))) -> 20.95131943
F74: 73 | G74: =(A2-((C2^(E2)*B2)))/((D2^72)+C2*((D2^71)+C2*((D2^70)+(C2*((D2^69)+C2*((D2^68)+C2*((D2^67)+C2*((D2^66)+C2*((D2^65)+C2*((D2^64)+C2*((D2^63)+C2*((D2^62)+C2*((D2^61)+C2*((D2^60)+(C2*((D2^59)+C2*((D2^58)+C2*((D2^57)+C2*((D2^56)+C2*((D2^55)+C2*((D2^54)+C2*((D2^53)+C2*((D2^52)+C2*((D2^51)+C2*((D2^50)+(C2*((D2^49)+C2*((D2^48)+C2*((D2^47)+C2*((D2^46)+C2*((D2^45)+C2*((D2^44)+C2*((D2^43)+C2*((D2^42)+C2*((D2^41)+C2*((D2^40)+(C2*((D2^39)+C2*((D2^38)+C2*((D2^37)+C2*((D2^36)+C2*((D2^35)+C2*((D2^34)+C2*((D2^33)+C2*((D2^32)+C2*((D2^31)+C2*((D2^30)+(C2*((D2^29)+C2*((D2^28)+C2*((D2^27)+C2*((D2^26)+C2*((D2^25)+C2*((D2^24)+C2*((D2^23)+C2*((D2^22)+C2*((D2^21)+C2*((D2^20)+(C2*((D2^19)+C2*((D2^18)+C2*((D2^17)+C2*((D2^16)+C2*((D2^15)+C2*((D2^14)+C2*((D2^13)+C2*((D2^12)+C2*((D2^11)+C2*((D2^10)+(C2*((D2^9)+C2*((D2^8)+C2*((D2^7)+C2*((D2^6)+C2*((D2^5)+C2*((D2^4)+C2*((D2^3)+C2*((D2^2)+C2*((D2^1)+C2*(D2^0)))))))))))))))))))))))))))))))))))))))))))))))))))))))))))))))))))))))))))))))) -> 19.04484032
F75: 74 | G75: =(A2-((C2^(E2)*B2)))/((D2^73)+C2*((D2^72)+C2*((D2^71)+C2*((D2^70)+(C2*((D2^69)+C2*((D2^68)+C2*((D2^67)+C2*((D2^66)+C2*((D2^65)+C2*((D2^64)+C2*((D2^63)+C2*((D2^62)+C2*((D2^61)+C2*((D2^60)+(C2*((D2^59)+C2*((D2^58)+C2*((D2^57)+C2*((D2^56)+C2*((D2^55)+C2*((D2^54)+C2*((D2^53)+C2*((D2^52)+C2*((D2^51)+C2*((D2^50)+(C2*((D2^49)+C2*((D2^48)+C2*((D2^47)+C2*((D2^46)+C2*((D2^45)+C2*((D2^44)+C2*((D2^43)+C2*((D2^42)+C2*((D2^41)+C2*((D2^40)+(C2*((D2^39)+C2*((D2^38)+C2*((D2^37)+C2*((D2^36)+C2*((D2^35)+C2*((D2^34)+C2*((D2^33)+C2*((D2^32)+C2*((D2^31)+C2*((D2^30)+(C2*((D2^29)+C2*((D2^28)+C2*((D2^27)+C2*((D2^26)+C2*((D2^25)+C2*((D2^24)+C2*((D2^23)+C2*((D2^22)+C2*((D2^21)+C2*((D2^20)+(C2*((D2^19)+C2*((D2^18)+C2*((D2^17)+C2*((D2^16)+C2*((D2^15)+C2*((D2^14)+C2*((D2^13)+C2*((D2^12)+C2*((D2^11)+C2*((D2^10)+(C2*((D2^9)+C2*((D2^8)+C2*((D2^7)+C2*((D2^6)+C2*((D2^5)+C2*((D2^4)+C2*((D2^3)+C2*((D2^2)+C2*((D2^1)+C2*(D2^0))))))))))))))))))))))))))))))))))))))))))))))))))))))))))))))))))))))))))))))))) -> 17.31199255
F76: 75 | G76: =(A2-((C2^(E2)*B2)))/((D2^74)+C2*((D2^73)+C2*((D2^72)+C2*((D2^71)+C2*((D2^70)+(C2*((D2^69)+C2*((D2^68)+C2*((D2^67)+C2*((D2^66)+C2*((D2^65)+C2*((D2^64)+C2*((D2^63)+C2*((D2^62)+C2*((D2^61)+C2*((D2^60)+(C2*((D2^59)+C2*((D2^58)+C2*((D2^57)+C2*((D2^56)+C2*((D2^55)+C2*((D2^54)+C2*((D2^53)+C2*((D2^52)+C2*((D2^51)+C2*((D2^50)+(C2*((D2^49)+C2*((D2^48)+C2*((D2^47)+C2*((D2^46)+C2*((D2^45)+C2*((D2^44)+C2*((D2^43)+C2*((D2^42)+C2*((D2^41)+C2*((D2^40)+(C2*((D2^39)+C2*((D2^38)+C2*((D2^37)+C2*((D2^36)+C2*((D2^35)+C2*((D2^34)+C2*((D2^33)+C2*((D2^32)+C2*((D2^31)+C2*((D2^30)+(C2*((D2^29)+C2*((D2^28)+C2*((D2^27)+C2*((D2^26)+C2*((D2^25)+C2*((D2^24)+C2*((D2^23)+C2*((D2^22)+C2*((D2^21)+C2*((D2^20)+(C2*((D2^19)+C2*((D2^18)+C2*((D2^17)+C2*((D2^16)+C2*((D2^15)+C2*((D2^14)+C2*((D2^13)+C2*((D2^12)+C2*((D2^11)+C2*((D2^10)+(C2*((D2^9)+C2*((D2^8)+C2*((D2^7)+C2*((D2^6)+C2*((D2^5)+C2*((D2^4)+C2*((D2^3)+C2*((D2^2)+C2*((D2^1)+C2*(D2^0)))))))))))))))))))))))))))))))))))))))))))))))))))))))))))))))))))))))))))))))))) -> 15.73693669
F77: 76 | G77: =(A2-((C2^(E2)*B2)))/((D2^75)+C2*((D2^74)+C2*((D2^73)+C2*((D2^72)+C2*((D2^71)+C2*((D2^70)+(C2*((D2^69)+C2*((D2^68)+C2*((D2^67)+C2*((D2^66)+C2*((D2^65)+C2*((D2^64)+C2*((D2^63)+C2*((D2^62)+C2*((D2^61)+C2*((D2^60)+(C2*((D2^59)+C2*((D2^58)+C2*((D2^57)+C2*((D2^56)+C2*((D2^55)+C2*((D2^54)+C2*((D2^53)+C2*((D2^52)+C2*((D2^51)+C2*((D2^50)+(C2*((D2^49)+C2*((D2^48)+C2*((D2^47)+C2*((D2^46)+C2*((D2^45)+C2*((D2^44)+C2*((D2^43)+C2*((D2^42)+C2*((D2^41)+C2*((D2^40)+(C2*((D2^39)+C2*((D2^38)+C2*((D2^37)+C2*((D2^36)+C2*((D2^35)+C2*((D2^34)+C2*((D2^33)+C2*((D2^32)+C2*((D2^31)+C2*((D2^30)+(C2*((D2^29)+C2*((D2^28)+C2*((D2^27)+C2*((D2^26)+C2*((D2^25)+C2*((D2^24)+C2*((D2^23)+C2*((D2^22)+C2*((D2^21)+C2*((D2^20)+(C2*((D2^19)+C2*((D2^18)+C2*((D2^17)+C2*((D2^16)+C2*((D2^15)+C2*((D2^14)+C2*((D2^13)+C2*((D2^12)+C2*((D2^11)+C2*((D2^10)+(C2*((D2^9)+C2*((D2^8)+C2*((D2^7)+C2*((D2^6)+C2*((D2^5)+C2*((D2^4)+C2*((D2^3)+C2*((D2^2)+C2*((D2^1)+C2*(D2^0))))))))))))))))))))))))))))))))))))))))))))))))))))))))))))))))))))))))))))))))))) -> 14.3052828
F78: 77 | G78: =(A2-((C2^(E2)*B2)))/((D2^76)+C2*((D2^75)+C2*((D2^74)+C2*((D2^73)+C2*((D2^72)+C2*((D2^71)+C2*((D2^70)+(C2*((D2^69)+C2*((D2^68)+C2*((D2^67)+C2*((D2^66)+C2*((D2^65)+C2*((D2^64)+C2*((D2^63)+C2*((D2^62)+C2*((D2^61)+C2*((D2^60)+(C2*((D2^59)+C2*((D2^58)+C2*((D2^57)+C2*((D2^56)+C2*((D2^55)+C2*((D2^54)+C2*((D2^53)+C2*((D2^52)+C2*((D2^51)+C2*((D2^50)+(C2*((D2^49)+C2*((D2^48)+C2*((D2^47)+C2*((D2^46)+C2*((D2^45)+C2*((D2^44)+C2*((D2^43)+C2*((D2^42)+C2*((D2^41)+C2*((D2^40)+(C2*((D2^39)+C2*((D2^38)+C2*((D2^37)+C2*((D2^36)+C2*((D2^35)+C2*((D2^34)+C2*((D2^33)+C2*((D2^32)+C2*((D2^31)+C2*((D2^30)+(C2*((D2^29)+C2*((D2^28)+C2*((D2^27)+C2*((D2^26)+C2*((D2^25)+C2*((D2^24)+C2*((D2^23)+C2*((D2^22)+C2*((D2^21)+C2*((D2^20)+(C2*((D2^19)+C2*((D2^18)+C2*((D2^17)+C2*((D2^16)+C2*((D2^15)+C2*((D2^14)+C2*((D2^13)+C2*((D2^12)+C2*((D2^11)+C2*((D2^10)+(C2*((D2^9)+C2*((D2^8)+C2*((D2^7)+C2*((D2^6)+C2*((D2^5)+C2*((D2^4)+C2*((D2^3)+C2*((D2^2)+C2*((D2^1)+C2*(D2^0)))))))))))))))))))))))))))))))))))))))))))))))))))))))))))))))))))))))))))))))))))) -> 13.00395698
F79: 78 | G79: =(A2-((C2^(E2)*B2)))/((D2^77)+C2*((D2^76)+C2*((D2^75)+C2*((D2^74)+C2*((D2^73)+C2*((D2^72)+C2*((D2^71)+C2*((D2^70)+(C2*((D2^69)+C2*((D2^68)+C2*((D2^67)+C2*((D2^66)+C2*((D2^65)+C2*((D2^64)+C2*((D2^63)+C2*((D2^62)+C2*((D2^61)+C2*((D2^60)+(C2*((D2^59)+C2*((D2^58)+C2*((D2^57)+C2*((D2^56)+C2*((D2^55)+C2*((D2^54)+C2*((D2^53)+C2*((D2^52)+C2*((D2^51)+C2*((D2^50)+(C2*((D2^49)+C2*((D2^48)+C2*((D2^47)+C2*((D2^46)+C2*((D2^45)+C2*((D2^44)+C2*((D2^43)+C2*((D2^42)+C2*((D2^41)+C2*((D2^40)+(C2*((D2^39)+C2*((D2^38)+C2*((D2^37)+C2*((D2^36)+C2*((D2^35)+C2*((D2^34)+C2*((D2^33)+C2*((D2^32)+C2*((D2^31)+C2*((D2^30)+(C2*((D2^29)+C2*((D2^28)+C2*((D2^27)+C2*((D2^26)+C2*((D2^25)+C2*((D2^24)+C2*((D2^23)+C2*((D2^22)+C2*((D2^21)+C2*((D2^20)+(C2*((D2^19)+C2*((D2^18)+C2*((D2^17)+C2*((D2^16)+C2*((D2^15)+C2*((D2^14)+C2*((D2^13)+C2*((D2^12)+C2*((D2^11)+C2*((D2^10)+(C2*((D2^9)+C2*((D2^8)+C2*((D2^7)+C2*((D2^6)+C2*((D2^5)+C2*((D2^4)+C2*((D2^3)+C2*((D2^2)+C2*((D2^1)+C2*(D2^0))))))))))))))))))))))))))))))))))))))))))))))))))))))))))))))))))))))))))))))))))))) -> 11.82108034
F80: 79 | G80: =(A2-((C2^(E2)*B2)))/((D2^78)+C2*((D2^77)+C2*((D2^76)+C2*((D2^75)+C2*((D2^74)+C2*((D2^73)+C2*((D2^72)+C2*((D2^71)+C2*((D2^70)+(C2*((D2^69)+C2*((D2^68)+C2*((D2^67)+C2*((D2^66)+C2*((D2^65)+C2*((D2^64)+C2*((D2^63)+C2*((D2^62)+C2*((D2^61)+C2*((D2^60)+(C2*((D2^59)+C2*((D2^58)+C2*((D2^57)+C2*((D2^56)+C2*((D2^55)+C2*((D2^54)+C2*((D2^53)+C2*((D2^52)+C2*((D2^51)+C2*((D2^50)+(C2*((D2^49)+C2*((D2^48)+C2*((D2^47)+C2*((D2^46)+C2*((D2^45)+C2*((D2^44)+C2*((D2^43)+C2*((D2^42)+C2*((D2^41)+C2*((D2^40)+(C2*((D2^39)+C2*((D2^38)+C2*((D2^37)+C2*((D2^36)+C2*((D2^35)+C2*((D2^34)+C2*((D2^33)+C2*((D2^32)+C2*((D2^31)+C2*((D2^30)+(C2*((D2^29)+C2*((D2^28)+C2*((D2^27)+C2*((D2^26)+C2*((D2^25)+C2*((D2^24)+C2*((D2^23)+C2*((D2^22)+C2*((D2^21)+C2*((D2^20)+(C2*((D2^19)+C2*((D2^18)+C2*((D2^17)+C2*((D2^16)+C2*((D2^15)+C2*((D2^14)+C2*((D2^13)+C2*((D2^12)+C2*((D2^11)+C2*((D2^10)+(C2*((D2^9)+C2*((D2^8)+C2*((D2^7)+C2*((D2^6)+C2*((D2^5)+C2*((D2^4)+C2*((D2^3)+C2*((D2^2)+C2*((D2^1)+C2*(D2^0)))))))))))))))))))))))))))))))))))))))))))))))))))))))))))))))))))))))))))))))))))))) -> 10.74585928
F81: 80 | G81: =(A2-((C2^(E2)*B2)))/((D2^79)+C2*((D2^78)+C2*((D2^77)+C2*((D2^76)+C2*((D2^75)+C2*((D2^74)+C2*((D2^73)+C2*((D2^72)+C2*((D2^71)+C2*((D2^70)+(C2*((D2^69)+C2*((D2^68)+C2*((D2^67)+C2*((D2^66)+C2*((D2^65)+C2*((D2^64)+C2*((D2^63)+C2*((D2^62)+C2*((D2^61)+C2*((D2^60)+(C2*((D2^59)+C2*((D2^58)+C2*((D2^57)+C2*((D2^56)+C2*((D2^55)+C2*((D2^54)+C2*((D2^53)+C2*((D2^52)+C2*((D2^51)+C2*((D2^50)+(C2*((D2^49)+C2*((D2^48)+C2*((D2^47)+C2*((D2^46)+C2*((D2^45)+C2*((D2^44)+C2*((D2^43)+C2*((D2^42)+C2*((D2^41)+C2*((D2^40)+(C2*((D2^39)+C2*((D2^38)+C2*((D2^37)+C2*((D2^36)+C2*((D2^35)+C2*((D2^34)+C2*((D2^33)+C2*((D2^32)+C2*((D2^31)+C2*((D2^30)+(C2*((D2^29)+C2*((D2^28)+C2*((D2^27)+C2*((D2^26)+C2*((D2^25)+C2*((D2^24)+C2*((D2^23)+C2*((D2^22)+C2*((D2^21)+C2*((D2^20)+(C2*((D2^19)+C2*((D2^18)+C2*((D2^17)+C2*((D2^16)+C2*((D2^15)+C2*((D2^14)+C2*((D2^13)+C2*((D2^12)+C2*((D2^11)+C2*((D2^10)+(C2*((D2^9)+C2*((D2^8)+C2*((D2^7)+C2*((D2^6)+C2*((D2^5)+C2*((D2^4)+C2*((D2^3)+C2*((D2^2)+C2*((D2^1)+C2*(D2^0))))))))))))))))))))))))))))))))))))))))))))))))))))))))))))))))))))))))))))))))))))))) -> 9.768485838
F82: 81 | G82: =(A2-((C2^(E2)*B2)))/((D2^80)+(C2*((D2^79)+C2*((D2^78)+C2*((D2^77)+C2*((D2^76)+C2*((D2^75)+C2*((D2^74)+C2*((D2^73)+C2*((D2^72)+C2*((D2^71)+C2*((D2^70)+(C2*((D2^69)+C2*((D2^68)+C2*((D2^67)+C2*((D2^66)+C2*((D2^65)+C2*((D2^64)+C2*((D2^63)+C2*((D2^62)+C2*((D2^61)+C2*((D2^60)+(C2*((D2^59)+C2*((D2^58)+C2*((D2^57)+C2*((D2^56)+C2*((D2^55)+C2*((D2^54)+C2*((D2^53)+C2*((D2^52)+C2*((D2^51)+C2*((D2^50)+(C2*((D2^49)+C2*((D2^48)+C2*((D2^47)+C2*((D2^46)+C2*((D2^45)+C2*((D2^44)+C2*((D2^43)+C2*((D2^42)+C2*((D2^41)+C2*((D2^40)+(C2*((D2^39)+C2*((D2^38)+C2*((D2^37)+C2*((D2^36)+C2*((D2^35)+C2*((D2^34)+C2*((D2^33)+C2*((D2^32)+C2*((D2^31)+C2*((D2^30)+(C2*((D2^29)+C2*((D2^28)+C2*((D2^27)+C2*((D2^26)+C2*((D2^25)+C2*((D2^24)+C2*((D2^23)+C2*((D2^22)+C2*((D2^21)+C2*((D2^20)+(C2*((D2^19)+C2*((D2^18)+C2*((D2^17)+C2*((D2^16)+C2*((D2^15)+C2*((D2^14)+C2*((D2^13)+C2*((D2^12)+C2*((D2^11)+C2*((D2^10)+(C2*((D2^9)+C2*((D2^8)+C2*((D2^7)+C2*((D2^6)+C2*((D2^5)+C2*((D2^4)+C2*((D2^3)+C2*((D2^2)+C2*((D2^1)+C2*(D2^0))))))))))))))))))))))))))))))))))))))))))))))))))))))))))))))))))))))))))))))))))))))))) -> 8.880047377
F83: 82 | G83: =(A2-((C2^(E2)*B2)))/((D2^81)+C2*((D2^80)+(C2*((D2^79)+C2*((D2^78)+C2*((D2^77)+C2*((D2^76)+C2*((D2^75)+C2*((D2^74)+C2*((D2^73)+C2*((D2^72)+C2*((D2^71)+C2*((D2^70)+(C2*((D2^69)+C2*((D2^68)+C2*((D2^67)+C2*((D2^66)+C2*((D2^65)+C2*((D2^64)+C2*((D2^63)+C2*((D2^62)+C2*((D2^61)+C2*((D2^60)+(C2*((D2^59)+C2*((D2^58)+C2*((D2^57)+C2*((D2^56)+C2*((D2^55)+C2*((D2^54)+C2*((D2^53)+C2*((D2^52)+C2*((D2^51)+C2*((D2^50)+(C2*((D2^49)+C2*((D2^48)+C2*((D2^47)+C2*((D2^46)+C2*((D2^45)+C2*((D2^44)+C2*((D2^43)+C2*((D2^42)+C2*((D2^41)+C2*((D2^40)+(C2*((D2^39)+C2*((D2^38)+C2*((D2^37)+C2*((D2^36)+C2*((D2^35)+C2*((D2^34)+C2*((D2^33)+C2*((D2^32)+C2*((D2^31)+C2*((D2^30)+(C2*((D2^29)+C2*((D2^28)+C2*((D2^27)+C2*((D2^26)+C2*((D2^25)+C2*((D2^24)+C2*((D2^23)+C2*((D2^22)+C2*((D2^21)+C2*((D2^20)+(C2*((D2^19)+C2*((D2^18)+C2*((D2^17)+C2*((D2^16)+C2*((D2^15)+C2*((D2^14)+C2*((D2^13)+C2*((D2^12)+C2*((D2^11)+C2*((D2^10)+(C2*((D2^9)+C2*((D2^8)+C2*((D2^7)+C2*((D2^6)+C2*((D2^5)+C2*((D2^4)+C2*((D2^3)+C2*((D2^2)+C2*((D2^1)+C2*(D2^0)))))))))))))))))))))))))))))))))))))))))))))))))))))))))))))))))))))))))))))))))))))))))) -> 8.072444508
F84: 83 | G84: =(A2-((C2^(E2)*B2)))/((D2^82)+C2*((D2^81)+C2*((D2^80)+(C2*((D2^79)+C2*((D2^78)+C2*((D2^77)+C2*((D2^76)+C2*((D2^75)+C2*((D2^74)+C2*((D2^73)+C2*((D2^72)+C2*((D2^71)+C2*((D2^70)+(C2*((D2^69)+C2*((D2^68)+C2*((D2^67)+C2*((D2^66)+C2*((D2^65)+C2*((D2^64)+C2*((D2^63)+C2*((D2^62)+C2*((D2^61)+C2*((D2^60)+(C2*((D2^59)+C2*((D2^58)+C2*((D2^57)+C2*((D2^56)+C2*((D2^55)+C2*((D2^54)+C2*((D2^53)+C2*((D2^52)+C2*((D2^51)+C2*((D2^50)+(C2*((D2^49)+C2*((D2^48)+C2*((D2^47)+C2*((D2^46)+C2*((D2^45)+C2*((D2^44)+C2*((D2^43)+C2*((D2^42)+C2*((D2^41)+C2*((D2^40)+(C2*((D2^39)+C2*((D2^38)+C2*((D2^37)+C2*((D2^36)+C2*((D2^35)+C2*((D2^34)+C2*((D2^33)+C2*((D2^32)+C2*((D2^31)+C2*((D2^30)+(C2*((D2^29)+C2*((D2^28)+C2*((D2^27)+C2*((D2^26)+C2*((D2^25)+C2*((D2^24)+C2*((D2^23)+C2*((D2^22)+C2*((D2^21)+C2*((D2^20)+(C2*((D2^19)+C2*((D2^18)+C2*((D2^17)+C2*((D2^16)+C2*((D2^15)+C2*((D2^14)+C2*((D2^13)+C2*((D2^12)+C2*((D2^11)+C2*((D2^10)+(C2*((D2^9)+C2*((D2^8)+C2*((D2^7)+C2*((D2^6)+C2*((D2^5)+C2*((D2^4)+C2*((D2^3)+C2*((D2^2)+C2*((D2^1)+C2*(D2^0))))))))))))))))))))))))))))))))))))))))))))))))))))))))))))))))))))))))))))))))))))))))))) -> 7.338316652
F85: 84 | G85: =(A2-((C2^(E2)*B2)))/((D2^83)+C2*((D2^82)+C2*((D2^81)+C2*((D2^80)+(C2*((D2^79)+C2*((D2^78)+C2*((D2^77)+C2*((D2^76)+C2*((D2^75)+C2*((D2^74)+C2*((D2^73)+C2*((D2^72)+C2*((D2^71)+C2*((D2^70)+(C2*((D2^69)+C2*((D2^68)+C2*((D2^67)+C2*((D2^66)+C2*((D2^65)+C2*((D2^64)+C2*((D2^63)+C2*((D2^62)+C2*((D2^61)+C2*((D2^60)+(C2*((D2^59)+C2*((D2^58)+C2*((D2^57)+C2*((D2^56)+C2*((D2^55)+C2*((D2^54)+C2*((D2^53)+C2*((D2^52)+C2*((D2^51)+C2*((D2^50)+(C2*((D2^49)+C2*((D2^48)+C2*((D2^47)+C2*((D2^46)+C2*((D2^45)+C2*((D2^44)+C2*((D2^43)+C2*((D2^42)+C2*((D2^41)+C2*((D2^40)+(C2*((D2^39)+C2*((D2^38)+C2*((D2^37)+C2*((D2^36)+C2*((D2^35)+C2*((D2^34)+C2*((D2^33)+C2*((D2^32)+C2*((D2^31)+C2*((D2^30)+(C2*((D2^29)+C2*((D2^28)+C2*((D2^27)+C2*((D2^26)+C2*((D2^25)+C2*((D2^24)+C2*((D2^23)+C2*((D2^22)+C2*((D2^21)+C2*((D2^20)+(C2*((D2^19)+C2*((D2^18)+C2*((D2^17)+C2*((D2^16)+C2*((D2^15)+C2*((D2^14)+C2*((D2^13)+C2*((D2^12)+C2*((D2^11)+C2*((D2^10)+(C2*((D2^9)+C2*((D2^8)+C2*((D2^7)+C2*((D2^6)+C2*((D2^5)+C2*((D2^4)+C2*((D2^3)+C2*((D2^2)+C2*((D2^1)+C2*(D2^0)))))))))))))))))))))))))))))))))))))))))))))))))))))))))))))))))))))))))))))))))))))))))))) -> 6.670974439
F86: 85 | G86: =(A2-((C2^(E2)*B2)))/((D2^84)+C2*((D2^83)+C2*((D2^82)+C2*((D2^81)+C2*((D2^80)+(C2*((D2^79)+C2*((D2^78)+C2*((D2^77)+C2*((D2^76)+C2*((D2^75)+C2*((D2^74)+C2*((D2^73)+C2*((D2^72)+C2*((D2^71)+C2*((D2^70)+(C2*((D2^69)+C2*((D2^68)+C2*((D2^67)+C2*((D2^66)+C2*((D2^65)+C2*((D2^64)+C2*((D2^63)+C2*((D2^62)+C2*((D2^61)+C2*((D2^60)+(C2*((D2^59)+C2*((D2^58)+C2*((D2^57)+C2*((D2^56)+C2*((D2^55)+C2*((D2^54)+C2*((D2^53)+C2*((D2^52)+C2*((D2^51)+C2*((D2^50)+(C2*((D2^49)+C2*((D2^48)+C2*((D2^47)+C2*((D2^46)+C2*((D2^45)+C2*((D2^44)+C2*((D2^43)+C2*((D2^42)+C2*((D2^41)+C2*((D2^40)+(C2*((D2^39)+C2*((D2^38)+C2*((D2^37)+C2*((D2^36)+C2*((D2^35)+C2*((D2^34)+C2*((D2^33)+C2*((D2^32)+C2*((D2^31)+C2*((D2^30)+(C2*((D2^29)+C2*((D2^28)+C2*((D2^27)+C2*((D2^26)+C2*((D2^25)+C2*((D2^24)+C2*((D2^23)+C2*((D2^22)+C2*((D2^21)+C2*((D2^20)+(C2*((D2^19)+C2*((D2^18)+C2*((D2^17)+C2*((D2^16)+C2*((D2^15)+C2*((D2^14)+C2*((D2^13)+C2*((D2^12)+C2*((D2^11)+C2*((D2^10)+(C2*((D2^9)+C2*((D2^8)+C2*((D2^7)+C2*((D2^6)+C2*((D2^5)+C2*((D2^4)+C2*((D2^3)+C2*((D2^2)+C2*((D2^1)+C2*(D2^0))))))))))))))))))))))))))))))))))))))))))))))))))))))))))))))))))))))))))))))))))))))))))))) -> 6.064338331
F87: 86 | G87: =(A2-((C2^(E2)*B2)))/((D2^85)+C2*((D2^84)+C2*((D2^83)+C2*((D2^82)+C2*((D2^81)+C2*((D2^80)+(C2*((D2^79)+C2*((D2^78)+C2*((D2^77)+C2*((D2^76)+C2*((D2^75)+C2*((D2^74)+C2*((D2^73)+C2*((D2^72)+C2*((D2^71)+C2*((D2^70)+(C2*((D2^69)+C2*((D2^68)+C2*((D2^67)+C2*((D2^66)+C2*((D2^65)+C2*((D2^64)+C2*((D2^63)+C2*((D2^62)+C2*((D2^61)+C2*((D2^60)+(C2*((D2^59)+C2*((D2^58)+C2*((D2^57)+C2*((D2^56)+C2*((D2^55)+C2*((D2^54)+C2*((D2^53)+C2*((D2^52)+C2*((D2^51)+C2*((D2^50)+(C2*((D2^49)+C2*((D2^48)+C2*((D2^47)+C2*((D2^46)+C2*((D2^45)+C2*((D2^44)+C2*((D2^43)+C2*((D2^42)+C2*((D2^41)+C2*((D2^40)+(C2*((D2^39)+C2*((D2^38)+C2*((D2^37)+C2*((D2^36)+C2*((D2^35)+C2*((D2^34)+C2*((D2^33)+C2*((D2^32)+C2*((D2^31)+C2*((D2^30)+(C2*((D2^29)+C2*((D2^28)+C2*((D2^27)+C2*((D2^26)+C2*((D2^25)+C2*((D2^24)+C2*((D2^23)+C2*((D2^22)+C2*((D2^21)+C2*((D2^20)+(C2*((D2^19)+C2*((D2^18)+C2*((D2^17)+C2*((D2^16)+C2*((D2^15)+C2*((D2^14)+C2*((D2^13)+C2*((D2^12)+C2*((D2^11)+C2*((D2^10)+(C2*((D2^9)+C2*((D2^8)+C2*((D2^7)+C2*((D2^6)+C2*((D2^5)+C2*((D2^4)+C2*((D2^3)+C2*((D2^2)+C2*((D2^1)+C2*(D2^0)))))))))))))))))))))))))))))))))))))))))))))))))))))))))))))))))))))))))))))))))))))))))))))) -> 5.512882883
F88: 87 | G88: =(A2-((C2^(E2)*B2)))/((D2^86)+C2*((D2^85)+C2*((D2^84)+C2*((D2^83)+C2*((D2^82)+C2*((D2^81)+C2*((D2^80)+(C2*((D2^79)+C2*((D2^78)+C2*((D2^77)+C2*((D2^76)+C2*((D2^75)+C2*((D2^74)+C2*((D2^73)+C2*((D2^72)+C2*((D2^71)+C2*((D2^70)+(C2*((D2^69)+C2*((D2^68)+C2*((D2^67)+C2*((D2^66)+C2*((D2^65)+C2*((D2^64)+C2*((D2^63)+C2*((D2^62)+C2*((D2^61)+C2*((D2^60)+(C2*((D2^59)+C2*((D2^58)+C2*((D2^57)+C2*((D2^56)+C2*((D2^55)+C2*((D2^54)+C2*((D2^53)+C2*((D2^52)+C2*((D2^51)+C2*((D2^50)+(C2*((D2^49)+C2*((D2^48)+C2*((D2^47)+C2*((D2^46)+C2*((D2^45)+C2*((D2^44)+C2*((D2^43)+C2*((D2^42)+C2*((D2^41)+C2*((D2^40)+(C2*((D2^39)+C2*((D2^38)+C2*((D2^37)+C2*((D2^36)+C2*((D2^35)+C2*((D2^34)+C2*((D2^33)+C2*((D2^32)+C2*((D2^31)+C2*((D2^30)+(C2*((D2^29)+C2*((D2^28)+C2*((D2^27)+C2*((D2^26)+C2*((D2^25)+C2*((D2^24)+C2*((D2^23)+C2*((D2^22)+C2*((D2^21)+C2*((D2^20)+(C2*((D2^19)+C2*((D2^18)+C2*((D2^17)+C2*((D2^16)+C2*((D2^15)+C2*((D2^14)+C2*((D2^13)+C2*((D2^12)+C2*((D2^11)+C2*((D2^10)+(C2*((D2^9)+C2*((D2^8)+C2*((D2^7)+C2*((D2^6)+C2*((D2^5)+C2*((D2^4)+C2*((D2^3)+C2*((D2^2)+C2*((D2^1)+C2*(D2^0))))))))))))))))))))))))))))))))))))))))))))))))))))))))))))))))))))))))))))))))))))))))))))))) -> 5.011586128
F89: 88 | G89: =(A2-((C2^(E2)*B2)))/((D2^87)+C2*((D2^86)+C2*((D2^85)+C2*((D2^84)+C2*((D2^83)+C2*((D2^82)+C2*((D2^81)+C2*((D2^80)+(C2*((D2^79)+C2*((D2^78)+C2*((D2^77)+C2*((D2^76)+C2*((D2^75)+C2*((D2^74)+C2*((D2^73)+C2*((D2^72)+C2*((D2^71)+C2*((D2^70)+(C2*((D2^69)+C2*((D2^68)+C2*((D2^67)+C2*((D2^66)+C2*((D2^65)+C2*((D2^64)+C2*((D2^63)+C2*((D2^62)+C2*((D2^61)+C2*((D2^60)+(C2*((D2^59)+C2*((D2^58)+C2*((D2^57)+C2*((D2^56)+C2*((D2^55)+C2*((D2^54)+C2*((D2^53)+C2*((D2^52)+C2*((D2^51)+C2*((D2^50)+(C2*((D2^49)+C2*((D2^48)+C2*((D2^47)+C2*((D2^46)+C2*((D2^45)+C2*((D2^44)+C2*((D2^43)+C2*((D2^42)+C2*((D2^41)+C2*((D2^40)+(C2*((D2^39)+C2*((D2^38)+C2*((D2^37)+C2*((D2^36)+C2*((D2^35)+C2*((D2^34)+C2*((D2^33)+C2*((D2^32)+C2*((D2^31)+C2*((D2^30)+(C2*((D2^29)+C2*((D2^28)+C2*((D2^27)+C2*((D2^26)+C2*((D2^25)+C2*((D2^24)+C2*((D2^23)+C2*((D2^22)+C2*((D2^21)+C2*((D2^20)+(C2*((D2^19)+C2*((D2^18)+C2*((D2^17)+C2*((D2^16)+C2*((D2^15)+C2*((D2^14)+C2*((D2^13)+C2*((D2^12)+C2*((D2^11)+C2*((D2^10)+(C2*((D2^9)+C2*((D2^8)+C2*((D2^7)+C2*((D2^6)+C2*((D2^5)+C2*((D2^4)+C2*((D2^3)+C2*((D2^2)+C2*((D2^1)+C2*(D2^0)))))))))))))))))))))))))))))))))))))))))))))))))))))))))))))))))))))))))))))))))))))))))))))))) -> 4.555883607
F90: 89 | G90: =(A2-((C2^(E2)*B2)))/((D2^88)+C2*((D2^87)+C2*((D2^86)+C2*((D2^85)+C2*((D2^84)+C2*((D2^83)+C2*((D2^82)+C2*((D2^81)+C2*((D2^80)+(C2*((D2^79)+C2*((D2^78)+C2*((D2^77)+C2*((D2^76)+C2*((D2^75)+C2*((D2^74)+C2*((D2^73)+C2*((D2^72)+C2*((D2^71)+C2*((D2^70)+(C2*((D2^69)+C2*((D2^68)+C2*((D2^67)+C2*((D2^66)+C2*((D2^65)+C2*((D2^64)+C2*((D2^63)+C2*((D2^62)+C2*((D2^61)+C2*((D2^60)+(C2*((D2^59)+C2*((D2^58)+C2*((D2^57)+C2*((D2^56)+C2*((D2^55)+C2*((D2^54)+C2*((D2^53)+C2*((D2^52)+C2*((D2^51)+C2*((D2^50)+(C2*((D2^49)+C2*((D2^48)+C2*((D2^47)+C2*((D2^46)+C2*((D2^45)+C2*((D2^44)+C2*((D2^43)+C2*((D2^42)+C2*((D2^41)+C2*((D2^40)+(C2*((D2^39)+C2*((D2^38)+C2*((D2^37)+C2*((D2^36)+C2*((D2^35)+C2*((D2^34)+C2*((D2^33)+C2*((D2^32)+C2*((D2^31)+C2*((D2^30)+(C2*((D2^29)+C2*((D2^28)+C2*((D2^27)+C2*((D2^26)+C2*((D2^25)+C2*((D2^24)+C2*((D2^23)+C2*((D2^22)+C2*((D2^21)+C2*((D2^20)+(C2*((D2^19)+C2*((D2^18)+C2*((D2^17)+C2*((D2^16)+C2*((D2^15)+C2*((D2^14)+C2*((D2^13)+C2*((D2^12)+C2*((D2^11)+C2*((D2^10)+(C2*((D2^9)+C2*((D2^8)+C2*((D2^7)+C2*((D2^6)+C2*((D2^5)+C2*((D2^4)+C2*((D2^3)+C2*((D2^2)+C2*((D2^1)+C2*(D2^0))))))))))))))))))))))))))))))))))))))))))))))))))))))))))))))))))))))))))))))))))))))))))))))))) -> 4.141626603
F91: 90 | G91: =(A2-((C2^(E2)*B2)))/((D2^89)+C2*((D2^88)+C2*((D2^87)+C2*((D2^86)+C2*((D2^85)+C2*((D2^84)+C2*((D2^83)+C2*((D2^82)+C2*((D2^81)+C2*((D2^80)+(C2*((D2^79)+C2*((D2^78)+C2*((D2^77)+C2*((D2^76)+C2*((D2^75)+C2*((D2^74)+C2*((D2^73)+C2*((D2^72)+C2*((D2^71)+C2*((D2^70)+(C2*((D2^69)+C2*((D2^68)+C2*((D2^67)+C2*((D2^66)+C2*((D2^65)+C2*((D2^64)+C2*((D2^63)+C2*((D2^62)+C2*((D2^61)+C2*((D2^60)+(C2*((D2^59)+C2*((D2^58)+C2*((D2^57)+C2*((D2^56)+C2*((D2^55)+C2*((D2^54)+C2*((D2^53)+C2*((D2^52)+C2*((D2^51)+C2*((D2^50)+(C2*((D2^49)+C2*((D2^48)+C2*((D2^47)+C2*((D2^46)+C2*((D2^45)+C2*((D2^44)+C2*((D2^43)+C2*((D2^42)+C2*((D2^41)+C2*((D2^40)+(C2*((D2^39)+C2*((D2^38)+C2*((D2^37)+C2*((D2^36)+C2*((D2^35)+C2*((D2^34)+C2*((D2^33)+C2*((D2^32)+C2*((D2^31)+C2*((D2^30)+(C2*((D2^29)+C2*((D2^28)+C2*((D2^27)+C2*((D2^26)+C2*((D2^25)+C2*((D2^24)+C2*((D2^23)+C2*((D2^22)+C2*((D2^21)+C2*((D2^20)+(C2*((D2^19)+C2*((D2^18)+C2*((D2^17)+C2*((D2^16)+C2*((D2^15)+C2*((D2^14)+C2*((D2^13)+C2*((D2^12)+C2*((D2^11)+C2*((D2^10)+(C2*((D2^9)+C2*((D2^8)+C2*((D2^7)+C2*((D2^6)+C2*((D2^5)+C2*((D2^4)+C2*((D2^3)+C2*((D2^2)+C2*((D2^1)+C2*(D2^0)))))))))))))))))))))))))))))))))))))))))))))))))))))))))))))))))))))))))))))))))))))))))))))))))) -> 3.765044214
F92: 91 | G92: =(A2-((C2^(E2)*B2)))/((D2^90)+(C2*((D2^89)+C2*((D2^88)+C2*((D2^87)+C2*((D2^86)+C2*((D2^85)+C2*((D2^84)+C2*((D2^83)+C2*((D2^82)+C2*((D2^81)+C2*((D2^80)+(C2*((D2^79)+C2*((D2^78)+C2*((D2^77)+C2*((D2^76)+C2*((D2^75)+C2*((D2^74)+C2*((D2^73)+C2*((D2^72)+C2*((D2^71)+C2*((D2^70)+(C2*((D2^69)+C2*((D2^68)+C2*((D2^67)+C2*((D2^66)+C2*((D2^65)+C2*((D2^64)+C2*((D2^63)+C2*((D2^62)+C2*((D2^61)+C2*((D2^60)+(C2*((D2^59)+C2*((D2^58)+C2*((D2^57)+C2*((D2^56)+C2*((D2^55)+C2*((D2^54)+C2*((D2^53)+C2*((D2^52)+C2*((D2^51)+C2*((D2^50)+(C2*((D2^49)+C2*((D2^48)+C2*((D2^47)+C2*((D2^46)+C2*((D2^45)+C2*((D2^44)+C2*((D2^43)+C2*((D2^42)+C2*((D2^41)+C2*((D2^40)+(C2*((D2^39)+C2*((D2^38)+C2*((D2^37)+C2*((D2^36)+C2*((D2^35)+C2*((D2^34)+C2*((D2^33)+C2*((D2^32)+C2*((D2^31)+C2*((D2^30)+(C2*((D2^29)+C2*((D2^28)+C2*((D2^27)+C2*((D2^26)+C2*((D2^25)+C2*((D2^24)+C2*((D2^23)+C2*((D2^22)+C2*((D2^21)+C2*((D2^20)+(C2*((D2^19)+C2*((D2^18)+C2*((D2^17)+C2*((D2^16)+C2*((D2^15)+C2*((D2^14)+C2*((D2^13)+C2*((D2^12)+C2*((D2^11)+C2*((D2^10)+(C2*((D2^9)+C2*((D2^8)+C2*((D2^7)+C2*((D2^6)+C2*((D2^5)+C2*((D2^4)+C2*((D2^3)+C2*((D2^2)+C2*((D2^1)+C2*(D2^0)))))))))))))))))))))))))))))))))))))))))))))))))))))))))))))))))))))))))))))))))))))))))))))))))))) -> 3.422708892
F93: 92 | G93: =(A2-((C2^(E2)*B2)))/((D2^91)+C2*((D2^90)+(C2*((D2^89)+C2*((D2^88)+C2*((D2^87)+C2*((D2^86)+C2*((D2^85)+C2*((D2^84)+C2*((D2^83)+C2*((D2^82)+C2*((D2^81)+C2*((D2^80)+(C2*((D2^79)+C2*((D2^78)+C2*((D2^77)+C2*((D2^76)+C2*((D2^75)+C2*((D2^74)+C2*((D2^73)+C2*((D2^72)+C2*((D2^71)+C2*((D2^70)+(C2*((D2^69)+C2*((D2^68)+C2*((D2^67)+C2*((D2^66)+C2*((D2^65)+C2*((D2^64)+C2*((D2^63)+C2*((D2^62)+C2*((D2^61)+C2*((D2^60)+(C2*((D2^59)+C2*((D2^58)+C2*((D2^57)+C2*((D2^56)+C2*((D2^55)+C2*((D2^54)+C2*((D2^53)+C2*((D2^52)+C2*((D2^51)+C2*((D2^50)+(C2*((D2^49)+C2*((D2^48)+C2*((D2^47)+C2*((D2^46)+C2*((D2^45)+C2*((D2^44)+C2*((D2^43)+C2*((D2^42)+C2*((D2^41)+C2*((D2^40)+(C2*((D2^39)+C2*((D2^38)+C2*((D2^37)+C2*((D2^36)+C2*((D2^35)+C2*((D2^34)+C2*((D2^33)+C2*((D2^32)+C2*((D2^31)+C2*((D2^30)+(C2*((D2^29)+C2*((D2^28)+C2*((D2^27)+C2*((D2^26)+C2*((D2^25)+C2*((D2^24)+C2*((D2^23)+C2*((D2^22)+C2*((D2^21)+C2*((D2^20)+(C2*((D2^19)+C2*((D2^18)+C2*((D2^17)+C2*((D2^16)+C2*((D2^15)+C2*((D2^14)+C2*((D2^13)+C2*((D2^12)+C2*((D2^11)+C2*((D2^10)+(C2*((D2^9)+C2*((D2^8)+C2*((D2^7)+C2*((D2^6)+C2*((D2^5)+C2*((D2^4)+C2*((D2^3)+C2*((D2^2)+C2*((D2^1)+C2*(D2^0))))))))))))))))))))))))))))))))))))))))))))))))))))))))))))))))))))))))))))))))))))))))))))))))))))) -> 3.11150513
F94: 93 | G94: =(A2-((C2^(E2)*B2)))/((D2^92)+C2*((D2^91)+C2*((D2^90)+(C2*((D2^89)+C2*((D2^88)+C2*((D2^87)+C2*((D2^86)+C2*((D2^85)+C2*((D2^84)+C2*((D2^83)+C2*((D2^82)+C2*((D2^81)+C2*((D2^80)+(C2*((D2^79)+C2*((D2^78)+C2*((D2^77)+C2*((D2^76)+C2*((D2^75)+C2*((D2^74)+C2*((D2^73)+C2*((D2^72)+C2*((D2^71)+C2*((D2^70)+(C2*((D2^69)+C2*((D2^68)+C2*((D2^67)+C2*((D2^66)+C2*((D2^65)+C2*((D2^64)+C2*((D2^63)+C2*((D2^62)+C2*((D2^61)+C2*((D2^60)+(C2*((D2^59)+C2*((D2^58)+C2*((D2^57)+C2*((D2^56)+C2*((D2^55)+C2*((D2^54)+C2*((D2^53)+C2*((D2^52)+C2*((D2^51)+C2*((D2^50)+(C2*((D2^49)+C2*((D2^48)+C2*((D2^47)+C2*((D2^46)+C2*((D2^45)+C2*((D2^44)+C2*((D2^43)+C2*((D2^42)+C2*((D2^41)+C2*((D2^40)+(C2*((D2^39)+C2*((D2^38)+C2*((D2^37)+C2*((D2^36)+C2*((D2^35)+C2*((D2^34)+C2*((D2^33)+C2*((D2^32)+C2*((D2^31)+C2*((D2^30)+(C2*((D2^29)+C2*((D2^28)+C2*((D2^27)+C2*((D2^26)+C2*((D2^25)+C2*((D2^24)+C2*((D2^23)+C2*((D2^22)+C2*((D2^21)+C2*((D2^20)+(C2*((D2^19)+C2*((D2^18)+C2*((D2^17)+C2*((D2^16)+C2*((D2^15)+C2*((D2^14)+C2*((D2^13)+C2*((D2^12)+C2*((D2^11)+C2*((D2^10)+(C2*((D2^9)+C2*((D2^8)+C2*((D2^7)+C2*((D2^6)+C2*((D2^5)+C2*((D2^4)+C2*((D2^3)+C2*((D2^2)+C2*((D2^1)+C2*(D2^0)))))))))))))))))))))))))))))))))))))))))))))))))))))))))))))))))))))))))))))))))))))))))))))))))))))) -> 2.828601022
F95: 94 | G95: =(A2-((C2^(E2)*B2)))/((D2^93)+C2*((D2^92)+C2*((D2^91)+C2*((D2^90)+(C2*((D2^89)+C2*((D2^88)+C2*((D2^87)+C2*((D2^86)+C2*((D2^85)+C2*((D2^84)+C2*((D2^83)+C2*((D2^82)+C2*((D2^81)+C2*((D2^80)+(C2*((D2^79)+C2*((D2^78)+C2*((D2^77)+C2*((D2^76)+C2*((D2^75)+C2*((D2^74)+C2*((D2^73)+C2*((D2^72)+C2*((D2^71)+C2*((D2^70)+(C2*((D2^69)+C2*((D2^68)+C2*((D2^67)+C2*((D2^66)+C2*((D2^65)+C2*((D2^64)+C2*((D2^63)+C2*((D2^62)+C2*((D2^61)+C2*((D2^60)+(C2*((D2^59)+C2*((D2^58)+C2*((D2^57)+C2*((D2^56)+C2*((D2^55)+C2*((D2^54)+C2*((D2^53)+C2*((D2^52)+C2*((D2^51)+C2*((D2^50)+(C2*((D2^49)+C2*((D2^48)+C2*((D2^47)+C2*((D2^46)+C2*((D2^45)+C2*((D2^44)+C2*((D2^43)+C2*((D2^42)+C2*((D2^41)+C2*((D2^40)+(C2*((D2^39)+C2*((D2^38)+C2*((D2^37)+C2*((D2^36)+C2*((D2^35)+C2*((D2^34)+C2*((D2^33)+C2*((D2^32)+C2*((D2^31)+C2*((D2^30)+(C2*((D2^29)+C2*((D2^28)+C2*((D2^27)+C2*((D2^26)+C2*((D2^25)+C2*((D2^24)+C2*((D2^23)+C2*((D2^22)+C2*((D2^21)+C2*((D2^20)+(C2*((D2^19)+C2*((D2^18)+C2*((D2^17)+C2*((D2^16)+C2*((D2^15)+C2*((D2^14)+C2*((D2^13)+C2*((D2^12)+C2*((D2^11)+C2*((D2^10)+(C2*((D2^9)+C2*((D2^8)+C2*((D2^7)+C2*((D2^6)+C2*((D2^5)+C2*((D2^4)+C2*((D2^3)+C2*((D2^2)+C2*((D2^1)+C2*(D2^0))))))))))))))))))))))))))))))))))))))))))))))))))))))))))))))))))))))))))))))))))))))))))))))))))))))) -> 2.571422413
F96: 95 | G96: =(A2-((C2^(E2)*B2)))/((D2^94)+C2*((D2^93)+C2*((D2^92)+C2*((D2^91)+C2*((D2^90)+(C2*((D2^89)+C2*((D2^88)+C2*((D2^87)+C2*((D2^86)+C2*((D2^85)+C2*((D2^84)+C2*((D2^83)+C2*((D2^82)+C2*((D2^81)+C2*((D2^80)+(C2*((D2^79)+C2*((D2^78)+C2*((D2^77)+C2*((D2^76)+C2*((D2^75)+C2*((D2^74)+C2*((D2^73)+C2*((D2^72)+C2*((D2^71)+C2*((D2^70)+(C2*((D2^69)+C2*((D2^68)+C2*((D2^67)+C2*((D2^66)+C2*((D2^65)+C2*((D2^64)+C2*((D2^63)+C2*((D2^62)+C2*((D2^61)+C2*((D2^60)+(C2*((D2^59)+C2*((D2^58)+C2*((D2^57)+C2*((D2^56)+C2*((D2^55)+C2*((D2^54)+C2*((D2^53)+C2*((D2^52)+C2*((D2^51)+C2*((D2^50)+(C2*((D2^49)+C2*((D2^48)+C2*((D2^47)+C2*((D2^46)+C2*((D2^45)+C2*((D2^44)+C2*((D2^43)+C2*((D2^42)+C2*((D2^41)+C2*((D2^40)+(C2*((D2^39)+C2*((D2^38)+C2*((D2^37)+C2*((D2^36)+C2*((D2^35)+C2*((D2^34)+C2*((D2^33)+C2*((D2^32)+C2*((D2^31)+C2*((D2^30)+(C2*((D2^29)+C2*((D2^28)+C2*((D2^27)+C2*((D2^26)+C2*((D2^25)+C2*((D2^24)+C2*((D2^23)+C2*((D2^22)+C2*((D2^21)+C2*((D2^20)+(C2*((D2^19)+C2*((D2^18)+C2*((D2^17)+C2*((D2^16)+C2*((D2^15)+C2*((D2^14)+C2*((D2^13)+C2*((D2^12)+C2*((D2^11)+C2*((D2^10)+(C2*((D2^9)+C2*((D2^8)+C2*((D2^7)+C2*((D2^6)+C2*((D2^5)+C2*((D2^4)+C2*((D2^3)+C2*((D2^2)+C2*((D2^1)+C2*(D2^0)))))))))))))))))))))))))))))))))))))))))))))))))))))))))))))))))))))))))))))))))))))))))))))))))))))))) -> 2.337629416
F97: 96 | G97: =(A2-((C2^(E2)*B2)))/((D2^95)+C2*((D2^94)+C2*((D2^93)+C2*((D2^92)+C2*((D2^91)+C2*((D2^90)+(C2*((D2^89)+C2*((D2^88)+C2*((D2^87)+C2*((D2^86)+C2*((D2^85)+C2*((D2^84)+C2*((D2^83)+C2*((D2^82)+C2*((D2^81)+C2*((D2^80)+(C2*((D2^79)+C2*((D2^78)+C2*((D2^77)+C2*((D2^76)+C2*((D2^75)+C2*((D2^74)+C2*((D2^73)+C2*((D2^72)+C2*((D2^71)+C2*((D2^70)+(C2*((D2^69)+C2*((D2^68)+C2*((D2^67)+C2*((D2^66)+C2*((D2^65)+C2*((D2^64)+C2*((D2^63)+C2*((D2^62)+C2*((D2^61)+C2*((D2^60)+(C2*((D2^59)+C2*((D2^58)+C2*((D2^57)+C2*((D2^56)+C2*((D2^55)+C2*((D2^54)+C2*((D2^53)+C2*((D2^52)+C2*((D2^51)+C2*((D2^50)+(C2*((D2^49)+C2*((D2^48)+C2*((D2^47)+C2*((D2^46)+C2*((D2^45)+C2*((D2^44)+C2*((D2^43)+C2*((D2^42)+C2*((D2^41)+C2*((D2^40)+(C2*((D2^39)+C2*((D2^38)+C2*((D2^37)+C2*((D2^36)+C2*((D2^35)+C2*((D2^34)+C2*((D2^33)+C2*((D2^32)+C2*((D2^31)+C2*((D2^30)+(C2*((D2^29)+C2*((D2^28)+C2*((D2^27)+C2*((D2^26)+C2*((D2^25)+C2*((D2^24)+C2*((D2^23)+C2*((D2^22)+C2*((D2^21)+C2*((D2^20)+(C2*((D2^19)+C2*((D2^18)+C2*((D2^17)+C2*((D2^16)+C2*((D2^15)+C2*((D2^14)+C2*((D2^13)+C2*((D2^12)+C2*((D2^11)+C2*((D2^10)+(C2*((D2^9)+C2*((D2^8)+C2*((D2^7)+C2*((D2^6)+C2*((D2^5)+C2*((D2^4)+C2*((D2^3)+C2*((D2^2)+C2*((D2^1)+C2*(D2^0))))))))))))))))))))))))))))))))))))))))))))))))))))))))))))))))))))))))))))))))))))))))))))))))))))))))) -> 2.12509507
F98: 97 | G98: =(A2-((C2^(E2)*B2)))/((D2^96)+C2*((D2^95)+C2*((D2^94)+C2*((D2^93)+C2*((D2^92)+C2*((D2^91)+C2*((D2^90)+(C2*((D2^89)+C2*((D2^88)+C2*((D2^87)+C2*((D2^86)+C2*((D2^85)+C2*((D2^84)+C2*((D2^83)+C2*((D2^82)+C2*((D2^81)+C2*((D2^80)+(C2*((D2^79)+C2*((D2^78)+C2*((D2^77)+C2*((D2^76)+C2*((D2^75)+C2*((D2^74)+C2*((D2^73)+C2*((D2^72)+C2*((D2^71)+C2*((D2^70)+(C2*((D2^69)+C2*((D2^68)+C2*((D2^67)+C2*((D2^66)+C2*((D2^65)+C2*((D2^64)+C2*((D2^63)+C2*((D2^62)+C2*((D2^61)+C2*((D2^60)+(C2*((D2^59)+C2*((D2^58)+C2*((D2^57)+C2*((D2^56)+C2*((D2^55)+C2*((D2^54)+C2*((D2^53)+C2*((D2^52)+C2*((D2^51)+C2*((D2^50)+(C2*((D2^49)+C2*((D2^48)+C2*((D2^47)+C2*((D2^46)+C2*((D2^45)+C2*((D2^44)+C2*((D2^43)+C2*((D2^42)+C2*((D2^41)+C2*((D2^40)+(C2*((D2^39)+C2*((D2^38)+C2*((D2^37)+C2*((D2^36)+C2*((D2^35)+C2*((D2^34)+C2*((D2^33)+C2*((D2^32)+C2*((D2^31)+C2*((D2^30)+(C2*((D2^29)+C2*((D2^28)+C2*((D2^27)+C2*((D2^26)+C2*((D2^25)+C2*((D2^24)+C2*((D2^23)+C2*((D2^22)+C2*((D2^21)+C2*((D2^20)+(C2*((D2^19)+C2*((D2^18)+C2*((D2^17)+C2*((D2^16)+C2*((D2^15)+C2*((D2^14)+C2*((D2^13)+C2*((D2^12)+C2*((D2^11)+C2*((D2^10)+(C2*((D2^9)+C2*((D2^8)+C2*((D2^7)+C2*((D2^6)+C2*((D2^5)+C2*((D2^4)+C2*((D2^3)+C2*((D2^2)+C2*((D2^1)+C2*(D2^0)))))))))))))))))))))))))))))))))))))))))))))))))))))))))))))))))))))))))))))))))))))))))))))))))))))))))) -> 1.931885948
F99: 98 | G99: =(A2-((C2^(E2)*B2)))/((D2^97)+C2*((D2^96)+C2*((D2^95)+C2*((D2^94)+C2*((D2^93)+C2*((D2^92)+C2*((D2^91)+C2*((D2^90)+(C2*((D2^89)+C2*((D2^88)+C2*((D2^87)+C2*((D2^86)+C2*((D2^85)+C2*((D2^84)+C2*((D2^83)+C2*((D2^82)+C2*((D2^81)+C2*((D2^80)+(C2*((D2^79)+C2*((D2^78)+C2*((D2^77)+C2*((D2^76)+C2*((D2^75)+C2*((D2^74)+C2*((D2^73)+C2*((D2^72)+C2*((D2^71)+C2*((D2^70)+(C2*((D2^69)+C2*((D2^68)+C2*((D2^67)+C2*((D2^66)+C2*((D2^65)+C2*((D2^64)+C2*((D2^63)+C2*((D2^62)+C2*((D2^61)+C2*((D2^60)+(C2*((D2^59)+C2*((D2^58)+C2*((D2^57)+C2*((D2^56)+C2*((D2^55)+C2*((D2^54)+C2*((D2^53)+C2*((D2^52)+C2*((D2^51)+C2*((D2^50)+(C2*((D2^49)+C2*((D2^48)+C2*((D2^47)+C2*((D2^46)+C2*((D2^45)+C2*((D2^44)+C2*((D2^43)+C2*((D2^42)+C2*((D2^41)+C2*((D2^40)+(C2*((D2^39)+C2*((D2^38)+C2*((D2^37)+C2*((D2^36)+C2*((D2^35)+C2*((D2^34)+C2*((D2^33)+C2*((D2^32)+C2*((D2^31)+C2*((D2^30)+(C2*((D2^29)+C2*((D2^28)+C2*((D2^27)+C2*((D2^26)+C2*((D2^25)+C2*((D2^24)+C2*((D2^23)+C2*((D2^22)+C2*((D2^21)+C2*((D2^20)+(C2*((D2^19)+C2*((D2^18)+C2*((D2^17)+C2*((D2^16)+C2*((D2^15)+C2*((D2^14)+C2*((D2^13)+C2*((D2^12)+C2*((D2^11)+C2*((D2^10)+(C2*((D2^9)+C2*((D2^8)+C2*((D2^7)+C2*((D2^6)+C2*((D2^5)+C2*((D2^4)+C2*((D2^3)+C2*((D2^2)+C2*((D2^1)+C2*(D2^0))))))))))))))))))))))))))))))))))))))))))))))))))))))))))))))))))))))))))))))))))))))))))))))))))))))))))) -> 1.756244531
F100: 99 | G100: =(A2-((C2^(E2)*B2)))/((D2^98)+C2*((D2^97)+C2*((D2^96)+C2*((D2^95)+C2*((D2^94)+C2*((D2^93)+C2*((D2^92)+C2*((D2^91)+C2*((D2^90)+(C2*((D2^89)+C2*((D2^88)+C2*((D2^87)+C2*((D2^86)+C2*((D2^85)+C2*((D2^84)+C2*((D2^83)+C2*((D2^82)+C2*((D2^81)+C2*((D2^80)+(C2*((D2^79)+C2*((D2^78)+C2*((D2^77)+C2*((D2^76)+C2*((D2^75)+C2*((D2^74)+C2*((D2^73)+C2*((D2^72)+C2*((D2^71)+C2*((D2^70)+(C2*((D2^69)+C2*((D2^68)+C2*((D2^67)+C2*((D2^66)+C2*((D2^65)+C2*((D2^64)+C2*((D2^63)+C2*((D2^62)+C2*((D2^61)+C2*((D2^60)+(C2*((D2^59)+C2*((D2^58)+C2*((D2^57)+C2*((D2^56)+C2*((D2^55)+C2*((D2^54)+C2*((D2^53)+C2*((D2^52)+C2*((D2^51)+C2*((D2^50)+(C2*((D2^49)+C2*((D2^48)+C2*((D2^47)+C2*((D2^46)+C2*((D2^45)+C2*((D2^44)+C2*((D2^43)+C2*((D2^42)+C2*((D2^41)+C2*((D2^40)+(C2*((D2^39)+C2*((D2^38)+C2*((D2^37)+C2*((D2^36)+C2*((D2^35)+C2*((D2^34)+C2*((D2^33)+C2*((D2^32)+C2*((D2^31)+C2*((D2^30)+(C2*((D2^29)+C2*((D2^28)+C2*((D2^27)+C2*((D2^26)+C2*((D2^25)+C2*((D2^24)+C2*((D2^23)+C2*((D2^22)+C2*((D2^21)+C2*((D2^20)+(C2*((D2^19)+C2*((D2^18)+C2*((D2^17)+C2*((D2^16)+C2*((D2^15)+C2*((D2^14)+C2*((D2^13)+C2*((D2^12)+C2*((D2^11)+C2*((D2^10)+(C2*((D2^9)+C2*((D2^8)+C2*((D2^7)+C2*((D2^6)+C2*((D2^5)+C2*((D2^4)+C2*((D2^3)+C2*((D2^2)+C2*((D2^1)+C2*(D2^0)))))))))))))))))))))))))))))))))))))))))))))))))))))))))))))))))))))))))))))))))))))))))))))))))))))))))))) -> 1.596573192
F101: 100 | G101: =(A2-((C2^(E2)*B2)))/((D2^99)+C2*((D2^98)+C2*((D2^97)+C2*((D2^96)+C2*((D2^95)+C2*((D2^94)+C2*((D2^93)+C2*((D2^92)+C2*((D2^91)+C2*((D2^90)+(C2*((D2^89)+C2*((D2^88)+C2*((D2^87)+C2*((D2^86)+C2*((D2^85)+C2*((D2^84)+C2*((D2^83)+C2*((D2^82)+C2*((D2^81)+C2*((D2^80)+(C2*((D2^79)+C2*((D2^78)+C2*((D2^77)+C2*((D2^76)+C2*((D2^75)+C2*((D2^74)+C2*((D2^73)+C2*((D2^72)+C2*((D2^71)+C2*((D2^70)+(C2*((D2^69)+C2*((D2^68)+C2*((D2^67)+C2*((D2^66)+C2*((D2^65)+C2*((D2^64)+C2*((D2^63)+C2*((D2^62)+C2*((D2^61)+C2*((D2^60)+(C2*((D2^59)+C2*((D2^58)+C2*((D2^57)+C2*((D2^56)+C2*((D2^55)+C2*((D2^54)+C2*((D2^53)+C2*((D2^52)+C2*((D2^51)+C2*((D2^50)+(C2*((D2^49)+C2*((D2^48)+C2*((D2^47)+C2*((D2^46)+C2*((D2^45)+C2*((D2^44)+C2*((D2^43)+C2*((D2^42)+C2*((D2^41)+C2*((D2^40)+(C2*((D2^39)+C2*((D2^38)+C2*((D2^37)+C2*((D2^36)+C2*((D2^35)+C2*((D2^34)+C2*((D2^33)+C2*((D2^32)+C2*((D2^31)+C2*((D2^30)+(C2*((D2^29)+C2*((D2^28)+C2*((D2^27)+C2*((D2^26)+C2*((D2^25)+C2*((D2^24)+C2*((D2^23)+C2*((D2^22)+C2*((D2^21)+C2*((D2^20)+(C2*((D2^19)+C2*((D2^18)+C2*((D2^17)+C2*((D2^16)+C2*((D2^15)+C2*((D2^14)+C2*((D2^13)+C2*((D2^12)+C2*((D2^11)+C2*((D2^10)+(C2*((D2^9)+C2*((D2^8)+C2*((D2^7)+C2*((D2^6)+C2*((D2^5)+C2*((D2^4)+C2*((D2^3)+C2*((D2^2)+C2*((D2^1)+C2*(D2^0))))))))))))))))))))))))))))))))))))))))))))))))))))))))))))))))))))))))))))))))))))))))))))))))))))))))))))) -> 1.451419641

Sheet Multiple Goal Back data_2 (hidden)
A1: Goal | B1: Current Balance | C1: Interest | D1: Increase | E1: Year | F1: Years | G1: Starting Amount | I1: Starting Amount | K1: Starting Amount when Year > 63 | P1: Series Sum
A2: ='Multiple Goals Saving Tool'!C15 -> 0 | B2: =('Multiple Goals Saving Tool'!C6)/('Multiple Goals Saving Tool'!C8) -> 0 | C2: =1+('Multiple Goals Saving Tool'!E15) -> 1 | D2: =1+('Multiple Goals Saving Tool'!C7) -> 1 | E2: ='Multiple Goals Saving Tool'!D15 -> 0 | F2: 1 | G2: =(A2-((C2^(E2)*B2)))/(D2^0) -> 0 | I2: =IF(E2=10,'Multiple Goal Back data_2'!G11,IF(E2=5,'Multiple Goal Back data_2'!G6,IF(E2=1,'Multiple Goal Back data_2'!G2,IF(E2=2,'Multiple Goal Back data_2'!G3,IF(E2=3,'Multiple Goal Back data_2'!G4,IF(E2=4,'Multiple Goal Back data_2'!G5,IF(E2=6,'Multiple Goal Back data_2'!G7,IF(E2=7,'Multiple Goal Back data_2'!G8,IF(E2=8,'Multiple Goal Back data_2'!G9,IF(E2=9,'Multiple Goal Back data_2'!G10,IF(E2=11,'Multiple Goal Back data_2'!G12,IF(E2=12,'Multiple Goal Back data_2'!G13,IF(E2=13,'Multiple Goal Back data_2'!G14,IF(E2=14,'Multiple Goal Back data_2'!G15,IF(E2=15,'Multiple Goal Back data_2'!G16,IF(E2=16,'Multiple Goal Back data_2'!G17,IF(E2=17,'Multiple Goal Back data_2'!G18,IF(E2=18,'Multiple Goal Back data_2'!G19,IF(E2=19,'Multiple Goal Back data_2'!G20,IF(E2=20,'Multiple Goal Back data_2'!G21,IF(E2=21,'Multiple Goal Back data_2'!G22,IF(E2=22,'Multiple Goal Back data_2'!G23,IF(E2=23,'Multiple Goal Back data_2'!G24,IF(E2=24,'Multiple Goal Back data_2'!G25,IF(E2=25,'Multiple Goal Back data_2'!G26,IF(E2=26,'Multiple Goal Back data_2'!G27,IF(E2=27,'Multiple Goal Back data_2'!G28,IF(E2=28,'Multiple Goal Back data_2'!G29,IF(E2=29,'Multiple Goal Back data_2'!G30,IF(E2=30,'Multiple Goal Back data_2'!G31,IF(E2=31,'Multiple Goal Back data_2'!G32,IF(E2=32,'Multiple Goal Back data_2'!G33,IF(E2=33,'Multiple Goal Back data_2'!G34,IF(E2=34,'Multiple Goal Back data_2'!G35,IF(E2=35,'Multiple Goal Back data_2'!G36,IF(E2=36,'Multiple Goal Back data_2'!G37,IF(E2=37,'Multiple Goal Back data_2'!G38,IF(E2=38,'Multiple Goal Back data_2'!G39,IF(E2=39,'Multiple Goal Back data_2'!G40,IF(E2=40,'Multiple Goal Back data_2'!G41,IF(E2=41,'Multiple Goal Back data_2'!G42,IF(E2=42,'Multiple Goal Back data_2'!G43,IF(E2=43,'Multiple Goal Back data_2'!G44,IF(E2=44,'Multiple Goal Back data_2'!G45,IF(E2=45,'Multiple Goal Back data_2'!G46,IF(E2=46,'Multiple Goal Back data_2'!G47,IF(E2=47,'Multiple Goal Back data_2'!G48,IF(E2=48,'Multiple Goal Back data_2'!G49,IF(E2=49,'Multiple Goal Back data_2'!G50,IF(E2=50,'Multiple Goal Back data_2'!G51,IF(E2=51,'Multiple Goal Back data_2'!G52,IF(E2=52,'Multiple Goal Back data_2'!G53,IF(E2=53,'Multiple Goal Back data_2'!G54,IF(E2=54,'Multiple Goal Back data_2'!G55,IF(E2=55,'Multiple Goal Back data_2'!G56,IF(E2=56,'Multiple Goal Back data_2'!G57,IF(E2=57,'Multiple Goal Back data_2'!G58,IF(E2=58,'Multiple Goal Back data_2'!G59,IF(E2=59,'Multiple Goal Back data_2'!G60,IF(E2=60,'Multiple Goal Back data_2'!G61,IF(E2=61,'Multiple Goal Back data_2'!G62,IF(E2=62,'Multiple Goal Back data_2'!G63,IF(E2=63,'Multiple Goal Back data_2'!G64,IF(E2>63,K2,)))))))))))))))))))))))))))))))))))))))))))))))))))))))))))))))) -> 0 | K2: =IF(E2=64, 'Multiple Goal Back data_2'!G65,IF(E2=65, 'Multiple Goal Back data_2'!G66,IF(E2=66, 'Multiple Goal Back data_2'!G67,IF(E2=67, 'Multiple Goal Back data_2'!G68,IF(E2=68, 'Multiple Goal Back data_2'!G69,IF(E2=69, 'Multiple Goal Back data_2'!G70,IF(E2=70, 'Multiple Goal Back data_2'!G71,IF(E2=71,'Multiple Goal Back data_2'!G72, IF(E2=72, 'Multiple Goal Back data_2'!G73,IF(E2=73, 'Multiple Goal Back data_2'!G74,IF(E2=74, 'Multiple Goal Back data_2'!G75,IF(E2=75, 'Multiple Goal Back data_2'!G76,IF(E2=76, 'Multiple Goal Back data_2'!G77,IF(E2=77, 'Multiple Goal Back data_2'!G78,IF(E2=78, 'Multiple Goal Back data_2'!G79,IF(E2=79, 'Multiple Goal Back data_2'!G80,IF(E2=80, 'Multiple Goal Back data_2'!G81,IF(E2=81, 'Multiple Goal Back data_2'!G82,IF(E2=82, 'Multiple Goal Back data_2'!G83,IF(E2=83, 'Multiple Goal Back data_2'!G84,IF(E2=84, 'Multiple Goal Back data_2'!G85,IF(E2=85, 'Multiple Goal Back data_2'!G86,IF(E2=86, 'Multiple Goal Back data_2'!G87,IF(E2=87, 'Multiple Goal Back data_2'!G88,IF(E2=88, 'Multiple Goal Back data_2'!G89,IF(E2=89, 'Multiple Goal Back data_2'!G90,IF(E2=90, 'Multiple Goal Back data_2'!G91,IF(E2=91, 'Multiple Goal Back data_2'!G92,IF(E2=92, 'Multiple Goal Back data_2'!G93,IF(E2=93, 'Multiple Goal Back data_2'!G94,IF(E2=94, 'Multiple Goal Back data_2'!G95,IF(E2=95, 'Multiple Goal Back data_2'!G96,IF(E2=96, 'Multiple Goal Back data_2'!G97,IF(E2=97, 'Multiple Goal Back data_2'!G98,IF(E2=98, 'Multiple Goal Back data_2'!G99,IF(E2=99, 'Multiple Goal Back data_2'!G100,IF(E2=100, 'Multiple Goal Back data_2'!G101,))))))))))))))))))))))))))))))))))))) -> 0 | P2: =SERIESSUM(1.03, 1,1, {1,1,1,1,1,1,1,1,1}) -> 10.46387931
F3: 2 | G3: =(A2-((C2^(E2)*B2)))/((D2^1)+C2*((D2^0))) -> 0
F4: 3 | G4: =(A2-((C2^(E2)*B2)))/((D2^2)+C2*((D2^1)+C2*(D2^0))) -> 0
F5: 4 | G5: =(A2-((C2^(E2)*B2)))/((D2^3)+C2*((D2^2)+C2*((D2^1)+C2*(D2^0)))) -> 0
F6: 5 | G6: =(A2-((C2^(E2)*B2)))/((D2^4)+C2*((D2^3)+C2*((D2^2)+C2*((D2^1)+C2*(D2^0))))) -> 0
F7: 6 | G7: =(A2-((C2^(E2)*B2)))/((D2^5)+C2*((D2^4)+C2*((D2^3)+C2*((D2^2)+C2*((D2^1)+C2*(D2^0)))))) -> 0
F8: 7 | G8: =(A2-((C2^(E2)*B2)))/((D2^6)+C2*((D2^5)+C2*((D2^4)+C2*((D2^3)+C2*((D2^2)+C2*((D2^1)+C2*(D2^0))))))) -> 0
F9: 8 | G9: =(A2-((C2^(E2)*B2)))/((D2^7)+C2*((D2^6)+C2*((D2^5)+C2*((D2^4)+C2*((D2^3)+C2*((D2^2)+C2*((D2^1)+C2*(D2^0)))))))) -> 0
F10: 9 | G10: =(A2-((C2^(E2)*B2)))/((D2^8)+C2*((D2^7)+C2*((D2^6)+C2*((D2^5)+C2*((D2^4)+C2*((D2^3)+C2*((D2^2)+C2*((D2^1)+C2*(D2^0))))))))) -> 0
F11: 10 | G11: =(A2-((C2^(E2)*B2)))/((D2^9)+C2*((D2^8)+C2*((D2^7)+C2*((D2^6)+C2*((D2^5)+C2*((D2^4)+C2*((D2^3)+C2*((D2^2)+C2*((D2^1)+C2*(D2^0)))))))))) -> 0
F12: 11 | G12: =(A2-((C2^(E2)*B2)))/((D2^10)+(C2*((D2^9)+C2*((D2^8)+C2*((D2^7)+C2*((D2^6)+C2*((D2^5)+C2*((D2^4)+C2*((D2^3)+C2*((D2^2)+C2*((D2^1)+C2*(D2^0)))))))))))) -> 0
F13: 12 | G13: =(A2-((C2^(E2)*B2)))/((D2^11)+C2*((D2^10)+(C2*((D2^9)+C2*((D2^8)+C2*((D2^7)+C2*((D2^6)+C2*((D2^5)+C2*((D2^4)+C2*((D2^3)+C2*((D2^2)+C2*((D2^1)+C2*(D2^0))))))))))))) -> 0
F14: 13 | G14: =(A2-((C2^(E2)*B2)))/((D2^12)+C2*((D2^11)+C2*((D2^10)+(C2*((D2^9)+C2*((D2^8)+C2*((D2^7)+C2*((D2^6)+C2*((D2^5)+C2*((D2^4)+C2*((D2^3)+C2*((D2^2)+C2*((D2^1)+C2*(D2^0)))))))))))))) -> 0
F15: 14 | G15: =(A2-((C2^(E2)*B2)))/((D2^13)+C2*((D2^12)+C2*((D2^11)+C2*((D2^10)+(C2*((D2^9)+C2*((D2^8)+C2*((D2^7)+C2*((D2^6)+C2*((D2^5)+C2*((D2^4)+C2*((D2^3)+C2*((D2^2)+C2*((D2^1)+C2*(D2^0))))))))))))))) -> 0
F16: 15 | G16: =(A2-((C2^(E2)*B2)))/((D2^14)+C2*((D2^13)+C2*((D2^12)+C2*((D2^11)+C2*((D2^10)+(C2*((D2^9)+C2*((D2^8)+C2*((D2^7)+C2*((D2^6)+C2*((D2^5)+C2*((D2^4)+C2*((D2^3)+C2*((D2^2)+C2*((D2^1)+C2*(D2^0)))))))))))))))) -> 0
F17: 16 | G17: =(A2-((C2^(E2)*B2)))/((D2^15)+C2*((D2^14)+C2*((D2^13)+C2*((D2^12)+C2*((D2^11)+C2*((D2^10)+(C2*((D2^9)+C2*((D2^8)+C2*((D2^7)+C2*((D2^6)+C2*((D2^5)+C2*((D2^4)+C2*((D2^3)+C2*((D2^2)+C2*((D2^1)+C2*(D2^0))))))))))))))))) -> 0
F18: 17 | G18: =(A2-((C2^(E2)*B2)))/((D2^16)+C2*((D2^15)+C2*((D2^14)+C2*((D2^13)+C2*((D2^12)+C2*((D2^11)+C2*((D2^10)+(C2*((D2^9)+C2*((D2^8)+C2*((D2^7)+C2*((D2^6)+C2*((D2^5)+C2*((D2^4)+C2*((D2^3)+C2*((D2^2)+C2*((D2^1)+C2*(D2^0)))))))))))))))))) -> 0
F19: 18 | G19: =(A2-((C2^(E2)*B2)))/((D2^17)+C2*((D2^16)+C2*((D2^15)+C2*((D2^14)+C2*((D2^13)+C2*((D2^12)+C2*((D2^11)+C2*((D2^10)+(C2*((D2^9)+C2*((D2^8)+C2*((D2^7)+C2*((D2^6)+C2*((D2^5)+C2*((D2^4)+C2*((D2^3)+C2*((D2^2)+C2*((D2^1)+C2*(D2^0))))))))))))))))))) -> 0
F20: 19 | G20: =(A2-((C2^(E2)*B2)))/((D2^18)+C2*((D2^17)+C2*((D2^16)+C2*((D2^15)+C2*((D2^14)+C2*((D2^13)+C2*((D2^12)+C2*((D2^11)+C2*((D2^10)+(C2*((D2^9)+C2*((D2^8)+C2*((D2^7)+C2*((D2^6)+C2*((D2^5)+C2*((D2^4)+C2*((D2^3)+C2*((D2^2)+C2*((D2^1)+C2*(D2^0)))))))))))))))))))) -> 0
F21: 20 | G21: =(A2-((C2^(E2)*B2)))/((D2^19)+C2*((D2^18)+C2*((D2^17)+C2*((D2^16)+C2*((D2^15)+C2*((D2^14)+C2*((D2^13)+C2*((D2^12)+C2*((D2^11)+C2*((D2^10)+(C2*((D2^9)+C2*((D2^8)+C2*((D2^7)+C2*((D2^6)+C2*((D2^5)+C2*((D2^4)+C2*((D2^3)+C2*((D2^2)+C2*((D2^1)+C2*(D2^0))))))))))))))))))))) -> 0
F22: 21 | G22: =(A2-((C2^(E2)*B2)))/((D2^20)+(C2*((D2^19)+C2*((D2^18)+C2*((D2^17)+C2*((D2^16)+C2*((D2^15)+C2*((D2^14)+C2*((D2^13)+C2*((D2^12)+C2*((D2^11)+C2*((D2^10)+(C2*((D2^9)+C2*((D2^8)+C2*((D2^7)+C2*((D2^6)+C2*((D2^5)+C2*((D2^4)+C2*((D2^3)+C2*((D2^2)+C2*((D2^1)+C2*(D2^0))))))))))))))))))))))) -> 0
F23: 22 | G23: =(A2-((C2^(E2)*B2)))/((D2^21)+C2*((D2^20)+(C2*((D2^19)+C2*((D2^18)+C2*((D2^17)+C2*((D2^16)+C2*((D2^15)+C2*((D2^14)+C2*((D2^13)+C2*((D2^12)+C2*((D2^11)+C2*((D2^10)+(C2*((D2^9)+C2*((D2^8)+C2*((D2^7)+C2*((D2^6)+C2*((D2^5)+C2*((D2^4)+C2*((D2^3)+C2*((D2^2)+C2*((D2^1)+C2*(D2^0)))))))))))))))))))))))) -> 0
F24: 23 | G24: =(A2-((C2^(E2)*B2)))/((D2^22)+C2*((D2^21)+C2*((D2^20)+(C2*((D2^19)+C2*((D2^18)+C2*((D2^17)+C2*((D2^16)+C2*((D2^15)+C2*((D2^14)+C2*((D2^13)+C2*((D2^12)+C2*((D2^11)+C2*((D2^10)+(C2*((D2^9)+C2*((D2^8)+C2*((D2^7)+C2*((D2^6)+C2*((D2^5)+C2*((D2^4)+C2*((D2^3)+C2*((D2^2)+C2*((D2^1)+C2*(D2^0))))))))))))))))))))))))) -> 0
F25: 24 | G25: =(A2-((C2^(E2)*B2)))/((D2^23)+C2*((D2^22)+C2*((D2^21)+C2*((D2^20)+(C2*((D2^19)+C2*((D2^18)+C2*((D2^17)+C2*((D2^16)+C2*((D2^15)+C2*((D2^14)+C2*((D2^13)+C2*((D2^12)+C2*((D2^11)+C2*((D2^10)+(C2*((D2^9)+C2*((D2^8)+C2*((D2^7)+C2*((D2^6)+C2*((D2^5)+C2*((D2^4)+C2*((D2^3)+C2*((D2^2)+C2*((D2^1)+C2*(D2^0)))))))))))))))))))))))))) -> 0
F26: 25 | G26: =(A2-((C2^(E2)*B2)))/((D2^24)+C2*((D2^23)+C2*((D2^22)+C2*((D2^21)+C2*((D2^20)+(C2*((D2^19)+C2*((D2^18)+C2*((D2^17)+C2*((D2^16)+C2*((D2^15)+C2*((D2^14)+C2*((D2^13)+C2*((D2^12)+C2*((D2^11)+C2*((D2^10)+(C2*((D2^9)+C2*((D2^8)+C2*((D2^7)+C2*((D2^6)+C2*((D2^5)+C2*((D2^4)+C2*((D2^3)+C2*((D2^2)+C2*((D2^1)+C2*(D2^0))))))))))))))))))))))))))) -> 0
F27: 26 | G27: =(A2-((C2^(E2)*B2)))/((D2^25)+C2*((D2^24)+C2*((D2^23)+C2*((D2^22)+C2*((D2^21)+C2*((D2^20)+(C2*((D2^19)+C2*((D2^18)+C2*((D2^17)+C2*((D2^16)+C2*((D2^15)+C2*((D2^14)+C2*((D2^13)+C2*((D2^12)+C2*((D2^11)+C2*((D2^10)+(C2*((D2^9)+C2*((D2^8)+C2*((D2^7)+C2*((D2^6)+C2*((D2^5)+C2*((D2^4)+C2*((D2^3)+C2*((D2^2)+C2*((D2^1)+C2*(D2^0)))))))))))))))))))))))))))) -> 0
F28: 27 | G28: =(A2-((C2^(E2)*B2)))/((D2^26)+C2*((D2^25)+C2*((D2^24)+C2*((D2^23)+C2*((D2^22)+C2*((D2^21)+C2*((D2^20)+(C2*((D2^19)+C2*((D2^18)+C2*((D2^17)+C2*((D2^16)+C2*((D2^15)+C2*((D2^14)+C2*((D2^13)+C2*((D2^12)+C2*((D2^11)+C2*((D2^10)+(C2*((D2^9)+C2*((D2^8)+C2*((D2^7)+C2*((D2^6)+C2*((D2^5)+C2*((D2^4)+C2*((D2^3)+C2*((D2^2)+C2*((D2^1)+C2*(D2^0))))))))))))))))))))))))))))) -> 0
F29: 28 | G29: =(A2-((C2^(E2)*B2)))/((D2^27)+C2*((D2^26)+C2*((D2^25)+C2*((D2^24)+C2*((D2^23)+C2*((D2^22)+C2*((D2^21)+C2*((D2^20)+(C2*((D2^19)+C2*((D2^18)+C2*((D2^17)+C2*((D2^16)+C2*((D2^15)+C2*((D2^14)+C2*((D2^13)+C2*((D2^12)+C2*((D2^11)+C2*((D2^10)+(C2*((D2^9)+C2*((D2^8)+C2*((D2^7)+C2*((D2^6)+C2*((D2^5)+C2*((D2^4)+C2*((D2^3)+C2*((D2^2)+C2*((D2^1)+C2*(D2^0)))))))))))))))))))))))))))))) -> 0
F30: 29 | G30: =(A2-((C2^(E2)*B2)))/((D2^28)+C2*((D2^27)+C2*((D2^26)+C2*((D2^25)+C2*((D2^24)+C2*((D2^23)+C2*((D2^22)+C2*((D2^21)+C2*((D2^20)+(C2*((D2^19)+C2*((D2^18)+C2*((D2^17)+C2*((D2^16)+C2*((D2^15)+C2*((D2^14)+C2*((D2^13)+C2*((D2^12)+C2*((D2^11)+C2*((D2^10)+(C2*((D2^9)+C2*((D2^8)+C2*((D2^7)+C2*((D2^6)+C2*((D2^5)+C2*((D2^4)+C2*((D2^3)+C2*((D2^2)+C2*((D2^1)+C2*(D2^0))))))))))))))))))))))))))))))) -> 0
F31: 30 | G31: =(A2-((C2^(E2)*B2)))/((D2^29)+C2*((D2^28)+C2*((D2^27)+C2*((D2^26)+C2*((D2^25)+C2*((D2^24)+C2*((D2^23)+C2*((D2^22)+C2*((D2^21)+C2*((D2^20)+(C2*((D2^19)+C2*((D2^18)+C2*((D2^17)+C2*((D2^16)+C2*((D2^15)+C2*((D2^14)+C2*((D2^13)+C2*((D2^12)+C2*((D2^11)+C2*((D2^10)+(C2*((D2^9)+C2*((D2^8)+C2*((D2^7)+C2*((D2^6)+C2*((D2^5)+C2*((D2^4)+C2*((D2^3)+C2*((D2^2)+C2*((D2^1)+C2*(D2^0)))))))))))))))))))))))))))))))) -> 0
F32: 31 | G32: =(A2-((C2^(E2)*B2)))/((D2^30)+(C2*((D2^29)+C2*((D2^28)+C2*((D2^27)+C2*((D2^26)+C2*((D2^25)+C2*((D2^24)+C2*((D2^23)+C2*((D2^22)+C2*((D2^21)+C2*((D2^20)+(C2*((D2^19)+C2*((D2^18)+C2*((D2^17)+C2*((D2^16)+C2*((D2^15)+C2*((D2^14)+C2*((D2^13)+C2*((D2^12)+C2*((D2^11)+C2*((D2^10)+(C2*((D2^9)+C2*((D2^8)+C2*((D2^7)+C2*((D2^6)+C2*((D2^5)+C2*((D2^4)+C2*((D2^3)+C2*((D2^2)+C2*((D2^1)+C2*(D2^0)))))))))))))))))))))))))))))))))) -> 0
F33: 32 | G33: =(A2-((C2^(E2)*B2)))/((D2^31)+C2*((D2^30)+(C2*((D2^29)+C2*((D2^28)+C2*((D2^27)+C2*((D2^26)+C2*((D2^25)+C2*((D2^24)+C2*((D2^23)+C2*((D2^22)+C2*((D2^21)+C2*((D2^20)+(C2*((D2^19)+C2*((D2^18)+C2*((D2^17)+C2*((D2^16)+C2*((D2^15)+C2*((D2^14)+C2*((D2^13)+C2*((D2^12)+C2*((D2^11)+C2*((D2^10)+(C2*((D2^9)+C2*((D2^8)+C2*((D2^7)+C2*((D2^6)+C2*((D2^5)+C2*((D2^4)+C2*((D2^3)+C2*((D2^2)+C2*((D2^1)+C2*(D2^0))))))))))))))))))))))))))))))))))) -> 0
F34: 33 | G34: =(A2-((C2^(E2)*B2)))/((D2^32)+C2*((D2^31)+C2*((D2^30)+(C2*((D2^29)+C2*((D2^28)+C2*((D2^27)+C2*((D2^26)+C2*((D2^25)+C2*((D2^24)+C2*((D2^23)+C2*((D2^22)+C2*((D2^21)+C2*((D2^20)+(C2*((D2^19)+C2*((D2^18)+C2*((D2^17)+C2*((D2^16)+C2*((D2^15)+C2*((D2^14)+C2*((D2^13)+C2*((D2^12)+C2*((D2^11)+C2*((D2^10)+(C2*((D2^9)+C2*((D2^8)+C2*((D2^7)+C2*((D2^6)+C2*((D2^5)+C2*((D2^4)+C2*((D2^3)+C2*((D2^2)+C2*((D2^1)+C2*(D2^0)))))))))))))))))))))))))))))))))))) -> 0
F35: 34 | G35: =(A2-((C2^(E2)*B2)))/((D2^33)+C2*((D2^32)+C2*((D2^31)+C2*((D2^30)+(C2*((D2^29)+C2*((D2^28)+C2*((D2^27)+C2*((D2^26)+C2*((D2^25)+C2*((D2^24)+C2*((D2^23)+C2*((D2^22)+C2*((D2^21)+C2*((D2^20)+(C2*((D2^19)+C2*((D2^18)+C2*((D2^17)+C2*((D2^16)+C2*((D2^15)+C2*((D2^14)+C2*((D2^13)+C2*((D2^12)+C2*((D2^11)+C2*((D2^10)+(C2*((D2^9)+C2*((D2^8)+C2*((D2^7)+C2*((D2^6)+C2*((D2^5)+C2*((D2^4)+C2*((D2^3)+C2*((D2^2)+C2*((D2^1)+C2*(D2^0))))))))))))))))))))))))))))))))))))) -> 0
F36: 35 | G36: =(A2-((C2^(E2)*B2)))/((D2^34)+C2*((D2^33)+C2*((D2^32)+C2*((D2^31)+C2*((D2^30)+(C2*((D2^29)+C2*((D2^28)+C2*((D2^27)+C2*((D2^26)+C2*((D2^25)+C2*((D2^24)+C2*((D2^23)+C2*((D2^22)+C2*((D2^21)+C2*((D2^20)+(C2*((D2^19)+C2*((D2^18)+C2*((D2^17)+C2*((D2^16)+C2*((D2^15)+C2*((D2^14)+C2*((D2^13)+C2*((D2^12)+C2*((D2^11)+C2*((D2^10)+(C2*((D2^9)+C2*((D2^8)+C2*((D2^7)+C2*((D2^6)+C2*((D2^5)+C2*((D2^4)+C2*((D2^3)+C2*((D2^2)+C2*((D2^1)+C2*(D2^0)))))))))))))))))))))))))))))))))))))) -> 0
F37: 36 | G37: =(A2-((C2^(E2)*B2)))/((D2^35)+C2*((D2^34)+C2*((D2^33)+C2*((D2^32)+C2*((D2^31)+C2*((D2^30)+(C2*((D2^29)+C2*((D2^28)+C2*((D2^27)+C2*((D2^26)+C2*((D2^25)+C2*((D2^24)+C2*((D2^23)+C2*((D2^22)+C2*((D2^21)+C2*((D2^20)+(C2*((D2^19)+C2*((D2^18)+C2*((D2^17)+C2*((D2^16)+C2*((D2^15)+C2*((D2^14)+C2*((D2^13)+C2*((D2^12)+C2*((D2^11)+C2*((D2^10)+(C2*((D2^9)+C2*((D2^8)+C2*((D2^7)+C2*((D2^6)+C2*((D2^5)+C2*((D2^4)+C2*((D2^3)+C2*((D2^2)+C2*((D2^1)+C2*(D2^0))))))))))))))))))))))))))))))))))))))) -> 0
F38: 37 | G38: =(A2-((C2^(E2)*B2)))/((D2^36)+C2*((D2^35)+C2*((D2^34)+C2*((D2^33)+C2*((D2^32)+C2*((D2^31)+C2*((D2^30)+(C2*((D2^29)+C2*((D2^28)+C2*((D2^27)+C2*((D2^26)+C2*((D2^25)+C2*((D2^24)+C2*((D2^23)+C2*((D2^22)+C2*((D2^21)+C2*((D2^20)+(C2*((D2^19)+C2*((D2^18)+C2*((D2^17)+C2*((D2^16)+C2*((D2^15)+C2*((D2^14)+C2*((D2^13)+C2*((D2^12)+C2*((D2^11)+C2*((D2^10)+(C2*((D2^9)+C2*((D2^8)+C2*((D2^7)+C2*((D2^6)+C2*((D2^5)+C2*((D2^4)+C2*((D2^3)+C2*((D2^2)+C2*((D2^1)+C2*(D2^0)))))))))))))))))))))))))))))))))))))))) -> 0
F39: 38 | G39: =(A2-((C2^(E2)*B2)))/((D2^37)+C2*((D2^36)+C2*((D2^35)+C2*((D2^34)+C2*((D2^33)+C2*((D2^32)+C2*((D2^31)+C2*((D2^30)+(C2*((D2^29)+C2*((D2^28)+C2*((D2^27)+C2*((D2^26)+C2*((D2^25)+C2*((D2^24)+C2*((D2^23)+C2*((D2^22)+C2*((D2^21)+C2*((D2^20)+(C2*((D2^19)+C2*((D2^18)+C2*((D2^17)+C2*((D2^16)+C2*((D2^15)+C2*((D2^14)+C2*((D2^13)+C2*((D2^12)+C2*((D2^11)+C2*((D2^10)+(C2*((D2^9)+C2*((D2^8)+C2*((D2^7)+C2*((D2^6)+C2*((D2^5)+C2*((D2^4)+C2*((D2^3)+C2*((D2^2)+C2*((D2^1)+C2*(D2^0))))))))))))))))))))))))))))))))))))))))) -> 0
F40: 39 | G40: =(A2-((C2^(E2)*B2)))/((D2^38)+C2*((D2^37)+C2*((D2^36)+C2*((D2^35)+C2*((D2^34)+C2*((D2^33)+C2*((D2^32)+C2*((D2^31)+C2*((D2^30)+(C2*((D2^29)+C2*((D2^28)+C2*((D2^27)+C2*((D2^26)+C2*((D2^25)+C2*((D2^24)+C2*((D2^23)+C2*((D2^22)+C2*((D2^21)+C2*((D2^20)+(C2*((D2^19)+C2*((D2^18)+C2*((D2^17)+C2*((D2^16)+C2*((D2^15)+C2*((D2^14)+C2*((D2^13)+C2*((D2^12)+C2*((D2^11)+C2*((D2^10)+(C2*((D2^9)+C2*((D2^8)+C2*((D2^7)+C2*((D2^6)+C2*((D2^5)+C2*((D2^4)+C2*((D2^3)+C2*((D2^2)+C2*((D2^1)+C2*(D2^0)))))))))))))))))))))))))))))))))))))))))) -> 0
F41: 40 | G41: =(A2-((C2^(E2)*B2)))/((D2^39)+C2*((D2^38)+C2*((D2^37)+C2*((D2^36)+C2*((D2^35)+C2*((D2^34)+C2*((D2^33)+C2*((D2^32)+C2*((D2^31)+C2*((D2^30)+(C2*((D2^29)+C2*((D2^28)+C2*((D2^27)+C2*((D2^26)+C2*((D2^25)+C2*((D2^24)+C2*((D2^23)+C2*((D2^22)+C2*((D2^21)+C2*((D2^20)+(C2*((D2^19)+C2*((D2^18)+C2*((D2^17)+C2*((D2^16)+C2*((D2^15)+C2*((D2^14)+C2*((D2^13)+C2*((D2^12)+C2*((D2^11)+C2*((D2^10)+(C2*((D2^9)+C2*((D2^8)+C2*((D2^7)+C2*((D2^6)+C2*((D2^5)+C2*((D2^4)+C2*((D2^3)+C2*((D2^2)+C2*((D2^1)+C2*(D2^0))))))))))))))))))))))))))))))))))))))))))) -> 0
F42: 41 | G42: =(A2-((C2^(E2)*B2)))/((D2^40)+(C2*((D2^39)+C2*((D2^38)+C2*((D2^37)+C2*((D2^36)+C2*((D2^35)+C2*((D2^34)+C2*((D2^33)+C2*((D2^32)+C2*((D2^31)+C2*((D2^30)+(C2*((D2^29)+C2*((D2^28)+C2*((D2^27)+C2*((D2^26)+C2*((D2^25)+C2*((D2^24)+C2*((D2^23)+C2*((D2^22)+C2*((D2^21)+C2*((D2^20)+(C2*((D2^19)+C2*((D2^18)+C2*((D2^17)+C2*((D2^16)+C2*((D2^15)+C2*((D2^14)+C2*((D2^13)+C2*((D2^12)+C2*((D2^11)+C2*((D2^10)+(C2*((D2^9)+C2*((D2^8)+C2*((D2^7)+C2*((D2^6)+C2*((D2^5)+C2*((D2^4)+C2*((D2^3)+C2*((D2^2)+C2*((D2^1)+C2*(D2^0))))))))))))))))))))))))))))))))))))))))))))) -> 0
F43: 42 | G43: =(A2-((C2^(E2)*B2)))/((D2^41)+C2*((D2^40)+(C2*((D2^39)+C2*((D2^38)+C2*((D2^37)+C2*((D2^36)+C2*((D2^35)+C2*((D2^34)+C2*((D2^33)+C2*((D2^32)+C2*((D2^31)+C2*((D2^30)+(C2*((D2^29)+C2*((D2^28)+C2*((D2^27)+C2*((D2^26)+C2*((D2^25)+C2*((D2^24)+C2*((D2^23)+C2*((D2^22)+C2*((D2^21)+C2*((D2^20)+(C2*((D2^19)+C2*((D2^18)+C2*((D2^17)+C2*((D2^16)+C2*((D2^15)+C2*((D2^14)+C2*((D2^13)+C2*((D2^12)+C2*((D2^11)+C2*((D2^10)+(C2*((D2^9)+C2*((D2^8)+C2*((D2^7)+C2*((D2^6)+C2*((D2^5)+C2*((D2^4)+C2*((D2^3)+C2*((D2^2)+C2*((D2^1)+C2*(D2^0)))))))))))))))))))))))))))))))))))))))))))))) -> 0
F44: 43 | G44: =(A2-((C2^(E2)*B2)))/((D2^42)+C2*((D2^41)+C2*((D2^40)+(C2*((D2^39)+C2*((D2^38)+C2*((D2^37)+C2*((D2^36)+C2*((D2^35)+C2*((D2^34)+C2*((D2^33)+C2*((D2^32)+C2*((D2^31)+C2*((D2^30)+(C2*((D2^29)+C2*((D2^28)+C2*((D2^27)+C2*((D2^26)+C2*((D2^25)+C2*((D2^24)+C2*((D2^23)+C2*((D2^22)+C2*((D2^21)+C2*((D2^20)+(C2*((D2^19)+C2*((D2^18)+C2*((D2^17)+C2*((D2^16)+C2*((D2^15)+C2*((D2^14)+C2*((D2^13)+C2*((D2^12)+C2*((D2^11)+C2*((D2^10)+(C2*((D2^9)+C2*((D2^8)+C2*((D2^7)+C2*((D2^6)+C2*((D2^5)+C2*((D2^4)+C2*((D2^3)+C2*((D2^2)+C2*((D2^1)+C2*(D2^0))))))))))))))))))))))))))))))))))))))))))))))) -> 0
F45: 44 | G45: =(A2-((C2^(E2)*B2)))/((D2^43)+C2*((D2^42)+C2*((D2^41)+C2*((D2^40)+(C2*((D2^39)+C2*((D2^38)+C2*((D2^37)+C2*((D2^36)+C2*((D2^35)+C2*((D2^34)+C2*((D2^33)+C2*((D2^32)+C2*((D2^31)+C2*((D2^30)+(C2*((D2^29)+C2*((D2^28)+C2*((D2^27)+C2*((D2^26)+C2*((D2^25)+C2*((D2^24)+C2*((D2^23)+C2*((D2^22)+C2*((D2^21)+C2*((D2^20)+(C2*((D2^19)+C2*((D2^18)+C2*((D2^17)+C2*((D2^16)+C2*((D2^15)+C2*((D2^14)+C2*((D2^13)+C2*((D2^12)+C2*((D2^11)+C2*((D2^10)+(C2*((D2^9)+C2*((D2^8)+C2*((D2^7)+C2*((D2^6)+C2*((D2^5)+C2*((D2^4)+C2*((D2^3)+C2*((D2^2)+C2*((D2^1)+C2*(D2^0)))))))))))))))))))))))))))))))))))))))))))))))) -> 0
F46: 45 | G46: =(A2-((C2^(E2)*B2)))/((D2^44)+C2*((D2^43)+C2*((D2^42)+C2*((D2^41)+C2*((D2^40)+(C2*((D2^39)+C2*((D2^38)+C2*((D2^37)+C2*((D2^36)+C2*((D2^35)+C2*((D2^34)+C2*((D2^33)+C2*((D2^32)+C2*((D2^31)+C2*((D2^30)+(C2*((D2^29)+C2*((D2^28)+C2*((D2^27)+C2*((D2^26)+C2*((D2^25)+C2*((D2^24)+C2*((D2^23)+C2*((D2^22)+C2*((D2^21)+C2*((D2^20)+(C2*((D2^19)+C2*((D2^18)+C2*((D2^17)+C2*((D2^16)+C2*((D2^15)+C2*((D2^14)+C2*((D2^13)+C2*((D2^12)+C2*((D2^11)+C2*((D2^10)+(C2*((D2^9)+C2*((D2^8)+C2*((D2^7)+C2*((D2^6)+C2*((D2^5)+C2*((D2^4)+C2*((D2^3)+C2*((D2^2)+C2*((D2^1)+C2*(D2^0))))))))))))))))))))))))))))))))))))))))))))))))) -> 0
F47: 46 | G47: =(A2-((C2^(E2)*B2)))/((D2^45)+C2*((D2^44)+C2*((D2^43)+C2*((D2^42)+C2*((D2^41)+C2*((D2^40)+(C2*((D2^39)+C2*((D2^38)+C2*((D2^37)+C2*((D2^36)+C2*((D2^35)+C2*((D2^34)+C2*((D2^33)+C2*((D2^32)+C2*((D2^31)+C2*((D2^30)+(C2*((D2^29)+C2*((D2^28)+C2*((D2^27)+C2*((D2^26)+C2*((D2^25)+C2*((D2^24)+C2*((D2^23)+C2*((D2^22)+C2*((D2^21)+C2*((D2^20)+(C2*((D2^19)+C2*((D2^18)+C2*((D2^17)+C2*((D2^16)+C2*((D2^15)+C2*((D2^14)+C2*((D2^13)+C2*((D2^12)+C2*((D2^11)+C2*((D2^10)+(C2*((D2^9)+C2*((D2^8)+C2*((D2^7)+C2*((D2^6)+C2*((D2^5)+C2*((D2^4)+C2*((D2^3)+C2*((D2^2)+C2*((D2^1)+C2*(D2^0)))))))))))))))))))))))))))))))))))))))))))))))))) -> 0
F48: 47 | G48: =(A2-((C2^(E2)*B2)))/((D2^46)+C2*((D2^45)+C2*((D2^44)+C2*((D2^43)+C2*((D2^42)+C2*((D2^41)+C2*((D2^40)+(C2*((D2^39)+C2*((D2^38)+C2*((D2^37)+C2*((D2^36)+C2*((D2^35)+C2*((D2^34)+C2*((D2^33)+C2*((D2^32)+C2*((D2^31)+C2*((D2^30)+(C2*((D2^29)+C2*((D2^28)+C2*((D2^27)+C2*((D2^26)+C2*((D2^25)+C2*((D2^24)+C2*((D2^23)+C2*((D2^22)+C2*((D2^21)+C2*((D2^20)+(C2*((D2^19)+C2*((D2^18)+C2*((D2^17)+C2*((D2^16)+C2*((D2^15)+C2*((D2^14)+C2*((D2^13)+C2*((D2^12)+C2*((D2^11)+C2*((D2^10)+(C2*((D2^9)+C2*((D2^8)+C2*((D2^7)+C2*((D2^6)+C2*((D2^5)+C2*((D2^4)+C2*((D2^3)+C2*((D2^2)+C2*((D2^1)+C2*(D2^0))))))))))))))))))))))))))))))))))))))))))))))))))) -> 0
F49: 48 | G49: =(A2-((C2^(E2)*B2)))/((D2^47)+C2*((D2^46)+C2*((D2^45)+C2*((D2^44)+C2*((D2^43)+C2*((D2^42)+C2*((D2^41)+C2*((D2^40)+(C2*((D2^39)+C2*((D2^38)+C2*((D2^37)+C2*((D2^36)+C2*((D2^35)+C2*((D2^34)+C2*((D2^33)+C2*((D2^32)+C2*((D2^31)+C2*((D2^30)+(C2*((D2^29)+C2*((D2^28)+C2*((D2^27)+C2*((D2^26)+C2*((D2^25)+C2*((D2^24)+C2*((D2^23)+C2*((D2^22)+C2*((D2^21)+C2*((D2^20)+(C2*((D2^19)+C2*((D2^18)+C2*((D2^17)+C2*((D2^16)+C2*((D2^15)+C2*((D2^14)+C2*((D2^13)+C2*((D2^12)+C2*((D2^11)+C2*((D2^10)+(C2*((D2^9)+C2*((D2^8)+C2*((D2^7)+C2*((D2^6)+C2*((D2^5)+C2*((D2^4)+C2*((D2^3)+C2*((D2^2)+C2*((D2^1)+C2*(D2^0)))))))))))))))))))))))))))))))))))))))))))))))))))) -> 0
F50: 49 | G50: =(A2-((C2^(E2)*B2)))/((D2^48)+C2*((D2^47)+C2*((D2^46)+C2*((D2^45)+C2*((D2^44)+C2*((D2^43)+C2*((D2^42)+C2*((D2^41)+C2*((D2^40)+(C2*((D2^39)+C2*((D2^38)+C2*((D2^37)+C2*((D2^36)+C2*((D2^35)+C2*((D2^34)+C2*((D2^33)+C2*((D2^32)+C2*((D2^31)+C2*((D2^30)+(C2*((D2^29)+C2*((D2^28)+C2*((D2^27)+C2*((D2^26)+C2*((D2^25)+C2*((D2^24)+C2*((D2^23)+C2*((D2^22)+C2*((D2^21)+C2*((D2^20)+(C2*((D2^19)+C2*((D2^18)+C2*((D2^17)+C2*((D2^16)+C2*((D2^15)+C2*((D2^14)+C2*((D2^13)+C2*((D2^12)+C2*((D2^11)+C2*((D2^10)+(C2*((D2^9)+C2*((D2^8)+C2*((D2^7)+C2*((D2^6)+C2*((D2^5)+C2*((D2^4)+C2*((D2^3)+C2*((D2^2)+C2*((D2^1)+C2*(D2^0))))))))))))))))))))))))))))))))))))))))))))))))))))) -> 0
F51: 50 | G51: =(A2-((C2^(E2)*B2)))/((D2^49)+C2*((D2^48)+C2*((D2^47)+C2*((D2^46)+C2*((D2^45)+C2*((D2^44)+C2*((D2^43)+C2*((D2^42)+C2*((D2^41)+C2*((D2^40)+(C2*((D2^39)+C2*((D2^38)+C2*((D2^37)+C2*((D2^36)+C2*((D2^35)+C2*((D2^34)+C2*((D2^33)+C2*((D2^32)+C2*((D2^31)+C2*((D2^30)+(C2*((D2^29)+C2*((D2^28)+C2*((D2^27)+C2*((D2^26)+C2*((D2^25)+C2*((D2^24)+C2*((D2^23)+C2*((D2^22)+C2*((D2^21)+C2*((D2^20)+(C2*((D2^19)+C2*((D2^18)+C2*((D2^17)+C2*((D2^16)+C2*((D2^15)+C2*((D2^14)+C2*((D2^13)+C2*((D2^12)+C2*((D2^11)+C2*((D2^10)+(C2*((D2^9)+C2*((D2^8)+C2*((D2^7)+C2*((D2^6)+C2*((D2^5)+C2*((D2^4)+C2*((D2^3)+C2*((D2^2)+C2*((D2^1)+C2*(D2^0)))))))))))))))))))))))))))))))))))))))))))))))))))))) -> 0
F52: 51 | G52: =(A2-((C2^(E2)*B2)))/((D2^50)+(C2*((D2^49)+C2*((D2^48)+C2*((D2^47)+C2*((D2^46)+C2*((D2^45)+C2*((D2^44)+C2*((D2^43)+C2*((D2^42)+C2*((D2^41)+C2*((D2^40)+(C2*((D2^39)+C2*((D2^38)+C2*((D2^37)+C2*((D2^36)+C2*((D2^35)+C2*((D2^34)+C2*((D2^33)+C2*((D2^32)+C2*((D2^31)+C2*((D2^30)+(C2*((D2^29)+C2*((D2^28)+C2*((D2^27)+C2*((D2^26)+C2*((D2^25)+C2*((D2^24)+C2*((D2^23)+C2*((D2^22)+C2*((D2^21)+C2*((D2^20)+(C2*((D2^19)+C2*((D2^18)+C2*((D2^17)+C2*((D2^16)+C2*((D2^15)+C2*((D2^14)+C2*((D2^13)+C2*((D2^12)+C2*((D2^11)+C2*((D2^10)+(C2*((D2^9)+C2*((D2^8)+C2*((D2^7)+C2*((D2^6)+C2*((D2^5)+C2*((D2^4)+C2*((D2^3)+C2*((D2^2)+C2*((D2^1)+C2*(D2^0)))))))))))))))))))))))))))))))))))))))))))))))))))))))) -> 0
F53: 52 | G53: =(A2-((C2^(E2)*B2)))/((D2^51)+C2*((D2^50)+(C2*((D2^49)+C2*((D2^48)+C2*((D2^47)+C2*((D2^46)+C2*((D2^45)+C2*((D2^44)+C2*((D2^43)+C2*((D2^42)+C2*((D2^41)+C2*((D2^40)+(C2*((D2^39)+C2*((D2^38)+C2*((D2^37)+C2*((D2^36)+C2*((D2^35)+C2*((D2^34)+C2*((D2^33)+C2*((D2^32)+C2*((D2^31)+C2*((D2^30)+(C2*((D2^29)+C2*((D2^28)+C2*((D2^27)+C2*((D2^26)+C2*((D2^25)+C2*((D2^24)+C2*((D2^23)+C2*((D2^22)+C2*((D2^21)+C2*((D2^20)+(C2*((D2^19)+C2*((D2^18)+C2*((D2^17)+C2*((D2^16)+C2*((D2^15)+C2*((D2^14)+C2*((D2^13)+C2*((D2^12)+C2*((D2^11)+C2*((D2^10)+(C2*((D2^9)+C2*((D2^8)+C2*((D2^7)+C2*((D2^6)+C2*((D2^5)+C2*((D2^4)+C2*((D2^3)+C2*((D2^2)+C2*((D2^1)+C2*(D2^0))))))))))))))))))))))))))))))))))))))))))))))))))))))))) -> 0
F54: 53 | G54: =(A2-((C2^(E2)*B2)))/((D2^52)+C2*((D2^51)+C2*((D2^50)+(C2*((D2^49)+C2*((D2^48)+C2*((D2^47)+C2*((D2^46)+C2*((D2^45)+C2*((D2^44)+C2*((D2^43)+C2*((D2^42)+C2*((D2^41)+C2*((D2^40)+(C2*((D2^39)+C2*((D2^38)+C2*((D2^37)+C2*((D2^36)+C2*((D2^35)+C2*((D2^34)+C2*((D2^33)+C2*((D2^32)+C2*((D2^31)+C2*((D2^30)+(C2*((D2^29)+C2*((D2^28)+C2*((D2^27)+C2*((D2^26)+C2*((D2^25)+C2*((D2^24)+C2*((D2^23)+C2*((D2^22)+C2*((D2^21)+C2*((D2^20)+(C2*((D2^19)+C2*((D2^18)+C2*((D2^17)+C2*((D2^16)+C2*((D2^15)+C2*((D2^14)+C2*((D2^13)+C2*((D2^12)+C2*((D2^11)+C2*((D2^10)+(C2*((D2^9)+C2*((D2^8)+C2*((D2^7)+C2*((D2^6)+C2*((D2^5)+C2*((D2^4)+C2*((D2^3)+C2*((D2^2)+C2*((D2^1)+C2*(D2^0)))))))))))))))))))))))))))))))))))))))))))))))))))))))))) -> 0
F55: 54 | G55: =(A2-((C2^(E2)*B2)))/((D2^53)+C2*((D2^52)+C2*((D2^51)+C2*((D2^50)+(C2*((D2^49)+C2*((D2^48)+C2*((D2^47)+C2*((D2^46)+C2*((D2^45)+C2*((D2^44)+C2*((D2^43)+C2*((D2^42)+C2*((D2^41)+C2*((D2^40)+(C2*((D2^39)+C2*((D2^38)+C2*((D2^37)+C2*((D2^36)+C2*((D2^35)+C2*((D2^34)+C2*((D2^33)+C2*((D2^32)+C2*((D2^31)+C2*((D2^30)+(C2*((D2^29)+C2*((D2^28)+C2*((D2^27)+C2*((D2^26)+C2*((D2^25)+C2*((D2^24)+C2*((D2^23)+C2*((D2^22)+C2*((D2^21)+C2*((D2^20)+(C2*((D2^19)+C2*((D2^18)+C2*((D2^17)+C2*((D2^16)+C2*((D2^15)+C2*((D2^14)+C2*((D2^13)+C2*((D2^12)+C2*((D2^11)+C2*((D2^10)+(C2*((D2^9)+C2*((D2^8)+C2*((D2^7)+C2*((D2^6)+C2*((D2^5)+C2*((D2^4)+C2*((D2^3)+C2*((D2^2)+C2*((D2^1)+C2*(D2^0))))))))))))))))))))))))))))))))))))))))))))))))))))))))))) -> 0
F56: 55 | G56: =(A2-((C2^(E2)*B2)))/((D2^54)+C2*((D2^53)+C2*((D2^52)+C2*((D2^51)+C2*((D2^50)+(C2*((D2^49)+C2*((D2^48)+C2*((D2^47)+C2*((D2^46)+C2*((D2^45)+C2*((D2^44)+C2*((D2^43)+C2*((D2^42)+C2*((D2^41)+C2*((D2^40)+(C2*((D2^39)+C2*((D2^38)+C2*((D2^37)+C2*((D2^36)+C2*((D2^35)+C2*((D2^34)+C2*((D2^33)+C2*((D2^32)+C2*((D2^31)+C2*((D2^30)+(C2*((D2^29)+C2*((D2^28)+C2*((D2^27)+C2*((D2^26)+C2*((D2^25)+C2*((D2^24)+C2*((D2^23)+C2*((D2^22)+C2*((D2^21)+C2*((D2^20)+(C2*((D2^19)+C2*((D2^18)+C2*((D2^17)+C2*((D2^16)+C2*((D2^15)+C2*((D2^14)+C2*((D2^13)+C2*((D2^12)+C2*((D2^11)+C2*((D2^10)+(C2*((D2^9)+C2*((D2^8)+C2*((D2^7)+C2*((D2^6)+C2*((D2^5)+C2*((D2^4)+C2*((D2^3)+C2*((D2^2)+C2*((D2^1)+C2*(D2^0)))))))))))))))))))))))))))))))))))))))))))))))))))))))))))) -> 0
F57: 56 | G57: =(A2-((C2^(E2)*B2)))/((D2^55)+C2*((D2^54)+C2*((D2^53)+C2*((D2^52)+C2*((D2^51)+C2*((D2^50)+(C2*((D2^49)+C2*((D2^48)+C2*((D2^47)+C2*((D2^46)+C2*((D2^45)+C2*((D2^44)+C2*((D2^43)+C2*((D2^42)+C2*((D2^41)+C2*((D2^40)+(C2*((D2^39)+C2*((D2^38)+C2*((D2^37)+C2*((D2^36)+C2*((D2^35)+C2*((D2^34)+C2*((D2^33)+C2*((D2^32)+C2*((D2^31)+C2*((D2^30)+(C2*((D2^29)+C2*((D2^28)+C2*((D2^27)+C2*((D2^26)+C2*((D2^25)+C2*((D2^24)+C2*((D2^23)+C2*((D2^22)+C2*((D2^21)+C2*((D2^20)+(C2*((D2^19)+C2*((D2^18)+C2*((D2^17)+C2*((D2^16)+C2*((D2^15)+C2*((D2^14)+C2*((D2^13)+C2*((D2^12)+C2*((D2^11)+C2*((D2^10)+(C2*((D2^9)+C2*((D2^8)+C2*((D2^7)+C2*((D2^6)+C2*((D2^5)+C2*((D2^4)+C2*((D2^3)+C2*((D2^2)+C2*((D2^1)+C2*(D2^0))))))))))))))))))))))))))))))))))))))))))))))))))))))))))))) -> 0
F58: 57 | G58: =(A2-((C2^(E2)*B2)))/((D2^56)+C2*((D2^55)+C2*((D2^54)+C2*((D2^53)+C2*((D2^52)+C2*((D2^51)+C2*((D2^50)+(C2*((D2^49)+C2*((D2^48)+C2*((D2^47)+C2*((D2^46)+C2*((D2^45)+C2*((D2^44)+C2*((D2^43)+C2*((D2^42)+C2*((D2^41)+C2*((D2^40)+(C2*((D2^39)+C2*((D2^38)+C2*((D2^37)+C2*((D2^36)+C2*((D2^35)+C2*((D2^34)+C2*((D2^33)+C2*((D2^32)+C2*((D2^31)+C2*((D2^30)+(C2*((D2^29)+C2*((D2^28)+C2*((D2^27)+C2*((D2^26)+C2*((D2^25)+C2*((D2^24)+C2*((D2^23)+C2*((D2^22)+C2*((D2^21)+C2*((D2^20)+(C2*((D2^19)+C2*((D2^18)+C2*((D2^17)+C2*((D2^16)+C2*((D2^15)+C2*((D2^14)+C2*((D2^13)+C2*((D2^12)+C2*((D2^11)+C2*((D2^10)+(C2*((D2^9)+C2*((D2^8)+C2*((D2^7)+C2*((D2^6)+C2*((D2^5)+C2*((D2^4)+C2*((D2^3)+C2*((D2^2)+C2*((D2^1)+C2*(D2^0)))))))))))))))))))))))))))))))))))))))))))))))))))))))))))))) -> 0
F59: 58 | G59: =(A2-((C2^(E2)*B2)))/((D2^57)+C2*((D2^56)+C2*((D2^55)+C2*((D2^54)+C2*((D2^53)+C2*((D2^52)+C2*((D2^51)+C2*((D2^50)+(C2*((D2^49)+C2*((D2^48)+C2*((D2^47)+C2*((D2^46)+C2*((D2^45)+C2*((D2^44)+C2*((D2^43)+C2*((D2^42)+C2*((D2^41)+C2*((D2^40)+(C2*((D2^39)+C2*((D2^38)+C2*((D2^37)+C2*((D2^36)+C2*((D2^35)+C2*((D2^34)+C2*((D2^33)+C2*((D2^32)+C2*((D2^31)+C2*((D2^30)+(C2*((D2^29)+C2*((D2^28)+C2*((D2^27)+C2*((D2^26)+C2*((D2^25)+C2*((D2^24)+C2*((D2^23)+C2*((D2^22)+C2*((D2^21)+C2*((D2^20)+(C2*((D2^19)+C2*((D2^18)+C2*((D2^17)+C2*((D2^16)+C2*((D2^15)+C2*((D2^14)+C2*((D2^13)+C2*((D2^12)+C2*((D2^11)+C2*((D2^10)+(C2*((D2^9)+C2*((D2^8)+C2*((D2^7)+C2*((D2^6)+C2*((D2^5)+C2*((D2^4)+C2*((D2^3)+C2*((D2^2)+C2*((D2^1)+C2*(D2^0))))))))))))))))))))))))))))))))))))))))))))))))))))))))))))))) -> 0
F60: 59 | G60: =(A2-((C2^(E2)*B2)))/((D2^58)+C2*((D2^57)+C2*((D2^56)+C2*((D2^55)+C2*((D2^54)+C2*((D2^53)+C2*((D2^52)+C2*((D2^51)+C2*((D2^50)+(C2*((D2^49)+C2*((D2^48)+C2*((D2^47)+C2*((D2^46)+C2*((D2^45)+C2*((D2^44)+C2*((D2^43)+C2*((D2^42)+C2*((D2^41)+C2*((D2^40)+(C2*((D2^39)+C2*((D2^38)+C2*((D2^37)+C2*((D2^36)+C2*((D2^35)+C2*((D2^34)+C2*((D2^33)+C2*((D2^32)+C2*((D2^31)+C2*((D2^30)+(C2*((D2^29)+C2*((D2^28)+C2*((D2^27)+C2*((D2^26)+C2*((D2^25)+C2*((D2^24)+C2*((D2^23)+C2*((D2^22)+C2*((D2^21)+C2*((D2^20)+(C2*((D2^19)+C2*((D2^18)+C2*((D2^17)+C2*((D2^16)+C2*((D2^15)+C2*((D2^14)+C2*((D2^13)+C2*((D2^12)+C2*((D2^11)+C2*((D2^10)+(C2*((D2^9)+C2*((D2^8)+C2*((D2^7)+C2*((D2^6)+C2*((D2^5)+C2*((D2^4)+C2*((D2^3)+C2*((D2^2)+C2*((D2^1)+C2*(D2^0)))))))))))))))))))))))))))))))))))))))))))))))))))))))))))))))) -> 0
F61: 60 | G61: =(A2-((C2^(E2)*B2)))/((D2^59)+C2*((D2^58)+C2*((D2^57)+C2*((D2^56)+C2*((D2^55)+C2*((D2^54)+C2*((D2^53)+C2*((D2^52)+C2*((D2^51)+C2*((D2^50)+(C2*((D2^49)+C2*((D2^48)+C2*((D2^47)+C2*((D2^46)+C2*((D2^45)+C2*((D2^44)+C2*((D2^43)+C2*((D2^42)+C2*((D2^41)+C2*((D2^40)+(C2*((D2^39)+C2*((D2^38)+C2*((D2^37)+C2*((D2^36)+C2*((D2^35)+C2*((D2^34)+C2*((D2^33)+C2*((D2^32)+C2*((D2^31)+C2*((D2^30)+(C2*((D2^29)+C2*((D2^28)+C2*((D2^27)+C2*((D2^26)+C2*((D2^25)+C2*((D2^24)+C2*((D2^23)+C2*((D2^22)+C2*((D2^21)+C2*((D2^20)+(C2*((D2^19)+C2*((D2^18)+C2*((D2^17)+C2*((D2^16)+C2*((D2^15)+C2*((D2^14)+C2*((D2^13)+C2*((D2^12)+C2*((D2^11)+C2*((D2^10)+(C2*((D2^9)+C2*((D2^8)+C2*((D2^7)+C2*((D2^6)+C2*((D2^5)+C2*((D2^4)+C2*((D2^3)+C2*((D2^2)+C2*((D2^1)+C2*(D2^0))))))))))))))))))))))))))))))))))))))))))))))))))))))))))))))))) -> 0
F62: 61 | G62: =(A2-((C2^(E2)*B2)))/((D2^60)+(C2*((D2^59)+C2*((D2^58)+C2*((D2^57)+C2*((D2^56)+C2*((D2^55)+C2*((D2^54)+C2*((D2^53)+C2*((D2^52)+C2*((D2^51)+C2*((D2^50)+(C2*((D2^49)+C2*((D2^48)+C2*((D2^47)+C2*((D2^46)+C2*((D2^45)+C2*((D2^44)+C2*((D2^43)+C2*((D2^42)+C2*((D2^41)+C2*((D2^40)+(C2*((D2^39)+C2*((D2^38)+C2*((D2^37)+C2*((D2^36)+C2*((D2^35)+C2*((D2^34)+C2*((D2^33)+C2*((D2^32)+C2*((D2^31)+C2*((D2^30)+(C2*((D2^29)+C2*((D2^28)+C2*((D2^27)+C2*((D2^26)+C2*((D2^25)+C2*((D2^24)+C2*((D2^23)+C2*((D2^22)+C2*((D2^21)+C2*((D2^20)+(C2*((D2^19)+C2*((D2^18)+C2*((D2^17)+C2*((D2^16)+C2*((D2^15)+C2*((D2^14)+C2*((D2^13)+C2*((D2^12)+C2*((D2^11)+C2*((D2^10)+(C2*((D2^9)+C2*((D2^8)+C2*((D2^7)+C2*((D2^6)+C2*((D2^5)+C2*((D2^4)+C2*((D2^3)+C2*((D2^2)+C2*((D2^1)+C2*(D2^0))))))))))))))))))))))))))))))))))))))))))))))))))))))))))))))))))) -> 0
F63: 62 | G63: =(A2-((C2^(E2)*B2)))/((D2^61)+C2*((D2^60)+(C2*((D2^59)+C2*((D2^58)+C2*((D2^57)+C2*((D2^56)+C2*((D2^55)+C2*((D2^54)+C2*((D2^53)+C2*((D2^52)+C2*((D2^51)+C2*((D2^50)+(C2*((D2^49)+C2*((D2^48)+C2*((D2^47)+C2*((D2^46)+C2*((D2^45)+C2*((D2^44)+C2*((D2^43)+C2*((D2^42)+C2*((D2^41)+C2*((D2^40)+(C2*((D2^39)+C2*((D2^38)+C2*((D2^37)+C2*((D2^36)+C2*((D2^35)+C2*((D2^34)+C2*((D2^33)+C2*((D2^32)+C2*((D2^31)+C2*((D2^30)+(C2*((D2^29)+C2*((D2^28)+C2*((D2^27)+C2*((D2^26)+C2*((D2^25)+C2*((D2^24)+C2*((D2^23)+C2*((D2^22)+C2*((D2^21)+C2*((D2^20)+(C2*((D2^19)+C2*((D2^18)+C2*((D2^17)+C2*((D2^16)+C2*((D2^15)+C2*((D2^14)+C2*((D2^13)+C2*((D2^12)+C2*((D2^11)+C2*((D2^10)+(C2*((D2^9)+C2*((D2^8)+C2*((D2^7)+C2*((D2^6)+C2*((D2^5)+C2*((D2^4)+C2*((D2^3)+C2*((D2^2)+C2*((D2^1)+C2*(D2^0)))))))))))))))))))))))))))))))))))))))))))))))))))))))))))))))))))) -> 0
F64: 63 | G64: =(A2-((C2^(E2)*B2)))/((D2^62)+C2*((D2^61)+C2*((D2^60)+(C2*((D2^59)+C2*((D2^58)+C2*((D2^57)+C2*((D2^56)+C2*((D2^55)+C2*((D2^54)+C2*((D2^53)+C2*((D2^52)+C2*((D2^51)+C2*((D2^50)+(C2*((D2^49)+C2*((D2^48)+C2*((D2^47)+C2*((D2^46)+C2*((D2^45)+C2*((D2^44)+C2*((D2^43)+C2*((D2^42)+C2*((D2^41)+C2*((D2^40)+(C2*((D2^39)+C2*((D2^38)+C2*((D2^37)+C2*((D2^36)+C2*((D2^35)+C2*((D2^34)+C2*((D2^33)+C2*((D2^32)+C2*((D2^31)+C2*((D2^30)+(C2*((D2^29)+C2*((D2^28)+C2*((D2^27)+C2*((D2^26)+C2*((D2^25)+C2*((D2^24)+C2*((D2^23)+C2*((D2^22)+C2*((D2^21)+C2*((D2^20)+(C2*((D2^19)+C2*((D2^18)+C2*((D2^17)+C2*((D2^16)+C2*((D2^15)+C2*((D2^14)+C2*((D2^13)+C2*((D2^12)+C2*((D2^11)+C2*((D2^10)+(C2*((D2^9)+C2*((D2^8)+C2*((D2^7)+C2*((D2^6)+C2*((D2^5)+C2*((D2^4)+C2*((D2^3)+C2*((D2^2)+C2*((D2^1)+C2*(D2^0))))))))))))))))))))))))))))))))))))))))))))))))))))))))))))))))))))) -> 0
F65: 64 | G65: =(A2-((C2^(E2)*B2)))/((D2^63)+C2*((D2^62)+C2*((D2^61)+C2*((D2^60)+(C2*((D2^59)+C2*((D2^58)+C2*((D2^57)+C2*((D2^56)+C2*((D2^55)+C2*((D2^54)+C2*((D2^53)+C2*((D2^52)+C2*((D2^51)+C2*((D2^50)+(C2*((D2^49)+C2*((D2^48)+C2*((D2^47)+C2*((D2^46)+C2*((D2^45)+C2*((D2^44)+C2*((D2^43)+C2*((D2^42)+C2*((D2^41)+C2*((D2^40)+(C2*((D2^39)+C2*((D2^38)+C2*((D2^37)+C2*((D2^36)+C2*((D2^35)+C2*((D2^34)+C2*((D2^33)+C2*((D2^32)+C2*((D2^31)+C2*((D2^30)+(C2*((D2^29)+C2*((D2^28)+C2*((D2^27)+C2*((D2^26)+C2*((D2^25)+C2*((D2^24)+C2*((D2^23)+C2*((D2^22)+C2*((D2^21)+C2*((D2^20)+(C2*((D2^19)+C2*((D2^18)+C2*((D2^17)+C2*((D2^16)+C2*((D2^15)+C2*((D2^14)+C2*((D2^13)+C2*((D2^12)+C2*((D2^11)+C2*((D2^10)+(C2*((D2^9)+C2*((D2^8)+C2*((D2^7)+C2*((D2^6)+C2*((D2^5)+C2*((D2^4)+C2*((D2^3)+C2*((D2^2)+C2*((D2^1)+C2*(D2^0)))))))))))))))))))))))))))))))))))))))))))))))))))))))))))))))))))))) -> 0
F66: 65 | G66: =(A2-((C2^(E2)*B2)))/((D2^64)+C2*((D2^63)+C2*((D2^62)+C2*((D2^61)+C2*((D2^60)+(C2*((D2^59)+C2*((D2^58)+C2*((D2^57)+C2*((D2^56)+C2*((D2^55)+C2*((D2^54)+C2*((D2^53)+C2*((D2^52)+C2*((D2^51)+C2*((D2^50)+(C2*((D2^49)+C2*((D2^48)+C2*((D2^47)+C2*((D2^46)+C2*((D2^45)+C2*((D2^44)+C2*((D2^43)+C2*((D2^42)+C2*((D2^41)+C2*((D2^40)+(C2*((D2^39)+C2*((D2^38)+C2*((D2^37)+C2*((D2^36)+C2*((D2^35)+C2*((D2^34)+C2*((D2^33)+C2*((D2^32)+C2*((D2^31)+C2*((D2^30)+(C2*((D2^29)+C2*((D2^28)+C2*((D2^27)+C2*((D2^26)+C2*((D2^25)+C2*((D2^24)+C2*((D2^23)+C2*((D2^22)+C2*((D2^21)+C2*((D2^20)+(C2*((D2^19)+C2*((D2^18)+C2*((D2^17)+C2*((D2^16)+C2*((D2^15)+C2*((D2^14)+C2*((D2^13)+C2*((D2^12)+C2*((D2^11)+C2*((D2^10)+(C2*((D2^9)+C2*((D2^8)+C2*((D2^7)+C2*((D2^6)+C2*((D2^5)+C2*((D2^4)+C2*((D2^3)+C2*((D2^2)+C2*((D2^1)+C2*(D2^0))))))))))))))))))))))))))))))))))))))))))))))))))))))))))))))))))))))) -> 0
F67: 66 | G67: =(A2-((C2^(E2)*B2)))/((D2^65)+C2*((D2^64)+C2*((D2^63)+C2*((D2^62)+C2*((D2^61)+C2*((D2^60)+(C2*((D2^59)+C2*((D2^58)+C2*((D2^57)+C2*((D2^56)+C2*((D2^55)+C2*((D2^54)+C2*((D2^53)+C2*((D2^52)+C2*((D2^51)+C2*((D2^50)+(C2*((D2^49)+C2*((D2^48)+C2*((D2^47)+C2*((D2^46)+C2*((D2^45)+C2*((D2^44)+C2*((D2^43)+C2*((D2^42)+C2*((D2^41)+C2*((D2^40)+(C2*((D2^39)+C2*((D2^38)+C2*((D2^37)+C2*((D2^36)+C2*((D2^35)+C2*((D2^34)+C2*((D2^33)+C2*((D2^32)+C2*((D2^31)+C2*((D2^30)+(C2*((D2^29)+C2*((D2^28)+C2*((D2^27)+C2*((D2^26)+C2*((D2^25)+C2*((D2^24)+C2*((D2^23)+C2*((D2^22)+C2*((D2^21)+C2*((D2^20)+(C2*((D2^19)+C2*((D2^18)+C2*((D2^17)+C2*((D2^16)+C2*((D2^15)+C2*((D2^14)+C2*((D2^13)+C2*((D2^12)+C2*((D2^11)+C2*((D2^10)+(C2*((D2^9)+C2*((D2^8)+C2*((D2^7)+C2*((D2^6)+C2*((D2^5)+C2*((D2^4)+C2*((D2^3)+C2*((D2^2)+C2*((D2^1)+C2*(D2^0)))))))))))))))))))))))))))))))))))))))))))))))))))))))))))))))))))))))) -> 0
F68: 67 | G68: =(A2-((C2^(E2)*B2)))/((D2^66)+C2*((D2^65)+C2*((D2^64)+C2*((D2^63)+C2*((D2^62)+C2*((D2^61)+C2*((D2^60)+(C2*((D2^59)+C2*((D2^58)+C2*((D2^57)+C2*((D2^56)+C2*((D2^55)+C2*((D2^54)+C2*((D2^53)+C2*((D2^52)+C2*((D2^51)+C2*((D2^50)+(C2*((D2^49)+C2*((D2^48)+C2*((D2^47)+C2*((D2^46)+C2*((D2^45)+C2*((D2^44)+C2*((D2^43)+C2*((D2^42)+C2*((D2^41)+C2*((D2^40)+(C2*((D2^39)+C2*((D2^38)+C2*((D2^37)+C2*((D2^36)+C2*((D2^35)+C2*((D2^34)+C2*((D2^33)+C2*((D2^32)+C2*((D2^31)+C2*((D2^30)+(C2*((D2^29)+C2*((D2^28)+C2*((D2^27)+C2*((D2^26)+C2*((D2^25)+C2*((D2^24)+C2*((D2^23)+C2*((D2^22)+C2*((D2^21)+C2*((D2^20)+(C2*((D2^19)+C2*((D2^18)+C2*((D2^17)+C2*((D2^16)+C2*((D2^15)+C2*((D2^14)+C2*((D2^13)+C2*((D2^12)+C2*((D2^11)+C2*((D2^10)+(C2*((D2^9)+C2*((D2^8)+C2*((D2^7)+C2*((D2^6)+C2*((D2^5)+C2*((D2^4)+C2*((D2^3)+C2*((D2^2)+C2*((D2^1)+C2*(D2^0))))))))))))))))))))))))))))))))))))))))))))))))))))))))))))))))))))))))) -> 0
F69: 68 | G69: =(A2-((C2^(E2)*B2)))/((D2^67)+C2*((D2^66)+C2*((D2^65)+C2*((D2^64)+C2*((D2^63)+C2*((D2^62)+C2*((D2^61)+C2*((D2^60)+(C2*((D2^59)+C2*((D2^58)+C2*((D2^57)+C2*((D2^56)+C2*((D2^55)+C2*((D2^54)+C2*((D2^53)+C2*((D2^52)+C2*((D2^51)+C2*((D2^50)+(C2*((D2^49)+C2*((D2^48)+C2*((D2^47)+C2*((D2^46)+C2*((D2^45)+C2*((D2^44)+C2*((D2^43)+C2*((D2^42)+C2*((D2^41)+C2*((D2^40)+(C2*((D2^39)+C2*((D2^38)+C2*((D2^37)+C2*((D2^36)+C2*((D2^35)+C2*((D2^34)+C2*((D2^33)+C2*((D2^32)+C2*((D2^31)+C2*((D2^30)+(C2*((D2^29)+C2*((D2^28)+C2*((D2^27)+C2*((D2^26)+C2*((D2^25)+C2*((D2^24)+C2*((D2^23)+C2*((D2^22)+C2*((D2^21)+C2*((D2^20)+(C2*((D2^19)+C2*((D2^18)+C2*((D2^17)+C2*((D2^16)+C2*((D2^15)+C2*((D2^14)+C2*((D2^13)+C2*((D2^12)+C2*((D2^11)+C2*((D2^10)+(C2*((D2^9)+C2*((D2^8)+C2*((D2^7)+C2*((D2^6)+C2*((D2^5)+C2*((D2^4)+C2*((D2^3)+C2*((D2^2)+C2*((D2^1)+C2*(D2^0)))))))))))))))))))))))))))))))))))))))))))))))))))))))))))))))))))))))))) -> 0
F70: 69 | G70: =(A2-((C2^(E2)*B2)))/((D2^68)+C2*((D2^67)+C2*((D2^66)+C2*((D2^65)+C2*((D2^64)+C2*((D2^63)+C2*((D2^62)+C2*((D2^61)+C2*((D2^60)+(C2*((D2^59)+C2*((D2^58)+C2*((D2^57)+C2*((D2^56)+C2*((D2^55)+C2*((D2^54)+C2*((D2^53)+C2*((D2^52)+C2*((D2^51)+C2*((D2^50)+(C2*((D2^49)+C2*((D2^48)+C2*((D2^47)+C2*((D2^46)+C2*((D2^45)+C2*((D2^44)+C2*((D2^43)+C2*((D2^42)+C2*((D2^41)+C2*((D2^40)+(C2*((D2^39)+C2*((D2^38)+C2*((D2^37)+C2*((D2^36)+C2*((D2^35)+C2*((D2^34)+C2*((D2^33)+C2*((D2^32)+C2*((D2^31)+C2*((D2^30)+(C2*((D2^29)+C2*((D2^28)+C2*((D2^27)+C2*((D2^26)+C2*((D2^25)+C2*((D2^24)+C2*((D2^23)+C2*((D2^22)+C2*((D2^21)+C2*((D2^20)+(C2*((D2^19)+C2*((D2^18)+C2*((D2^17)+C2*((D2^16)+C2*((D2^15)+C2*((D2^14)+C2*((D2^13)+C2*((D2^12)+C2*((D2^11)+C2*((D2^10)+(C2*((D2^9)+C2*((D2^8)+C2*((D2^7)+C2*((D2^6)+C2*((D2^5)+C2*((D2^4)+C2*((D2^3)+C2*((D2^2)+C2*((D2^1)+C2*(D2^0))))))))))))))))))))))))))))))))))))))))))))))))))))))))))))))))))))))))))) -> 0
F71: 70 | G71: =(A2-((C2^(E2)*B2)))/((D2^69)+C2*((D2^68)+C2*((D2^67)+C2*((D2^66)+C2*((D2^65)+C2*((D2^64)+C2*((D2^63)+C2*((D2^62)+C2*((D2^61)+C2*((D2^60)+(C2*((D2^59)+C2*((D2^58)+C2*((D2^57)+C2*((D2^56)+C2*((D2^55)+C2*((D2^54)+C2*((D2^53)+C2*((D2^52)+C2*((D2^51)+C2*((D2^50)+(C2*((D2^49)+C2*((D2^48)+C2*((D2^47)+C2*((D2^46)+C2*((D2^45)+C2*((D2^44)+C2*((D2^43)+C2*((D2^42)+C2*((D2^41)+C2*((D2^40)+(C2*((D2^39)+C2*((D2^38)+C2*((D2^37)+C2*((D2^36)+C2*((D2^35)+C2*((D2^34)+C2*((D2^33)+C2*((D2^32)+C2*((D2^31)+C2*((D2^30)+(C2*((D2^29)+C2*((D2^28)+C2*((D2^27)+C2*((D2^26)+C2*((D2^25)+C2*((D2^24)+C2*((D2^23)+C2*((D2^22)+C2*((D2^21)+C2*((D2^20)+(C2*((D2^19)+C2*((D2^18)+C2*((D2^17)+C2*((D2^16)+C2*((D2^15)+C2*((D2^14)+C2*((D2^13)+C2*((D2^12)+C2*((D2^11)+C2*((D2^10)+(C2*((D2^9)+C2*((D2^8)+C2*((D2^7)+C2*((D2^6)+C2*((D2^5)+C2*((D2^4)+C2*((D2^3)+C2*((D2^2)+C2*((D2^1)+C2*(D2^0)))))))))))))))))))))))))))))))))))))))))))))))))))))))))))))))))))))))))))) -> 0
F72: 71 | G72: =(A2-((C2^(E2)*B2)))/((D2^70)+(C2*((D2^69)+C2*((D2^68)+C2*((D2^67)+C2*((D2^66)+C2*((D2^65)+C2*((D2^64)+C2*((D2^63)+C2*((D2^62)+C2*((D2^61)+C2*((D2^60)+(C2*((D2^59)+C2*((D2^58)+C2*((D2^57)+C2*((D2^56)+C2*((D2^55)+C2*((D2^54)+C2*((D2^53)+C2*((D2^52)+C2*((D2^51)+C2*((D2^50)+(C2*((D2^49)+C2*((D2^48)+C2*((D2^47)+C2*((D2^46)+C2*((D2^45)+C2*((D2^44)+C2*((D2^43)+C2*((D2^42)+C2*((D2^41)+C2*((D2^40)+(C2*((D2^39)+C2*((D2^38)+C2*((D2^37)+C2*((D2^36)+C2*((D2^35)+C2*((D2^34)+C2*((D2^33)+C2*((D2^32)+C2*((D2^31)+C2*((D2^30)+(C2*((D2^29)+C2*((D2^28)+C2*((D2^27)+C2*((D2^26)+C2*((D2^25)+C2*((D2^24)+C2*((D2^23)+C2*((D2^22)+C2*((D2^21)+C2*((D2^20)+(C2*((D2^19)+C2*((D2^18)+C2*((D2^17)+C2*((D2^16)+C2*((D2^15)+C2*((D2^14)+C2*((D2^13)+C2*((D2^12)+C2*((D2^11)+C2*((D2^10)+(C2*((D2^9)+C2*((D2^8)+C2*((D2^7)+C2*((D2^6)+C2*((D2^5)+C2*((D2^4)+C2*((D2^3)+C2*((D2^2)+C2*((D2^1)+C2*(D2^0)))))))))))))))))))))))))))))))))))))))))))))))))))))))))))))))))))))))))))))) -> 0
F73: 72 | G73: =(A2-((C2^(E2)*B2)))/((D2^71)+C2*((D2^70)+(C2*((D2^69)+C2*((D2^68)+C2*((D2^67)+C2*((D2^66)+C2*((D2^65)+C2*((D2^64)+C2*((D2^63)+C2*((D2^62)+C2*((D2^61)+C2*((D2^60)+(C2*((D2^59)+C2*((D2^58)+C2*((D2^57)+C2*((D2^56)+C2*((D2^55)+C2*((D2^54)+C2*((D2^53)+C2*((D2^52)+C2*((D2^51)+C2*((D2^50)+(C2*((D2^49)+C2*((D2^48)+C2*((D2^47)+C2*((D2^46)+C2*((D2^45)+C2*((D2^44)+C2*((D2^43)+C2*((D2^42)+C2*((D2^41)+C2*((D2^40)+(C2*((D2^39)+C2*((D2^38)+C2*((D2^37)+C2*((D2^36)+C2*((D2^35)+C2*((D2^34)+C2*((D2^33)+C2*((D2^32)+C2*((D2^31)+C2*((D2^30)+(C2*((D2^29)+C2*((D2^28)+C2*((D2^27)+C2*((D2^26)+C2*((D2^25)+C2*((D2^24)+C2*((D2^23)+C2*((D2^22)+C2*((D2^21)+C2*((D2^20)+(C2*((D2^19)+C2*((D2^18)+C2*((D2^17)+C2*((D2^16)+C2*((D2^15)+C2*((D2^14)+C2*((D2^13)+C2*((D2^12)+C2*((D2^11)+C2*((D2^10)+(C2*((D2^9)+C2*((D2^8)+C2*((D2^7)+C2*((D2^6)+C2*((D2^5)+C2*((D2^4)+C2*((D2^3)+C2*((D2^2)+C2*((D2^1)+C2*(D2^0))))))))))))))))))))))))))))))))))))))))))))))))))))))))))))))))))))))))))))))) -> 0
F74: 73 | G74: =(A2-((C2^(E2)*B2)))/((D2^72)+C2*((D2^71)+C2*((D2^70)+(C2*((D2^69)+C2*((D2^68)+C2*((D2^67)+C2*((D2^66)+C2*((D2^65)+C2*((D2^64)+C2*((D2^63)+C2*((D2^62)+C2*((D2^61)+C2*((D2^60)+(C2*((D2^59)+C2*((D2^58)+C2*((D2^57)+C2*((D2^56)+C2*((D2^55)+C2*((D2^54)+C2*((D2^53)+C2*((D2^52)+C2*((D2^51)+C2*((D2^50)+(C2*((D2^49)+C2*((D2^48)+C2*((D2^47)+C2*((D2^46)+C2*((D2^45)+C2*((D2^44)+C2*((D2^43)+C2*((D2^42)+C2*((D2^41)+C2*((D2^40)+(C2*((D2^39)+C2*((D2^38)+C2*((D2^37)+C2*((D2^36)+C2*((D2^35)+C2*((D2^34)+C2*((D2^33)+C2*((D2^32)+C2*((D2^31)+C2*((D2^30)+(C2*((D2^29)+C2*((D2^28)+C2*((D2^27)+C2*((D2^26)+C2*((D2^25)+C2*((D2^24)+C2*((D2^23)+C2*((D2^22)+C2*((D2^21)+C2*((D2^20)+(C2*((D2^19)+C2*((D2^18)+C2*((D2^17)+C2*((D2^16)+C2*((D2^15)+C2*((D2^14)+C2*((D2^13)+C2*((D2^12)+C2*((D2^11)+C2*((D2^10)+(C2*((D2^9)+C2*((D2^8)+C2*((D2^7)+C2*((D2^6)+C2*((D2^5)+C2*((D2^4)+C2*((D2^3)+C2*((D2^2)+C2*((D2^1)+C2*(D2^0)))))))))))))))))))))))))))))))))))))))))))))))))))))))))))))))))))))))))))))))) -> 0
F75: 74 | G75: =(A2-((C2^(E2)*B2)))/((D2^73)+C2*((D2^72)+C2*((D2^71)+C2*((D2^70)+(C2*((D2^69)+C2*((D2^68)+C2*((D2^67)+C2*((D2^66)+C2*((D2^65)+C2*((D2^64)+C2*((D2^63)+C2*((D2^62)+C2*((D2^61)+C2*((D2^60)+(C2*((D2^59)+C2*((D2^58)+C2*((D2^57)+C2*((D2^56)+C2*((D2^55)+C2*((D2^54)+C2*((D2^53)+C2*((D2^52)+C2*((D2^51)+C2*((D2^50)+(C2*((D2^49)+C2*((D2^48)+C2*((D2^47)+C2*((D2^46)+C2*((D2^45)+C2*((D2^44)+C2*((D2^43)+C2*((D2^42)+C2*((D2^41)+C2*((D2^40)+(C2*((D2^39)+C2*((D2^38)+C2*((D2^37)+C2*((D2^36)+C2*((D2^35)+C2*((D2^34)+C2*((D2^33)+C2*((D2^32)+C2*((D2^31)+C2*((D2^30)+(C2*((D2^29)+C2*((D2^28)+C2*((D2^27)+C2*((D2^26)+C2*((D2^25)+C2*((D2^24)+C2*((D2^23)+C2*((D2^22)+C2*((D2^21)+C2*((D2^20)+(C2*((D2^19)+C2*((D2^18)+C2*((D2^17)+C2*((D2^16)+C2*((D2^15)+C2*((D2^14)+C2*((D2^13)+C2*((D2^12)+C2*((D2^11)+C2*((D2^10)+(C2*((D2^9)+C2*((D2^8)+C2*((D2^7)+C2*((D2^6)+C2*((D2^5)+C2*((D2^4)+C2*((D2^3)+C2*((D2^2)+C2*((D2^1)+C2*(D2^0))))))))))))))))))))))))))))))))))))))))))))))))))))))))))))))))))))))))))))))))) -> 0
F76: 75 | G76: =(A2-((C2^(E2)*B2)))/((D2^74)+C2*((D2^73)+C2*((D2^72)+C2*((D2^71)+C2*((D2^70)+(C2*((D2^69)+C2*((D2^68)+C2*((D2^67)+C2*((D2^66)+C2*((D2^65)+C2*((D2^64)+C2*((D2^63)+C2*((D2^62)+C2*((D2^61)+C2*((D2^60)+(C2*((D2^59)+C2*((D2^58)+C2*((D2^57)+C2*((D2^56)+C2*((D2^55)+C2*((D2^54)+C2*((D2^53)+C2*((D2^52)+C2*((D2^51)+C2*((D2^50)+(C2*((D2^49)+C2*((D2^48)+C2*((D2^47)+C2*((D2^46)+C2*((D2^45)+C2*((D2^44)+C2*((D2^43)+C2*((D2^42)+C2*((D2^41)+C2*((D2^40)+(C2*((D2^39)+C2*((D2^38)+C2*((D2^37)+C2*((D2^36)+C2*((D2^35)+C2*((D2^34)+C2*((D2^33)+C2*((D2^32)+C2*((D2^31)+C2*((D2^30)+(C2*((D2^29)+C2*((D2^28)+C2*((D2^27)+C2*((D2^26)+C2*((D2^25)+C2*((D2^24)+C2*((D2^23)+C2*((D2^22)+C2*((D2^21)+C2*((D2^20)+(C2*((D2^19)+C2*((D2^18)+C2*((D2^17)+C2*((D2^16)+C2*((D2^15)+C2*((D2^14)+C2*((D2^13)+C2*((D2^12)+C2*((D2^11)+C2*((D2^10)+(C2*((D2^9)+C2*((D2^8)+C2*((D2^7)+C2*((D2^6)+C2*((D2^5)+C2*((D2^4)+C2*((D2^3)+C2*((D2^2)+C2*((D2^1)+C2*(D2^0)))))))))))))))))))))))))))))))))))))))))))))))))))))))))))))))))))))))))))))))))) -> 0
F77: 76 | G77: =(A2-((C2^(E2)*B2)))/((D2^75)+C2*((D2^74)+C2*((D2^73)+C2*((D2^72)+C2*((D2^71)+C2*((D2^70)+(C2*((D2^69)+C2*((D2^68)+C2*((D2^67)+C2*((D2^66)+C2*((D2^65)+C2*((D2^64)+C2*((D2^63)+C2*((D2^62)+C2*((D2^61)+C2*((D2^60)+(C2*((D2^59)+C2*((D2^58)+C2*((D2^57)+C2*((D2^56)+C2*((D2^55)+C2*((D2^54)+C2*((D2^53)+C2*((D2^52)+C2*((D2^51)+C2*((D2^50)+(C2*((D2^49)+C2*((D2^48)+C2*((D2^47)+C2*((D2^46)+C2*((D2^45)+C2*((D2^44)+C2*((D2^43)+C2*((D2^42)+C2*((D2^41)+C2*((D2^40)+(C2*((D2^39)+C2*((D2^38)+C2*((D2^37)+C2*((D2^36)+C2*((D2^35)+C2*((D2^34)+C2*((D2^33)+C2*((D2^32)+C2*((D2^31)+C2*((D2^30)+(C2*((D2^29)+C2*((D2^28)+C2*((D2^27)+C2*((D2^26)+C2*((D2^25)+C2*((D2^24)+C2*((D2^23)+C2*((D2^22)+C2*((D2^21)+C2*((D2^20)+(C2*((D2^19)+C2*((D2^18)+C2*((D2^17)+C2*((D2^16)+C2*((D2^15)+C2*((D2^14)+C2*((D2^13)+C2*((D2^12)+C2*((D2^11)+C2*((D2^10)+(C2*((D2^9)+C2*((D2^8)+C2*((D2^7)+C2*((D2^6)+C2*((D2^5)+C2*((D2^4)+C2*((D2^3)+C2*((D2^2)+C2*((D2^1)+C2*(D2^0))))))))))))))))))))))))))))))))))))))))))))))))))))))))))))))))))))))))))))))))))) -> 0
F78: 77 | G78: =(A2-((C2^(E2)*B2)))/((D2^76)+C2*((D2^75)+C2*((D2^74)+C2*((D2^73)+C2*((D2^72)+C2*((D2^71)+C2*((D2^70)+(C2*((D2^69)+C2*((D2^68)+C2*((D2^67)+C2*((D2^66)+C2*((D2^65)+C2*((D2^64)+C2*((D2^63)+C2*((D2^62)+C2*((D2^61)+C2*((D2^60)+(C2*((D2^59)+C2*((D2^58)+C2*((D2^57)+C2*((D2^56)+C2*((D2^55)+C2*((D2^54)+C2*((D2^53)+C2*((D2^52)+C2*((D2^51)+C2*((D2^50)+(C2*((D2^49)+C2*((D2^48)+C2*((D2^47)+C2*((D2^46)+C2*((D2^45)+C2*((D2^44)+C2*((D2^43)+C2*((D2^42)+C2*((D2^41)+C2*((D2^40)+(C2*((D2^39)+C2*((D2^38)+C2*((D2^37)+C2*((D2^36)+C2*((D2^35)+C2*((D2^34)+C2*((D2^33)+C2*((D2^32)+C2*((D2^31)+C2*((D2^30)+(C2*((D2^29)+C2*((D2^28)+C2*((D2^27)+C2*((D2^26)+C2*((D2^25)+C2*((D2^24)+C2*((D2^23)+C2*((D2^22)+C2*((D2^21)+C2*((D2^20)+(C2*((D2^19)+C2*((D2^18)+C2*((D2^17)+C2*((D2^16)+C2*((D2^15)+C2*((D2^14)+C2*((D2^13)+C2*((D2^12)+C2*((D2^11)+C2*((D2^10)+(C2*((D2^9)+C2*((D2^8)+C2*((D2^7)+C2*((D2^6)+C2*((D2^5)+C2*((D2^4)+C2*((D2^3)+C2*((D2^2)+C2*((D2^1)+C2*(D2^0)))))))))))))))))))))))))))))))))))))))))))))))))))))))))))))))))))))))))))))))))))) -> 0
F79: 78 | G79: =(A2-((C2^(E2)*B2)))/((D2^77)+C2*((D2^76)+C2*((D2^75)+C2*((D2^74)+C2*((D2^73)+C2*((D2^72)+C2*((D2^71)+C2*((D2^70)+(C2*((D2^69)+C2*((D2^68)+C2*((D2^67)+C2*((D2^66)+C2*((D2^65)+C2*((D2^64)+C2*((D2^63)+C2*((D2^62)+C2*((D2^61)+C2*((D2^60)+(C2*((D2^59)+C2*((D2^58)+C2*((D2^57)+C2*((D2^56)+C2*((D2^55)+C2*((D2^54)+C2*((D2^53)+C2*((D2^52)+C2*((D2^51)+C2*((D2^50)+(C2*((D2^49)+C2*((D2^48)+C2*((D2^47)+C2*((D2^46)+C2*((D2^45)+C2*((D2^44)+C2*((D2^43)+C2*((D2^42)+C2*((D2^41)+C2*((D2^40)+(C2*((D2^39)+C2*((D2^38)+C2*((D2^37)+C2*((D2^36)+C2*((D2^35)+C2*((D2^34)+C2*((D2^33)+C2*((D2^32)+C2*((D2^31)+C2*((D2^30)+(C2*((D2^29)+C2*((D2^28)+C2*((D2^27)+C2*((D2^26)+C2*((D2^25)+C2*((D2^24)+C2*((D2^23)+C2*((D2^22)+C2*((D2^21)+C2*((D2^20)+(C2*((D2^19)+C2*((D2^18)+C2*((D2^17)+C2*((D2^16)+C2*((D2^15)+C2*((D2^14)+C2*((D2^13)+C2*((D2^12)+C2*((D2^11)+C2*((D2^10)+(C2*((D2^9)+C2*((D2^8)+C2*((D2^7)+C2*((D2^6)+C2*((D2^5)+C2*((D2^4)+C2*((D2^3)+C2*((D2^2)+C2*((D2^1)+C2*(D2^0))))))))))))))))))))))))))))))))))))))))))))))))))))))))))))))))))))))))))))))))))))) -> 0
F80: 79 | G80: =(A2-((C2^(E2)*B2)))/((D2^78)+C2*((D2^77)+C2*((D2^76)+C2*((D2^75)+C2*((D2^74)+C2*((D2^73)+C2*((D2^72)+C2*((D2^71)+C2*((D2^70)+(C2*((D2^69)+C2*((D2^68)+C2*((D2^67)+C2*((D2^66)+C2*((D2^65)+C2*((D2^64)+C2*((D2^63)+C2*((D2^62)+C2*((D2^61)+C2*((D2^60)+(C2*((D2^59)+C2*((D2^58)+C2*((D2^57)+C2*((D2^56)+C2*((D2^55)+C2*((D2^54)+C2*((D2^53)+C2*((D2^52)+C2*((D2^51)+C2*((D2^50)+(C2*((D2^49)+C2*((D2^48)+C2*((D2^47)+C2*((D2^46)+C2*((D2^45)+C2*((D2^44)+C2*((D2^43)+C2*((D2^42)+C2*((D2^41)+C2*((D2^40)+(C2*((D2^39)+C2*((D2^38)+C2*((D2^37)+C2*((D2^36)+C2*((D2^35)+C2*((D2^34)+C2*((D2^33)+C2*((D2^32)+C2*((D2^31)+C2*((D2^30)+(C2*((D2^29)+C2*((D2^28)+C2*((D2^27)+C2*((D2^26)+C2*((D2^25)+C2*((D2^24)+C2*((D2^23)+C2*((D2^22)+C2*((D2^21)+C2*((D2^20)+(C2*((D2^19)+C2*((D2^18)+C2*((D2^17)+C2*((D2^16)+C2*((D2^15)+C2*((D2^14)+C2*((D2^13)+C2*((D2^12)+C2*((D2^11)+C2*((D2^10)+(C2*((D2^9)+C2*((D2^8)+C2*((D2^7)+C2*((D2^6)+C2*((D2^5)+C2*((D2^4)+C2*((D2^3)+C2*((D2^2)+C2*((D2^1)+C2*(D2^0)))))))))))))))))))))))))))))))))))))))))))))))))))))))))))))))))))))))))))))))))))))) -> 0
F81: 80 | G81: =(A2-((C2^(E2)*B2)))/((D2^79)+C2*((D2^78)+C2*((D2^77)+C2*((D2^76)+C2*((D2^75)+C2*((D2^74)+C2*((D2^73)+C2*((D2^72)+C2*((D2^71)+C2*((D2^70)+(C2*((D2^69)+C2*((D2^68)+C2*((D2^67)+C2*((D2^66)+C2*((D2^65)+C2*((D2^64)+C2*((D2^63)+C2*((D2^62)+C2*((D2^61)+C2*((D2^60)+(C2*((D2^59)+C2*((D2^58)+C2*((D2^57)+C2*((D2^56)+C2*((D2^55)+C2*((D2^54)+C2*((D2^53)+C2*((D2^52)+C2*((D2^51)+C2*((D2^50)+(C2*((D2^49)+C2*((D2^48)+C2*((D2^47)+C2*((D2^46)+C2*((D2^45)+C2*((D2^44)+C2*((D2^43)+C2*((D2^42)+C2*((D2^41)+C2*((D2^40)+(C2*((D2^39)+C2*((D2^38)+C2*((D2^37)+C2*((D2^36)+C2*((D2^35)+C2*((D2^34)+C2*((D2^33)+C2*((D2^32)+C2*((D2^31)+C2*((D2^30)+(C2*((D2^29)+C2*((D2^28)+C2*((D2^27)+C2*((D2^26)+C2*((D2^25)+C2*((D2^24)+C2*((D2^23)+C2*((D2^22)+C2*((D2^21)+C2*((D2^20)+(C2*((D2^19)+C2*((D2^18)+C2*((D2^17)+C2*((D2^16)+C2*((D2^15)+C2*((D2^14)+C2*((D2^13)+C2*((D2^12)+C2*((D2^11)+C2*((D2^10)+(C2*((D2^9)+C2*((D2^8)+C2*((D2^7)+C2*((D2^6)+C2*((D2^5)+C2*((D2^4)+C2*((D2^3)+C2*((D2^2)+C2*((D2^1)+C2*(D2^0))))))))))))))))))))))))))))))))))))))))))))))))))))))))))))))))))))))))))))))))))))))) -> 0
F82: 81 | G82: =(A2-((C2^(E2)*B2)))/((D2^80)+(C2*((D2^79)+C2*((D2^78)+C2*((D2^77)+C2*((D2^76)+C2*((D2^75)+C2*((D2^74)+C2*((D2^73)+C2*((D2^72)+C2*((D2^71)+C2*((D2^70)+(C2*((D2^69)+C2*((D2^68)+C2*((D2^67)+C2*((D2^66)+C2*((D2^65)+C2*((D2^64)+C2*((D2^63)+C2*((D2^62)+C2*((D2^61)+C2*((D2^60)+(C2*((D2^59)+C2*((D2^58)+C2*((D2^57)+C2*((D2^56)+C2*((D2^55)+C2*((D2^54)+C2*((D2^53)+C2*((D2^52)+C2*((D2^51)+C2*((D2^50)+(C2*((D2^49)+C2*((D2^48)+C2*((D2^47)+C2*((D2^46)+C2*((D2^45)+C2*((D2^44)+C2*((D2^43)+C2*((D2^42)+C2*((D2^41)+C2*((D2^40)+(C2*((D2^39)+C2*((D2^38)+C2*((D2^37)+C2*((D2^36)+C2*((D2^35)+C2*((D2^34)+C2*((D2^33)+C2*((D2^32)+C2*((D2^31)+C2*((D2^30)+(C2*((D2^29)+C2*((D2^28)+C2*((D2^27)+C2*((D2^26)+C2*((D2^25)+C2*((D2^24)+C2*((D2^23)+C2*((D2^22)+C2*((D2^21)+C2*((D2^20)+(C2*((D2^19)+C2*((D2^18)+C2*((D2^17)+C2*((D2^16)+C2*((D2^15)+C2*((D2^14)+C2*((D2^13)+C2*((D2^12)+C2*((D2^11)+C2*((D2^10)+(C2*((D2^9)+C2*((D2^8)+C2*((D2^7)+C2*((D2^6)+C2*((D2^5)+C2*((D2^4)+C2*((D2^3)+C2*((D2^2)+C2*((D2^1)+C2*(D2^0))))))))))))))))))))))))))))))))))))))))))))))))))))))))))))))))))))))))))))))))))))))))) -> 0
F83: 82 | G83: =(A2-((C2^(E2)*B2)))/((D2^81)+C2*((D2^80)+(C2*((D2^79)+C2*((D2^78)+C2*((D2^77)+C2*((D2^76)+C2*((D2^75)+C2*((D2^74)+C2*((D2^73)+C2*((D2^72)+C2*((D2^71)+C2*((D2^70)+(C2*((D2^69)+C2*((D2^68)+C2*((D2^67)+C2*((D2^66)+C2*((D2^65)+C2*((D2^64)+C2*((D2^63)+C2*((D2^62)+C2*((D2^61)+C2*((D2^60)+(C2*((D2^59)+C2*((D2^58)+C2*((D2^57)+C2*((D2^56)+C2*((D2^55)+C2*((D2^54)+C2*((D2^53)+C2*((D2^52)+C2*((D2^51)+C2*((D2^50)+(C2*((D2^49)+C2*((D2^48)+C2*((D2^47)+C2*((D2^46)+C2*((D2^45)+C2*((D2^44)+C2*((D2^43)+C2*((D2^42)+C2*((D2^41)+C2*((D2^40)+(C2*((D2^39)+C2*((D2^38)+C2*((D2^37)+C2*((D2^36)+C2*((D2^35)+C2*((D2^34)+C2*((D2^33)+C2*((D2^32)+C2*((D2^31)+C2*((D2^30)+(C2*((D2^29)+C2*((D2^28)+C2*((D2^27)+C2*((D2^26)+C2*((D2^25)+C2*((D2^24)+C2*((D2^23)+C2*((D2^22)+C2*((D2^21)+C2*((D2^20)+(C2*((D2^19)+C2*((D2^18)+C2*((D2^17)+C2*((D2^16)+C2*((D2^15)+C2*((D2^14)+C2*((D2^13)+C2*((D2^12)+C2*((D2^11)+C2*((D2^10)+(C2*((D2^9)+C2*((D2^8)+C2*((D2^7)+C2*((D2^6)+C2*((D2^5)+C2*((D2^4)+C2*((D2^3)+C2*((D2^2)+C2*((D2^1)+C2*(D2^0)))))))))))))))))))))))))))))))))))))))))))))))))))))))))))))))))))))))))))))))))))))))))) -> 0
F84: 83 | G84: =(A2-((C2^(E2)*B2)))/((D2^82)+C2*((D2^81)+C2*((D2^80)+(C2*((D2^79)+C2*((D2^78)+C2*((D2^77)+C2*((D2^76)+C2*((D2^75)+C2*((D2^74)+C2*((D2^73)+C2*((D2^72)+C2*((D2^71)+C2*((D2^70)+(C2*((D2^69)+C2*((D2^68)+C2*((D2^67)+C2*((D2^66)+C2*((D2^65)+C2*((D2^64)+C2*((D2^63)+C2*((D2^62)+C2*((D2^61)+C2*((D2^60)+(C2*((D2^59)+C2*((D2^58)+C2*((D2^57)+C2*((D2^56)+C2*((D2^55)+C2*((D2^54)+C2*((D2^53)+C2*((D2^52)+C2*((D2^51)+C2*((D2^50)+(C2*((D2^49)+C2*((D2^48)+C2*((D2^47)+C2*((D2^46)+C2*((D2^45)+C2*((D2^44)+C2*((D2^43)+C2*((D2^42)+C2*((D2^41)+C2*((D2^40)+(C2*((D2^39)+C2*((D2^38)+C2*((D2^37)+C2*((D2^36)+C2*((D2^35)+C2*((D2^34)+C2*((D2^33)+C2*((D2^32)+C2*((D2^31)+C2*((D2^30)+(C2*((D2^29)+C2*((D2^28)+C2*((D2^27)+C2*((D2^26)+C2*((D2^25)+C2*((D2^24)+C2*((D2^23)+C2*((D2^22)+C2*((D2^21)+C2*((D2^20)+(C2*((D2^19)+C2*((D2^18)+C2*((D2^17)+C2*((D2^16)+C2*((D2^15)+C2*((D2^14)+C2*((D2^13)+C2*((D2^12)+C2*((D2^11)+C2*((D2^10)+(C2*((D2^9)+C2*((D2^8)+C2*((D2^7)+C2*((D2^6)+C2*((D2^5)+C2*((D2^4)+C2*((D2^3)+C2*((D2^2)+C2*((D2^1)+C2*(D2^0))))))))))))))))))))))))))))))))))))))))))))))))))))))))))))))))))))))))))))))))))))))))))) -> 0
F85: 84 | G85: =(A2-((C2^(E2)*B2)))/((D2^83)+C2*((D2^82)+C2*((D2^81)+C2*((D2^80)+(C2*((D2^79)+C2*((D2^78)+C2*((D2^77)+C2*((D2^76)+C2*((D2^75)+C2*((D2^74)+C2*((D2^73)+C2*((D2^72)+C2*((D2^71)+C2*((D2^70)+(C2*((D2^69)+C2*((D2^68)+C2*((D2^67)+C2*((D2^66)+C2*((D2^65)+C2*((D2^64)+C2*((D2^63)+C2*((D2^62)+C2*((D2^61)+C2*((D2^60)+(C2*((D2^59)+C2*((D2^58)+C2*((D2^57)+C2*((D2^56)+C2*((D2^55)+C2*((D2^54)+C2*((D2^53)+C2*((D2^52)+C2*((D2^51)+C2*((D2^50)+(C2*((D2^49)+C2*((D2^48)+C2*((D2^47)+C2*((D2^46)+C2*((D2^45)+C2*((D2^44)+C2*((D2^43)+C2*((D2^42)+C2*((D2^41)+C2*((D2^40)+(C2*((D2^39)+C2*((D2^38)+C2*((D2^37)+C2*((D2^36)+C2*((D2^35)+C2*((D2^34)+C2*((D2^33)+C2*((D2^32)+C2*((D2^31)+C2*((D2^30)+(C2*((D2^29)+C2*((D2^28)+C2*((D2^27)+C2*((D2^26)+C2*((D2^25)+C2*((D2^24)+C2*((D2^23)+C2*((D2^22)+C2*((D2^21)+C2*((D2^20)+(C2*((D2^19)+C2*((D2^18)+C2*((D2^17)+C2*((D2^16)+C2*((D2^15)+C2*((D2^14)+C2*((D2^13)+C2*((D2^12)+C2*((D2^11)+C2*((D2^10)+(C2*((D2^9)+C2*((D2^8)+C2*((D2^7)+C2*((D2^6)+C2*((D2^5)+C2*((D2^4)+C2*((D2^3)+C2*((D2^2)+C2*((D2^1)+C2*(D2^0)))))))))))))))))))))))))))))))))))))))))))))))))))))))))))))))))))))))))))))))))))))))))))) -> 0
F86: 85 | G86: =(A2-((C2^(E2)*B2)))/((D2^84)+C2*((D2^83)+C2*((D2^82)+C2*((D2^81)+C2*((D2^80)+(C2*((D2^79)+C2*((D2^78)+C2*((D2^77)+C2*((D2^76)+C2*((D2^75)+C2*((D2^74)+C2*((D2^73)+C2*((D2^72)+C2*((D2^71)+C2*((D2^70)+(C2*((D2^69)+C2*((D2^68)+C2*((D2^67)+C2*((D2^66)+C2*((D2^65)+C2*((D2^64)+C2*((D2^63)+C2*((D2^62)+C2*((D2^61)+C2*((D2^60)+(C2*((D2^59)+C2*((D2^58)+C2*((D2^57)+C2*((D2^56)+C2*((D2^55)+C2*((D2^54)+C2*((D2^53)+C2*((D2^52)+C2*((D2^51)+C2*((D2^50)+(C2*((D2^49)+C2*((D2^48)+C2*((D2^47)+C2*((D2^46)+C2*((D2^45)+C2*((D2^44)+C2*((D2^43)+C2*((D2^42)+C2*((D2^41)+C2*((D2^40)+(C2*((D2^39)+C2*((D2^38)+C2*((D2^37)+C2*((D2^36)+C2*((D2^35)+C2*((D2^34)+C2*((D2^33)+C2*((D2^32)+C2*((D2^31)+C2*((D2^30)+(C2*((D2^29)+C2*((D2^28)+C2*((D2^27)+C2*((D2^26)+C2*((D2^25)+C2*((D2^24)+C2*((D2^23)+C2*((D2^22)+C2*((D2^21)+C2*((D2^20)+(C2*((D2^19)+C2*((D2^18)+C2*((D2^17)+C2*((D2^16)+C2*((D2^15)+C2*((D2^14)+C2*((D2^13)+C2*((D2^12)+C2*((D2^11)+C2*((D2^10)+(C2*((D2^9)+C2*((D2^8)+C2*((D2^7)+C2*((D2^6)+C2*((D2^5)+C2*((D2^4)+C2*((D2^3)+C2*((D2^2)+C2*((D2^1)+C2*(D2^0))))))))))))))))))))))))))))))))))))))))))))))))))))))))))))))))))))))))))))))))))))))))))))) -> 0
F87: 86 | G87: =(A2-((C2^(E2)*B2)))/((D2^85)+C2*((D2^84)+C2*((D2^83)+C2*((D2^82)+C2*((D2^81)+C2*((D2^80)+(C2*((D2^79)+C2*((D2^78)+C2*((D2^77)+C2*((D2^76)+C2*((D2^75)+C2*((D2^74)+C2*((D2^73)+C2*((D2^72)+C2*((D2^71)+C2*((D2^70)+(C2*((D2^69)+C2*((D2^68)+C2*((D2^67)+C2*((D2^66)+C2*((D2^65)+C2*((D2^64)+C2*((D2^63)+C2*((D2^62)+C2*((D2^61)+C2*((D2^60)+(C2*((D2^59)+C2*((D2^58)+C2*((D2^57)+C2*((D2^56)+C2*((D2^55)+C2*((D2^54)+C2*((D2^53)+C2*((D2^52)+C2*((D2^51)+C2*((D2^50)+(C2*((D2^49)+C2*((D2^48)+C2*((D2^47)+C2*((D2^46)+C2*((D2^45)+C2*((D2^44)+C2*((D2^43)+C2*((D2^42)+C2*((D2^41)+C2*((D2^40)+(C2*((D2^39)+C2*((D2^38)+C2*((D2^37)+C2*((D2^36)+C2*((D2^35)+C2*((D2^34)+C2*((D2^33)+C2*((D2^32)+C2*((D2^31)+C2*((D2^30)+(C2*((D2^29)+C2*((D2^28)+C2*((D2^27)+C2*((D2^26)+C2*((D2^25)+C2*((D2^24)+C2*((D2^23)+C2*((D2^22)+C2*((D2^21)+C2*((D2^20)+(C2*((D2^19)+C2*((D2^18)+C2*((D2^17)+C2*((D2^16)+C2*((D2^15)+C2*((D2^14)+C2*((D2^13)+C2*((D2^12)+C2*((D2^11)+C2*((D2^10)+(C2*((D2^9)+C2*((D2^8)+C2*((D2^7)+C2*((D2^6)+C2*((D2^5)+C2*((D2^4)+C2*((D2^3)+C2*((D2^2)+C2*((D2^1)+C2*(D2^0)))))))))))))))))))))))))))))))))))))))))))))))))))))))))))))))))))))))))))))))))))))))))))))) -> 0
F88: 87 | G88: =(A2-((C2^(E2)*B2)))/((D2^86)+C2*((D2^85)+C2*((D2^84)+C2*((D2^83)+C2*((D2^82)+C2*((D2^81)+C2*((D2^80)+(C2*((D2^79)+C2*((D2^78)+C2*((D2^77)+C2*((D2^76)+C2*((D2^75)+C2*((D2^74)+C2*((D2^73)+C2*((D2^72)+C2*((D2^71)+C2*((D2^70)+(C2*((D2^69)+C2*((D2^68)+C2*((D2^67)+C2*((D2^66)+C2*((D2^65)+C2*((D2^64)+C2*((D2^63)+C2*((D2^62)+C2*((D2^61)+C2*((D2^60)+(C2*((D2^59)+C2*((D2^58)+C2*((D2^57)+C2*((D2^56)+C2*((D2^55)+C2*((D2^54)+C2*((D2^53)+C2*((D2^52)+C2*((D2^51)+C2*((D2^50)+(C2*((D2^49)+C2*((D2^48)+C2*((D2^47)+C2*((D2^46)+C2*((D2^45)+C2*((D2^44)+C2*((D2^43)+C2*((D2^42)+C2*((D2^41)+C2*((D2^40)+(C2*((D2^39)+C2*((D2^38)+C2*((D2^37)+C2*((D2^36)+C2*((D2^35)+C2*((D2^34)+C2*((D2^33)+C2*((D2^32)+C2*((D2^31)+C2*((D2^30)+(C2*((D2^29)+C2*((D2^28)+C2*((D2^27)+C2*((D2^26)+C2*((D2^25)+C2*((D2^24)+C2*((D2^23)+C2*((D2^22)+C2*((D2^21)+C2*((D2^20)+(C2*((D2^19)+C2*((D2^18)+C2*((D2^17)+C2*((D2^16)+C2*((D2^15)+C2*((D2^14)+C2*((D2^13)+C2*((D2^12)+C2*((D2^11)+C2*((D2^10)+(C2*((D2^9)+C2*((D2^8)+C2*((D2^7)+C2*((D2^6)+C2*((D2^5)+C2*((D2^4)+C2*((D2^3)+C2*((D2^2)+C2*((D2^1)+C2*(D2^0))))))))))))))))))))))))))))))))))))))))))))))))))))))))))))))))))))))))))))))))))))))))))))))) -> 0
F89: 88 | G89: =(A2-((C2^(E2)*B2)))/((D2^87)+C2*((D2^86)+C2*((D2^85)+C2*((D2^84)+C2*((D2^83)+C2*((D2^82)+C2*((D2^81)+C2*((D2^80)+(C2*((D2^79)+C2*((D2^78)+C2*((D2^77)+C2*((D2^76)+C2*((D2^75)+C2*((D2^74)+C2*((D2^73)+C2*((D2^72)+C2*((D2^71)+C2*((D2^70)+(C2*((D2^69)+C2*((D2^68)+C2*((D2^67)+C2*((D2^66)+C2*((D2^65)+C2*((D2^64)+C2*((D2^63)+C2*((D2^62)+C2*((D2^61)+C2*((D2^60)+(C2*((D2^59)+C2*((D2^58)+C2*((D2^57)+C2*((D2^56)+C2*((D2^55)+C2*((D2^54)+C2*((D2^53)+C2*((D2^52)+C2*((D2^51)+C2*((D2^50)+(C2*((D2^49)+C2*((D2^48)+C2*((D2^47)+C2*((D2^46)+C2*((D2^45)+C2*((D2^44)+C2*((D2^43)+C2*((D2^42)+C2*((D2^41)+C2*((D2^40)+(C2*((D2^39)+C2*((D2^38)+C2*((D2^37)+C2*((D2^36)+C2*((D2^35)+C2*((D2^34)+C2*((D2^33)+C2*((D2^32)+C2*((D2^31)+C2*((D2^30)+(C2*((D2^29)+C2*((D2^28)+C2*((D2^27)+C2*((D2^26)+C2*((D2^25)+C2*((D2^24)+C2*((D2^23)+C2*((D2^22)+C2*((D2^21)+C2*((D2^20)+(C2*((D2^19)+C2*((D2^18)+C2*((D2^17)+C2*((D2^16)+C2*((D2^15)+C2*((D2^14)+C2*((D2^13)+C2*((D2^12)+C2*((D2^11)+C2*((D2^10)+(C2*((D2^9)+C2*((D2^8)+C2*((D2^7)+C2*((D2^6)+C2*((D2^5)+C2*((D2^4)+C2*((D2^3)+C2*((D2^2)+C2*((D2^1)+C2*(D2^0)))))))))))))))))))))))))))))))))))))))))))))))))))))))))))))))))))))))))))))))))))))))))))))))) -> 0
F90: 89 | G90: =(A2-((C2^(E2)*B2)))/((D2^88)+C2*((D2^87)+C2*((D2^86)+C2*((D2^85)+C2*((D2^84)+C2*((D2^83)+C2*((D2^82)+C2*((D2^81)+C2*((D2^80)+(C2*((D2^79)+C2*((D2^78)+C2*((D2^77)+C2*((D2^76)+C2*((D2^75)+C2*((D2^74)+C2*((D2^73)+C2*((D2^72)+C2*((D2^71)+C2*((D2^70)+(C2*((D2^69)+C2*((D2^68)+C2*((D2^67)+C2*((D2^66)+C2*((D2^65)+C2*((D2^64)+C2*((D2^63)+C2*((D2^62)+C2*((D2^61)+C2*((D2^60)+(C2*((D2^59)+C2*((D2^58)+C2*((D2^57)+C2*((D2^56)+C2*((D2^55)+C2*((D2^54)+C2*((D2^53)+C2*((D2^52)+C2*((D2^51)+C2*((D2^50)+(C2*((D2^49)+C2*((D2^48)+C2*((D2^47)+C2*((D2^46)+C2*((D2^45)+C2*((D2^44)+C2*((D2^43)+C2*((D2^42)+C2*((D2^41)+C2*((D2^40)+(C2*((D2^39)+C2*((D2^38)+C2*((D2^37)+C2*((D2^36)+C2*((D2^35)+C2*((D2^34)+C2*((D2^33)+C2*((D2^32)+C2*((D2^31)+C2*((D2^30)+(C2*((D2^29)+C2*((D2^28)+C2*((D2^27)+C2*((D2^26)+C2*((D2^25)+C2*((D2^24)+C2*((D2^23)+C2*((D2^22)+C2*((D2^21)+C2*((D2^20)+(C2*((D2^19)+C2*((D2^18)+C2*((D2^17)+C2*((D2^16)+C2*((D2^15)+C2*((D2^14)+C2*((D2^13)+C2*((D2^12)+C2*((D2^11)+C2*((D2^10)+(C2*((D2^9)+C2*((D2^8)+C2*((D2^7)+C2*((D2^6)+C2*((D2^5)+C2*((D2^4)+C2*((D2^3)+C2*((D2^2)+C2*((D2^1)+C2*(D2^0))))))))))))))))))))))))))))))))))))))))))))))))))))))))))))))))))))))))))))))))))))))))))))))))) -> 0
F91: 90 | G91: =(A2-((C2^(E2)*B2)))/((D2^89)+C2*((D2^88)+C2*((D2^87)+C2*((D2^86)+C2*((D2^85)+C2*((D2^84)+C2*((D2^83)+C2*((D2^82)+C2*((D2^81)+C2*((D2^80)+(C2*((D2^79)+C2*((D2^78)+C2*((D2^77)+C2*((D2^76)+C2*((D2^75)+C2*((D2^74)+C2*((D2^73)+C2*((D2^72)+C2*((D2^71)+C2*((D2^70)+(C2*((D2^69)+C2*((D2^68)+C2*((D2^67)+C2*((D2^66)+C2*((D2^65)+C2*((D2^64)+C2*((D2^63)+C2*((D2^62)+C2*((D2^61)+C2*((D2^60)+(C2*((D2^59)+C2*((D2^58)+C2*((D2^57)+C2*((D2^56)+C2*((D2^55)+C2*((D2^54)+C2*((D2^53)+C2*((D2^52)+C2*((D2^51)+C2*((D2^50)+(C2*((D2^49)+C2*((D2^48)+C2*((D2^47)+C2*((D2^46)+C2*((D2^45)+C2*((D2^44)+C2*((D2^43)+C2*((D2^42)+C2*((D2^41)+C2*((D2^40)+(C2*((D2^39)+C2*((D2^38)+C2*((D2^37)+C2*((D2^36)+C2*((D2^35)+C2*((D2^34)+C2*((D2^33)+C2*((D2^32)+C2*((D2^31)+C2*((D2^30)+(C2*((D2^29)+C2*((D2^28)+C2*((D2^27)+C2*((D2^26)+C2*((D2^25)+C2*((D2^24)+C2*((D2^23)+C2*((D2^22)+C2*((D2^21)+C2*((D2^20)+(C2*((D2^19)+C2*((D2^18)+C2*((D2^17)+C2*((D2^16)+C2*((D2^15)+C2*((D2^14)+C2*((D2^13)+C2*((D2^12)+C2*((D2^11)+C2*((D2^10)+(C2*((D2^9)+C2*((D2^8)+C2*((D2^7)+C2*((D2^6)+C2*((D2^5)+C2*((D2^4)+C2*((D2^3)+C2*((D2^2)+C2*((D2^1)+C2*(D2^0)))))))))))))))))))))))))))))))))))))))))))))))))))))))))))))))))))))))))))))))))))))))))))))))))) -> 0
F92: 91 | G92: =(A2-((C2^(E2)*B2)))/((D2^90)+(C2*((D2^89)+C2*((D2^88)+C2*((D2^87)+C2*((D2^86)+C2*((D2^85)+C2*((D2^84)+C2*((D2^83)+C2*((D2^82)+C2*((D2^81)+C2*((D2^80)+(C2*((D2^79)+C2*((D2^78)+C2*((D2^77)+C2*((D2^76)+C2*((D2^75)+C2*((D2^74)+C2*((D2^73)+C2*((D2^72)+C2*((D2^71)+C2*((D2^70)+(C2*((D2^69)+C2*((D2^68)+C2*((D2^67)+C2*((D2^66)+C2*((D2^65)+C2*((D2^64)+C2*((D2^63)+C2*((D2^62)+C2*((D2^61)+C2*((D2^60)+(C2*((D2^59)+C2*((D2^58)+C2*((D2^57)+C2*((D2^56)+C2*((D2^55)+C2*((D2^54)+C2*((D2^53)+C2*((D2^52)+C2*((D2^51)+C2*((D2^50)+(C2*((D2^49)+C2*((D2^48)+C2*((D2^47)+C2*((D2^46)+C2*((D2^45)+C2*((D2^44)+C2*((D2^43)+C2*((D2^42)+C2*((D2^41)+C2*((D2^40)+(C2*((D2^39)+C2*((D2^38)+C2*((D2^37)+C2*((D2^36)+C2*((D2^35)+C2*((D2^34)+C2*((D2^33)+C2*((D2^32)+C2*((D2^31)+C2*((D2^30)+(C2*((D2^29)+C2*((D2^28)+C2*((D2^27)+C2*((D2^26)+C2*((D2^25)+C2*((D2^24)+C2*((D2^23)+C2*((D2^22)+C2*((D2^21)+C2*((D2^20)+(C2*((D2^19)+C2*((D2^18)+C2*((D2^17)+C2*((D2^16)+C2*((D2^15)+C2*((D2^14)+C2*((D2^13)+C2*((D2^12)+C2*((D2^11)+C2*((D2^10)+(C2*((D2^9)+C2*((D2^8)+C2*((D2^7)+C2*((D2^6)+C2*((D2^5)+C2*((D2^4)+C2*((D2^3)+C2*((D2^2)+C2*((D2^1)+C2*(D2^0)))))))))))))))))))))))))))))))))))))))))))))))))))))))))))))))))))))))))))))))))))))))))))))))))))) -> 0
F93: 92 | G93: =(A2-((C2^(E2)*B2)))/((D2^91)+C2*((D2^90)+(C2*((D2^89)+C2*((D2^88)+C2*((D2^87)+C2*((D2^86)+C2*((D2^85)+C2*((D2^84)+C2*((D2^83)+C2*((D2^82)+C2*((D2^81)+C2*((D2^80)+(C2*((D2^79)+C2*((D2^78)+C2*((D2^77)+C2*((D2^76)+C2*((D2^75)+C2*((D2^74)+C2*((D2^73)+C2*((D2^72)+C2*((D2^71)+C2*((D2^70)+(C2*((D2^69)+C2*((D2^68)+C2*((D2^67)+C2*((D2^66)+C2*((D2^65)+C2*((D2^64)+C2*((D2^63)+C2*((D2^62)+C2*((D2^61)+C2*((D2^60)+(C2*((D2^59)+C2*((D2^58)+C2*((D2^57)+C2*((D2^56)+C2*((D2^55)+C2*((D2^54)+C2*((D2^53)+C2*((D2^52)+C2*((D2^51)+C2*((D2^50)+(C2*((D2^49)+C2*((D2^48)+C2*((D2^47)+C2*((D2^46)+C2*((D2^45)+C2*((D2^44)+C2*((D2^43)+C2*((D2^42)+C2*((D2^41)+C2*((D2^40)+(C2*((D2^39)+C2*((D2^38)+C2*((D2^37)+C2*((D2^36)+C2*((D2^35)+C2*((D2^34)+C2*((D2^33)+C2*((D2^32)+C2*((D2^31)+C2*((D2^30)+(C2*((D2^29)+C2*((D2^28)+C2*((D2^27)+C2*((D2^26)+C2*((D2^25)+C2*((D2^24)+C2*((D2^23)+C2*((D2^22)+C2*((D2^21)+C2*((D2^20)+(C2*((D2^19)+C2*((D2^18)+C2*((D2^17)+C2*((D2^16)+C2*((D2^15)+C2*((D2^14)+C2*((D2^13)+C2*((D2^12)+C2*((D2^11)+C2*((D2^10)+(C2*((D2^9)+C2*((D2^8)+C2*((D2^7)+C2*((D2^6)+C2*((D2^5)+C2*((D2^4)+C2*((D2^3)+C2*((D2^2)+C2*((D2^1)+C2*(D2^0))))))))))))))))))))))))))))))))))))))))))))))))))))))))))))))))))))))))))))))))))))))))))))))))))))) -> 0
F94: 93 | G94: =(A2-((C2^(E2)*B2)))/((D2^92)+C2*((D2^91)+C2*((D2^90)+(C2*((D2^89)+C2*((D2^88)+C2*((D2^87)+C2*((D2^86)+C2*((D2^85)+C2*((D2^84)+C2*((D2^83)+C2*((D2^82)+C2*((D2^81)+C2*((D2^80)+(C2*((D2^79)+C2*((D2^78)+C2*((D2^77)+C2*((D2^76)+C2*((D2^75)+C2*((D2^74)+C2*((D2^73)+C2*((D2^72)+C2*((D2^71)+C2*((D2^70)+(C2*((D2^69)+C2*((D2^68)+C2*((D2^67)+C2*((D2^66)+C2*((D2^65)+C2*((D2^64)+C2*((D2^63)+C2*((D2^62)+C2*((D2^61)+C2*((D2^60)+(C2*((D2^59)+C2*((D2^58)+C2*((D2^57)+C2*((D2^56)+C2*((D2^55)+C2*((D2^54)+C2*((D2^53)+C2*((D2^52)+C2*((D2^51)+C2*((D2^50)+(C2*((D2^49)+C2*((D2^48)+C2*((D2^47)+C2*((D2^46)+C2*((D2^45)+C2*((D2^44)+C2*((D2^43)+C2*((D2^42)+C2*((D2^41)+C2*((D2^40)+(C2*((D2^39)+C2*((D2^38)+C2*((D2^37)+C2*((D2^36)+C2*((D2^35)+C2*((D2^34)+C2*((D2^33)+C2*((D2^32)+C2*((D2^31)+C2*((D2^30)+(C2*((D2^29)+C2*((D2^28)+C2*((D2^27)+C2*((D2^26)+C2*((D2^25)+C2*((D2^24)+C2*((D2^23)+C2*((D2^22)+C2*((D2^21)+C2*((D2^20)+(C2*((D2^19)+C2*((D2^18)+C2*((D2^17)+C2*((D2^16)+C2*((D2^15)+C2*((D2^14)+C2*((D2^13)+C2*((D2^12)+C2*((D2^11)+C2*((D2^10)+(C2*((D2^9)+C2*((D2^8)+C2*((D2^7)+C2*((D2^6)+C2*((D2^5)+C2*((D2^4)+C2*((D2^3)+C2*((D2^2)+C2*((D2^1)+C2*(D2^0)))))))))))))))))))))))))))))))))))))))))))))))))))))))))))))))))))))))))))))))))))))))))))))))))))))) -> 0
F95: 94 | G95: =(A2-((C2^(E2)*B2)))/((D2^93)+C2*((D2^92)+C2*((D2^91)+C2*((D2^90)+(C2*((D2^89)+C2*((D2^88)+C2*((D2^87)+C2*((D2^86)+C2*((D2^85)+C2*((D2^84)+C2*((D2^83)+C2*((D2^82)+C2*((D2^81)+C2*((D2^80)+(C2*((D2^79)+C2*((D2^78)+C2*((D2^77)+C2*((D2^76)+C2*((D2^75)+C2*((D2^74)+C2*((D2^73)+C2*((D2^72)+C2*((D2^71)+C2*((D2^70)+(C2*((D2^69)+C2*((D2^68)+C2*((D2^67)+C2*((D2^66)+C2*((D2^65)+C2*((D2^64)+C2*((D2^63)+C2*((D2^62)+C2*((D2^61)+C2*((D2^60)+(C2*((D2^59)+C2*((D2^58)+C2*((D2^57)+C2*((D2^56)+C2*((D2^55)+C2*((D2^54)+C2*((D2^53)+C2*((D2^52)+C2*((D2^51)+C2*((D2^50)+(C2*((D2^49)+C2*((D2^48)+C2*((D2^47)+C2*((D2^46)+C2*((D2^45)+C2*((D2^44)+C2*((D2^43)+C2*((D2^42)+C2*((D2^41)+C2*((D2^40)+(C2*((D2^39)+C2*((D2^38)+C2*((D2^37)+C2*((D2^36)+C2*((D2^35)+C2*((D2^34)+C2*((D2^33)+C2*((D2^32)+C2*((D2^31)+C2*((D2^30)+(C2*((D2^29)+C2*((D2^28)+C2*((D2^27)+C2*((D2^26)+C2*((D2^25)+C2*((D2^24)+C2*((D2^23)+C2*((D2^22)+C2*((D2^21)+C2*((D2^20)+(C2*((D2^19)+C2*((D2^18)+C2*((D2^17)+C2*((D2^16)+C2*((D2^15)+C2*((D2^14)+C2*((D2^13)+C2*((D2^12)+C2*((D2^11)+C2*((D2^10)+(C2*((D2^9)+C2*((D2^8)+C2*((D2^7)+C2*((D2^6)+C2*((D2^5)+C2*((D2^4)+C2*((D2^3)+C2*((D2^2)+C2*((D2^1)+C2*(D2^0))))))))))))))))))))))))))))))))))))))))))))))))))))))))))))))))))))))))))))))))))))))))))))))))))))))) -> 0
F96: 95 | G96: =(A2-((C2^(E2)*B2)))/((D2^94)+C2*((D2^93)+C2*((D2^92)+C2*((D2^91)+C2*((D2^90)+(C2*((D2^89)+C2*((D2^88)+C2*((D2^87)+C2*((D2^86)+C2*((D2^85)+C2*((D2^84)+C2*((D2^83)+C2*((D2^82)+C2*((D2^81)+C2*((D2^80)+(C2*((D2^79)+C2*((D2^78)+C2*((D2^77)+C2*((D2^76)+C2*((D2^75)+C2*((D2^74)+C2*((D2^73)+C2*((D2^72)+C2*((D2^71)+C2*((D2^70)+(C2*((D2^69)+C2*((D2^68)+C2*((D2^67)+C2*((D2^66)+C2*((D2^65)+C2*((D2^64)+C2*((D2^63)+C2*((D2^62)+C2*((D2^61)+C2*((D2^60)+(C2*((D2^59)+C2*((D2^58)+C2*((D2^57)+C2*((D2^56)+C2*((D2^55)+C2*((D2^54)+C2*((D2^53)+C2*((D2^52)+C2*((D2^51)+C2*((D2^50)+(C2*((D2^49)+C2*((D2^48)+C2*((D2^47)+C2*((D2^46)+C2*((D2^45)+C2*((D2^44)+C2*((D2^43)+C2*((D2^42)+C2*((D2^41)+C2*((D2^40)+(C2*((D2^39)+C2*((D2^38)+C2*((D2^37)+C2*((D2^36)+C2*((D2^35)+C2*((D2^34)+C2*((D2^33)+C2*((D2^32)+C2*((D2^31)+C2*((D2^30)+(C2*((D2^29)+C2*((D2^28)+C2*((D2^27)+C2*((D2^26)+C2*((D2^25)+C2*((D2^24)+C2*((D2^23)+C2*((D2^22)+C2*((D2^21)+C2*((D2^20)+(C2*((D2^19)+C2*((D2^18)+C2*((D2^17)+C2*((D2^16)+C2*((D2^15)+C2*((D2^14)+C2*((D2^13)+C2*((D2^12)+C2*((D2^11)+C2*((D2^10)+(C2*((D2^9)+C2*((D2^8)+C2*((D2^7)+C2*((D2^6)+C2*((D2^5)+C2*((D2^4)+C2*((D2^3)+C2*((D2^2)+C2*((D2^1)+C2*(D2^0)))))))))))))))))))))))))))))))))))))))))))))))))))))))))))))))))))))))))))))))))))))))))))))))))))))))) -> 0
F97: 96 | G97: =(A2-((C2^(E2)*B2)))/((D2^95)+C2*((D2^94)+C2*((D2^93)+C2*((D2^92)+C2*((D2^91)+C2*((D2^90)+(C2*((D2^89)+C2*((D2^88)+C2*((D2^87)+C2*((D2^86)+C2*((D2^85)+C2*((D2^84)+C2*((D2^83)+C2*((D2^82)+C2*((D2^81)+C2*((D2^80)+(C2*((D2^79)+C2*((D2^78)+C2*((D2^77)+C2*((D2^76)+C2*((D2^75)+C2*((D2^74)+C2*((D2^73)+C2*((D2^72)+C2*((D2^71)+C2*((D2^70)+(C2*((D2^69)+C2*((D2^68)+C2*((D2^67)+C2*((D2^66)+C2*((D2^65)+C2*((D2^64)+C2*((D2^63)+C2*((D2^62)+C2*((D2^61)+C2*((D2^60)+(C2*((D2^59)+C2*((D2^58)+C2*((D2^57)+C2*((D2^56)+C2*((D2^55)+C2*((D2^54)+C2*((D2^53)+C2*((D2^52)+C2*((D2^51)+C2*((D2^50)+(C2*((D2^49)+C2*((D2^48)+C2*((D2^47)+C2*((D2^46)+C2*((D2^45)+C2*((D2^44)+C2*((D2^43)+C2*((D2^42)+C2*((D2^41)+C2*((D2^40)+(C2*((D2^39)+C2*((D2^38)+C2*((D2^37)+C2*((D2^36)+C2*((D2^35)+C2*((D2^34)+C2*((D2^33)+C2*((D2^32)+C2*((D2^31)+C2*((D2^30)+(C2*((D2^29)+C2*((D2^28)+C2*((D2^27)+C2*((D2^26)+C2*((D2^25)+C2*((D2^24)+C2*((D2^23)+C2*((D2^22)+C2*((D2^21)+C2*((D2^20)+(C2*((D2^19)+C2*((D2^18)+C2*((D2^17)+C2*((D2^16)+C2*((D2^15)+C2*((D2^14)+C2*((D2^13)+C2*((D2^12)+C2*((D2^11)+C2*((D2^10)+(C2*((D2^9)+C2*((D2^8)+C2*((D2^7)+C2*((D2^6)+C2*((D2^5)+C2*((D2^4)+C2*((D2^3)+C2*((D2^2)+C2*((D2^1)+C2*(D2^0))))))))))))))))))))))))))))))))))))))))))))))))))))))))))))))))))))))))))))))))))))))))))))))))))))))))) -> 0
F98: 97 | G98: =(A2-((C2^(E2)*B2)))/((D2^96)+C2*((D2^95)+C2*((D2^94)+C2*((D2^93)+C2*((D2^92)+C2*((D2^91)+C2*((D2^90)+(C2*((D2^89)+C2*((D2^88)+C2*((D2^87)+C2*((D2^86)+C2*((D2^85)+C2*((D2^84)+C2*((D2^83)+C2*((D2^82)+C2*((D2^81)+C2*((D2^80)+(C2*((D2^79)+C2*((D2^78)+C2*((D2^77)+C2*((D2^76)+C2*((D2^75)+C2*((D2^74)+C2*((D2^73)+C2*((D2^72)+C2*((D2^71)+C2*((D2^70)+(C2*((D2^69)+C2*((D2^68)+C2*((D2^67)+C2*((D2^66)+C2*((D2^65)+C2*((D2^64)+C2*((D2^63)+C2*((D2^62)+C2*((D2^61)+C2*((D2^60)+(C2*((D2^59)+C2*((D2^58)+C2*((D2^57)+C2*((D2^56)+C2*((D2^55)+C2*((D2^54)+C2*((D2^53)+C2*((D2^52)+C2*((D2^51)+C2*((D2^50)+(C2*((D2^49)+C2*((D2^48)+C2*((D2^47)+C2*((D2^46)+C2*((D2^45)+C2*((D2^44)+C2*((D2^43)+C2*((D2^42)+C2*((D2^41)+C2*((D2^40)+(C2*((D2^39)+C2*((D2^38)+C2*((D2^37)+C2*((D2^36)+C2*((D2^35)+C2*((D2^34)+C2*((D2^33)+C2*((D2^32)+C2*((D2^31)+C2*((D2^30)+(C2*((D2^29)+C2*((D2^28)+C2*((D2^27)+C2*((D2^26)+C2*((D2^25)+C2*((D2^24)+C2*((D2^23)+C2*((D2^22)+C2*((D2^21)+C2*((D2^20)+(C2*((D2^19)+C2*((D2^18)+C2*((D2^17)+C2*((D2^16)+C2*((D2^15)+C2*((D2^14)+C2*((D2^13)+C2*((D2^12)+C2*((D2^11)+C2*((D2^10)+(C2*((D2^9)+C2*((D2^8)+C2*((D2^7)+C2*((D2^6)+C2*((D2^5)+C2*((D2^4)+C2*((D2^3)+C2*((D2^2)+C2*((D2^1)+C2*(D2^0)))))))))))))))))))))))))))))))))))))))))))))))))))))))))))))))))))))))))))))))))))))))))))))))))))))))))) -> 0
F99: 98 | G99: =(A2-((C2^(E2)*B2)))/((D2^97)+C2*((D2^96)+C2*((D2^95)+C2*((D2^94)+C2*((D2^93)+C2*((D2^92)+C2*((D2^91)+C2*((D2^90)+(C2*((D2^89)+C2*((D2^88)+C2*((D2^87)+C2*((D2^86)+C2*((D2^85)+C2*((D2^84)+C2*((D2^83)+C2*((D2^82)+C2*((D2^81)+C2*((D2^80)+(C2*((D2^79)+C2*((D2^78)+C2*((D2^77)+C2*((D2^76)+C2*((D2^75)+C2*((D2^74)+C2*((D2^73)+C2*((D2^72)+C2*((D2^71)+C2*((D2^70)+(C2*((D2^69)+C2*((D2^68)+C2*((D2^67)+C2*((D2^66)+C2*((D2^65)+C2*((D2^64)+C2*((D2^63)+C2*((D2^62)+C2*((D2^61)+C2*((D2^60)+(C2*((D2^59)+C2*((D2^58)+C2*((D2^57)+C2*((D2^56)+C2*((D2^55)+C2*((D2^54)+C2*((D2^53)+C2*((D2^52)+C2*((D2^51)+C2*((D2^50)+(C2*((D2^49)+C2*((D2^48)+C2*((D2^47)+C2*((D2^46)+C2*((D2^45)+C2*((D2^44)+C2*((D2^43)+C2*((D2^42)+C2*((D2^41)+C2*((D2^40)+(C2*((D2^39)+C2*((D2^38)+C2*((D2^37)+C2*((D2^36)+C2*((D2^35)+C2*((D2^34)+C2*((D2^33)+C2*((D2^32)+C2*((D2^31)+C2*((D2^30)+(C2*((D2^29)+C2*((D2^28)+C2*((D2^27)+C2*((D2^26)+C2*((D2^25)+C2*((D2^24)+C2*((D2^23)+C2*((D2^22)+C2*((D2^21)+C2*((D2^20)+(C2*((D2^19)+C2*((D2^18)+C2*((D2^17)+C2*((D2^16)+C2*((D2^15)+C2*((D2^14)+C2*((D2^13)+C2*((D2^12)+C2*((D2^11)+C2*((D2^10)+(C2*((D2^9)+C2*((D2^8)+C2*((D2^7)+C2*((D2^6)+C2*((D2^5)+C2*((D2^4)+C2*((D2^3)+C2*((D2^2)+C2*((D2^1)+C2*(D2^0))))))))))))))))))))))))))))))))))))))))))))))))))))))))))))))))))))))))))))))))))))))))))))))))))))))))))) -> 0
F100: 99 | G100: =(A2-((C2^(E2)*B2)))/((D2^98)+C2*((D2^97)+C2*((D2^96)+C2*((D2^95)+C2*((D2^94)+C2*((D2^93)+C2*((D2^92)+C2*((D2^91)+C2*((D2^90)+(C2*((D2^89)+C2*((D2^88)+C2*((D2^87)+C2*((D2^86)+C2*((D2^85)+C2*((D2^84)+C2*((D2^83)+C2*((D2^82)+C2*((D2^81)+C2*((D2^80)+(C2*((D2^79)+C2*((D2^78)+C2*((D2^77)+C2*((D2^76)+C2*((D2^75)+C2*((D2^74)+C2*((D2^73)+C2*((D2^72)+C2*((D2^71)+C2*((D2^70)+(C2*((D2^69)+C2*((D2^68)+C2*((D2^67)+C2*((D2^66)+C2*((D2^65)+C2*((D2^64)+C2*((D2^63)+C2*((D2^62)+C2*((D2^61)+C2*((D2^60)+(C2*((D2^59)+C2*((D2^58)+C2*((D2^57)+C2*((D2^56)+C2*((D2^55)+C2*((D2^54)+C2*((D2^53)+C2*((D2^52)+C2*((D2^51)+C2*((D2^50)+(C2*((D2^49)+C2*((D2^48)+C2*((D2^47)+C2*((D2^46)+C2*((D2^45)+C2*((D2^44)+C2*((D2^43)+C2*((D2^42)+C2*((D2^41)+C2*((D2^40)+(C2*((D2^39)+C2*((D2^38)+C2*((D2^37)+C2*((D2^36)+C2*((D2^35)+C2*((D2^34)+C2*((D2^33)+C2*((D2^32)+C2*((D2^31)+C2*((D2^30)+(C2*((D2^29)+C2*((D2^28)+C2*((D2^27)+C2*((D2^26)+C2*((D2^25)+C2*((D2^24)+C2*((D2^23)+C2*((D2^22)+C2*((D2^21)+C2*((D2^20)+(C2*((D2^19)+C2*((D2^18)+C2*((D2^17)+C2*((D2^16)+C2*((D2^15)+C2*((D2^14)+C2*((D2^13)+C2*((D2^12)+C2*((D2^11)+C2*((D2^10)+(C2*((D2^9)+C2*((D2^8)+C2*((D2^7)+C2*((D2^6)+C2*((D2^5)+C2*((D2^4)+C2*((D2^3)+C2*((D2^2)+C2*((D2^1)+C2*(D2^0)))))))))))))))))))))))))))))))))))))))))))))))))))))))))))))))))))))))))))))))))))))))))))))))))))))))))))) -> 0
F101: 100 | G101: =(A2-((C2^(E2)*B2)))/((D2^99)+C2*((D2^98)+C2*((D2^97)+C2*((D2^96)+C2*((D2^95)+C2*((D2^94)+C2*((D2^93)+C2*((D2^92)+C2*((D2^91)+C2*((D2^90)+(C2*((D2^89)+C2*((D2^88)+C2*((D2^87)+C2*((D2^86)+C2*((D2^85)+C2*((D2^84)+C2*((D2^83)+C2*((D2^82)+C2*((D2^81)+C2*((D2^80)+(C2*((D2^79)+C2*((D2^78)+C2*((D2^77)+C2*((D2^76)+C2*((D2^75)+C2*((D2^74)+C2*((D2^73)+C2*((D2^72)+C2*((D2^71)+C2*((D2^70)+(C2*((D2^69)+C2*((D2^68)+C2*((D2^67)+C2*((D2^66)+C2*((D2^65)+C2*((D2^64)+C2*((D2^63)+C2*((D2^62)+C2*((D2^61)+C2*((D2^60)+(C2*((D2^59)+C2*((D2^58)+C2*((D2^57)+C2*((D2^56)+C2*((D2^55)+C2*((D2^54)+C2*((D2^53)+C2*((D2^52)+C2*((D2^51)+C2*((D2^50)+(C2*((D2^49)+C2*((D2^48)+C2*((D2^47)+C2*((D2^46)+C2*((D2^45)+C2*((D2^44)+C2*((D2^43)+C2*((D2^42)+C2*((D2^41)+C2*((D2^40)+(C2*((D2^39)+C2*((D2^38)+C2*((D2^37)+C2*((D2^36)+C2*((D2^35)+C2*((D2^34)+C2*((D2^33)+C2*((D2^32)+C2*((D2^31)+C2*((D2^30)+(C2*((D2^29)+C2*((D2^28)+C2*((D2^27)+C2*((D2^26)+C2*((D2^25)+C2*((D2^24)+C2*((D2^23)+C2*((D2^22)+C2*((D2^21)+C2*((D2^20)+(C2*((D2^19)+C2*((D2^18)+C2*((D2^17)+C2*((D2^16)+C2*((D2^15)+C2*((D2^14)+C2*((D2^13)+C2*((D2^12)+C2*((D2^11)+C2*((D2^10)+(C2*((D2^9)+C2*((D2^8)+C2*((D2^7)+C2*((D2^6)+C2*((D2^5)+C2*((D2^4)+C2*((D2^3)+C2*((D2^2)+C2*((D2^1)+C2*(D2^0))))))))))))))))))))))))))))))))))))))))))))))))))))))))))))))))))))))))))))))))))))))))))))))))))))))))))))) -> 0

Sheet Multiple Goal Back data_3 (hidden)
A1: Goal | B1: Current Balance | C1: Interest | D1: Increase | E1: Year | F1: Years | G1: Starting Amount | I1: Starting Amount | K1: Starting Amount when Year > 63 | P1: Series Sum
A2: ='Multiple Goals Saving Tool'!C16 -> 0 | B2: =('Multiple Goals Saving Tool'!C6)/('Multiple Goals Saving Tool'!C8) -> 0 | C2: =1+('Multiple Goals Saving Tool'!E16) -> 1 | D2: =1+('Multiple Goals Saving Tool'!C7) -> 1 | E2: ='Multiple Goals Saving Tool'!D16 -> 0 | F2: 1 | G2: =(A2-((C2^(E2)*B2)))/(D2^0) -> 0 | I2: =IF(E2=10,'Multiple Goal Back data_3'!G11,IF(E2=5,'Multiple Goal Back data_3'!G6,IF(E2=1,'Multiple Goal Back data_3'!G2,IF(E2=2,'Multiple Goal Back data_3'!G3,IF(E2=3,'Multiple Goal Back data_3'!G4,IF(E2=4,'Multiple Goal Back data_3'!G5,IF(E2=6,'Multiple Goal Back data_3'!G7,IF(E2=7,'Multiple Goal Back data_3'!G8,IF(E2=8,'Multiple Goal Back data_3'!G9,IF(E2=9,'Multiple Goal Back data_3'!G10,IF(E2=11,'Multiple Goal Back data_3'!G12,IF(E2=12,'Multiple Goal Back data_3'!G13,IF(E2=13,'Multiple Goal Back data_3'!G14,IF(E2=14,'Multiple Goal Back data_3'!G15,IF(E2=15,'Multiple Goal Back data_3'!G16,IF(E2=16,'Multiple Goal Back data_3'!G17,IF(E2=17,'Multiple Goal Back data_3'!G18,IF(E2=18,'Multiple Goal Back data_3'!G19,IF(E2=19,'Multiple Goal Back data_3'!G20,IF(E2=20,'Multiple Goal Back data_3'!G21,IF(E2=21,'Multiple Goal Back data_3'!G22,IF(E2=22,'Multiple Goal Back data_3'!G23,IF(E2=23,'Multiple Goal Back data_3'!G24,IF(E2=24,'Multiple Goal Back data_3'!G25,IF(E2=25,'Multiple Goal Back data_3'!G26,IF(E2=26,'Multiple Goal Back data_3'!G27,IF(E2=27,'Multiple Goal Back data_3'!G28,IF(E2=28,'Multiple Goal Back data_3'!G29,IF(E2=29,'Multiple Goal Back data_3'!G30,IF(E2=30,'Multiple Goal Back data_3'!G31,IF(E2=31,'Multiple Goal Back data_3'!G32,IF(E2=32,'Multiple Goal Back data_3'!G33,IF(E2=33,'Multiple Goal Back data_3'!G34,IF(E2=34,'Multiple Goal Back data_3'!G35,IF(E2=35,'Multiple Goal Back data_3'!G36,IF(E2=36,'Multiple Goal Back data_3'!G37,IF(E2=37,'Multiple Goal Back data_3'!G38,IF(E2=38,'Multiple Goal Back data_3'!G39,IF(E2=39,'Multiple Goal Back data_3'!G40,IF(E2=40,'Multiple Goal Back data_3'!G41,IF(E2=41,'Multiple Goal Back data_3'!G42,IF(E2=42,'Multiple Goal Back data_3'!G43,IF(E2=43,'Multiple Goal Back data_3'!G44,IF(E2=44,'Multiple Goal Back data_3'!G45,IF(E2=45,'Multiple Goal Back data_3'!G46,IF(E2=46,'Multiple Goal Back data_3'!G47,IF(E2=47,'Multiple Goal Back data_3'!G48,IF(E2=48,'Multiple Goal Back data_3'!G49,IF(E2=49,'Multiple Goal Back data_3'!G50,IF(E2=50,'Multiple Goal Back data_3'!G51,IF(E2=51,'Multiple Goal Back data_3'!G52,IF(E2=52,'Multiple Goal Back data_3'!G53,IF(E2=53,'Multiple Goal Back data_3'!G54,IF(E2=54,'Multiple Goal Back data_3'!G55,IF(E2=55,'Multiple Goal Back data_3'!G56,IF(E2=56,'Multiple Goal Back data_3'!G57,IF(E2=57,'Multiple Goal Back data_3'!G58,IF(E2=58,'Multiple Goal Back data_3'!G59,IF(E2=59,'Multiple Goal Back data_3'!G60,IF(E2=60,'Multiple Goal Back data_3'!G61,IF(E2=61,'Multiple Goal Back data_3'!G62,IF(E2=62,'Multiple Goal Back data_3'!G63,IF(E2=63,'Multiple Goal Back data_3'!G64,IF(E2>63,K2,)))))))))))))))))))))))))))))))))))))))))))))))))))))))))))))))) -> 0 | K2: =IF(E2=64, 'Multiple Goal Back data_3'!G65,IF(E2=65, 'Multiple Goal Back data_3'!G66,IF(E2=66, 'Multiple Goal Back data_3'!G67,IF(E2=67, 'Multiple Goal Back data_3'!G68,IF(E2=68, 'Multiple Goal Back data_3'!G69,IF(E2=69, 'Multiple Goal Back data_3'!G70,IF(E2=70, 'Multiple Goal Back data_3'!G71,IF(E2=71,'Multiple Goal Back data_3'!G72, IF(E2=72, 'Multiple Goal Back data_3'!G73,IF(E2=73, 'Multiple Goal Back data_3'!G74,IF(E2=74, 'Multiple Goal Back data_3'!G75,IF(E2=75, 'Multiple Goal Back data_3'!G76,IF(E2=76, 'Multiple Goal Back data_3'!G77,IF(E2=77, 'Multiple Goal Back data_3'!G78,IF(E2=78, 'Multiple Goal Back data_3'!G79,IF(E2=79, 'Multiple Goal Back data_3'!G80,IF(E2=80, 'Multiple Goal Back data_3'!G81,IF(E2=81, 'Multiple Goal Back data_3'!G82,IF(E2=82, 'Multiple Goal Back data_3'!G83,IF(E2=83, 'Multiple Goal Back data_3'!G84,IF(E2=84, 'Multiple Goal Back data_3'!G85,IF(E2=85, 'Multiple Goal Back data_3'!G86,IF(E2=86, 'Multiple Goal Back data_3'!G87,IF(E2=87, 'Multiple Goal Back data_3'!G88,IF(E2=88, 'Multiple Goal Back data_3'!G89,IF(E2=89, 'Multiple Goal Back data_3'!G90,IF(E2=90, 'Multiple Goal Back data_3'!G91,IF(E2=91, 'Multiple Goal Back data_3'!G92,IF(E2=92, 'Multiple Goal Back data_3'!G93,IF(E2=93, 'Multiple Goal Back data_3'!G94,IF(E2=94, 'Multiple Goal Back data_3'!G95,IF(E2=95, 'Multiple Goal Back data_3'!G96,IF(E2=96, 'Multiple Goal Back data_3'!G97,IF(E2=97, 'Multiple Goal Back data_3'!G98,IF(E2=98, 'Multiple Goal Back data_3'!G99,IF(E2=99, 'Multiple Goal Back data_3'!G100,IF(E2=100, 'Multiple Goal Back data_3'!G101,))))))))))))))))))))))))))))))))))))) -> 0 | P2: =SERIESSUM(1.03, 1,1, {1,1,1,1,1,1,1,1,1}) -> 10.46387931
F3: 2 | G3: =(A2-((C2^(E2)*B2)))/((D2^1)+C2*((D2^0))) -> 0
F4: 3 | G4: =(A2-((C2^(E2)*B2)))/((D2^2)+C2*((D2^1)+C2*(D2^0))) -> 0
F5: 4 | G5: =(A2-((C2^(E2)*B2)))/((D2^3)+C2*((D2^2)+C2*((D2^1)+C2*(D2^0)))) -> 0
F6: 5 | G6: =(A2-((C2^(E2)*B2)))/((D2^4)+C2*((D2^3)+C2*((D2^2)+C2*((D2^1)+C2*(D2^0))))) -> 0
F7: 6 | G7: =(A2-((C2^(E2)*B2)))/((D2^5)+C2*((D2^4)+C2*((D2^3)+C2*((D2^2)+C2*((D2^1)+C2*(D2^0)))))) -> 0
F8: 7 | G8: =(A2-((C2^(E2)*B2)))/((D2^6)+C2*((D2^5)+C2*((D2^4)+C2*((D2^3)+C2*((D2^2)+C2*((D2^1)+C2*(D2^0))))))) -> 0
F9: 8 | G9: =(A2-((C2^(E2)*B2)))/((D2^7)+C2*((D2^6)+C2*((D2^5)+C2*((D2^4)+C2*((D2^3)+C2*((D2^2)+C2*((D2^1)+C2*(D2^0)))))))) -> 0
F10: 9 | G10: =(A2-((C2^(E2)*B2)))/((D2^8)+C2*((D2^7)+C2*((D2^6)+C2*((D2^5)+C2*((D2^4)+C2*((D2^3)+C2*((D2^2)+C2*((D2^1)+C2*(D2^0))))))))) -> 0
F11: 10 | G11: =(A2-((C2^(E2)*B2)))/((D2^9)+C2*((D2^8)+C2*((D2^7)+C2*((D2^6)+C2*((D2^5)+C2*((D2^4)+C2*((D2^3)+C2*((D2^2)+C2*((D2^1)+C2*(D2^0)))))))))) -> 0
F12: 11 | G12: =(A2-((C2^(E2)*B2)))/((D2^10)+(C2*((D2^9)+C2*((D2^8)+C2*((D2^7)+C2*((D2^6)+C2*((D2^5)+C2*((D2^4)+C2*((D2^3)+C2*((D2^2)+C2*((D2^1)+C2*(D2^0)))))))))))) -> 0
F13: 12 | G13: =(A2-((C2^(E2)*B2)))/((D2^11)+C2*((D2^10)+(C2*((D2^9)+C2*((D2^8)+C2*((D2^7)+C2*((D2^6)+C2*((D2^5)+C2*((D2^4)+C2*((D2^3)+C2*((D2^2)+C2*((D2^1)+C2*(D2^0))))))))))))) -> 0
F14: 13 | G14: =(A2-((C2^(E2)*B2)))/((D2^12)+C2*((D2^11)+C2*((D2^10)+(C2*((D2^9)+C2*((D2^8)+C2*((D2^7)+C2*((D2^6)+C2*((D2^5)+C2*((D2^4)+C2*((D2^3)+C2*((D2^2)+C2*((D2^1)+C2*(D2^0)))))))))))))) -> 0
F15: 14 | G15: =(A2-((C2^(E2)*B2)))/((D2^13)+C2*((D2^12)+C2*((D2^11)+C2*((D2^10)+(C2*((D2^9)+C2*((D2^8)+C2*((D2^7)+C2*((D2^6)+C2*((D2^5)+C2*((D2^4)+C2*((D2^3)+C2*((D2^2)+C2*((D2^1)+C2*(D2^0))))))))))))))) -> 0
F16: 15 | G16: =(A2-((C2^(E2)*B2)))/((D2^14)+C2*((D2^13)+C2*((D2^12)+C2*((D2^11)+C2*((D2^10)+(C2*((D2^9)+C2*((D2^8)+C2*((D2^7)+C2*((D2^6)+C2*((D2^5)+C2*((D2^4)+C2*((D2^3)+C2*((D2^2)+C2*((D2^1)+C2*(D2^0)))))))))))))))) -> 0
F17: 16 | G17: =(A2-((C2^(E2)*B2)))/((D2^15)+C2*((D2^14)+C2*((D2^13)+C2*((D2^12)+C2*((D2^11)+C2*((D2^10)+(C2*((D2^9)+C2*((D2^8)+C2*((D2^7)+C2*((D2^6)+C2*((D2^5)+C2*((D2^4)+C2*((D2^3)+C2*((D2^2)+C2*((D2^1)+C2*(D2^0))))))))))))))))) -> 0
F18: 17 | G18: =(A2-((C2^(E2)*B2)))/((D2^16)+C2*((D2^15)+C2*((D2^14)+C2*((D2^13)+C2*((D2^12)+C2*((D2^11)+C2*((D2^10)+(C2*((D2^9)+C2*((D2^8)+C2*((D2^7)+C2*((D2^6)+C2*((D2^5)+C2*((D2^4)+C2*((D2^3)+C2*((D2^2)+C2*((D2^1)+C2*(D2^0)))))))))))))))))) -> 0
F19: 18 | G19: =(A2-((C2^(E2)*B2)))/((D2^17)+C2*((D2^16)+C2*((D2^15)+C2*((D2^14)+C2*((D2^13)+C2*((D2^12)+C2*((D2^11)+C2*((D2^10)+(C2*((D2^9)+C2*((D2^8)+C2*((D2^7)+C2*((D2^6)+C2*((D2^5)+C2*((D2^4)+C2*((D2^3)+C2*((D2^2)+C2*((D2^1)+C2*(D2^0))))))))))))))))))) -> 0
F20: 19 | G20: =(A2-((C2^(E2)*B2)))/((D2^18)+C2*((D2^17)+C2*((D2^16)+C2*((D2^15)+C2*((D2^14)+C2*((D2^13)+C2*((D2^12)+C2*((D2^11)+C2*((D2^10)+(C2*((D2^9)+C2*((D2^8)+C2*((D2^7)+C2*((D2^6)+C2*((D2^5)+C2*((D2^4)+C2*((D2^3)+C2*((D2^2)+C2*((D2^1)+C2*(D2^0)))))))))))))))))))) -> 0
F21: 20 | G21: =(A2-((C2^(E2)*B2)))/((D2^19)+C2*((D2^18)+C2*((D2^17)+C2*((D2^16)+C2*((D2^15)+C2*((D2^14)+C2*((D2^13)+C2*((D2^12)+C2*((D2^11)+C2*((D2^10)+(C2*((D2^9)+C2*((D2^8)+C2*((D2^7)+C2*((D2^6)+C2*((D2^5)+C2*((D2^4)+C2*((D2^3)+C2*((D2^2)+C2*((D2^1)+C2*(D2^0))))))))))))))))))))) -> 0
F22: 21 | G22: =(A2-((C2^(E2)*B2)))/((D2^20)+(C2*((D2^19)+C2*((D2^18)+C2*((D2^17)+C2*((D2^16)+C2*((D2^15)+C2*((D2^14)+C2*((D2^13)+C2*((D2^12)+C2*((D2^11)+C2*((D2^10)+(C2*((D2^9)+C2*((D2^8)+C2*((D2^7)+C2*((D2^6)+C2*((D2^5)+C2*((D2^4)+C2*((D2^3)+C2*((D2^2)+C2*((D2^1)+C2*(D2^0))))))))))))))))))))))) -> 0
F23: 22 | G23: =(A2-((C2^(E2)*B2)))/((D2^21)+C2*((D2^20)+(C2*((D2^19)+C2*((D2^18)+C2*((D2^17)+C2*((D2^16)+C2*((D2^15)+C2*((D2^14)+C2*((D2^13)+C2*((D2^12)+C2*((D2^11)+C2*((D2^10)+(C2*((D2^9)+C2*((D2^8)+C2*((D2^7)+C2*((D2^6)+C2*((D2^5)+C2*((D2^4)+C2*((D2^3)+C2*((D2^2)+C2*((D2^1)+C2*(D2^0)))))))))))))))))))))))) -> 0
F24: 23 | G24: =(A2-((C2^(E2)*B2)))/((D2^22)+C2*((D2^21)+C2*((D2^20)+(C2*((D2^19)+C2*((D2^18)+C2*((D2^17)+C2*((D2^16)+C2*((D2^15)+C2*((D2^14)+C2*((D2^13)+C2*((D2^12)+C2*((D2^11)+C2*((D2^10)+(C2*((D2^9)+C2*((D2^8)+C2*((D2^7)+C2*((D2^6)+C2*((D2^5)+C2*((D2^4)+C2*((D2^3)+C2*((D2^2)+C2*((D2^1)+C2*(D2^0))))))))))))))))))))))))) -> 0
F25: 24 | G25: =(A2-((C2^(E2)*B2)))/((D2^23)+C2*((D2^22)+C2*((D2^21)+C2*((D2^20)+(C2*((D2^19)+C2*((D2^18)+C2*((D2^17)+C2*((D2^16)+C2*((D2^15)+C2*((D2^14)+C2*((D2^13)+C2*((D2^12)+C2*((D2^11)+C2*((D2^10)+(C2*((D2^9)+C2*((D2^8)+C2*((D2^7)+C2*((D2^6)+C2*((D2^5)+C2*((D2^4)+C2*((D2^3)+C2*((D2^2)+C2*((D2^1)+C2*(D2^0)))))))))))))))))))))))))) -> 0
F26: 25 | G26: =(A2-((C2^(E2)*B2)))/((D2^24)+C2*((D2^23)+C2*((D2^22)+C2*((D2^21)+C2*((D2^20)+(C2*((D2^19)+C2*((D2^18)+C2*((D2^17)+C2*((D2^16)+C2*((D2^15)+C2*((D2^14)+C2*((D2^13)+C2*((D2^12)+C2*((D2^11)+C2*((D2^10)+(C2*((D2^9)+C2*((D2^8)+C2*((D2^7)+C2*((D2^6)+C2*((D2^5)+C2*((D2^4)+C2*((D2^3)+C2*((D2^2)+C2*((D2^1)+C2*(D2^0))))))))))))))))))))))))))) -> 0
F27: 26 | G27: =(A2-((C2^(E2)*B2)))/((D2^25)+C2*((D2^24)+C2*((D2^23)+C2*((D2^22)+C2*((D2^21)+C2*((D2^20)+(C2*((D2^19)+C2*((D2^18)+C2*((D2^17)+C2*((D2^16)+C2*((D2^15)+C2*((D2^14)+C2*((D2^13)+C2*((D2^12)+C2*((D2^11)+C2*((D2^10)+(C2*((D2^9)+C2*((D2^8)+C2*((D2^7)+C2*((D2^6)+C2*((D2^5)+C2*((D2^4)+C2*((D2^3)+C2*((D2^2)+C2*((D2^1)+C2*(D2^0)))))))))))))))))))))))))))) -> 0
F28: 27 | G28: =(A2-((C2^(E2)*B2)))/((D2^26)+C2*((D2^25)+C2*((D2^24)+C2*((D2^23)+C2*((D2^22)+C2*((D2^21)+C2*((D2^20)+(C2*((D2^19)+C2*((D2^18)+C2*((D2^17)+C2*((D2^16)+C2*((D2^15)+C2*((D2^14)+C2*((D2^13)+C2*((D2^12)+C2*((D2^11)+C2*((D2^10)+(C2*((D2^9)+C2*((D2^8)+C2*((D2^7)+C2*((D2^6)+C2*((D2^5)+C2*((D2^4)+C2*((D2^3)+C2*((D2^2)+C2*((D2^1)+C2*(D2^0))))))))))))))))))))))))))))) -> 0
F29: 28 | G29: =(A2-((C2^(E2)*B2)))/((D2^27)+C2*((D2^26)+C2*((D2^25)+C2*((D2^24)+C2*((D2^23)+C2*((D2^22)+C2*((D2^21)+C2*((D2^20)+(C2*((D2^19)+C2*((D2^18)+C2*((D2^17)+C2*((D2^16)+C2*((D2^15)+C2*((D2^14)+C2*((D2^13)+C2*((D2^12)+C2*((D2^11)+C2*((D2^10)+(C2*((D2^9)+C2*((D2^8)+C2*((D2^7)+C2*((D2^6)+C2*((D2^5)+C2*((D2^4)+C2*((D2^3)+C2*((D2^2)+C2*((D2^1)+C2*(D2^0)))))))))))))))))))))))))))))) -> 0
F30: 29 | G30: =(A2-((C2^(E2)*B2)))/((D2^28)+C2*((D2^27)+C2*((D2^26)+C2*((D2^25)+C2*((D2^24)+C2*((D2^23)+C2*((D2^22)+C2*((D2^21)+C2*((D2^20)+(C2*((D2^19)+C2*((D2^18)+C2*((D2^17)+C2*((D2^16)+C2*((D2^15)+C2*((D2^14)+C2*((D2^13)+C2*((D2^12)+C2*((D2^11)+C2*((D2^10)+(C2*((D2^9)+C2*((D2^8)+C2*((D2^7)+C2*((D2^6)+C2*((D2^5)+C2*((D2^4)+C2*((D2^3)+C2*((D2^2)+C2*((D2^1)+C2*(D2^0))))))))))))))))))))))))))))))) -> 0
F31: 30 | G31: =(A2-((C2^(E2)*B2)))/((D2^29)+C2*((D2^28)+C2*((D2^27)+C2*((D2^26)+C2*((D2^25)+C2*((D2^24)+C2*((D2^23)+C2*((D2^22)+C2*((D2^21)+C2*((D2^20)+(C2*((D2^19)+C2*((D2^18)+C2*((D2^17)+C2*((D2^16)+C2*((D2^15)+C2*((D2^14)+C2*((D2^13)+C2*((D2^12)+C2*((D2^11)+C2*((D2^10)+(C2*((D2^9)+C2*((D2^8)+C2*((D2^7)+C2*((D2^6)+C2*((D2^5)+C2*((D2^4)+C2*((D2^3)+C2*((D2^2)+C2*((D2^1)+C2*(D2^0)))))))))))))))))))))))))))))))) -> 0
F32: 31 | G32: =(A2-((C2^(E2)*B2)))/((D2^30)+(C2*((D2^29)+C2*((D2^28)+C2*((D2^27)+C2*((D2^26)+C2*((D2^25)+C2*((D2^24)+C2*((D2^23)+C2*((D2^22)+C2*((D2^21)+C2*((D2^20)+(C2*((D2^19)+C2*((D2^18)+C2*((D2^17)+C2*((D2^16)+C2*((D2^15)+C2*((D2^14)+C2*((D2^13)+C2*((D2^12)+C2*((D2^11)+C2*((D2^10)+(C2*((D2^9)+C2*((D2^8)+C2*((D2^7)+C2*((D2^6)+C2*((D2^5)+C2*((D2^4)+C2*((D2^3)+C2*((D2^2)+C2*((D2^1)+C2*(D2^0)))))))))))))))))))))))))))))))))) -> 0
F33: 32 | G33: =(A2-((C2^(E2)*B2)))/((D2^31)+C2*((D2^30)+(C2*((D2^29)+C2*((D2^28)+C2*((D2^27)+C2*((D2^26)+C2*((D2^25)+C2*((D2^24)+C2*((D2^23)+C2*((D2^22)+C2*((D2^21)+C2*((D2^20)+(C2*((D2^19)+C2*((D2^18)+C2*((D2^17)+C2*((D2^16)+C2*((D2^15)+C2*((D2^14)+C2*((D2^13)+C2*((D2^12)+C2*((D2^11)+C2*((D2^10)+(C2*((D2^9)+C2*((D2^8)+C2*((D2^7)+C2*((D2^6)+C2*((D2^5)+C2*((D2^4)+C2*((D2^3)+C2*((D2^2)+C2*((D2^1)+C2*(D2^0))))))))))))))))))))))))))))))))))) -> 0
F34: 33 | G34: =(A2-((C2^(E2)*B2)))/((D2^32)+C2*((D2^31)+C2*((D2^30)+(C2*((D2^29)+C2*((D2^28)+C2*((D2^27)+C2*((D2^26)+C2*((D2^25)+C2*((D2^24)+C2*((D2^23)+C2*((D2^22)+C2*((D2^21)+C2*((D2^20)+(C2*((D2^19)+C2*((D2^18)+C2*((D2^17)+C2*((D2^16)+C2*((D2^15)+C2*((D2^14)+C2*((D2^13)+C2*((D2^12)+C2*((D2^11)+C2*((D2^10)+(C2*((D2^9)+C2*((D2^8)+C2*((D2^7)+C2*((D2^6)+C2*((D2^5)+C2*((D2^4)+C2*((D2^3)+C2*((D2^2)+C2*((D2^1)+C2*(D2^0)))))))))))))))))))))))))))))))))))) -> 0
F35: 34 | G35: =(A2-((C2^(E2)*B2)))/((D2^33)+C2*((D2^32)+C2*((D2^31)+C2*((D2^30)+(C2*((D2^29)+C2*((D2^28)+C2*((D2^27)+C2*((D2^26)+C2*((D2^25)+C2*((D2^24)+C2*((D2^23)+C2*((D2^22)+C2*((D2^21)+C2*((D2^20)+(C2*((D2^19)+C2*((D2^18)+C2*((D2^17)+C2*((D2^16)+C2*((D2^15)+C2*((D2^14)+C2*((D2^13)+C2*((D2^12)+C2*((D2^11)+C2*((D2^10)+(C2*((D2^9)+C2*((D2^8)+C2*((D2^7)+C2*((D2^6)+C2*((D2^5)+C2*((D2^4)+C2*((D2^3)+C2*((D2^2)+C2*((D2^1)+C2*(D2^0))))))))))))))))))))))))))))))))))))) -> 0
F36: 35 | G36: =(A2-((C2^(E2)*B2)))/((D2^34)+C2*((D2^33)+C2*((D2^32)+C2*((D2^31)+C2*((D2^30)+(C2*((D2^29)+C2*((D2^28)+C2*((D2^27)+C2*((D2^26)+C2*((D2^25)+C2*((D2^24)+C2*((D2^23)+C2*((D2^22)+C2*((D2^21)+C2*((D2^20)+(C2*((D2^19)+C2*((D2^18)+C2*((D2^17)+C2*((D2^16)+C2*((D2^15)+C2*((D2^14)+C2*((D2^13)+C2*((D2^12)+C2*((D2^11)+C2*((D2^10)+(C2*((D2^9)+C2*((D2^8)+C2*((D2^7)+C2*((D2^6)+C2*((D2^5)+C2*((D2^4)+C2*((D2^3)+C2*((D2^2)+C2*((D2^1)+C2*(D2^0)))))))))))))))))))))))))))))))))))))) -> 0
F37: 36 | G37: =(A2-((C2^(E2)*B2)))/((D2^35)+C2*((D2^34)+C2*((D2^33)+C2*((D2^32)+C2*((D2^31)+C2*((D2^30)+(C2*((D2^29)+C2*((D2^28)+C2*((D2^27)+C2*((D2^26)+C2*((D2^25)+C2*((D2^24)+C2*((D2^23)+C2*((D2^22)+C2*((D2^21)+C2*((D2^20)+(C2*((D2^19)+C2*((D2^18)+C2*((D2^17)+C2*((D2^16)+C2*((D2^15)+C2*((D2^14)+C2*((D2^13)+C2*((D2^12)+C2*((D2^11)+C2*((D2^10)+(C2*((D2^9)+C2*((D2^8)+C2*((D2^7)+C2*((D2^6)+C2*((D2^5)+C2*((D2^4)+C2*((D2^3)+C2*((D2^2)+C2*((D2^1)+C2*(D2^0))))))))))))))))))))))))))))))))))))))) -> 0
F38: 37 | G38: =(A2-((C2^(E2)*B2)))/((D2^36)+C2*((D2^35)+C2*((D2^34)+C2*((D2^33)+C2*((D2^32)+C2*((D2^31)+C2*((D2^30)+(C2*((D2^29)+C2*((D2^28)+C2*((D2^27)+C2*((D2^26)+C2*((D2^25)+C2*((D2^24)+C2*((D2^23)+C2*((D2^22)+C2*((D2^21)+C2*((D2^20)+(C2*((D2^19)+C2*((D2^18)+C2*((D2^17)+C2*((D2^16)+C2*((D2^15)+C2*((D2^14)+C2*((D2^13)+C2*((D2^12)+C2*((D2^11)+C2*((D2^10)+(C2*((D2^9)+C2*((D2^8)+C2*((D2^7)+C2*((D2^6)+C2*((D2^5)+C2*((D2^4)+C2*((D2^3)+C2*((D2^2)+C2*((D2^1)+C2*(D2^0)))))))))))))))))))))))))))))))))))))))) -> 0
F39: 38 | G39: =(A2-((C2^(E2)*B2)))/((D2^37)+C2*((D2^36)+C2*((D2^35)+C2*((D2^34)+C2*((D2^33)+C2*((D2^32)+C2*((D2^31)+C2*((D2^30)+(C2*((D2^29)+C2*((D2^28)+C2*((D2^27)+C2*((D2^26)+C2*((D2^25)+C2*((D2^24)+C2*((D2^23)+C2*((D2^22)+C2*((D2^21)+C2*((D2^20)+(C2*((D2^19)+C2*((D2^18)+C2*((D2^17)+C2*((D2^16)+C2*((D2^15)+C2*((D2^14)+C2*((D2^13)+C2*((D2^12)+C2*((D2^11)+C2*((D2^10)+(C2*((D2^9)+C2*((D2^8)+C2*((D2^7)+C2*((D2^6)+C2*((D2^5)+C2*((D2^4)+C2*((D2^3)+C2*((D2^2)+C2*((D2^1)+C2*(D2^0))))))))))))))))))))))))))))))))))))))))) -> 0
F40: 39 | G40: =(A2-((C2^(E2)*B2)))/((D2^38)+C2*((D2^37)+C2*((D2^36)+C2*((D2^35)+C2*((D2^34)+C2*((D2^33)+C2*((D2^32)+C2*((D2^31)+C2*((D2^30)+(C2*((D2^29)+C2*((D2^28)+C2*((D2^27)+C2*((D2^26)+C2*((D2^25)+C2*((D2^24)+C2*((D2^23)+C2*((D2^22)+C2*((D2^21)+C2*((D2^20)+(C2*((D2^19)+C2*((D2^18)+C2*((D2^17)+C2*((D2^16)+C2*((D2^15)+C2*((D2^14)+C2*((D2^13)+C2*((D2^12)+C2*((D2^11)+C2*((D2^10)+(C2*((D2^9)+C2*((D2^8)+C2*((D2^7)+C2*((D2^6)+C2*((D2^5)+C2*((D2^4)+C2*((D2^3)+C2*((D2^2)+C2*((D2^1)+C2*(D2^0)))))))))))))))))))))))))))))))))))))))))) -> 0
F41: 40 | G41: =(A2-((C2^(E2)*B2)))/((D2^39)+C2*((D2^38)+C2*((D2^37)+C2*((D2^36)+C2*((D2^35)+C2*((D2^34)+C2*((D2^33)+C2*((D2^32)+C2*((D2^31)+C2*((D2^30)+(C2*((D2^29)+C2*((D2^28)+C2*((D2^27)+C2*((D2^26)+C2*((D2^25)+C2*((D2^24)+C2*((D2^23)+C2*((D2^22)+C2*((D2^21)+C2*((D2^20)+(C2*((D2^19)+C2*((D2^18)+C2*((D2^17)+C2*((D2^16)+C2*((D2^15)+C2*((D2^14)+C2*((D2^13)+C2*((D2^12)+C2*((D2^11)+C2*((D2^10)+(C2*((D2^9)+C2*((D2^8)+C2*((D2^7)+C2*((D2^6)+C2*((D2^5)+C2*((D2^4)+C2*((D2^3)+C2*((D2^2)+C2*((D2^1)+C2*(D2^0))))))))))))))))))))))))))))))))))))))))))) -> 0
F42: 41 | G42: =(A2-((C2^(E2)*B2)))/((D2^40)+(C2*((D2^39)+C2*((D2^38)+C2*((D2^37)+C2*((D2^36)+C2*((D2^35)+C2*((D2^34)+C2*((D2^33)+C2*((D2^32)+C2*((D2^31)+C2*((D2^30)+(C2*((D2^29)+C2*((D2^28)+C2*((D2^27)+C2*((D2^26)+C2*((D2^25)+C2*((D2^24)+C2*((D2^23)+C2*((D2^22)+C2*((D2^21)+C2*((D2^20)+(C2*((D2^19)+C2*((D2^18)+C2*((D2^17)+C2*((D2^16)+C2*((D2^15)+C2*((D2^14)+C2*((D2^13)+C2*((D2^12)+C2*((D2^11)+C2*((D2^10)+(C2*((D2^9)+C2*((D2^8)+C2*((D2^7)+C2*((D2^6)+C2*((D2^5)+C2*((D2^4)+C2*((D2^3)+C2*((D2^2)+C2*((D2^1)+C2*(D2^0))))))))))))))))))))))))))))))))))))))))))))) -> 0
F43: 42 | G43: =(A2-((C2^(E2)*B2)))/((D2^41)+C2*((D2^40)+(C2*((D2^39)+C2*((D2^38)+C2*((D2^37)+C2*((D2^36)+C2*((D2^35)+C2*((D2^34)+C2*((D2^33)+C2*((D2^32)+C2*((D2^31)+C2*((D2^30)+(C2*((D2^29)+C2*((D2^28)+C2*((D2^27)+C2*((D2^26)+C2*((D2^25)+C2*((D2^24)+C2*((D2^23)+C2*((D2^22)+C2*((D2^21)+C2*((D2^20)+(C2*((D2^19)+C2*((D2^18)+C2*((D2^17)+C2*((D2^16)+C2*((D2^15)+C2*((D2^14)+C2*((D2^13)+C2*((D2^12)+C2*((D2^11)+C2*((D2^10)+(C2*((D2^9)+C2*((D2^8)+C2*((D2^7)+C2*((D2^6)+C2*((D2^5)+C2*((D2^4)+C2*((D2^3)+C2*((D2^2)+C2*((D2^1)+C2*(D2^0)))))))))))))))))))))))))))))))))))))))))))))) -> 0
F44: 43 | G44: =(A2-((C2^(E2)*B2)))/((D2^42)+C2*((D2^41)+C2*((D2^40)+(C2*((D2^39)+C2*((D2^38)+C2*((D2^37)+C2*((D2^36)+C2*((D2^35)+C2*((D2^34)+C2*((D2^33)+C2*((D2^32)+C2*((D2^31)+C2*((D2^30)+(C2*((D2^29)+C2*((D2^28)+C2*((D2^27)+C2*((D2^26)+C2*((D2^25)+C2*((D2^24)+C2*((D2^23)+C2*((D2^22)+C2*((D2^21)+C2*((D2^20)+(C2*((D2^19)+C2*((D2^18)+C2*((D2^17)+C2*((D2^16)+C2*((D2^15)+C2*((D2^14)+C2*((D2^13)+C2*((D2^12)+C2*((D2^11)+C2*((D2^10)+(C2*((D2^9)+C2*((D2^8)+C2*((D2^7)+C2*((D2^6)+C2*((D2^5)+C2*((D2^4)+C2*((D2^3)+C2*((D2^2)+C2*((D2^1)+C2*(D2^0))))))))))))))))))))))))))))))))))))))))))))))) -> 0
F45: 44 | G45: =(A2-((C2^(E2)*B2)))/((D2^43)+C2*((D2^42)+C2*((D2^41)+C2*((D2^40)+(C2*((D2^39)+C2*((D2^38)+C2*((D2^37)+C2*((D2^36)+C2*((D2^35)+C2*((D2^34)+C2*((D2^33)+C2*((D2^32)+C2*((D2^31)+C2*((D2^30)+(C2*((D2^29)+C2*((D2^28)+C2*((D2^27)+C2*((D2^26)+C2*((D2^25)+C2*((D2^24)+C2*((D2^23)+C2*((D2^22)+C2*((D2^21)+C2*((D2^20)+(C2*((D2^19)+C2*((D2^18)+C2*((D2^17)+C2*((D2^16)+C2*((D2^15)+C2*((D2^14)+C2*((D2^13)+C2*((D2^12)+C2*((D2^11)+C2*((D2^10)+(C2*((D2^9)+C2*((D2^8)+C2*((D2^7)+C2*((D2^6)+C2*((D2^5)+C2*((D2^4)+C2*((D2^3)+C2*((D2^2)+C2*((D2^1)+C2*(D2^0)))))))))))))))))))))))))))))))))))))))))))))))) -> 0
F46: 45 | G46: =(A2-((C2^(E2)*B2)))/((D2^44)+C2*((D2^43)+C2*((D2^42)+C2*((D2^41)+C2*((D2^40)+(C2*((D2^39)+C2*((D2^38)+C2*((D2^37)+C2*((D2^36)+C2*((D2^35)+C2*((D2^34)+C2*((D2^33)+C2*((D2^32)+C2*((D2^31)+C2*((D2^30)+(C2*((D2^29)+C2*((D2^28)+C2*((D2^27)+C2*((D2^26)+C2*((D2^25)+C2*((D2^24)+C2*((D2^23)+C2*((D2^22)+C2*((D2^21)+C2*((D2^20)+(C2*((D2^19)+C2*((D2^18)+C2*((D2^17)+C2*((D2^16)+C2*((D2^15)+C2*((D2^14)+C2*((D2^13)+C2*((D2^12)+C2*((D2^11)+C2*((D2^10)+(C2*((D2^9)+C2*((D2^8)+C2*((D2^7)+C2*((D2^6)+C2*((D2^5)+C2*((D2^4)+C2*((D2^3)+C2*((D2^2)+C2*((D2^1)+C2*(D2^0))))))))))))))))))))))))))))))))))))))))))))))))) -> 0
F47: 46 | G47: =(A2-((C2^(E2)*B2)))/((D2^45)+C2*((D2^44)+C2*((D2^43)+C2*((D2^42)+C2*((D2^41)+C2*((D2^40)+(C2*((D2^39)+C2*((D2^38)+C2*((D2^37)+C2*((D2^36)+C2*((D2^35)+C2*((D2^34)+C2*((D2^33)+C2*((D2^32)+C2*((D2^31)+C2*((D2^30)+(C2*((D2^29)+C2*((D2^28)+C2*((D2^27)+C2*((D2^26)+C2*((D2^25)+C2*((D2^24)+C2*((D2^23)+C2*((D2^22)+C2*((D2^21)+C2*((D2^20)+(C2*((D2^19)+C2*((D2^18)+C2*((D2^17)+C2*((D2^16)+C2*((D2^15)+C2*((D2^14)+C2*((D2^13)+C2*((D2^12)+C2*((D2^11)+C2*((D2^10)+(C2*((D2^9)+C2*((D2^8)+C2*((D2^7)+C2*((D2^6)+C2*((D2^5)+C2*((D2^4)+C2*((D2^3)+C2*((D2^2)+C2*((D2^1)+C2*(D2^0)))))))))))))))))))))))))))))))))))))))))))))))))) -> 0
F48: 47 | G48: =(A2-((C2^(E2)*B2)))/((D2^46)+C2*((D2^45)+C2*((D2^44)+C2*((D2^43)+C2*((D2^42)+C2*((D2^41)+C2*((D2^40)+(C2*((D2^39)+C2*((D2^38)+C2*((D2^37)+C2*((D2^36)+C2*((D2^35)+C2*((D2^34)+C2*((D2^33)+C2*((D2^32)+C2*((D2^31)+C2*((D2^30)+(C2*((D2^29)+C2*((D2^28)+C2*((D2^27)+C2*((D2^26)+C2*((D2^25)+C2*((D2^24)+C2*((D2^23)+C2*((D2^22)+C2*((D2^21)+C2*((D2^20)+(C2*((D2^19)+C2*((D2^18)+C2*((D2^17)+C2*((D2^16)+C2*((D2^15)+C2*((D2^14)+C2*((D2^13)+C2*((D2^12)+C2*((D2^11)+C2*((D2^10)+(C2*((D2^9)+C2*((D2^8)+C2*((D2^7)+C2*((D2^6)+C2*((D2^5)+C2*((D2^4)+C2*((D2^3)+C2*((D2^2)+C2*((D2^1)+C2*(D2^0))))))))))))))))))))))))))))))))))))))))))))))))))) -> 0
F49: 48 | G49: =(A2-((C2^(E2)*B2)))/((D2^47)+C2*((D2^46)+C2*((D2^45)+C2*((D2^44)+C2*((D2^43)+C2*((D2^42)+C2*((D2^41)+C2*((D2^40)+(C2*((D2^39)+C2*((D2^38)+C2*((D2^37)+C2*((D2^36)+C2*((D2^35)+C2*((D2^34)+C2*((D2^33)+C2*((D2^32)+C2*((D2^31)+C2*((D2^30)+(C2*((D2^29)+C2*((D2^28)+C2*((D2^27)+C2*((D2^26)+C2*((D2^25)+C2*((D2^24)+C2*((D2^23)+C2*((D2^22)+C2*((D2^21)+C2*((D2^20)+(C2*((D2^19)+C2*((D2^18)+C2*((D2^17)+C2*((D2^16)+C2*((D2^15)+C2*((D2^14)+C2*((D2^13)+C2*((D2^12)+C2*((D2^11)+C2*((D2^10)+(C2*((D2^9)+C2*((D2^8)+C2*((D2^7)+C2*((D2^6)+C2*((D2^5)+C2*((D2^4)+C2*((D2^3)+C2*((D2^2)+C2*((D2^1)+C2*(D2^0)))))))))))))))))))))))))))))))))))))))))))))))))))) -> 0
F50: 49 | G50: =(A2-((C2^(E2)*B2)))/((D2^48)+C2*((D2^47)+C2*((D2^46)+C2*((D2^45)+C2*((D2^44)+C2*((D2^43)+C2*((D2^42)+C2*((D2^41)+C2*((D2^40)+(C2*((D2^39)+C2*((D2^38)+C2*((D2^37)+C2*((D2^36)+C2*((D2^35)+C2*((D2^34)+C2*((D2^33)+C2*((D2^32)+C2*((D2^31)+C2*((D2^30)+(C2*((D2^29)+C2*((D2^28)+C2*((D2^27)+C2*((D2^26)+C2*((D2^25)+C2*((D2^24)+C2*((D2^23)+C2*((D2^22)+C2*((D2^21)+C2*((D2^20)+(C2*((D2^19)+C2*((D2^18)+C2*((D2^17)+C2*((D2^16)+C2*((D2^15)+C2*((D2^14)+C2*((D2^13)+C2*((D2^12)+C2*((D2^11)+C2*((D2^10)+(C2*((D2^9)+C2*((D2^8)+C2*((D2^7)+C2*((D2^6)+C2*((D2^5)+C2*((D2^4)+C2*((D2^3)+C2*((D2^2)+C2*((D2^1)+C2*(D2^0))))))))))))))))))))))))))))))))))))))))))))))))))))) -> 0
F51: 50 | G51: =(A2-((C2^(E2)*B2)))/((D2^49)+C2*((D2^48)+C2*((D2^47)+C2*((D2^46)+C2*((D2^45)+C2*((D2^44)+C2*((D2^43)+C2*((D2^42)+C2*((D2^41)+C2*((D2^40)+(C2*((D2^39)+C2*((D2^38)+C2*((D2^37)+C2*((D2^36)+C2*((D2^35)+C2*((D2^34)+C2*((D2^33)+C2*((D2^32)+C2*((D2^31)+C2*((D2^30)+(C2*((D2^29)+C2*((D2^28)+C2*((D2^27)+C2*((D2^26)+C2*((D2^25)+C2*((D2^24)+C2*((D2^23)+C2*((D2^22)+C2*((D2^21)+C2*((D2^20)+(C2*((D2^19)+C2*((D2^18)+C2*((D2^17)+C2*((D2^16)+C2*((D2^15)+C2*((D2^14)+C2*((D2^13)+C2*((D2^12)+C2*((D2^11)+C2*((D2^10)+(C2*((D2^9)+C2*((D2^8)+C2*((D2^7)+C2*((D2^6)+C2*((D2^5)+C2*((D2^4)+C2*((D2^3)+C2*((D2^2)+C2*((D2^1)+C2*(D2^0)))))))))))))))))))))))))))))))))))))))))))))))))))))) -> 0
F52: 51 | G52: =(A2-((C2^(E2)*B2)))/((D2^50)+(C2*((D2^49)+C2*((D2^48)+C2*((D2^47)+C2*((D2^46)+C2*((D2^45)+C2*((D2^44)+C2*((D2^43)+C2*((D2^42)+C2*((D2^41)+C2*((D2^40)+(C2*((D2^39)+C2*((D2^38)+C2*((D2^37)+C2*((D2^36)+C2*((D2^35)+C2*((D2^34)+C2*((D2^33)+C2*((D2^32)+C2*((D2^31)+C2*((D2^30)+(C2*((D2^29)+C2*((D2^28)+C2*((D2^27)+C2*((D2^26)+C2*((D2^25)+C2*((D2^24)+C2*((D2^23)+C2*((D2^22)+C2*((D2^21)+C2*((D2^20)+(C2*((D2^19)+C2*((D2^18)+C2*((D2^17)+C2*((D2^16)+C2*((D2^15)+C2*((D2^14)+C2*((D2^13)+C2*((D2^12)+C2*((D2^11)+C2*((D2^10)+(C2*((D2^9)+C2*((D2^8)+C2*((D2^7)+C2*((D2^6)+C2*((D2^5)+C2*((D2^4)+C2*((D2^3)+C2*((D2^2)+C2*((D2^1)+C2*(D2^0)))))))))))))))))))))))))))))))))))))))))))))))))))))))) -> 0
F53: 52 | G53: =(A2-((C2^(E2)*B2)))/((D2^51)+C2*((D2^50)+(C2*((D2^49)+C2*((D2^48)+C2*((D2^47)+C2*((D2^46)+C2*((D2^45)+C2*((D2^44)+C2*((D2^43)+C2*((D2^42)+C2*((D2^41)+C2*((D2^40)+(C2*((D2^39)+C2*((D2^38)+C2*((D2^37)+C2*((D2^36)+C2*((D2^35)+C2*((D2^34)+C2*((D2^33)+C2*((D2^32)+C2*((D2^31)+C2*((D2^30)+(C2*((D2^29)+C2*((D2^28)+C2*((D2^27)+C2*((D2^26)+C2*((D2^25)+C2*((D2^24)+C2*((D2^23)+C2*((D2^22)+C2*((D2^21)+C2*((D2^20)+(C2*((D2^19)+C2*((D2^18)+C2*((D2^17)+C2*((D2^16)+C2*((D2^15)+C2*((D2^14)+C2*((D2^13)+C2*((D2^12)+C2*((D2^11)+C2*((D2^10)+(C2*((D2^9)+C2*((D2^8)+C2*((D2^7)+C2*((D2^6)+C2*((D2^5)+C2*((D2^4)+C2*((D2^3)+C2*((D2^2)+C2*((D2^1)+C2*(D2^0))))))))))))))))))))))))))))))))))))))))))))))))))))))))) -> 0
F54: 53 | G54: =(A2-((C2^(E2)*B2)))/((D2^52)+C2*((D2^51)+C2*((D2^50)+(C2*((D2^49)+C2*((D2^48)+C2*((D2^47)+C2*((D2^46)+C2*((D2^45)+C2*((D2^44)+C2*((D2^43)+C2*((D2^42)+C2*((D2^41)+C2*((D2^40)+(C2*((D2^39)+C2*((D2^38)+C2*((D2^37)+C2*((D2^36)+C2*((D2^35)+C2*((D2^34)+C2*((D2^33)+C2*((D2^32)+C2*((D2^31)+C2*((D2^30)+(C2*((D2^29)+C2*((D2^28)+C2*((D2^27)+C2*((D2^26)+C2*((D2^25)+C2*((D2^24)+C2*((D2^23)+C2*((D2^22)+C2*((D2^21)+C2*((D2^20)+(C2*((D2^19)+C2*((D2^18)+C2*((D2^17)+C2*((D2^16)+C2*((D2^15)+C2*((D2^14)+C2*((D2^13)+C2*((D2^12)+C2*((D2^11)+C2*((D2^10)+(C2*((D2^9)+C2*((D2^8)+C2*((D2^7)+C2*((D2^6)+C2*((D2^5)+C2*((D2^4)+C2*((D2^3)+C2*((D2^2)+C2*((D2^1)+C2*(D2^0)))))))))))))))))))))))))))))))))))))))))))))))))))))))))) -> 0
F55: 54 | G55: =(A2-((C2^(E2)*B2)))/((D2^53)+C2*((D2^52)+C2*((D2^51)+C2*((D2^50)+(C2*((D2^49)+C2*((D2^48)+C2*((D2^47)+C2*((D2^46)+C2*((D2^45)+C2*((D2^44)+C2*((D2^43)+C2*((D2^42)+C2*((D2^41)+C2*((D2^40)+(C2*((D2^39)+C2*((D2^38)+C2*((D2^37)+C2*((D2^36)+C2*((D2^35)+C2*((D2^34)+C2*((D2^33)+C2*((D2^32)+C2*((D2^31)+C2*((D2^30)+(C2*((D2^29)+C2*((D2^28)+C2*((D2^27)+C2*((D2^26)+C2*((D2^25)+C2*((D2^24)+C2*((D2^23)+C2*((D2^22)+C2*((D2^21)+C2*((D2^20)+(C2*((D2^19)+C2*((D2^18)+C2*((D2^17)+C2*((D2^16)+C2*((D2^15)+C2*((D2^14)+C2*((D2^13)+C2*((D2^12)+C2*((D2^11)+C2*((D2^10)+(C2*((D2^9)+C2*((D2^8)+C2*((D2^7)+C2*((D2^6)+C2*((D2^5)+C2*((D2^4)+C2*((D2^3)+C2*((D2^2)+C2*((D2^1)+C2*(D2^0))))))))))))))))))))))))))))))))))))))))))))))))))))))))))) -> 0
F56: 55 | G56: =(A2-((C2^(E2)*B2)))/((D2^54)+C2*((D2^53)+C2*((D2^52)+C2*((D2^51)+C2*((D2^50)+(C2*((D2^49)+C2*((D2^48)+C2*((D2^47)+C2*((D2^46)+C2*((D2^45)+C2*((D2^44)+C2*((D2^43)+C2*((D2^42)+C2*((D2^41)+C2*((D2^40)+(C2*((D2^39)+C2*((D2^38)+C2*((D2^37)+C2*((D2^36)+C2*((D2^35)+C2*((D2^34)+C2*((D2^33)+C2*((D2^32)+C2*((D2^31)+C2*((D2^30)+(C2*((D2^29)+C2*((D2^28)+C2*((D2^27)+C2*((D2^26)+C2*((D2^25)+C2*((D2^24)+C2*((D2^23)+C2*((D2^22)+C2*((D2^21)+C2*((D2^20)+(C2*((D2^19)+C2*((D2^18)+C2*((D2^17)+C2*((D2^16)+C2*((D2^15)+C2*((D2^14)+C2*((D2^13)+C2*((D2^12)+C2*((D2^11)+C2*((D2^10)+(C2*((D2^9)+C2*((D2^8)+C2*((D2^7)+C2*((D2^6)+C2*((D2^5)+C2*((D2^4)+C2*((D2^3)+C2*((D2^2)+C2*((D2^1)+C2*(D2^0)))))))))))))))))))))))))))))))))))))))))))))))))))))))))))) -> 0
F57: 56 | G57: =(A2-((C2^(E2)*B2)))/((D2^55)+C2*((D2^54)+C2*((D2^53)+C2*((D2^52)+C2*((D2^51)+C2*((D2^50)+(C2*((D2^49)+C2*((D2^48)+C2*((D2^47)+C2*((D2^46)+C2*((D2^45)+C2*((D2^44)+C2*((D2^43)+C2*((D2^42)+C2*((D2^41)+C2*((D2^40)+(C2*((D2^39)+C2*((D2^38)+C2*((D2^37)+C2*((D2^36)+C2*((D2^35)+C2*((D2^34)+C2*((D2^33)+C2*((D2^32)+C2*((D2^31)+C2*((D2^30)+(C2*((D2^29)+C2*((D2^28)+C2*((D2^27)+C2*((D2^26)+C2*((D2^25)+C2*((D2^24)+C2*((D2^23)+C2*((D2^22)+C2*((D2^21)+C2*((D2^20)+(C2*((D2^19)+C2*((D2^18)+C2*((D2^17)+C2*((D2^16)+C2*((D2^15)+C2*((D2^14)+C2*((D2^13)+C2*((D2^12)+C2*((D2^11)+C2*((D2^10)+(C2*((D2^9)+C2*((D2^8)+C2*((D2^7)+C2*((D2^6)+C2*((D2^5)+C2*((D2^4)+C2*((D2^3)+C2*((D2^2)+C2*((D2^1)+C2*(D2^0))))))))))))))))))))))))))))))))))))))))))))))))))))))))))))) -> 0
F58: 57 | G58: =(A2-((C2^(E2)*B2)))/((D2^56)+C2*((D2^55)+C2*((D2^54)+C2*((D2^53)+C2*((D2^52)+C2*((D2^51)+C2*((D2^50)+(C2*((D2^49)+C2*((D2^48)+C2*((D2^47)+C2*((D2^46)+C2*((D2^45)+C2*((D2^44)+C2*((D2^43)+C2*((D2^42)+C2*((D2^41)+C2*((D2^40)+(C2*((D2^39)+C2*((D2^38)+C2*((D2^37)+C2*((D2^36)+C2*((D2^35)+C2*((D2^34)+C2*((D2^33)+C2*((D2^32)+C2*((D2^31)+C2*((D2^30)+(C2*((D2^29)+C2*((D2^28)+C2*((D2^27)+C2*((D2^26)+C2*((D2^25)+C2*((D2^24)+C2*((D2^23)+C2*((D2^22)+C2*((D2^21)+C2*((D2^20)+(C2*((D2^19)+C2*((D2^18)+C2*((D2^17)+C2*((D2^16)+C2*((D2^15)+C2*((D2^14)+C2*((D2^13)+C2*((D2^12)+C2*((D2^11)+C2*((D2^10)+(C2*((D2^9)+C2*((D2^8)+C2*((D2^7)+C2*((D2^6)+C2*((D2^5)+C2*((D2^4)+C2*((D2^3)+C2*((D2^2)+C2*((D2^1)+C2*(D2^0)))))))))))))))))))))))))))))))))))))))))))))))))))))))))))))) -> 0
F59: 58 | G59: =(A2-((C2^(E2)*B2)))/((D2^57)+C2*((D2^56)+C2*((D2^55)+C2*((D2^54)+C2*((D2^53)+C2*((D2^52)+C2*((D2^51)+C2*((D2^50)+(C2*((D2^49)+C2*((D2^48)+C2*((D2^47)+C2*((D2^46)+C2*((D2^45)+C2*((D2^44)+C2*((D2^43)+C2*((D2^42)+C2*((D2^41)+C2*((D2^40)+(C2*((D2^39)+C2*((D2^38)+C2*((D2^37)+C2*((D2^36)+C2*((D2^35)+C2*((D2^34)+C2*((D2^33)+C2*((D2^32)+C2*((D2^31)+C2*((D2^30)+(C2*((D2^29)+C2*((D2^28)+C2*((D2^27)+C2*((D2^26)+C2*((D2^25)+C2*((D2^24)+C2*((D2^23)+C2*((D2^22)+C2*((D2^21)+C2*((D2^20)+(C2*((D2^19)+C2*((D2^18)+C2*((D2^17)+C2*((D2^16)+C2*((D2^15)+C2*((D2^14)+C2*((D2^13)+C2*((D2^12)+C2*((D2^11)+C2*((D2^10)+(C2*((D2^9)+C2*((D2^8)+C2*((D2^7)+C2*((D2^6)+C2*((D2^5)+C2*((D2^4)+C2*((D2^3)+C2*((D2^2)+C2*((D2^1)+C2*(D2^0))))))))))))))))))))))))))))))))))))))))))))))))))))))))))))))) -> 0
F60: 59 | G60: =(A2-((C2^(E2)*B2)))/((D2^58)+C2*((D2^57)+C2*((D2^56)+C2*((D2^55)+C2*((D2^54)+C2*((D2^53)+C2*((D2^52)+C2*((D2^51)+C2*((D2^50)+(C2*((D2^49)+C2*((D2^48)+C2*((D2^47)+C2*((D2^46)+C2*((D2^45)+C2*((D2^44)+C2*((D2^43)+C2*((D2^42)+C2*((D2^41)+C2*((D2^40)+(C2*((D2^39)+C2*((D2^38)+C2*((D2^37)+C2*((D2^36)+C2*((D2^35)+C2*((D2^34)+C2*((D2^33)+C2*((D2^32)+C2*((D2^31)+C2*((D2^30)+(C2*((D2^29)+C2*((D2^28)+C2*((D2^27)+C2*((D2^26)+C2*((D2^25)+C2*((D2^24)+C2*((D2^23)+C2*((D2^22)+C2*((D2^21)+C2*((D2^20)+(C2*((D2^19)+C2*((D2^18)+C2*((D2^17)+C2*((D2^16)+C2*((D2^15)+C2*((D2^14)+C2*((D2^13)+C2*((D2^12)+C2*((D2^11)+C2*((D2^10)+(C2*((D2^9)+C2*((D2^8)+C2*((D2^7)+C2*((D2^6)+C2*((D2^5)+C2*((D2^4)+C2*((D2^3)+C2*((D2^2)+C2*((D2^1)+C2*(D2^0)))))))))))))))))))))))))))))))))))))))))))))))))))))))))))))))) -> 0
F61: 60 | G61: =(A2-((C2^(E2)*B2)))/((D2^59)+C2*((D2^58)+C2*((D2^57)+C2*((D2^56)+C2*((D2^55)+C2*((D2^54)+C2*((D2^53)+C2*((D2^52)+C2*((D2^51)+C2*((D2^50)+(C2*((D2^49)+C2*((D2^48)+C2*((D2^47)+C2*((D2^46)+C2*((D2^45)+C2*((D2^44)+C2*((D2^43)+C2*((D2^42)+C2*((D2^41)+C2*((D2^40)+(C2*((D2^39)+C2*((D2^38)+C2*((D2^37)+C2*((D2^36)+C2*((D2^35)+C2*((D2^34)+C2*((D2^33)+C2*((D2^32)+C2*((D2^31)+C2*((D2^30)+(C2*((D2^29)+C2*((D2^28)+C2*((D2^27)+C2*((D2^26)+C2*((D2^25)+C2*((D2^24)+C2*((D2^23)+C2*((D2^22)+C2*((D2^21)+C2*((D2^20)+(C2*((D2^19)+C2*((D2^18)+C2*((D2^17)+C2*((D2^16)+C2*((D2^15)+C2*((D2^14)+C2*((D2^13)+C2*((D2^12)+C2*((D2^11)+C2*((D2^10)+(C2*((D2^9)+C2*((D2^8)+C2*((D2^7)+C2*((D2^6)+C2*((D2^5)+C2*((D2^4)+C2*((D2^3)+C2*((D2^2)+C2*((D2^1)+C2*(D2^0))))))))))))))))))))))))))))))))))))))))))))))))))))))))))))))))) -> 0
F62: 61 | G62: =(A2-((C2^(E2)*B2)))/((D2^60)+(C2*((D2^59)+C2*((D2^58)+C2*((D2^57)+C2*((D2^56)+C2*((D2^55)+C2*((D2^54)+C2*((D2^53)+C2*((D2^52)+C2*((D2^51)+C2*((D2^50)+(C2*((D2^49)+C2*((D2^48)+C2*((D2^47)+C2*((D2^46)+C2*((D2^45)+C2*((D2^44)+C2*((D2^43)+C2*((D2^42)+C2*((D2^41)+C2*((D2^40)+(C2*((D2^39)+C2*((D2^38)+C2*((D2^37)+C2*((D2^36)+C2*((D2^35)+C2*((D2^34)+C2*((D2^33)+C2*((D2^32)+C2*((D2^31)+C2*((D2^30)+(C2*((D2^29)+C2*((D2^28)+C2*((D2^27)+C2*((D2^26)+C2*((D2^25)+C2*((D2^24)+C2*((D2^23)+C2*((D2^22)+C2*((D2^21)+C2*((D2^20)+(C2*((D2^19)+C2*((D2^18)+C2*((D2^17)+C2*((D2^16)+C2*((D2^15)+C2*((D2^14)+C2*((D2^13)+C2*((D2^12)+C2*((D2^11)+C2*((D2^10)+(C2*((D2^9)+C2*((D2^8)+C2*((D2^7)+C2*((D2^6)+C2*((D2^5)+C2*((D2^4)+C2*((D2^3)+C2*((D2^2)+C2*((D2^1)+C2*(D2^0))))))))))))))))))))))))))))))))))))))))))))))))))))))))))))))))))) -> 0
F63: 62 | G63: =(A2-((C2^(E2)*B2)))/((D2^61)+C2*((D2^60)+(C2*((D2^59)+C2*((D2^58)+C2*((D2^57)+C2*((D2^56)+C2*((D2^55)+C2*((D2^54)+C2*((D2^53)+C2*((D2^52)+C2*((D2^51)+C2*((D2^50)+(C2*((D2^49)+C2*((D2^48)+C2*((D2^47)+C2*((D2^46)+C2*((D2^45)+C2*((D2^44)+C2*((D2^43)+C2*((D2^42)+C2*((D2^41)+C2*((D2^40)+(C2*((D2^39)+C2*((D2^38)+C2*((D2^37)+C2*((D2^36)+C2*((D2^35)+C2*((D2^34)+C2*((D2^33)+C2*((D2^32)+C2*((D2^31)+C2*((D2^30)+(C2*((D2^29)+C2*((D2^28)+C2*((D2^27)+C2*((D2^26)+C2*((D2^25)+C2*((D2^24)+C2*((D2^23)+C2*((D2^22)+C2*((D2^21)+C2*((D2^20)+(C2*((D2^19)+C2*((D2^18)+C2*((D2^17)+C2*((D2^16)+C2*((D2^15)+C2*((D2^14)+C2*((D2^13)+C2*((D2^12)+C2*((D2^11)+C2*((D2^10)+(C2*((D2^9)+C2*((D2^8)+C2*((D2^7)+C2*((D2^6)+C2*((D2^5)+C2*((D2^4)+C2*((D2^3)+C2*((D2^2)+C2*((D2^1)+C2*(D2^0)))))))))))))))))))))))))))))))))))))))))))))))))))))))))))))))))))) -> 0
F64: 63 | G64: =(A2-((C2^(E2)*B2)))/((D2^62)+C2*((D2^61)+C2*((D2^60)+(C2*((D2^59)+C2*((D2^58)+C2*((D2^57)+C2*((D2^56)+C2*((D2^55)+C2*((D2^54)+C2*((D2^53)+C2*((D2^52)+C2*((D2^51)+C2*((D2^50)+(C2*((D2^49)+C2*((D2^48)+C2*((D2^47)+C2*((D2^46)+C2*((D2^45)+C2*((D2^44)+C2*((D2^43)+C2*((D2^42)+C2*((D2^41)+C2*((D2^40)+(C2*((D2^39)+C2*((D2^38)+C2*((D2^37)+C2*((D2^36)+C2*((D2^35)+C2*((D2^34)+C2*((D2^33)+C2*((D2^32)+C2*((D2^31)+C2*((D2^30)+(C2*((D2^29)+C2*((D2^28)+C2*((D2^27)+C2*((D2^26)+C2*((D2^25)+C2*((D2^24)+C2*((D2^23)+C2*((D2^22)+C2*((D2^21)+C2*((D2^20)+(C2*((D2^19)+C2*((D2^18)+C2*((D2^17)+C2*((D2^16)+C2*((D2^15)+C2*((D2^14)+C2*((D2^13)+C2*((D2^12)+C2*((D2^11)+C2*((D2^10)+(C2*((D2^9)+C2*((D2^8)+C2*((D2^7)+C2*((D2^6)+C2*((D2^5)+C2*((D2^4)+C2*((D2^3)+C2*((D2^2)+C2*((D2^1)+C2*(D2^0))))))))))))))))))))))))))))))))))))))))))))))))))))))))))))))))))))) -> 0
F65: 64 | G65: =(A2-((C2^(E2)*B2)))/((D2^63)+C2*((D2^62)+C2*((D2^61)+C2*((D2^60)+(C2*((D2^59)+C2*((D2^58)+C2*((D2^57)+C2*((D2^56)+C2*((D2^55)+C2*((D2^54)+C2*((D2^53)+C2*((D2^52)+C2*((D2^51)+C2*((D2^50)+(C2*((D2^49)+C2*((D2^48)+C2*((D2^47)+C2*((D2^46)+C2*((D2^45)+C2*((D2^44)+C2*((D2^43)+C2*((D2^42)+C2*((D2^41)+C2*((D2^40)+(C2*((D2^39)+C2*((D2^38)+C2*((D2^37)+C2*((D2^36)+C2*((D2^35)+C2*((D2^34)+C2*((D2^33)+C2*((D2^32)+C2*((D2^31)+C2*((D2^30)+(C2*((D2^29)+C2*((D2^28)+C2*((D2^27)+C2*((D2^26)+C2*((D2^25)+C2*((D2^24)+C2*((D2^23)+C2*((D2^22)+C2*((D2^21)+C2*((D2^20)+(C2*((D2^19)+C2*((D2^18)+C2*((D2^17)+C2*((D2^16)+C2*((D2^15)+C2*((D2^14)+C2*((D2^13)+C2*((D2^12)+C2*((D2^11)+C2*((D2^10)+(C2*((D2^9)+C2*((D2^8)+C2*((D2^7)+C2*((D2^6)+C2*((D2^5)+C2*((D2^4)+C2*((D2^3)+C2*((D2^2)+C2*((D2^1)+C2*(D2^0)))))))))))))))))))))))))))))))))))))))))))))))))))))))))))))))))))))) -> 0
F66: 65 | G66: =(A2-((C2^(E2)*B2)))/((D2^64)+C2*((D2^63)+C2*((D2^62)+C2*((D2^61)+C2*((D2^60)+(C2*((D2^59)+C2*((D2^58)+C2*((D2^57)+C2*((D2^56)+C2*((D2^55)+C2*((D2^54)+C2*((D2^53)+C2*((D2^52)+C2*((D2^51)+C2*((D2^50)+(C2*((D2^49)+C2*((D2^48)+C2*((D2^47)+C2*((D2^46)+C2*((D2^45)+C2*((D2^44)+C2*((D2^43)+C2*((D2^42)+C2*((D2^41)+C2*((D2^40)+(C2*((D2^39)+C2*((D2^38)+C2*((D2^37)+C2*((D2^36)+C2*((D2^35)+C2*((D2^34)+C2*((D2^33)+C2*((D2^32)+C2*((D2^31)+C2*((D2^30)+(C2*((D2^29)+C2*((D2^28)+C2*((D2^27)+C2*((D2^26)+C2*((D2^25)+C2*((D2^24)+C2*((D2^23)+C2*((D2^22)+C2*((D2^21)+C2*((D2^20)+(C2*((D2^19)+C2*((D2^18)+C2*((D2^17)+C2*((D2^16)+C2*((D2^15)+C2*((D2^14)+C2*((D2^13)+C2*((D2^12)+C2*((D2^11)+C2*((D2^10)+(C2*((D2^9)+C2*((D2^8)+C2*((D2^7)+C2*((D2^6)+C2*((D2^5)+C2*((D2^4)+C2*((D2^3)+C2*((D2^2)+C2*((D2^1)+C2*(D2^0))))))))))))))))))))))))))))))))))))))))))))))))))))))))))))))))))))))) -> 0
F67: 66 | G67: =(A2-((C2^(E2)*B2)))/((D2^65)+C2*((D2^64)+C2*((D2^63)+C2*((D2^62)+C2*((D2^61)+C2*((D2^60)+(C2*((D2^59)+C2*((D2^58)+C2*((D2^57)+C2*((D2^56)+C2*((D2^55)+C2*((D2^54)+C2*((D2^53)+C2*((D2^52)+C2*((D2^51)+C2*((D2^50)+(C2*((D2^49)+C2*((D2^48)+C2*((D2^47)+C2*((D2^46)+C2*((D2^45)+C2*((D2^44)+C2*((D2^43)+C2*((D2^42)+C2*((D2^41)+C2*((D2^40)+(C2*((D2^39)+C2*((D2^38)+C2*((D2^37)+C2*((D2^36)+C2*((D2^35)+C2*((D2^34)+C2*((D2^33)+C2*((D2^32)+C2*((D2^31)+C2*((D2^30)+(C2*((D2^29)+C2*((D2^28)+C2*((D2^27)+C2*((D2^26)+C2*((D2^25)+C2*((D2^24)+C2*((D2^23)+C2*((D2^22)+C2*((D2^21)+C2*((D2^20)+(C2*((D2^19)+C2*((D2^18)+C2*((D2^17)+C2*((D2^16)+C2*((D2^15)+C2*((D2^14)+C2*((D2^13)+C2*((D2^12)+C2*((D2^11)+C2*((D2^10)+(C2*((D2^9)+C2*((D2^8)+C2*((D2^7)+C2*((D2^6)+C2*((D2^5)+C2*((D2^4)+C2*((D2^3)+C2*((D2^2)+C2*((D2^1)+C2*(D2^0)))))))))))))))))))))))))))))))))))))))))))))))))))))))))))))))))))))))) -> 0
F68: 67 | G68: =(A2-((C2^(E2)*B2)))/((D2^66)+C2*((D2^65)+C2*((D2^64)+C2*((D2^63)+C2*((D2^62)+C2*((D2^61)+C2*((D2^60)+(C2*((D2^59)+C2*((D2^58)+C2*((D2^57)+C2*((D2^56)+C2*((D2^55)+C2*((D2^54)+C2*((D2^53)+C2*((D2^52)+C2*((D2^51)+C2*((D2^50)+(C2*((D2^49)+C2*((D2^48)+C2*((D2^47)+C2*((D2^46)+C2*((D2^45)+C2*((D2^44)+C2*((D2^43)+C2*((D2^42)+C2*((D2^41)+C2*((D2^40)+(C2*((D2^39)+C2*((D2^38)+C2*((D2^37)+C2*((D2^36)+C2*((D2^35)+C2*((D2^34)+C2*((D2^33)+C2*((D2^32)+C2*((D2^31)+C2*((D2^30)+(C2*((D2^29)+C2*((D2^28)+C2*((D2^27)+C2*((D2^26)+C2*((D2^25)+C2*((D2^24)+C2*((D2^23)+C2*((D2^22)+C2*((D2^21)+C2*((D2^20)+(C2*((D2^19)+C2*((D2^18)+C2*((D2^17)+C2*((D2^16)+C2*((D2^15)+C2*((D2^14)+C2*((D2^13)+C2*((D2^12)+C2*((D2^11)+C2*((D2^10)+(C2*((D2^9)+C2*((D2^8)+C2*((D2^7)+C2*((D2^6)+C2*((D2^5)+C2*((D2^4)+C2*((D2^3)+C2*((D2^2)+C2*((D2^1)+C2*(D2^0))))))))))))))))))))))))))))))))))))))))))))))))))))))))))))))))))))))))) -> 0
F69: 68 | G69: =(A2-((C2^(E2)*B2)))/((D2^67)+C2*((D2^66)+C2*((D2^65)+C2*((D2^64)+C2*((D2^63)+C2*((D2^62)+C2*((D2^61)+C2*((D2^60)+(C2*((D2^59)+C2*((D2^58)+C2*((D2^57)+C2*((D2^56)+C2*((D2^55)+C2*((D2^54)+C2*((D2^53)+C2*((D2^52)+C2*((D2^51)+C2*((D2^50)+(C2*((D2^49)+C2*((D2^48)+C2*((D2^47)+C2*((D2^46)+C2*((D2^45)+C2*((D2^44)+C2*((D2^43)+C2*((D2^42)+C2*((D2^41)+C2*((D2^40)+(C2*((D2^39)+C2*((D2^38)+C2*((D2^37)+C2*((D2^36)+C2*((D2^35)+C2*((D2^34)+C2*((D2^33)+C2*((D2^32)+C2*((D2^31)+C2*((D2^30)+(C2*((D2^29)+C2*((D2^28)+C2*((D2^27)+C2*((D2^26)+C2*((D2^25)+C2*((D2^24)+C2*((D2^23)+C2*((D2^22)+C2*((D2^21)+C2*((D2^20)+(C2*((D2^19)+C2*((D2^18)+C2*((D2^17)+C2*((D2^16)+C2*((D2^15)+C2*((D2^14)+C2*((D2^13)+C2*((D2^12)+C2*((D2^11)+C2*((D2^10)+(C2*((D2^9)+C2*((D2^8)+C2*((D2^7)+C2*((D2^6)+C2*((D2^5)+C2*((D2^4)+C2*((D2^3)+C2*((D2^2)+C2*((D2^1)+C2*(D2^0)))))))))))))))))))))))))))))))))))))))))))))))))))))))))))))))))))))))))) -> 0
F70: 69 | G70: =(A2-((C2^(E2)*B2)))/((D2^68)+C2*((D2^67)+C2*((D2^66)+C2*((D2^65)+C2*((D2^64)+C2*((D2^63)+C2*((D2^62)+C2*((D2^61)+C2*((D2^60)+(C2*((D2^59)+C2*((D2^58)+C2*((D2^57)+C2*((D2^56)+C2*((D2^55)+C2*((D2^54)+C2*((D2^53)+C2*((D2^52)+C2*((D2^51)+C2*((D2^50)+(C2*((D2^49)+C2*((D2^48)+C2*((D2^47)+C2*((D2^46)+C2*((D2^45)+C2*((D2^44)+C2*((D2^43)+C2*((D2^42)+C2*((D2^41)+C2*((D2^40)+(C2*((D2^39)+C2*((D2^38)+C2*((D2^37)+C2*((D2^36)+C2*((D2^35)+C2*((D2^34)+C2*((D2^33)+C2*((D2^32)+C2*((D2^31)+C2*((D2^30)+(C2*((D2^29)+C2*((D2^28)+C2*((D2^27)+C2*((D2^26)+C2*((D2^25)+C2*((D2^24)+C2*((D2^23)+C2*((D2^22)+C2*((D2^21)+C2*((D2^20)+(C2*((D2^19)+C2*((D2^18)+C2*((D2^17)+C2*((D2^16)+C2*((D2^15)+C2*((D2^14)+C2*((D2^13)+C2*((D2^12)+C2*((D2^11)+C2*((D2^10)+(C2*((D2^9)+C2*((D2^8)+C2*((D2^7)+C2*((D2^6)+C2*((D2^5)+C2*((D2^4)+C2*((D2^3)+C2*((D2^2)+C2*((D2^1)+C2*(D2^0))))))))))))))))))))))))))))))))))))))))))))))))))))))))))))))))))))))))))) -> 0
F71: 70 | G71: =(A2-((C2^(E2)*B2)))/((D2^69)+C2*((D2^68)+C2*((D2^67)+C2*((D2^66)+C2*((D2^65)+C2*((D2^64)+C2*((D2^63)+C2*((D2^62)+C2*((D2^61)+C2*((D2^60)+(C2*((D2^59)+C2*((D2^58)+C2*((D2^57)+C2*((D2^56)+C2*((D2^55)+C2*((D2^54)+C2*((D2^53)+C2*((D2^52)+C2*((D2^51)+C2*((D2^50)+(C2*((D2^49)+C2*((D2^48)+C2*((D2^47)+C2*((D2^46)+C2*((D2^45)+C2*((D2^44)+C2*((D2^43)+C2*((D2^42)+C2*((D2^41)+C2*((D2^40)+(C2*((D2^39)+C2*((D2^38)+C2*((D2^37)+C2*((D2^36)+C2*((D2^35)+C2*((D2^34)+C2*((D2^33)+C2*((D2^32)+C2*((D2^31)+C2*((D2^30)+(C2*((D2^29)+C2*((D2^28)+C2*((D2^27)+C2*((D2^26)+C2*((D2^25)+C2*((D2^24)+C2*((D2^23)+C2*((D2^22)+C2*((D2^21)+C2*((D2^20)+(C2*((D2^19)+C2*((D2^18)+C2*((D2^17)+C2*((D2^16)+C2*((D2^15)+C2*((D2^14)+C2*((D2^13)+C2*((D2^12)+C2*((D2^11)+C2*((D2^10)+(C2*((D2^9)+C2*((D2^8)+C2*((D2^7)+C2*((D2^6)+C2*((D2^5)+C2*((D2^4)+C2*((D2^3)+C2*((D2^2)+C2*((D2^1)+C2*(D2^0)))))))))))))))))))))))))))))))))))))))))))))))))))))))))))))))))))))))))))) -> 0
F72: 71 | G72: =(A2-((C2^(E2)*B2)))/((D2^70)+(C2*((D2^69)+C2*((D2^68)+C2*((D2^67)+C2*((D2^66)+C2*((D2^65)+C2*((D2^64)+C2*((D2^63)+C2*((D2^62)+C2*((D2^61)+C2*((D2^60)+(C2*((D2^59)+C2*((D2^58)+C2*((D2^57)+C2*((D2^56)+C2*((D2^55)+C2*((D2^54)+C2*((D2^53)+C2*((D2^52)+C2*((D2^51)+C2*((D2^50)+(C2*((D2^49)+C2*((D2^48)+C2*((D2^47)+C2*((D2^46)+C2*((D2^45)+C2*((D2^44)+C2*((D2^43)+C2*((D2^42)+C2*((D2^41)+C2*((D2^40)+(C2*((D2^39)+C2*((D2^38)+C2*((D2^37)+C2*((D2^36)+C2*((D2^35)+C2*((D2^34)+C2*((D2^33)+C2*((D2^32)+C2*((D2^31)+C2*((D2^30)+(C2*((D2^29)+C2*((D2^28)+C2*((D2^27)+C2*((D2^26)+C2*((D2^25)+C2*((D2^24)+C2*((D2^23)+C2*((D2^22)+C2*((D2^21)+C2*((D2^20)+(C2*((D2^19)+C2*((D2^18)+C2*((D2^17)+C2*((D2^16)+C2*((D2^15)+C2*((D2^14)+C2*((D2^13)+C2*((D2^12)+C2*((D2^11)+C2*((D2^10)+(C2*((D2^9)+C2*((D2^8)+C2*((D2^7)+C2*((D2^6)+C2*((D2^5)+C2*((D2^4)+C2*((D2^3)+C2*((D2^2)+C2*((D2^1)+C2*(D2^0)))))))))))))))))))))))))))))))))))))))))))))))))))))))))))))))))))))))))))))) -> 0
F73: 72 | G73: =(A2-((C2^(E2)*B2)))/((D2^71)+C2*((D2^70)+(C2*((D2^69)+C2*((D2^68)+C2*((D2^67)+C2*((D2^66)+C2*((D2^65)+C2*((D2^64)+C2*((D2^63)+C2*((D2^62)+C2*((D2^61)+C2*((D2^60)+(C2*((D2^59)+C2*((D2^58)+C2*((D2^57)+C2*((D2^56)+C2*((D2^55)+C2*((D2^54)+C2*((D2^53)+C2*((D2^52)+C2*((D2^51)+C2*((D2^50)+(C2*((D2^49)+C2*((D2^48)+C2*((D2^47)+C2*((D2^46)+C2*((D2^45)+C2*((D2^44)+C2*((D2^43)+C2*((D2^42)+C2*((D2^41)+C2*((D2^40)+(C2*((D2^39)+C2*((D2^38)+C2*((D2^37)+C2*((D2^36)+C2*((D2^35)+C2*((D2^34)+C2*((D2^33)+C2*((D2^32)+C2*((D2^31)+C2*((D2^30)+(C2*((D2^29)+C2*((D2^28)+C2*((D2^27)+C2*((D2^26)+C2*((D2^25)+C2*((D2^24)+C2*((D2^23)+C2*((D2^22)+C2*((D2^21)+C2*((D2^20)+(C2*((D2^19)+C2*((D2^18)+C2*((D2^17)+C2*((D2^16)+C2*((D2^15)+C2*((D2^14)+C2*((D2^13)+C2*((D2^12)+C2*((D2^11)+C2*((D2^10)+(C2*((D2^9)+C2*((D2^8)+C2*((D2^7)+C2*((D2^6)+C2*((D2^5)+C2*((D2^4)+C2*((D2^3)+C2*((D2^2)+C2*((D2^1)+C2*(D2^0))))))))))))))))))))))))))))))))))))))))))))))))))))))))))))))))))))))))))))))) -> 0
F74: 73 | G74: =(A2-((C2^(E2)*B2)))/((D2^72)+C2*((D2^71)+C2*((D2^70)+(C2*((D2^69)+C2*((D2^68)+C2*((D2^67)+C2*((D2^66)+C2*((D2^65)+C2*((D2^64)+C2*((D2^63)+C2*((D2^62)+C2*((D2^61)+C2*((D2^60)+(C2*((D2^59)+C2*((D2^58)+C2*((D2^57)+C2*((D2^56)+C2*((D2^55)+C2*((D2^54)+C2*((D2^53)+C2*((D2^52)+C2*((D2^51)+C2*((D2^50)+(C2*((D2^49)+C2*((D2^48)+C2*((D2^47)+C2*((D2^46)+C2*((D2^45)+C2*((D2^44)+C2*((D2^43)+C2*((D2^42)+C2*((D2^41)+C2*((D2^40)+(C2*((D2^39)+C2*((D2^38)+C2*((D2^37)+C2*((D2^36)+C2*((D2^35)+C2*((D2^34)+C2*((D2^33)+C2*((D2^32)+C2*((D2^31)+C2*((D2^30)+(C2*((D2^29)+C2*((D2^28)+C2*((D2^27)+C2*((D2^26)+C2*((D2^25)+C2*((D2^24)+C2*((D2^23)+C2*((D2^22)+C2*((D2^21)+C2*((D2^20)+(C2*((D2^19)+C2*((D2^18)+C2*((D2^17)+C2*((D2^16)+C2*((D2^15)+C2*((D2^14)+C2*((D2^13)+C2*((D2^12)+C2*((D2^11)+C2*((D2^10)+(C2*((D2^9)+C2*((D2^8)+C2*((D2^7)+C2*((D2^6)+C2*((D2^5)+C2*((D2^4)+C2*((D2^3)+C2*((D2^2)+C2*((D2^1)+C2*(D2^0)))))))))))))))))))))))))))))))))))))))))))))))))))))))))))))))))))))))))))))))) -> 0
F75: 74 | G75: =(A2-((C2^(E2)*B2)))/((D2^73)+C2*((D2^72)+C2*((D2^71)+C2*((D2^70)+(C2*((D2^69)+C2*((D2^68)+C2*((D2^67)+C2*((D2^66)+C2*((D2^65)+C2*((D2^64)+C2*((D2^63)+C2*((D2^62)+C2*((D2^61)+C2*((D2^60)+(C2*((D2^59)+C2*((D2^58)+C2*((D2^57)+C2*((D2^56)+C2*((D2^55)+C2*((D2^54)+C2*((D2^53)+C2*((D2^52)+C2*((D2^51)+C2*((D2^50)+(C2*((D2^49)+C2*((D2^48)+C2*((D2^47)+C2*((D2^46)+C2*((D2^45)+C2*((D2^44)+C2*((D2^43)+C2*((D2^42)+C2*((D2^41)+C2*((D2^40)+(C2*((D2^39)+C2*((D2^38)+C2*((D2^37)+C2*((D2^36)+C2*((D2^35)+C2*((D2^34)+C2*((D2^33)+C2*((D2^32)+C2*((D2^31)+C2*((D2^30)+(C2*((D2^29)+C2*((D2^28)+C2*((D2^27)+C2*((D2^26)+C2*((D2^25)+C2*((D2^24)+C2*((D2^23)+C2*((D2^22)+C2*((D2^21)+C2*((D2^20)+(C2*((D2^19)+C2*((D2^18)+C2*((D2^17)+C2*((D2^16)+C2*((D2^15)+C2*((D2^14)+C2*((D2^13)+C2*((D2^12)+C2*((D2^11)+C2*((D2^10)+(C2*((D2^9)+C2*((D2^8)+C2*((D2^7)+C2*((D2^6)+C2*((D2^5)+C2*((D2^4)+C2*((D2^3)+C2*((D2^2)+C2*((D2^1)+C2*(D2^0))))))))))))))))))))))))))))))))))))))))))))))))))))))))))))))))))))))))))))))))) -> 0
F76: 75 | G76: =(A2-((C2^(E2)*B2)))/((D2^74)+C2*((D2^73)+C2*((D2^72)+C2*((D2^71)+C2*((D2^70)+(C2*((D2^69)+C2*((D2^68)+C2*((D2^67)+C2*((D2^66)+C2*((D2^65)+C2*((D2^64)+C2*((D2^63)+C2*((D2^62)+C2*((D2^61)+C2*((D2^60)+(C2*((D2^59)+C2*((D2^58)+C2*((D2^57)+C2*((D2^56)+C2*((D2^55)+C2*((D2^54)+C2*((D2^53)+C2*((D2^52)+C2*((D2^51)+C2*((D2^50)+(C2*((D2^49)+C2*((D2^48)+C2*((D2^47)+C2*((D2^46)+C2*((D2^45)+C2*((D2^44)+C2*((D2^43)+C2*((D2^42)+C2*((D2^41)+C2*((D2^40)+(C2*((D2^39)+C2*((D2^38)+C2*((D2^37)+C2*((D2^36)+C2*((D2^35)+C2*((D2^34)+C2*((D2^33)+C2*((D2^32)+C2*((D2^31)+C2*((D2^30)+(C2*((D2^29)+C2*((D2^28)+C2*((D2^27)+C2*((D2^26)+C2*((D2^25)+C2*((D2^24)+C2*((D2^23)+C2*((D2^22)+C2*((D2^21)+C2*((D2^20)+(C2*((D2^19)+C2*((D2^18)+C2*((D2^17)+C2*((D2^16)+C2*((D2^15)+C2*((D2^14)+C2*((D2^13)+C2*((D2^12)+C2*((D2^11)+C2*((D2^10)+(C2*((D2^9)+C2*((D2^8)+C2*((D2^7)+C2*((D2^6)+C2*((D2^5)+C2*((D2^4)+C2*((D2^3)+C2*((D2^2)+C2*((D2^1)+C2*(D2^0)))))))))))))))))))))))))))))))))))))))))))))))))))))))))))))))))))))))))))))))))) -> 0
F77: 76 | G77: =(A2-((C2^(E2)*B2)))/((D2^75)+C2*((D2^74)+C2*((D2^73)+C2*((D2^72)+C2*((D2^71)+C2*((D2^70)+(C2*((D2^69)+C2*((D2^68)+C2*((D2^67)+C2*((D2^66)+C2*((D2^65)+C2*((D2^64)+C2*((D2^63)+C2*((D2^62)+C2*((D2^61)+C2*((D2^60)+(C2*((D2^59)+C2*((D2^58)+C2*((D2^57)+C2*((D2^56)+C2*((D2^55)+C2*((D2^54)+C2*((D2^53)+C2*((D2^52)+C2*((D2^51)+C2*((D2^50)+(C2*((D2^49)+C2*((D2^48)+C2*((D2^47)+C2*((D2^46)+C2*((D2^45)+C2*((D2^44)+C2*((D2^43)+C2*((D2^42)+C2*((D2^41)+C2*((D2^40)+(C2*((D2^39)+C2*((D2^38)+C2*((D2^37)+C2*((D2^36)+C2*((D2^35)+C2*((D2^34)+C2*((D2^33)+C2*((D2^32)+C2*((D2^31)+C2*((D2^30)+(C2*((D2^29)+C2*((D2^28)+C2*((D2^27)+C2*((D2^26)+C2*((D2^25)+C2*((D2^24)+C2*((D2^23)+C2*((D2^22)+C2*((D2^21)+C2*((D2^20)+(C2*((D2^19)+C2*((D2^18)+C2*((D2^17)+C2*((D2^16)+C2*((D2^15)+C2*((D2^14)+C2*((D2^13)+C2*((D2^12)+C2*((D2^11)+C2*((D2^10)+(C2*((D2^9)+C2*((D2^8)+C2*((D2^7)+C2*((D2^6)+C2*((D2^5)+C2*((D2^4)+C2*((D2^3)+C2*((D2^2)+C2*((D2^1)+C2*(D2^0))))))))))))))))))))))))))))))))))))))))))))))))))))))))))))))))))))))))))))))))))) -> 0
F78: 77 | G78: =(A2-((C2^(E2)*B2)))/((D2^76)+C2*((D2^75)+C2*((D2^74)+C2*((D2^73)+C2*((D2^72)+C2*((D2^71)+C2*((D2^70)+(C2*((D2^69)+C2*((D2^68)+C2*((D2^67)+C2*((D2^66)+C2*((D2^65)+C2*((D2^64)+C2*((D2^63)+C2*((D2^62)+C2*((D2^61)+C2*((D2^60)+(C2*((D2^59)+C2*((D2^58)+C2*((D2^57)+C2*((D2^56)+C2*((D2^55)+C2*((D2^54)+C2*((D2^53)+C2*((D2^52)+C2*((D2^51)+C2*((D2^50)+(C2*((D2^49)+C2*((D2^48)+C2*((D2^47)+C2*((D2^46)+C2*((D2^45)+C2*((D2^44)+C2*((D2^43)+C2*((D2^42)+C2*((D2^41)+C2*((D2^40)+(C2*((D2^39)+C2*((D2^38)+C2*((D2^37)+C2*((D2^36)+C2*((D2^35)+C2*((D2^34)+C2*((D2^33)+C2*((D2^32)+C2*((D2^31)+C2*((D2^30)+(C2*((D2^29)+C2*((D2^28)+C2*((D2^27)+C2*((D2^26)+C2*((D2^25)+C2*((D2^24)+C2*((D2^23)+C2*((D2^22)+C2*((D2^21)+C2*((D2^20)+(C2*((D2^19)+C2*((D2^18)+C2*((D2^17)+C2*((D2^16)+C2*((D2^15)+C2*((D2^14)+C2*((D2^13)+C2*((D2^12)+C2*((D2^11)+C2*((D2^10)+(C2*((D2^9)+C2*((D2^8)+C2*((D2^7)+C2*((D2^6)+C2*((D2^5)+C2*((D2^4)+C2*((D2^3)+C2*((D2^2)+C2*((D2^1)+C2*(D2^0)))))))))))))))))))))))))))))))))))))))))))))))))))))))))))))))))))))))))))))))))))) -> 0
F79: 78 | G79: =(A2-((C2^(E2)*B2)))/((D2^77)+C2*((D2^76)+C2*((D2^75)+C2*((D2^74)+C2*((D2^73)+C2*((D2^72)+C2*((D2^71)+C2*((D2^70)+(C2*((D2^69)+C2*((D2^68)+C2*((D2^67)+C2*((D2^66)+C2*((D2^65)+C2*((D2^64)+C2*((D2^63)+C2*((D2^62)+C2*((D2^61)+C2*((D2^60)+(C2*((D2^59)+C2*((D2^58)+C2*((D2^57)+C2*((D2^56)+C2*((D2^55)+C2*((D2^54)+C2*((D2^53)+C2*((D2^52)+C2*((D2^51)+C2*((D2^50)+(C2*((D2^49)+C2*((D2^48)+C2*((D2^47)+C2*((D2^46)+C2*((D2^45)+C2*((D2^44)+C2*((D2^43)+C2*((D2^42)+C2*((D2^41)+C2*((D2^40)+(C2*((D2^39)+C2*((D2^38)+C2*((D2^37)+C2*((D2^36)+C2*((D2^35)+C2*((D2^34)+C2*((D2^33)+C2*((D2^32)+C2*((D2^31)+C2*((D2^30)+(C2*((D2^29)+C2*((D2^28)+C2*((D2^27)+C2*((D2^26)+C2*((D2^25)+C2*((D2^24)+C2*((D2^23)+C2*((D2^22)+C2*((D2^21)+C2*((D2^20)+(C2*((D2^19)+C2*((D2^18)+C2*((D2^17)+C2*((D2^16)+C2*((D2^15)+C2*((D2^14)+C2*((D2^13)+C2*((D2^12)+C2*((D2^11)+C2*((D2^10)+(C2*((D2^9)+C2*((D2^8)+C2*((D2^7)+C2*((D2^6)+C2*((D2^5)+C2*((D2^4)+C2*((D2^3)+C2*((D2^2)+C2*((D2^1)+C2*(D2^0))))))))))))))))))))))))))))))))))))))))))))))))))))))))))))))))))))))))))))))))))))) -> 0
F80: 79 | G80: =(A2-((C2^(E2)*B2)))/((D2^78)+C2*((D2^77)+C2*((D2^76)+C2*((D2^75)+C2*((D2^74)+C2*((D2^73)+C2*((D2^72)+C2*((D2^71)+C2*((D2^70)+(C2*((D2^69)+C2*((D2^68)+C2*((D2^67)+C2*((D2^66)+C2*((D2^65)+C2*((D2^64)+C2*((D2^63)+C2*((D2^62)+C2*((D2^61)+C2*((D2^60)+(C2*((D2^59)+C2*((D2^58)+C2*((D2^57)+C2*((D2^56)+C2*((D2^55)+C2*((D2^54)+C2*((D2^53)+C2*((D2^52)+C2*((D2^51)+C2*((D2^50)+(C2*((D2^49)+C2*((D2^48)+C2*((D2^47)+C2*((D2^46)+C2*((D2^45)+C2*((D2^44)+C2*((D2^43)+C2*((D2^42)+C2*((D2^41)+C2*((D2^40)+(C2*((D2^39)+C2*((D2^38)+C2*((D2^37)+C2*((D2^36)+C2*((D2^35)+C2*((D2^34)+C2*((D2^33)+C2*((D2^32)+C2*((D2^31)+C2*((D2^30)+(C2*((D2^29)+C2*((D2^28)+C2*((D2^27)+C2*((D2^26)+C2*((D2^25)+C2*((D2^24)+C2*((D2^23)+C2*((D2^22)+C2*((D2^21)+C2*((D2^20)+(C2*((D2^19)+C2*((D2^18)+C2*((D2^17)+C2*((D2^16)+C2*((D2^15)+C2*((D2^14)+C2*((D2^13)+C2*((D2^12)+C2*((D2^11)+C2*((D2^10)+(C2*((D2^9)+C2*((D2^8)+C2*((D2^7)+C2*((D2^6)+C2*((D2^5)+C2*((D2^4)+C2*((D2^3)+C2*((D2^2)+C2*((D2^1)+C2*(D2^0)))))))))))))))))))))))))))))))))))))))))))))))))))))))))))))))))))))))))))))))))))))) -> 0
F81: 80 | G81: =(A2-((C2^(E2)*B2)))/((D2^79)+C2*((D2^78)+C2*((D2^77)+C2*((D2^76)+C2*((D2^75)+C2*((D2^74)+C2*((D2^73)+C2*((D2^72)+C2*((D2^71)+C2*((D2^70)+(C2*((D2^69)+C2*((D2^68)+C2*((D2^67)+C2*((D2^66)+C2*((D2^65)+C2*((D2^64)+C2*((D2^63)+C2*((D2^62)+C2*((D2^61)+C2*((D2^60)+(C2*((D2^59)+C2*((D2^58)+C2*((D2^57)+C2*((D2^56)+C2*((D2^55)+C2*((D2^54)+C2*((D2^53)+C2*((D2^52)+C2*((D2^51)+C2*((D2^50)+(C2*((D2^49)+C2*((D2^48)+C2*((D2^47)+C2*((D2^46)+C2*((D2^45)+C2*((D2^44)+C2*((D2^43)+C2*((D2^42)+C2*((D2^41)+C2*((D2^40)+(C2*((D2^39)+C2*((D2^38)+C2*((D2^37)+C2*((D2^36)+C2*((D2^35)+C2*((D2^34)+C2*((D2^33)+C2*((D2^32)+C2*((D2^31)+C2*((D2^30)+(C2*((D2^29)+C2*((D2^28)+C2*((D2^27)+C2*((D2^26)+C2*((D2^25)+C2*((D2^24)+C2*((D2^23)+C2*((D2^22)+C2*((D2^21)+C2*((D2^20)+(C2*((D2^19)+C2*((D2^18)+C2*((D2^17)+C2*((D2^16)+C2*((D2^15)+C2*((D2^14)+C2*((D2^13)+C2*((D2^12)+C2*((D2^11)+C2*((D2^10)+(C2*((D2^9)+C2*((D2^8)+C2*((D2^7)+C2*((D2^6)+C2*((D2^5)+C2*((D2^4)+C2*((D2^3)+C2*((D2^2)+C2*((D2^1)+C2*(D2^0))))))))))))))))))))))))))))))))))))))))))))))))))))))))))))))))))))))))))))))))))))))) -> 0
F82: 81 | G82: =(A2-((C2^(E2)*B2)))/((D2^80)+(C2*((D2^79)+C2*((D2^78)+C2*((D2^77)+C2*((D2^76)+C2*((D2^75)+C2*((D2^74)+C2*((D2^73)+C2*((D2^72)+C2*((D2^71)+C2*((D2^70)+(C2*((D2^69)+C2*((D2^68)+C2*((D2^67)+C2*((D2^66)+C2*((D2^65)+C2*((D2^64)+C2*((D2^63)+C2*((D2^62)+C2*((D2^61)+C2*((D2^60)+(C2*((D2^59)+C2*((D2^58)+C2*((D2^57)+C2*((D2^56)+C2*((D2^55)+C2*((D2^54)+C2*((D2^53)+C2*((D2^52)+C2*((D2^51)+C2*((D2^50)+(C2*((D2^49)+C2*((D2^48)+C2*((D2^47)+C2*((D2^46)+C2*((D2^45)+C2*((D2^44)+C2*((D2^43)+C2*((D2^42)+C2*((D2^41)+C2*((D2^40)+(C2*((D2^39)+C2*((D2^38)+C2*((D2^37)+C2*((D2^36)+C2*((D2^35)+C2*((D2^34)+C2*((D2^33)+C2*((D2^32)+C2*((D2^31)+C2*((D2^30)+(C2*((D2^29)+C2*((D2^28)+C2*((D2^27)+C2*((D2^26)+C2*((D2^25)+C2*((D2^24)+C2*((D2^23)+C2*((D2^22)+C2*((D2^21)+C2*((D2^20)+(C2*((D2^19)+C2*((D2^18)+C2*((D2^17)+C2*((D2^16)+C2*((D2^15)+C2*((D2^14)+C2*((D2^13)+C2*((D2^12)+C2*((D2^11)+C2*((D2^10)+(C2*((D2^9)+C2*((D2^8)+C2*((D2^7)+C2*((D2^6)+C2*((D2^5)+C2*((D2^4)+C2*((D2^3)+C2*((D2^2)+C2*((D2^1)+C2*(D2^0))))))))))))))))))))))))))))))))))))))))))))))))))))))))))))))))))))))))))))))))))))))))) -> 0
F83: 82 | G83: =(A2-((C2^(E2)*B2)))/((D2^81)+C2*((D2^80)+(C2*((D2^79)+C2*((D2^78)+C2*((D2^77)+C2*((D2^76)+C2*((D2^75)+C2*((D2^74)+C2*((D2^73)+C2*((D2^72)+C2*((D2^71)+C2*((D2^70)+(C2*((D2^69)+C2*((D2^68)+C2*((D2^67)+C2*((D2^66)+C2*((D2^65)+C2*((D2^64)+C2*((D2^63)+C2*((D2^62)+C2*((D2^61)+C2*((D2^60)+(C2*((D2^59)+C2*((D2^58)+C2*((D2^57)+C2*((D2^56)+C2*((D2^55)+C2*((D2^54)+C2*((D2^53)+C2*((D2^52)+C2*((D2^51)+C2*((D2^50)+(C2*((D2^49)+C2*((D2^48)+C2*((D2^47)+C2*((D2^46)+C2*((D2^45)+C2*((D2^44)+C2*((D2^43)+C2*((D2^42)+C2*((D2^41)+C2*((D2^40)+(C2*((D2^39)+C2*((D2^38)+C2*((D2^37)+C2*((D2^36)+C2*((D2^35)+C2*((D2^34)+C2*((D2^33)+C2*((D2^32)+C2*((D2^31)+C2*((D2^30)+(C2*((D2^29)+C2*((D2^28)+C2*((D2^27)+C2*((D2^26)+C2*((D2^25)+C2*((D2^24)+C2*((D2^23)+C2*((D2^22)+C2*((D2^21)+C2*((D2^20)+(C2*((D2^19)+C2*((D2^18)+C2*((D2^17)+C2*((D2^16)+C2*((D2^15)+C2*((D2^14)+C2*((D2^13)+C2*((D2^12)+C2*((D2^11)+C2*((D2^10)+(C2*((D2^9)+C2*((D2^8)+C2*((D2^7)+C2*((D2^6)+C2*((D2^5)+C2*((D2^4)+C2*((D2^3)+C2*((D2^2)+C2*((D2^1)+C2*(D2^0)))))))))))))))))))))))))))))))))))))))))))))))))))))))))))))))))))))))))))))))))))))))))) -> 0
F84: 83 | G84: =(A2-((C2^(E2)*B2)))/((D2^82)+C2*((D2^81)+C2*((D2^80)+(C2*((D2^79)+C2*((D2^78)+C2*((D2^77)+C2*((D2^76)+C2*((D2^75)+C2*((D2^74)+C2*((D2^73)+C2*((D2^72)+C2*((D2^71)+C2*((D2^70)+(C2*((D2^69)+C2*((D2^68)+C2*((D2^67)+C2*((D2^66)+C2*((D2^65)+C2*((D2^64)+C2*((D2^63)+C2*((D2^62)+C2*((D2^61)+C2*((D2^60)+(C2*((D2^59)+C2*((D2^58)+C2*((D2^57)+C2*((D2^56)+C2*((D2^55)+C2*((D2^54)+C2*((D2^53)+C2*((D2^52)+C2*((D2^51)+C2*((D2^50)+(C2*((D2^49)+C2*((D2^48)+C2*((D2^47)+C2*((D2^46)+C2*((D2^45)+C2*((D2^44)+C2*((D2^43)+C2*((D2^42)+C2*((D2^41)+C2*((D2^40)+(C2*((D2^39)+C2*((D2^38)+C2*((D2^37)+C2*((D2^36)+C2*((D2^35)+C2*((D2^34)+C2*((D2^33)+C2*((D2^32)+C2*((D2^31)+C2*((D2^30)+(C2*((D2^29)+C2*((D2^28)+C2*((D2^27)+C2*((D2^26)+C2*((D2^25)+C2*((D2^24)+C2*((D2^23)+C2*((D2^22)+C2*((D2^21)+C2*((D2^20)+(C2*((D2^19)+C2*((D2^18)+C2*((D2^17)+C2*((D2^16)+C2*((D2^15)+C2*((D2^14)+C2*((D2^13)+C2*((D2^12)+C2*((D2^11)+C2*((D2^10)+(C2*((D2^9)+C2*((D2^8)+C2*((D2^7)+C2*((D2^6)+C2*((D2^5)+C2*((D2^4)+C2*((D2^3)+C2*((D2^2)+C2*((D2^1)+C2*(D2^0))))))))))))))))))))))))))))))))))))))))))))))))))))))))))))))))))))))))))))))))))))))))))) -> 0
F85: 84 | G85: =(A2-((C2^(E2)*B2)))/((D2^83)+C2*((D2^82)+C2*((D2^81)+C2*((D2^80)+(C2*((D2^79)+C2*((D2^78)+C2*((D2^77)+C2*((D2^76)+C2*((D2^75)+C2*((D2^74)+C2*((D2^73)+C2*((D2^72)+C2*((D2^71)+C2*((D2^70)+(C2*((D2^69)+C2*((D2^68)+C2*((D2^67)+C2*((D2^66)+C2*((D2^65)+C2*((D2^64)+C2*((D2^63)+C2*((D2^62)+C2*((D2^61)+C2*((D2^60)+(C2*((D2^59)+C2*((D2^58)+C2*((D2^57)+C2*((D2^56)+C2*((D2^55)+C2*((D2^54)+C2*((D2^53)+C2*((D2^52)+C2*((D2^51)+C2*((D2^50)+(C2*((D2^49)+C2*((D2^48)+C2*((D2^47)+C2*((D2^46)+C2*((D2^45)+C2*((D2^44)+C2*((D2^43)+C2*((D2^42)+C2*((D2^41)+C2*((D2^40)+(C2*((D2^39)+C2*((D2^38)+C2*((D2^37)+C2*((D2^36)+C2*((D2^35)+C2*((D2^34)+C2*((D2^33)+C2*((D2^32)+C2*((D2^31)+C2*((D2^30)+(C2*((D2^29)+C2*((D2^28)+C2*((D2^27)+C2*((D2^26)+C2*((D2^25)+C2*((D2^24)+C2*((D2^23)+C2*((D2^22)+C2*((D2^21)+C2*((D2^20)+(C2*((D2^19)+C2*((D2^18)+C2*((D2^17)+C2*((D2^16)+C2*((D2^15)+C2*((D2^14)+C2*((D2^13)+C2*((D2^12)+C2*((D2^11)+C2*((D2^10)+(C2*((D2^9)+C2*((D2^8)+C2*((D2^7)+C2*((D2^6)+C2*((D2^5)+C2*((D2^4)+C2*((D2^3)+C2*((D2^2)+C2*((D2^1)+C2*(D2^0)))))))))))))))))))))))))))))))))))))))))))))))))))))))))))))))))))))))))))))))))))))))))))) -> 0
F86: 85 | G86: =(A2-((C2^(E2)*B2)))/((D2^84)+C2*((D2^83)+C2*((D2^82)+C2*((D2^81)+C2*((D2^80)+(C2*((D2^79)+C2*((D2^78)+C2*((D2^77)+C2*((D2^76)+C2*((D2^75)+C2*((D2^74)+C2*((D2^73)+C2*((D2^72)+C2*((D2^71)+C2*((D2^70)+(C2*((D2^69)+C2*((D2^68)+C2*((D2^67)+C2*((D2^66)+C2*((D2^65)+C2*((D2^64)+C2*((D2^63)+C2*((D2^62)+C2*((D2^61)+C2*((D2^60)+(C2*((D2^59)+C2*((D2^58)+C2*((D2^57)+C2*((D2^56)+C2*((D2^55)+C2*((D2^54)+C2*((D2^53)+C2*((D2^52)+C2*((D2^51)+C2*((D2^50)+(C2*((D2^49)+C2*((D2^48)+C2*((D2^47)+C2*((D2^46)+C2*((D2^45)+C2*((D2^44)+C2*((D2^43)+C2*((D2^42)+C2*((D2^41)+C2*((D2^40)+(C2*((D2^39)+C2*((D2^38)+C2*((D2^37)+C2*((D2^36)+C2*((D2^35)+C2*((D2^34)+C2*((D2^33)+C2*((D2^32)+C2*((D2^31)+C2*((D2^30)+(C2*((D2^29)+C2*((D2^28)+C2*((D2^27)+C2*((D2^26)+C2*((D2^25)+C2*((D2^24)+C2*((D2^23)+C2*((D2^22)+C2*((D2^21)+C2*((D2^20)+(C2*((D2^19)+C2*((D2^18)+C2*((D2^17)+C2*((D2^16)+C2*((D2^15)+C2*((D2^14)+C2*((D2^13)+C2*((D2^12)+C2*((D2^11)+C2*((D2^10)+(C2*((D2^9)+C2*((D2^8)+C2*((D2^7)+C2*((D2^6)+C2*((D2^5)+C2*((D2^4)+C2*((D2^3)+C2*((D2^2)+C2*((D2^1)+C2*(D2^0))))))))))))))))))))))))))))))))))))))))))))))))))))))))))))))))))))))))))))))))))))))))))))) -> 0
F87: 86 | G87: =(A2-((C2^(E2)*B2)))/((D2^85)+C2*((D2^84)+C2*((D2^83)+C2*((D2^82)+C2*((D2^81)+C2*((D2^80)+(C2*((D2^79)+C2*((D2^78)+C2*((D2^77)+C2*((D2^76)+C2*((D2^75)+C2*((D2^74)+C2*((D2^73)+C2*((D2^72)+C2*((D2^71)+C2*((D2^70)+(C2*((D2^69)+C2*((D2^68)+C2*((D2^67)+C2*((D2^66)+C2*((D2^65)+C2*((D2^64)+C2*((D2^63)+C2*((D2^62)+C2*((D2^61)+C2*((D2^60)+(C2*((D2^59)+C2*((D2^58)+C2*((D2^57)+C2*((D2^56)+C2*((D2^55)+C2*((D2^54)+C2*((D2^53)+C2*((D2^52)+C2*((D2^51)+C2*((D2^50)+(C2*((D2^49)+C2*((D2^48)+C2*((D2^47)+C2*((D2^46)+C2*((D2^45)+C2*((D2^44)+C2*((D2^43)+C2*((D2^42)+C2*((D2^41)+C2*((D2^40)+(C2*((D2^39)+C2*((D2^38)+C2*((D2^37)+C2*((D2^36)+C2*((D2^35)+C2*((D2^34)+C2*((D2^33)+C2*((D2^32)+C2*((D2^31)+C2*((D2^30)+(C2*((D2^29)+C2*((D2^28)+C2*((D2^27)+C2*((D2^26)+C2*((D2^25)+C2*((D2^24)+C2*((D2^23)+C2*((D2^22)+C2*((D2^21)+C2*((D2^20)+(C2*((D2^19)+C2*((D2^18)+C2*((D2^17)+C2*((D2^16)+C2*((D2^15)+C2*((D2^14)+C2*((D2^13)+C2*((D2^12)+C2*((D2^11)+C2*((D2^10)+(C2*((D2^9)+C2*((D2^8)+C2*((D2^7)+C2*((D2^6)+C2*((D2^5)+C2*((D2^4)+C2*((D2^3)+C2*((D2^2)+C2*((D2^1)+C2*(D2^0)))))))))))))))))))))))))))))))))))))))))))))))))))))))))))))))))))))))))))))))))))))))))))))) -> 0
F88: 87 | G88: =(A2-((C2^(E2)*B2)))/((D2^86)+C2*((D2^85)+C2*((D2^84)+C2*((D2^83)+C2*((D2^82)+C2*((D2^81)+C2*((D2^80)+(C2*((D2^79)+C2*((D2^78)+C2*((D2^77)+C2*((D2^76)+C2*((D2^75)+C2*((D2^74)+C2*((D2^73)+C2*((D2^72)+C2*((D2^71)+C2*((D2^70)+(C2*((D2^69)+C2*((D2^68)+C2*((D2^67)+C2*((D2^66)+C2*((D2^65)+C2*((D2^64)+C2*((D2^63)+C2*((D2^62)+C2*((D2^61)+C2*((D2^60)+(C2*((D2^59)+C2*((D2^58)+C2*((D2^57)+C2*((D2^56)+C2*((D2^55)+C2*((D2^54)+C2*((D2^53)+C2*((D2^52)+C2*((D2^51)+C2*((D2^50)+(C2*((D2^49)+C2*((D2^48)+C2*((D2^47)+C2*((D2^46)+C2*((D2^45)+C2*((D2^44)+C2*((D2^43)+C2*((D2^42)+C2*((D2^41)+C2*((D2^40)+(C2*((D2^39)+C2*((D2^38)+C2*((D2^37)+C2*((D2^36)+C2*((D2^35)+C2*((D2^34)+C2*((D2^33)+C2*((D2^32)+C2*((D2^31)+C2*((D2^30)+(C2*((D2^29)+C2*((D2^28)+C2*((D2^27)+C2*((D2^26)+C2*((D2^25)+C2*((D2^24)+C2*((D2^23)+C2*((D2^22)+C2*((D2^21)+C2*((D2^20)+(C2*((D2^19)+C2*((D2^18)+C2*((D2^17)+C2*((D2^16)+C2*((D2^15)+C2*((D2^14)+C2*((D2^13)+C2*((D2^12)+C2*((D2^11)+C2*((D2^10)+(C2*((D2^9)+C2*((D2^8)+C2*((D2^7)+C2*((D2^6)+C2*((D2^5)+C2*((D2^4)+C2*((D2^3)+C2*((D2^2)+C2*((D2^1)+C2*(D2^0))))))))))))))))))))))))))))))))))))))))))))))))))))))))))))))))))))))))))))))))))))))))))))))) -> 0
F89: 88 | G89: =(A2-((C2^(E2)*B2)))/((D2^87)+C2*((D2^86)+C2*((D2^85)+C2*((D2^84)+C2*((D2^83)+C2*((D2^82)+C2*((D2^81)+C2*((D2^80)+(C2*((D2^79)+C2*((D2^78)+C2*((D2^77)+C2*((D2^76)+C2*((D2^75)+C2*((D2^74)+C2*((D2^73)+C2*((D2^72)+C2*((D2^71)+C2*((D2^70)+(C2*((D2^69)+C2*((D2^68)+C2*((D2^67)+C2*((D2^66)+C2*((D2^65)+C2*((D2^64)+C2*((D2^63)+C2*((D2^62)+C2*((D2^61)+C2*((D2^60)+(C2*((D2^59)+C2*((D2^58)+C2*((D2^57)+C2*((D2^56)+C2*((D2^55)+C2*((D2^54)+C2*((D2^53)+C2*((D2^52)+C2*((D2^51)+C2*((D2^50)+(C2*((D2^49)+C2*((D2^48)+C2*((D2^47)+C2*((D2^46)+C2*((D2^45)+C2*((D2^44)+C2*((D2^43)+C2*((D2^42)+C2*((D2^41)+C2*((D2^40)+(C2*((D2^39)+C2*((D2^38)+C2*((D2^37)+C2*((D2^36)+C2*((D2^35)+C2*((D2^34)+C2*((D2^33)+C2*((D2^32)+C2*((D2^31)+C2*((D2^30)+(C2*((D2^29)+C2*((D2^28)+C2*((D2^27)+C2*((D2^26)+C2*((D2^25)+C2*((D2^24)+C2*((D2^23)+C2*((D2^22)+C2*((D2^21)+C2*((D2^20)+(C2*((D2^19)+C2*((D2^18)+C2*((D2^17)+C2*((D2^16)+C2*((D2^15)+C2*((D2^14)+C2*((D2^13)+C2*((D2^12)+C2*((D2^11)+C2*((D2^10)+(C2*((D2^9)+C2*((D2^8)+C2*((D2^7)+C2*((D2^6)+C2*((D2^5)+C2*((D2^4)+C2*((D2^3)+C2*((D2^2)+C2*((D2^1)+C2*(D2^0)))))))))))))))))))))))))))))))))))))))))))))))))))))))))))))))))))))))))))))))))))))))))))))))) -> 0
F90: 89 | G90: =(A2-((C2^(E2)*B2)))/((D2^88)+C2*((D2^87)+C2*((D2^86)+C2*((D2^85)+C2*((D2^84)+C2*((D2^83)+C2*((D2^82)+C2*((D2^81)+C2*((D2^80)+(C2*((D2^79)+C2*((D2^78)+C2*((D2^77)+C2*((D2^76)+C2*((D2^75)+C2*((D2^74)+C2*((D2^73)+C2*((D2^72)+C2*((D2^71)+C2*((D2^70)+(C2*((D2^69)+C2*((D2^68)+C2*((D2^67)+C2*((D2^66)+C2*((D2^65)+C2*((D2^64)+C2*((D2^63)+C2*((D2^62)+C2*((D2^61)+C2*((D2^60)+(C2*((D2^59)+C2*((D2^58)+C2*((D2^57)+C2*((D2^56)+C2*((D2^55)+C2*((D2^54)+C2*((D2^53)+C2*((D2^52)+C2*((D2^51)+C2*((D2^50)+(C2*((D2^49)+C2*((D2^48)+C2*((D2^47)+C2*((D2^46)+C2*((D2^45)+C2*((D2^44)+C2*((D2^43)+C2*((D2^42)+C2*((D2^41)+C2*((D2^40)+(C2*((D2^39)+C2*((D2^38)+C2*((D2^37)+C2*((D2^36)+C2*((D2^35)+C2*((D2^34)+C2*((D2^33)+C2*((D2^32)+C2*((D2^31)+C2*((D2^30)+(C2*((D2^29)+C2*((D2^28)+C2*((D2^27)+C2*((D2^26)+C2*((D2^25)+C2*((D2^24)+C2*((D2^23)+C2*((D2^22)+C2*((D2^21)+C2*((D2^20)+(C2*((D2^19)+C2*((D2^18)+C2*((D2^17)+C2*((D2^16)+C2*((D2^15)+C2*((D2^14)+C2*((D2^13)+C2*((D2^12)+C2*((D2^11)+C2*((D2^10)+(C2*((D2^9)+C2*((D2^8)+C2*((D2^7)+C2*((D2^6)+C2*((D2^5)+C2*((D2^4)+C2*((D2^3)+C2*((D2^2)+C2*((D2^1)+C2*(D2^0))))))))))))))))))))))))))))))))))))))))))))))))))))))))))))))))))))))))))))))))))))))))))))))))) -> 0
F91: 90 | G91: =(A2-((C2^(E2)*B2)))/((D2^89)+C2*((D2^88)+C2*((D2^87)+C2*((D2^86)+C2*((D2^85)+C2*((D2^84)+C2*((D2^83)+C2*((D2^82)+C2*((D2^81)+C2*((D2^80)+(C2*((D2^79)+C2*((D2^78)+C2*((D2^77)+C2*((D2^76)+C2*((D2^75)+C2*((D2^74)+C2*((D2^73)+C2*((D2^72)+C2*((D2^71)+C2*((D2^70)+(C2*((D2^69)+C2*((D2^68)+C2*((D2^67)+C2*((D2^66)+C2*((D2^65)+C2*((D2^64)+C2*((D2^63)+C2*((D2^62)+C2*((D2^61)+C2*((D2^60)+(C2*((D2^59)+C2*((D2^58)+C2*((D2^57)+C2*((D2^56)+C2*((D2^55)+C2*((D2^54)+C2*((D2^53)+C2*((D2^52)+C2*((D2^51)+C2*((D2^50)+(C2*((D2^49)+C2*((D2^48)+C2*((D2^47)+C2*((D2^46)+C2*((D2^45)+C2*((D2^44)+C2*((D2^43)+C2*((D2^42)+C2*((D2^41)+C2*((D2^40)+(C2*((D2^39)+C2*((D2^38)+C2*((D2^37)+C2*((D2^36)+C2*((D2^35)+C2*((D2^34)+C2*((D2^33)+C2*((D2^32)+C2*((D2^31)+C2*((D2^30)+(C2*((D2^29)+C2*((D2^28)+C2*((D2^27)+C2*((D2^26)+C2*((D2^25)+C2*((D2^24)+C2*((D2^23)+C2*((D2^22)+C2*((D2^21)+C2*((D2^20)+(C2*((D2^19)+C2*((D2^18)+C2*((D2^17)+C2*((D2^16)+C2*((D2^15)+C2*((D2^14)+C2*((D2^13)+C2*((D2^12)+C2*((D2^11)+C2*((D2^10)+(C2*((D2^9)+C2*((D2^8)+C2*((D2^7)+C2*((D2^6)+C2*((D2^5)+C2*((D2^4)+C2*((D2^3)+C2*((D2^2)+C2*((D2^1)+C2*(D2^0)))))))))))))))))))))))))))))))))))))))))))))))))))))))))))))))))))))))))))))))))))))))))))))))))) -> 0
F92: 91 | G92: =(A2-((C2^(E2)*B2)))/((D2^90)+(C2*((D2^89)+C2*((D2^88)+C2*((D2^87)+C2*((D2^86)+C2*((D2^85)+C2*((D2^84)+C2*((D2^83)+C2*((D2^82)+C2*((D2^81)+C2*((D2^80)+(C2*((D2^79)+C2*((D2^78)+C2*((D2^77)+C2*((D2^76)+C2*((D2^75)+C2*((D2^74)+C2*((D2^73)+C2*((D2^72)+C2*((D2^71)+C2*((D2^70)+(C2*((D2^69)+C2*((D2^68)+C2*((D2^67)+C2*((D2^66)+C2*((D2^65)+C2*((D2^64)+C2*((D2^63)+C2*((D2^62)+C2*((D2^61)+C2*((D2^60)+(C2*((D2^59)+C2*((D2^58)+C2*((D2^57)+C2*((D2^56)+C2*((D2^55)+C2*((D2^54)+C2*((D2^53)+C2*((D2^52)+C2*((D2^51)+C2*((D2^50)+(C2*((D2^49)+C2*((D2^48)+C2*((D2^47)+C2*((D2^46)+C2*((D2^45)+C2*((D2^44)+C2*((D2^43)+C2*((D2^42)+C2*((D2^41)+C2*((D2^40)+(C2*((D2^39)+C2*((D2^38)+C2*((D2^37)+C2*((D2^36)+C2*((D2^35)+C2*((D2^34)+C2*((D2^33)+C2*((D2^32)+C2*((D2^31)+C2*((D2^30)+(C2*((D2^29)+C2*((D2^28)+C2*((D2^27)+C2*((D2^26)+C2*((D2^25)+C2*((D2^24)+C2*((D2^23)+C2*((D2^22)+C2*((D2^21)+C2*((D2^20)+(C2*((D2^19)+C2*((D2^18)+C2*((D2^17)+C2*((D2^16)+C2*((D2^15)+C2*((D2^14)+C2*((D2^13)+C2*((D2^12)+C2*((D2^11)+C2*((D2^10)+(C2*((D2^9)+C2*((D2^8)+C2*((D2^7)+C2*((D2^6)+C2*((D2^5)+C2*((D2^4)+C2*((D2^3)+C2*((D2^2)+C2*((D2^1)+C2*(D2^0)))))))))))))))))))))))))))))))))))))))))))))))))))))))))))))))))))))))))))))))))))))))))))))))))))) -> 0
F93: 92 | G93: =(A2-((C2^(E2)*B2)))/((D2^91)+C2*((D2^90)+(C2*((D2^89)+C2*((D2^88)+C2*((D2^87)+C2*((D2^86)+C2*((D2^85)+C2*((D2^84)+C2*((D2^83)+C2*((D2^82)+C2*((D2^81)+C2*((D2^80)+(C2*((D2^79)+C2*((D2^78)+C2*((D2^77)+C2*((D2^76)+C2*((D2^75)+C2*((D2^74)+C2*((D2^73)+C2*((D2^72)+C2*((D2^71)+C2*((D2^70)+(C2*((D2^69)+C2*((D2^68)+C2*((D2^67)+C2*((D2^66)+C2*((D2^65)+C2*((D2^64)+C2*((D2^63)+C2*((D2^62)+C2*((D2^61)+C2*((D2^60)+(C2*((D2^59)+C2*((D2^58)+C2*((D2^57)+C2*((D2^56)+C2*((D2^55)+C2*((D2^54)+C2*((D2^53)+C2*((D2^52)+C2*((D2^51)+C2*((D2^50)+(C2*((D2^49)+C2*((D2^48)+C2*((D2^47)+C2*((D2^46)+C2*((D2^45)+C2*((D2^44)+C2*((D2^43)+C2*((D2^42)+C2*((D2^41)+C2*((D2^40)+(C2*((D2^39)+C2*((D2^38)+C2*((D2^37)+C2*((D2^36)+C2*((D2^35)+C2*((D2^34)+C2*((D2^33)+C2*((D2^32)+C2*((D2^31)+C2*((D2^30)+(C2*((D2^29)+C2*((D2^28)+C2*((D2^27)+C2*((D2^26)+C2*((D2^25)+C2*((D2^24)+C2*((D2^23)+C2*((D2^22)+C2*((D2^21)+C2*((D2^20)+(C2*((D2^19)+C2*((D2^18)+C2*((D2^17)+C2*((D2^16)+C2*((D2^15)+C2*((D2^14)+C2*((D2^13)+C2*((D2^12)+C2*((D2^11)+C2*((D2^10)+(C2*((D2^9)+C2*((D2^8)+C2*((D2^7)+C2*((D2^6)+C2*((D2^5)+C2*((D2^4)+C2*((D2^3)+C2*((D2^2)+C2*((D2^1)+C2*(D2^0))))))))))))))))))))))))))))))))))))))))))))))))))))))))))))))))))))))))))))))))))))))))))))))))))))) -> 0
F94: 93 | G94: =(A2-((C2^(E2)*B2)))/((D2^92)+C2*((D2^91)+C2*((D2^90)+(C2*((D2^89)+C2*((D2^88)+C2*((D2^87)+C2*((D2^86)+C2*((D2^85)+C2*((D2^84)+C2*((D2^83)+C2*((D2^82)+C2*((D2^81)+C2*((D2^80)+(C2*((D2^79)+C2*((D2^78)+C2*((D2^77)+C2*((D2^76)+C2*((D2^75)+C2*((D2^74)+C2*((D2^73)+C2*((D2^72)+C2*((D2^71)+C2*((D2^70)+(C2*((D2^69)+C2*((D2^68)+C2*((D2^67)+C2*((D2^66)+C2*((D2^65)+C2*((D2^64)+C2*((D2^63)+C2*((D2^62)+C2*((D2^61)+C2*((D2^60)+(C2*((D2^59)+C2*((D2^58)+C2*((D2^57)+C2*((D2^56)+C2*((D2^55)+C2*((D2^54)+C2*((D2^53)+C2*((D2^52)+C2*((D2^51)+C2*((D2^50)+(C2*((D2^49)+C2*((D2^48)+C2*((D2^47)+C2*((D2^46)+C2*((D2^45)+C2*((D2^44)+C2*((D2^43)+C2*((D2^42)+C2*((D2^41)+C2*((D2^40)+(C2*((D2^39)+C2*((D2^38)+C2*((D2^37)+C2*((D2^36)+C2*((D2^35)+C2*((D2^34)+C2*((D2^33)+C2*((D2^32)+C2*((D2^31)+C2*((D2^30)+(C2*((D2^29)+C2*((D2^28)+C2*((D2^27)+C2*((D2^26)+C2*((D2^25)+C2*((D2^24)+C2*((D2^23)+C2*((D2^22)+C2*((D2^21)+C2*((D2^20)+(C2*((D2^19)+C2*((D2^18)+C2*((D2^17)+C2*((D2^16)+C2*((D2^15)+C2*((D2^14)+C2*((D2^13)+C2*((D2^12)+C2*((D2^11)+C2*((D2^10)+(C2*((D2^9)+C2*((D2^8)+C2*((D2^7)+C2*((D2^6)+C2*((D2^5)+C2*((D2^4)+C2*((D2^3)+C2*((D2^2)+C2*((D2^1)+C2*(D2^0)))))))))))))))))))))))))))))))))))))))))))))))))))))))))))))))))))))))))))))))))))))))))))))))))))))) -> 0
F95: 94 | G95: =(A2-((C2^(E2)*B2)))/((D2^93)+C2*((D2^92)+C2*((D2^91)+C2*((D2^90)+(C2*((D2^89)+C2*((D2^88)+C2*((D2^87)+C2*((D2^86)+C2*((D2^85)+C2*((D2^84)+C2*((D2^83)+C2*((D2^82)+C2*((D2^81)+C2*((D2^80)+(C2*((D2^79)+C2*((D2^78)+C2*((D2^77)+C2*((D2^76)+C2*((D2^75)+C2*((D2^74)+C2*((D2^73)+C2*((D2^72)+C2*((D2^71)+C2*((D2^70)+(C2*((D2^69)+C2*((D2^68)+C2*((D2^67)+C2*((D2^66)+C2*((D2^65)+C2*((D2^64)+C2*((D2^63)+C2*((D2^62)+C2*((D2^61)+C2*((D2^60)+(C2*((D2^59)+C2*((D2^58)+C2*((D2^57)+C2*((D2^56)+C2*((D2^55)+C2*((D2^54)+C2*((D2^53)+C2*((D2^52)+C2*((D2^51)+C2*((D2^50)+(C2*((D2^49)+C2*((D2^48)+C2*((D2^47)+C2*((D2^46)+C2*((D2^45)+C2*((D2^44)+C2*((D2^43)+C2*((D2^42)+C2*((D2^41)+C2*((D2^40)+(C2*((D2^39)+C2*((D2^38)+C2*((D2^37)+C2*((D2^36)+C2*((D2^35)+C2*((D2^34)+C2*((D2^33)+C2*((D2^32)+C2*((D2^31)+C2*((D2^30)+(C2*((D2^29)+C2*((D2^28)+C2*((D2^27)+C2*((D2^26)+C2*((D2^25)+C2*((D2^24)+C2*((D2^23)+C2*((D2^22)+C2*((D2^21)+C2*((D2^20)+(C2*((D2^19)+C2*((D2^18)+C2*((D2^17)+C2*((D2^16)+C2*((D2^15)+C2*((D2^14)+C2*((D2^13)+C2*((D2^12)+C2*((D2^11)+C2*((D2^10)+(C2*((D2^9)+C2*((D2^8)+C2*((D2^7)+C2*((D2^6)+C2*((D2^5)+C2*((D2^4)+C2*((D2^3)+C2*((D2^2)+C2*((D2^1)+C2*(D2^0))))))))))))))))))))))))))))))))))))))))))))))))))))))))))))))))))))))))))))))))))))))))))))))))))))))) -> 0
F96: 95 | G96: =(A2-((C2^(E2)*B2)))/((D2^94)+C2*((D2^93)+C2*((D2^92)+C2*((D2^91)+C2*((D2^90)+(C2*((D2^89)+C2*((D2^88)+C2*((D2^87)+C2*((D2^86)+C2*((D2^85)+C2*((D2^84)+C2*((D2^83)+C2*((D2^82)+C2*((D2^81)+C2*((D2^80)+(C2*((D2^79)+C2*((D2^78)+C2*((D2^77)+C2*((D2^76)+C2*((D2^75)+C2*((D2^74)+C2*((D2^73)+C2*((D2^72)+C2*((D2^71)+C2*((D2^70)+(C2*((D2^69)+C2*((D2^68)+C2*((D2^67)+C2*((D2^66)+C2*((D2^65)+C2*((D2^64)+C2*((D2^63)+C2*((D2^62)+C2*((D2^61)+C2*((D2^60)+(C2*((D2^59)+C2*((D2^58)+C2*((D2^57)+C2*((D2^56)+C2*((D2^55)+C2*((D2^54)+C2*((D2^53)+C2*((D2^52)+C2*((D2^51)+C2*((D2^50)+(C2*((D2^49)+C2*((D2^48)+C2*((D2^47)+C2*((D2^46)+C2*((D2^45)+C2*((D2^44)+C2*((D2^43)+C2*((D2^42)+C2*((D2^41)+C2*((D2^40)+(C2*((D2^39)+C2*((D2^38)+C2*((D2^37)+C2*((D2^36)+C2*((D2^35)+C2*((D2^34)+C2*((D2^33)+C2*((D2^32)+C2*((D2^31)+C2*((D2^30)+(C2*((D2^29)+C2*((D2^28)+C2*((D2^27)+C2*((D2^26)+C2*((D2^25)+C2*((D2^24)+C2*((D2^23)+C2*((D2^22)+C2*((D2^21)+C2*((D2^20)+(C2*((D2^19)+C2*((D2^18)+C2*((D2^17)+C2*((D2^16)+C2*((D2^15)+C2*((D2^14)+C2*((D2^13)+C2*((D2^12)+C2*((D2^11)+C2*((D2^10)+(C2*((D2^9)+C2*((D2^8)+C2*((D2^7)+C2*((D2^6)+C2*((D2^5)+C2*((D2^4)+C2*((D2^3)+C2*((D2^2)+C2*((D2^1)+C2*(D2^0)))))))))))))))))))))))))))))))))))))))))))))))))))))))))))))))))))))))))))))))))))))))))))))))))))))))) -> 0
F97: 96 | G97: =(A2-((C2^(E2)*B2)))/((D2^95)+C2*((D2^94)+C2*((D2^93)+C2*((D2^92)+C2*((D2^91)+C2*((D2^90)+(C2*((D2^89)+C2*((D2^88)+C2*((D2^87)+C2*((D2^86)+C2*((D2^85)+C2*((D2^84)+C2*((D2^83)+C2*((D2^82)+C2*((D2^81)+C2*((D2^80)+(C2*((D2^79)+C2*((D2^78)+C2*((D2^77)+C2*((D2^76)+C2*((D2^75)+C2*((D2^74)+C2*((D2^73)+C2*((D2^72)+C2*((D2^71)+C2*((D2^70)+(C2*((D2^69)+C2*((D2^68)+C2*((D2^67)+C2*((D2^66)+C2*((D2^65)+C2*((D2^64)+C2*((D2^63)+C2*((D2^62)+C2*((D2^61)+C2*((D2^60)+(C2*((D2^59)+C2*((D2^58)+C2*((D2^57)+C2*((D2^56)+C2*((D2^55)+C2*((D2^54)+C2*((D2^53)+C2*((D2^52)+C2*((D2^51)+C2*((D2^50)+(C2*((D2^49)+C2*((D2^48)+C2*((D2^47)+C2*((D2^46)+C2*((D2^45)+C2*((D2^44)+C2*((D2^43)+C2*((D2^42)+C2*((D2^41)+C2*((D2^40)+(C2*((D2^39)+C2*((D2^38)+C2*((D2^37)+C2*((D2^36)+C2*((D2^35)+C2*((D2^34)+C2*((D2^33)+C2*((D2^32)+C2*((D2^31)+C2*((D2^30)+(C2*((D2^29)+C2*((D2^28)+C2*((D2^27)+C2*((D2^26)+C2*((D2^25)+C2*((D2^24)+C2*((D2^23)+C2*((D2^22)+C2*((D2^21)+C2*((D2^20)+(C2*((D2^19)+C2*((D2^18)+C2*((D2^17)+C2*((D2^16)+C2*((D2^15)+C2*((D2^14)+C2*((D2^13)+C2*((D2^12)+C2*((D2^11)+C2*((D2^10)+(C2*((D2^9)+C2*((D2^8)+C2*((D2^7)+C2*((D2^6)+C2*((D2^5)+C2*((D2^4)+C2*((D2^3)+C2*((D2^2)+C2*((D2^1)+C2*(D2^0))))))))))))))))))))))))))))))))))))))))))))))))))))))))))))))))))))))))))))))))))))))))))))))))))))))))) -> 0
F98: 97 | G98: =(A2-((C2^(E2)*B2)))/((D2^96)+C2*((D2^95)+C2*((D2^94)+C2*((D2^93)+C2*((D2^92)+C2*((D2^91)+C2*((D2^90)+(C2*((D2^89)+C2*((D2^88)+C2*((D2^87)+C2*((D2^86)+C2*((D2^85)+C2*((D2^84)+C2*((D2^83)+C2*((D2^82)+C2*((D2^81)+C2*((D2^80)+(C2*((D2^79)+C2*((D2^78)+C2*((D2^77)+C2*((D2^76)+C2*((D2^75)+C2*((D2^74)+C2*((D2^73)+C2*((D2^72)+C2*((D2^71)+C2*((D2^70)+(C2*((D2^69)+C2*((D2^68)+C2*((D2^67)+C2*((D2^66)+C2*((D2^65)+C2*((D2^64)+C2*((D2^63)+C2*((D2^62)+C2*((D2^61)+C2*((D2^60)+(C2*((D2^59)+C2*((D2^58)+C2*((D2^57)+C2*((D2^56)+C2*((D2^55)+C2*((D2^54)+C2*((D2^53)+C2*((D2^52)+C2*((D2^51)+C2*((D2^50)+(C2*((D2^49)+C2*((D2^48)+C2*((D2^47)+C2*((D2^46)+C2*((D2^45)+C2*((D2^44)+C2*((D2^43)+C2*((D2^42)+C2*((D2^41)+C2*((D2^40)+(C2*((D2^39)+C2*((D2^38)+C2*((D2^37)+C2*((D2^36)+C2*((D2^35)+C2*((D2^34)+C2*((D2^33)+C2*((D2^32)+C2*((D2^31)+C2*((D2^30)+(C2*((D2^29)+C2*((D2^28)+C2*((D2^27)+C2*((D2^26)+C2*((D2^25)+C2*((D2^24)+C2*((D2^23)+C2*((D2^22)+C2*((D2^21)+C2*((D2^20)+(C2*((D2^19)+C2*((D2^18)+C2*((D2^17)+C2*((D2^16)+C2*((D2^15)+C2*((D2^14)+C2*((D2^13)+C2*((D2^12)+C2*((D2^11)+C2*((D2^10)+(C2*((D2^9)+C2*((D2^8)+C2*((D2^7)+C2*((D2^6)+C2*((D2^5)+C2*((D2^4)+C2*((D2^3)+C2*((D2^2)+C2*((D2^1)+C2*(D2^0)))))))))))))))))))))))))))))))))))))))))))))))))))))))))))))))))))))))))))))))))))))))))))))))))))))))))) -> 0
F99: 98 | G99: =(A2-((C2^(E2)*B2)))/((D2^97)+C2*((D2^96)+C2*((D2^95)+C2*((D2^94)+C2*((D2^93)+C2*((D2^92)+C2*((D2^91)+C2*((D2^90)+(C2*((D2^89)+C2*((D2^88)+C2*((D2^87)+C2*((D2^86)+C2*((D2^85)+C2*((D2^84)+C2*((D2^83)+C2*((D2^82)+C2*((D2^81)+C2*((D2^80)+(C2*((D2^79)+C2*((D2^78)+C2*((D2^77)+C2*((D2^76)+C2*((D2^75)+C2*((D2^74)+C2*((D2^73)+C2*((D2^72)+C2*((D2^71)+C2*((D2^70)+(C2*((D2^69)+C2*((D2^68)+C2*((D2^67)+C2*((D2^66)+C2*((D2^65)+C2*((D2^64)+C2*((D2^63)+C2*((D2^62)+C2*((D2^61)+C2*((D2^60)+(C2*((D2^59)+C2*((D2^58)+C2*((D2^57)+C2*((D2^56)+C2*((D2^55)+C2*((D2^54)+C2*((D2^53)+C2*((D2^52)+C2*((D2^51)+C2*((D2^50)+(C2*((D2^49)+C2*((D2^48)+C2*((D2^47)+C2*((D2^46)+C2*((D2^45)+C2*((D2^44)+C2*((D2^43)+C2*((D2^42)+C2*((D2^41)+C2*((D2^40)+(C2*((D2^39)+C2*((D2^38)+C2*((D2^37)+C2*((D2^36)+C2*((D2^35)+C2*((D2^34)+C2*((D2^33)+C2*((D2^32)+C2*((D2^31)+C2*((D2^30)+(C2*((D2^29)+C2*((D2^28)+C2*((D2^27)+C2*((D2^26)+C2*((D2^25)+C2*((D2^24)+C2*((D2^23)+C2*((D2^22)+C2*((D2^21)+C2*((D2^20)+(C2*((D2^19)+C2*((D2^18)+C2*((D2^17)+C2*((D2^16)+C2*((D2^15)+C2*((D2^14)+C2*((D2^13)+C2*((D2^12)+C2*((D2^11)+C2*((D2^10)+(C2*((D2^9)+C2*((D2^8)+C2*((D2^7)+C2*((D2^6)+C2*((D2^5)+C2*((D2^4)+C2*((D2^3)+C2*((D2^2)+C2*((D2^1)+C2*(D2^0))))))))))))))))))))))))))))))))))))))))))))))))))))))))))))))))))))))))))))))))))))))))))))))))))))))))))) -> 0
F100: 99 | G100: =(A2-((C2^(E2)*B2)))/((D2^98)+C2*((D2^97)+C2*((D2^96)+C2*((D2^95)+C2*((D2^94)+C2*((D2^93)+C2*((D2^92)+C2*((D2^91)+C2*((D2^90)+(C2*((D2^89)+C2*((D2^88)+C2*((D2^87)+C2*((D2^86)+C2*((D2^85)+C2*((D2^84)+C2*((D2^83)+C2*((D2^82)+C2*((D2^81)+C2*((D2^80)+(C2*((D2^79)+C2*((D2^78)+C2*((D2^77)+C2*((D2^76)+C2*((D2^75)+C2*((D2^74)+C2*((D2^73)+C2*((D2^72)+C2*((D2^71)+C2*((D2^70)+(C2*((D2^69)+C2*((D2^68)+C2*((D2^67)+C2*((D2^66)+C2*((D2^65)+C2*((D2^64)+C2*((D2^63)+C2*((D2^62)+C2*((D2^61)+C2*((D2^60)+(C2*((D2^59)+C2*((D2^58)+C2*((D2^57)+C2*((D2^56)+C2*((D2^55)+C2*((D2^54)+C2*((D2^53)+C2*((D2^52)+C2*((D2^51)+C2*((D2^50)+(C2*((D2^49)+C2*((D2^48)+C2*((D2^47)+C2*((D2^46)+C2*((D2^45)+C2*((D2^44)+C2*((D2^43)+C2*((D2^42)+C2*((D2^41)+C2*((D2^40)+(C2*((D2^39)+C2*((D2^38)+C2*((D2^37)+C2*((D2^36)+C2*((D2^35)+C2*((D2^34)+C2*((D2^33)+C2*((D2^32)+C2*((D2^31)+C2*((D2^30)+(C2*((D2^29)+C2*((D2^28)+C2*((D2^27)+C2*((D2^26)+C2*((D2^25)+C2*((D2^24)+C2*((D2^23)+C2*((D2^22)+C2*((D2^21)+C2*((D2^20)+(C2*((D2^19)+C2*((D2^18)+C2*((D2^17)+C2*((D2^16)+C2*((D2^15)+C2*((D2^14)+C2*((D2^13)+C2*((D2^12)+C2*((D2^11)+C2*((D2^10)+(C2*((D2^9)+C2*((D2^8)+C2*((D2^7)+C2*((D2^6)+C2*((D2^5)+C2*((D2^4)+C2*((D2^3)+C2*((D2^2)+C2*((D2^1)+C2*(D2^0)))))))))))))))))))))))))))))))))))))))))))))))))))))))))))))))))))))))))))))))))))))))))))))))))))))))))))) -> 0
F101: 100 | G101: =(A2-((C2^(E2)*B2)))/((D2^99)+C2*((D2^98)+C2*((D2^97)+C2*((D2^96)+C2*((D2^95)+C2*((D2^94)+C2*((D2^93)+C2*((D2^92)+C2*((D2^91)+C2*((D2^90)+(C2*((D2^89)+C2*((D2^88)+C2*((D2^87)+C2*((D2^86)+C2*((D2^85)+C2*((D2^84)+C2*((D2^83)+C2*((D2^82)+C2*((D2^81)+C2*((D2^80)+(C2*((D2^79)+C2*((D2^78)+C2*((D2^77)+C2*((D2^76)+C2*((D2^75)+C2*((D2^74)+C2*((D2^73)+C2*((D2^72)+C2*((D2^71)+C2*((D2^70)+(C2*((D2^69)+C2*((D2^68)+C2*((D2^67)+C2*((D2^66)+C2*((D2^65)+C2*((D2^64)+C2*((D2^63)+C2*((D2^62)+C2*((D2^61)+C2*((D2^60)+(C2*((D2^59)+C2*((D2^58)+C2*((D2^57)+C2*((D2^56)+C2*((D2^55)+C2*((D2^54)+C2*((D2^53)+C2*((D2^52)+C2*((D2^51)+C2*((D2^50)+(C2*((D2^49)+C2*((D2^48)+C2*((D2^47)+C2*((D2^46)+C2*((D2^45)+C2*((D2^44)+C2*((D2^43)+C2*((D2^42)+C2*((D2^41)+C2*((D2^40)+(C2*((D2^39)+C2*((D2^38)+C2*((D2^37)+C2*((D2^36)+C2*((D2^35)+C2*((D2^34)+C2*((D2^33)+C2*((D2^32)+C2*((D2^31)+C2*((D2^30)+(C2*((D2^29)+C2*((D2^28)+C2*((D2^27)+C2*((D2^26)+C2*((D2^25)+C2*((D2^24)+C2*((D2^23)+C2*((D2^22)+C2*((D2^21)+C2*((D2^20)+(C2*((D2^19)+C2*((D2^18)+C2*((D2^17)+C2*((D2^16)+C2*((D2^15)+C2*((D2^14)+C2*((D2^13)+C2*((D2^12)+C2*((D2^11)+C2*((D2^10)+(C2*((D2^9)+C2*((D2^8)+C2*((D2^7)+C2*((D2^6)+C2*((D2^5)+C2*((D2^4)+C2*((D2^3)+C2*((D2^2)+C2*((D2^1)+C2*(D2^0))))))))))))))))))))))))))))))))))))))))))))))))))))))))))))))))))))))))))))))))))))))))))))))))))))))))))))) -> 0

Sheet Multiple Goal Back data_4 (hidden)
A1: Goal | B1: Current Balance | C1: Interest | D1: Increase | E1: Year | F1: Years | G1: Starting Amount | I1: Starting Amount | K1: Starting Amount when Year > 63 | P1: Series Sum
A2: ='Multiple Goals Saving Tool'!C17 -> 0 | B2: =('Multiple Goals Saving Tool'!C6)/('Multiple Goals Saving Tool'!C8) -> 0 | C2: =1+('Multiple Goals Saving Tool'!E17) -> 1 | D2: =1+('Multiple Goals Saving Tool'!C7) -> 1 | E2: ='Multiple Goals Saving Tool'!D17 -> 0 | F2: 1 | G2: =(A2-((C2^(E2)*B2)))/(D2^0) -> 0 | I2: =IF(E2=10,'Multiple Goal Back data_4'!G11,IF(E2=5,'Multiple Goal Back data_4'!G6,IF(E2=1,'Multiple Goal Back data_4'!G2,IF(E2=2,'Multiple Goal Back data_4'!G3,IF(E2=3,'Multiple Goal Back data_4'!G4,IF(E2=4,'Multiple Goal Back data_4'!G5,IF(E2=6,'Multiple Goal Back data_4'!G7,IF(E2=7,'Multiple Goal Back data_4'!G8,IF(E2=8,'Multiple Goal Back data_4'!G9,IF(E2=9,'Multiple Goal Back data_4'!G10,IF(E2=11,'Multiple Goal Back data_4'!G12,IF(E2=12,'Multiple Goal Back data_4'!G13,IF(E2=13,'Multiple Goal Back data_4'!G14,IF(E2=14,'Multiple Goal Back data_4'!G15,IF(E2=15,'Multiple Goal Back data_4'!G16,IF(E2=16,'Multiple Goal Back data_4'!G17,IF(E2=17,'Multiple Goal Back data_4'!G18,IF(E2=18,'Multiple Goal Back data_4'!G19,IF(E2=19,'Multiple Goal Back data_4'!G20,IF(E2=20,'Multiple Goal Back data_4'!G21,IF(E2=21,'Multiple Goal Back data_4'!G22,IF(E2=22,'Multiple Goal Back data_4'!G23,IF(E2=23,'Multiple Goal Back data_4'!G24,IF(E2=24,'Multiple Goal Back data_4'!G25,IF(E2=25,'Multiple Goal Back data_4'!G26,IF(E2=26,'Multiple Goal Back data_4'!G27,IF(E2=27,'Multiple Goal Back data_4'!G28,IF(E2=28,'Multiple Goal Back data_4'!G29,IF(E2=29,'Multiple Goal Back data_4'!G30,IF(E2=30,'Multiple Goal Back data_4'!G31,IF(E2=31,'Multiple Goal Back data_4'!G32,IF(E2=32,'Multiple Goal Back data_4'!G33,IF(E2=33,'Multiple Goal Back data_4'!G34,IF(E2=34,'Multiple Goal Back data_4'!G35,IF(E2=35,'Multiple Goal Back data_4'!G36,IF(E2=36,'Multiple Goal Back data_4'!G37,IF(E2=37,'Multiple Goal Back data_4'!G38,IF(E2=38,'Multiple Goal Back data_4'!G39,IF(E2=39,'Multiple Goal Back data_4'!G40,IF(E2=40,'Multiple Goal Back data_4'!G41,IF(E2=41,'Multiple Goal Back data_4'!G42,IF(E2=42,'Multiple Goal Back data_4'!G43,IF(E2=43,'Multiple Goal Back data_4'!G44,IF(E2=44,'Multiple Goal Back data_4'!G45,IF(E2=45,'Multiple Goal Back data_4'!G46,IF(E2=46,'Multiple Goal Back data_4'!G47,IF(E2=47,'Multiple Goal Back data_4'!G48,IF(E2=48,'Multiple Goal Back data_4'!G49,IF(E2=49,'Multiple Goal Back data_4'!G50,IF(E2=50,'Multiple Goal Back data_4'!G51,IF(E2=51,'Multiple Goal Back data_4'!G52,IF(E2=52,'Multiple Goal Back data_4'!G53,IF(E2=53,'Multiple Goal Back data_4'!G54,IF(E2=54,'Multiple Goal Back data_4'!G55,IF(E2=55,'Multiple Goal Back data_4'!G56,IF(E2=56,'Multiple Goal Back data_4'!G57,IF(E2=57,'Multiple Goal Back data_4'!G58,IF(E2=58,'Multiple Goal Back data_4'!G59,IF(E2=59,'Multiple Goal Back data_4'!G60,IF(E2=60,'Multiple Goal Back data_4'!G61,IF(E2=61,'Multiple Goal Back data_4'!G62,IF(E2=62,'Multiple Goal Back data_4'!G63,IF(E2=63,'Multiple Goal Back data_4'!G64,IF(E2>63,K2,)))))))))))))))))))))))))))))))))))))))))))))))))))))))))))))))) -> 0 | K2: =IF(E2=64, 'Multiple Goal Back data_4'!G65,IF(E2=65, 'Multiple Goal Back data_4'!G66,IF(E2=66, 'Multiple Goal Back data_4'!G67,IF(E2=67, 'Multiple Goal Back data_4'!G68,IF(E2=68, 'Multiple Goal Back data_4'!G69,IF(E2=69, 'Multiple Goal Back data_4'!G70,IF(E2=70, 'Multiple Goal Back data_4'!G71,IF(E2=71,'Multiple Goal Back data_4'!G72, IF(E2=72, 'Multiple Goal Back data_4'!G73,IF(E2=73, 'Multiple Goal Back data_4'!G74,IF(E2=74, 'Multiple Goal Back data_4'!G75,IF(E2=75, 'Multiple Goal Back data_4'!G76,IF(E2=76, 'Multiple Goal Back data_4'!G77,IF(E2=77, 'Multiple Goal Back data_4'!G78,IF(E2=78, 'Multiple Goal Back data_4'!G79,IF(E2=79, 'Multiple Goal Back data_4'!G80,IF(E2=80, 'Multiple Goal Back data_4'!G81,IF(E2=81, 'Multiple Goal Back data_4'!G82,IF(E2=82, 'Multiple Goal Back data_4'!G83,IF(E2=83, 'Multiple Goal Back data_4'!G84,IF(E2=84, 'Multiple Goal Back data_4'!G85,IF(E2=85, 'Multiple Goal Back data_4'!G86,IF(E2=86, 'Multiple Goal Back data_4'!G87,IF(E2=87, 'Multiple Goal Back data_4'!G88,IF(E2=88, 'Multiple Goal Back data_4'!G89,IF(E2=89, 'Multiple Goal Back data_4'!G90,IF(E2=90, 'Multiple Goal Back data_4'!G91,IF(E2=91, 'Multiple Goal Back data_4'!G92,IF(E2=92, 'Multiple Goal Back data_4'!G93,IF(E2=93, 'Multiple Goal Back data_4'!G94,IF(E2=94, 'Multiple Goal Back data_4'!G95,IF(E2=95, 'Multiple Goal Back data_4'!G96,IF(E2=96, 'Multiple Goal Back data_4'!G97,IF(E2=97, 'Multiple Goal Back data_4'!G98,IF(E2=98, 'Multiple Goal Back data_4'!G99,IF(E2=99, 'Multiple Goal Back data_4'!G100,IF(E2=100, 'Multiple Goal Back data_4'!G101,))))))))))))))))))))))))))))))))))))) -> 0 | P2: =SERIESSUM(1.03, 1,1, {1,1,1,1,1,1,1,1,1}) -> 10.46387931
F3: 2 | G3: =(A2-((C2^(E2)*B2)))/((D2^1)+C2*((D2^0))) -> 0
F4: 3 | G4: =(A2-((C2^(E2)*B2)))/((D2^2)+C2*((D2^1)+C2*(D2^0))) -> 0
F5: 4 | G5: =(A2-((C2^(E2)*B2)))/((D2^3)+C2*((D2^2)+C2*((D2^1)+C2*(D2^0)))) -> 0
F6: 5 | G6: =(A2-((C2^(E2)*B2)))/((D2^4)+C2*((D2^3)+C2*((D2^2)+C2*((D2^1)+C2*(D2^0))))) -> 0
F7: 6 | G7: =(A2-((C2^(E2)*B2)))/((D2^5)+C2*((D2^4)+C2*((D2^3)+C2*((D2^2)+C2*((D2^1)+C2*(D2^0)))))) -> 0
F8: 7 | G8: =(A2-((C2^(E2)*B2)))/((D2^6)+C2*((D2^5)+C2*((D2^4)+C2*((D2^3)+C2*((D2^2)+C2*((D2^1)+C2*(D2^0))))))) -> 0
F9: 8 | G9: =(A2-((C2^(E2)*B2)))/((D2^7)+C2*((D2^6)+C2*((D2^5)+C2*((D2^4)+C2*((D2^3)+C2*((D2^2)+C2*((D2^1)+C2*(D2^0)))))))) -> 0
F10: 9 | G10: =(A2-((C2^(E2)*B2)))/((D2^8)+C2*((D2^7)+C2*((D2^6)+C2*((D2^5)+C2*((D2^4)+C2*((D2^3)+C2*((D2^2)+C2*((D2^1)+C2*(D2^0))))))))) -> 0
F11: 10 | G11: =(A2-((C2^(E2)*B2)))/((D2^9)+C2*((D2^8)+C2*((D2^7)+C2*((D2^6)+C2*((D2^5)+C2*((D2^4)+C2*((D2^3)+C2*((D2^2)+C2*((D2^1)+C2*(D2^0)))))))))) -> 0
F12: 11 | G12: =(A2-((C2^(E2)*B2)))/((D2^10)+(C2*((D2^9)+C2*((D2^8)+C2*((D2^7)+C2*((D2^6)+C2*((D2^5)+C2*((D2^4)+C2*((D2^3)+C2*((D2^2)+C2*((D2^1)+C2*(D2^0)))))))))))) -> 0
F13: 12 | G13: =(A2-((C2^(E2)*B2)))/((D2^11)+C2*((D2^10)+(C2*((D2^9)+C2*((D2^8)+C2*((D2^7)+C2*((D2^6)+C2*((D2^5)+C2*((D2^4)+C2*((D2^3)+C2*((D2^2)+C2*((D2^1)+C2*(D2^0))))))))))))) -> 0
F14: 13 | G14: =(A2-((C2^(E2)*B2)))/((D2^12)+C2*((D2^11)+C2*((D2^10)+(C2*((D2^9)+C2*((D2^8)+C2*((D2^7)+C2*((D2^6)+C2*((D2^5)+C2*((D2^4)+C2*((D2^3)+C2*((D2^2)+C2*((D2^1)+C2*(D2^0)))))))))))))) -> 0
F15: 14 | G15: =(A2-((C2^(E2)*B2)))/((D2^13)+C2*((D2^12)+C2*((D2^11)+C2*((D2^10)+(C2*((D2^9)+C2*((D2^8)+C2*((D2^7)+C2*((D2^6)+C2*((D2^5)+C2*((D2^4)+C2*((D2^3)+C2*((D2^2)+C2*((D2^1)+C2*(D2^0))))))))))))))) -> 0
F16: 15 | G16: =(A2-((C2^(E2)*B2)))/((D2^14)+C2*((D2^13)+C2*((D2^12)+C2*((D2^11)+C2*((D2^10)+(C2*((D2^9)+C2*((D2^8)+C2*((D2^7)+C2*((D2^6)+C2*((D2^5)+C2*((D2^4)+C2*((D2^3)+C2*((D2^2)+C2*((D2^1)+C2*(D2^0)))))))))))))))) -> 0
F17: 16 | G17: =(A2-((C2^(E2)*B2)))/((D2^15)+C2*((D2^14)+C2*((D2^13)+C2*((D2^12)+C2*((D2^11)+C2*((D2^10)+(C2*((D2^9)+C2*((D2^8)+C2*((D2^7)+C2*((D2^6)+C2*((D2^5)+C2*((D2^4)+C2*((D2^3)+C2*((D2^2)+C2*((D2^1)+C2*(D2^0))))))))))))))))) -> 0
F18: 17 | G18: =(A2-((C2^(E2)*B2)))/((D2^16)+C2*((D2^15)+C2*((D2^14)+C2*((D2^13)+C2*((D2^12)+C2*((D2^11)+C2*((D2^10)+(C2*((D2^9)+C2*((D2^8)+C2*((D2^7)+C2*((D2^6)+C2*((D2^5)+C2*((D2^4)+C2*((D2^3)+C2*((D2^2)+C2*((D2^1)+C2*(D2^0)))))))))))))))))) -> 0
F19: 18 | G19: =(A2-((C2^(E2)*B2)))/((D2^17)+C2*((D2^16)+C2*((D2^15)+C2*((D2^14)+C2*((D2^13)+C2*((D2^12)+C2*((D2^11)+C2*((D2^10)+(C2*((D2^9)+C2*((D2^8)+C2*((D2^7)+C2*((D2^6)+C2*((D2^5)+C2*((D2^4)+C2*((D2^3)+C2*((D2^2)+C2*((D2^1)+C2*(D2^0))))))))))))))))))) -> 0
F20: 19 | G20: =(A2-((C2^(E2)*B2)))/((D2^18)+C2*((D2^17)+C2*((D2^16)+C2*((D2^15)+C2*((D2^14)+C2*((D2^13)+C2*((D2^12)+C2*((D2^11)+C2*((D2^10)+(C2*((D2^9)+C2*((D2^8)+C2*((D2^7)+C2*((D2^6)+C2*((D2^5)+C2*((D2^4)+C2*((D2^3)+C2*((D2^2)+C2*((D2^1)+C2*(D2^0)))))))))))))))))))) -> 0
F21: 20 | G21: =(A2-((C2^(E2)*B2)))/((D2^19)+C2*((D2^18)+C2*((D2^17)+C2*((D2^16)+C2*((D2^15)+C2*((D2^14)+C2*((D2^13)+C2*((D2^12)+C2*((D2^11)+C2*((D2^10)+(C2*((D2^9)+C2*((D2^8)+C2*((D2^7)+C2*((D2^6)+C2*((D2^5)+C2*((D2^4)+C2*((D2^3)+C2*((D2^2)+C2*((D2^1)+C2*(D2^0))))))))))))))))))))) -> 0
F22: 21 | G22: =(A2-((C2^(E2)*B2)))/((D2^20)+(C2*((D2^19)+C2*((D2^18)+C2*((D2^17)+C2*((D2^16)+C2*((D2^15)+C2*((D2^14)+C2*((D2^13)+C2*((D2^12)+C2*((D2^11)+C2*((D2^10)+(C2*((D2^9)+C2*((D2^8)+C2*((D2^7)+C2*((D2^6)+C2*((D2^5)+C2*((D2^4)+C2*((D2^3)+C2*((D2^2)+C2*((D2^1)+C2*(D2^0))))))))))))))))))))))) -> 0
F23: 22 | G23: =(A2-((C2^(E2)*B2)))/((D2^21)+C2*((D2^20)+(C2*((D2^19)+C2*((D2^18)+C2*((D2^17)+C2*((D2^16)+C2*((D2^15)+C2*((D2^14)+C2*((D2^13)+C2*((D2^12)+C2*((D2^11)+C2*((D2^10)+(C2*((D2^9)+C2*((D2^8)+C2*((D2^7)+C2*((D2^6)+C2*((D2^5)+C2*((D2^4)+C2*((D2^3)+C2*((D2^2)+C2*((D2^1)+C2*(D2^0)))))))))))))))))))))))) -> 0
F24: 23 | G24: =(A2-((C2^(E2)*B2)))/((D2^22)+C2*((D2^21)+C2*((D2^20)+(C2*((D2^19)+C2*((D2^18)+C2*((D2^17)+C2*((D2^16)+C2*((D2^15)+C2*((D2^14)+C2*((D2^13)+C2*((D2^12)+C2*((D2^11)+C2*((D2^10)+(C2*((D2^9)+C2*((D2^8)+C2*((D2^7)+C2*((D2^6)+C2*((D2^5)+C2*((D2^4)+C2*((D2^3)+C2*((D2^2)+C2*((D2^1)+C2*(D2^0))))))))))))))))))))))))) -> 0
F25: 24 | G25: =(A2-((C2^(E2)*B2)))/((D2^23)+C2*((D2^22)+C2*((D2^21)+C2*((D2^20)+(C2*((D2^19)+C2*((D2^18)+C2*((D2^17)+C2*((D2^16)+C2*((D2^15)+C2*((D2^14)+C2*((D2^13)+C2*((D2^12)+C2*((D2^11)+C2*((D2^10)+(C2*((D2^9)+C2*((D2^8)+C2*((D2^7)+C2*((D2^6)+C2*((D2^5)+C2*((D2^4)+C2*((D2^3)+C2*((D2^2)+C2*((D2^1)+C2*(D2^0)))))))))))))))))))))))))) -> 0
F26: 25 | G26: =(A2-((C2^(E2)*B2)))/((D2^24)+C2*((D2^23)+C2*((D2^22)+C2*((D2^21)+C2*((D2^20)+(C2*((D2^19)+C2*((D2^18)+C2*((D2^17)+C2*((D2^16)+C2*((D2^15)+C2*((D2^14)+C2*((D2^13)+C2*((D2^12)+C2*((D2^11)+C2*((D2^10)+(C2*((D2^9)+C2*((D2^8)+C2*((D2^7)+C2*((D2^6)+C2*((D2^5)+C2*((D2^4)+C2*((D2^3)+C2*((D2^2)+C2*((D2^1)+C2*(D2^0))))))))))))))))))))))))))) -> 0
F27: 26 | G27: =(A2-((C2^(E2)*B2)))/((D2^25)+C2*((D2^24)+C2*((D2^23)+C2*((D2^22)+C2*((D2^21)+C2*((D2^20)+(C2*((D2^19)+C2*((D2^18)+C2*((D2^17)+C2*((D2^16)+C2*((D2^15)+C2*((D2^14)+C2*((D2^13)+C2*((D2^12)+C2*((D2^11)+C2*((D2^10)+(C2*((D2^9)+C2*((D2^8)+C2*((D2^7)+C2*((D2^6)+C2*((D2^5)+C2*((D2^4)+C2*((D2^3)+C2*((D2^2)+C2*((D2^1)+C2*(D2^0)))))))))))))))))))))))))))) -> 0
F28: 27 | G28: =(A2-((C2^(E2)*B2)))/((D2^26)+C2*((D2^25)+C2*((D2^24)+C2*((D2^23)+C2*((D2^22)+C2*((D2^21)+C2*((D2^20)+(C2*((D2^19)+C2*((D2^18)+C2*((D2^17)+C2*((D2^16)+C2*((D2^15)+C2*((D2^14)+C2*((D2^13)+C2*((D2^12)+C2*((D2^11)+C2*((D2^10)+(C2*((D2^9)+C2*((D2^8)+C2*((D2^7)+C2*((D2^6)+C2*((D2^5)+C2*((D2^4)+C2*((D2^3)+C2*((D2^2)+C2*((D2^1)+C2*(D2^0))))))))))))))))))))))))))))) -> 0
F29: 28 | G29: =(A2-((C2^(E2)*B2)))/((D2^27)+C2*((D2^26)+C2*((D2^25)+C2*((D2^24)+C2*((D2^23)+C2*((D2^22)+C2*((D2^21)+C2*((D2^20)+(C2*((D2^19)+C2*((D2^18)+C2*((D2^17)+C2*((D2^16)+C2*((D2^15)+C2*((D2^14)+C2*((D2^13)+C2*((D2^12)+C2*((D2^11)+C2*((D2^10)+(C2*((D2^9)+C2*((D2^8)+C2*((D2^7)+C2*((D2^6)+C2*((D2^5)+C2*((D2^4)+C2*((D2^3)+C2*((D2^2)+C2*((D2^1)+C2*(D2^0)))))))))))))))))))))))))))))) -> 0
F30: 29 | G30: =(A2-((C2^(E2)*B2)))/((D2^28)+C2*((D2^27)+C2*((D2^26)+C2*((D2^25)+C2*((D2^24)+C2*((D2^23)+C2*((D2^22)+C2*((D2^21)+C2*((D2^20)+(C2*((D2^19)+C2*((D2^18)+C2*((D2^17)+C2*((D2^16)+C2*((D2^15)+C2*((D2^14)+C2*((D2^13)+C2*((D2^12)+C2*((D2^11)+C2*((D2^10)+(C2*((D2^9)+C2*((D2^8)+C2*((D2^7)+C2*((D2^6)+C2*((D2^5)+C2*((D2^4)+C2*((D2^3)+C2*((D2^2)+C2*((D2^1)+C2*(D2^0))))))))))))))))))))))))))))))) -> 0
F31: 30 | G31: =(A2-((C2^(E2)*B2)))/((D2^29)+C2*((D2^28)+C2*((D2^27)+C2*((D2^26)+C2*((D2^25)+C2*((D2^24)+C2*((D2^23)+C2*((D2^22)+C2*((D2^21)+C2*((D2^20)+(C2*((D2^19)+C2*((D2^18)+C2*((D2^17)+C2*((D2^16)+C2*((D2^15)+C2*((D2^14)+C2*((D2^13)+C2*((D2^12)+C2*((D2^11)+C2*((D2^10)+(C2*((D2^9)+C2*((D2^8)+C2*((D2^7)+C2*((D2^6)+C2*((D2^5)+C2*((D2^4)+C2*((D2^3)+C2*((D2^2)+C2*((D2^1)+C2*(D2^0)))))))))))))))))))))))))))))))) -> 0
F32: 31 | G32: =(A2-((C2^(E2)*B2)))/((D2^30)+(C2*((D2^29)+C2*((D2^28)+C2*((D2^27)+C2*((D2^26)+C2*((D2^25)+C2*((D2^24)+C2*((D2^23)+C2*((D2^22)+C2*((D2^21)+C2*((D2^20)+(C2*((D2^19)+C2*((D2^18)+C2*((D2^17)+C2*((D2^16)+C2*((D2^15)+C2*((D2^14)+C2*((D2^13)+C2*((D2^12)+C2*((D2^11)+C2*((D2^10)+(C2*((D2^9)+C2*((D2^8)+C2*((D2^7)+C2*((D2^6)+C2*((D2^5)+C2*((D2^4)+C2*((D2^3)+C2*((D2^2)+C2*((D2^1)+C2*(D2^0)))))))))))))))))))))))))))))))))) -> 0
F33: 32 | G33: =(A2-((C2^(E2)*B2)))/((D2^31)+C2*((D2^30)+(C2*((D2^29)+C2*((D2^28)+C2*((D2^27)+C2*((D2^26)+C2*((D2^25)+C2*((D2^24)+C2*((D2^23)+C2*((D2^22)+C2*((D2^21)+C2*((D2^20)+(C2*((D2^19)+C2*((D2^18)+C2*((D2^17)+C2*((D2^16)+C2*((D2^15)+C2*((D2^14)+C2*((D2^13)+C2*((D2^12)+C2*((D2^11)+C2*((D2^10)+(C2*((D2^9)+C2*((D2^8)+C2*((D2^7)+C2*((D2^6)+C2*((D2^5)+C2*((D2^4)+C2*((D2^3)+C2*((D2^2)+C2*((D2^1)+C2*(D2^0))))))))))))))))))))))))))))))))))) -> 0
F34: 33 | G34: =(A2-((C2^(E2)*B2)))/((D2^32)+C2*((D2^31)+C2*((D2^30)+(C2*((D2^29)+C2*((D2^28)+C2*((D2^27)+C2*((D2^26)+C2*((D2^25)+C2*((D2^24)+C2*((D2^23)+C2*((D2^22)+C2*((D2^21)+C2*((D2^20)+(C2*((D2^19)+C2*((D2^18)+C2*((D2^17)+C2*((D2^16)+C2*((D2^15)+C2*((D2^14)+C2*((D2^13)+C2*((D2^12)+C2*((D2^11)+C2*((D2^10)+(C2*((D2^9)+C2*((D2^8)+C2*((D2^7)+C2*((D2^6)+C2*((D2^5)+C2*((D2^4)+C2*((D2^3)+C2*((D2^2)+C2*((D2^1)+C2*(D2^0)))))))))))))))))))))))))))))))))))) -> 0
F35: 34 | G35: =(A2-((C2^(E2)*B2)))/((D2^33)+C2*((D2^32)+C2*((D2^31)+C2*((D2^30)+(C2*((D2^29)+C2*((D2^28)+C2*((D2^27)+C2*((D2^26)+C2*((D2^25)+C2*((D2^24)+C2*((D2^23)+C2*((D2^22)+C2*((D2^21)+C2*((D2^20)+(C2*((D2^19)+C2*((D2^18)+C2*((D2^17)+C2*((D2^16)+C2*((D2^15)+C2*((D2^14)+C2*((D2^13)+C2*((D2^12)+C2*((D2^11)+C2*((D2^10)+(C2*((D2^9)+C2*((D2^8)+C2*((D2^7)+C2*((D2^6)+C2*((D2^5)+C2*((D2^4)+C2*((D2^3)+C2*((D2^2)+C2*((D2^1)+C2*(D2^0))))))))))))))))))))))))))))))))))))) -> 0
F36: 35 | G36: =(A2-((C2^(E2)*B2)))/((D2^34)+C2*((D2^33)+C2*((D2^32)+C2*((D2^31)+C2*((D2^30)+(C2*((D2^29)+C2*((D2^28)+C2*((D2^27)+C2*((D2^26)+C2*((D2^25)+C2*((D2^24)+C2*((D2^23)+C2*((D2^22)+C2*((D2^21)+C2*((D2^20)+(C2*((D2^19)+C2*((D2^18)+C2*((D2^17)+C2*((D2^16)+C2*((D2^15)+C2*((D2^14)+C2*((D2^13)+C2*((D2^12)+C2*((D2^11)+C2*((D2^10)+(C2*((D2^9)+C2*((D2^8)+C2*((D2^7)+C2*((D2^6)+C2*((D2^5)+C2*((D2^4)+C2*((D2^3)+C2*((D2^2)+C2*((D2^1)+C2*(D2^0)))))))))))))))))))))))))))))))))))))) -> 0
F37: 36 | G37: =(A2-((C2^(E2)*B2)))/((D2^35)+C2*((D2^34)+C2*((D2^33)+C2*((D2^32)+C2*((D2^31)+C2*((D2^30)+(C2*((D2^29)+C2*((D2^28)+C2*((D2^27)+C2*((D2^26)+C2*((D2^25)+C2*((D2^24)+C2*((D2^23)+C2*((D2^22)+C2*((D2^21)+C2*((D2^20)+(C2*((D2^19)+C2*((D2^18)+C2*((D2^17)+C2*((D2^16)+C2*((D2^15)+C2*((D2^14)+C2*((D2^13)+C2*((D2^12)+C2*((D2^11)+C2*((D2^10)+(C2*((D2^9)+C2*((D2^8)+C2*((D2^7)+C2*((D2^6)+C2*((D2^5)+C2*((D2^4)+C2*((D2^3)+C2*((D2^2)+C2*((D2^1)+C2*(D2^0))))))))))))))))))))))))))))))))))))))) -> 0
F38: 37 | G38: =(A2-((C2^(E2)*B2)))/((D2^36)+C2*((D2^35)+C2*((D2^34)+C2*((D2^33)+C2*((D2^32)+C2*((D2^31)+C2*((D2^30)+(C2*((D2^29)+C2*((D2^28)+C2*((D2^27)+C2*((D2^26)+C2*((D2^25)+C2*((D2^24)+C2*((D2^23)+C2*((D2^22)+C2*((D2^21)+C2*((D2^20)+(C2*((D2^19)+C2*((D2^18)+C2*((D2^17)+C2*((D2^16)+C2*((D2^15)+C2*((D2^14)+C2*((D2^13)+C2*((D2^12)+C2*((D2^11)+C2*((D2^10)+(C2*((D2^9)+C2*((D2^8)+C2*((D2^7)+C2*((D2^6)+C2*((D2^5)+C2*((D2^4)+C2*((D2^3)+C2*((D2^2)+C2*((D2^1)+C2*(D2^0)))))))))))))))))))))))))))))))))))))))) -> 0
F39: 38 | G39: =(A2-((C2^(E2)*B2)))/((D2^37)+C2*((D2^36)+C2*((D2^35)+C2*((D2^34)+C2*((D2^33)+C2*((D2^32)+C2*((D2^31)+C2*((D2^30)+(C2*((D2^29)+C2*((D2^28)+C2*((D2^27)+C2*((D2^26)+C2*((D2^25)+C2*((D2^24)+C2*((D2^23)+C2*((D2^22)+C2*((D2^21)+C2*((D2^20)+(C2*((D2^19)+C2*((D2^18)+C2*((D2^17)+C2*((D2^16)+C2*((D2^15)+C2*((D2^14)+C2*((D2^13)+C2*((D2^12)+C2*((D2^11)+C2*((D2^10)+(C2*((D2^9)+C2*((D2^8)+C2*((D2^7)+C2*((D2^6)+C2*((D2^5)+C2*((D2^4)+C2*((D2^3)+C2*((D2^2)+C2*((D2^1)+C2*(D2^0))))))))))))))))))))))))))))))))))))))))) -> 0
F40: 39 | G40: =(A2-((C2^(E2)*B2)))/((D2^38)+C2*((D2^37)+C2*((D2^36)+C2*((D2^35)+C2*((D2^34)+C2*((D2^33)+C2*((D2^32)+C2*((D2^31)+C2*((D2^30)+(C2*((D2^29)+C2*((D2^28)+C2*((D2^27)+C2*((D2^26)+C2*((D2^25)+C2*((D2^24)+C2*((D2^23)+C2*((D2^22)+C2*((D2^21)+C2*((D2^20)+(C2*((D2^19)+C2*((D2^18)+C2*((D2^17)+C2*((D2^16)+C2*((D2^15)+C2*((D2^14)+C2*((D2^13)+C2*((D2^12)+C2*((D2^11)+C2*((D2^10)+(C2*((D2^9)+C2*((D2^8)+C2*((D2^7)+C2*((D2^6)+C2*((D2^5)+C2*((D2^4)+C2*((D2^3)+C2*((D2^2)+C2*((D2^1)+C2*(D2^0)))))))))))))))))))))))))))))))))))))))))) -> 0
F41: 40 | G41: =(A2-((C2^(E2)*B2)))/((D2^39)+C2*((D2^38)+C2*((D2^37)+C2*((D2^36)+C2*((D2^35)+C2*((D2^34)+C2*((D2^33)+C2*((D2^32)+C2*((D2^31)+C2*((D2^30)+(C2*((D2^29)+C2*((D2^28)+C2*((D2^27)+C2*((D2^26)+C2*((D2^25)+C2*((D2^24)+C2*((D2^23)+C2*((D2^22)+C2*((D2^21)+C2*((D2^20)+(C2*((D2^19)+C2*((D2^18)+C2*((D2^17)+C2*((D2^16)+C2*((D2^15)+C2*((D2^14)+C2*((D2^13)+C2*((D2^12)+C2*((D2^11)+C2*((D2^10)+(C2*((D2^9)+C2*((D2^8)+C2*((D2^7)+C2*((D2^6)+C2*((D2^5)+C2*((D2^4)+C2*((D2^3)+C2*((D2^2)+C2*((D2^1)+C2*(D2^0))))))))))))))))))))))))))))))))))))))))))) -> 0
F42: 41 | G42: =(A2-((C2^(E2)*B2)))/((D2^40)+(C2*((D2^39)+C2*((D2^38)+C2*((D2^37)+C2*((D2^36)+C2*((D2^35)+C2*((D2^34)+C2*((D2^33)+C2*((D2^32)+C2*((D2^31)+C2*((D2^30)+(C2*((D2^29)+C2*((D2^28)+C2*((D2^27)+C2*((D2^26)+C2*((D2^25)+C2*((D2^24)+C2*((D2^23)+C2*((D2^22)+C2*((D2^21)+C2*((D2^20)+(C2*((D2^19)+C2*((D2^18)+C2*((D2^17)+C2*((D2^16)+C2*((D2^15)+C2*((D2^14)+C2*((D2^13)+C2*((D2^12)+C2*((D2^11)+C2*((D2^10)+(C2*((D2^9)+C2*((D2^8)+C2*((D2^7)+C2*((D2^6)+C2*((D2^5)+C2*((D2^4)+C2*((D2^3)+C2*((D2^2)+C2*((D2^1)+C2*(D2^0))))))))))))))))))))))))))))))))))))))))))))) -> 0
F43: 42 | G43: =(A2-((C2^(E2)*B2)))/((D2^41)+C2*((D2^40)+(C2*((D2^39)+C2*((D2^38)+C2*((D2^37)+C2*((D2^36)+C2*((D2^35)+C2*((D2^34)+C2*((D2^33)+C2*((D2^32)+C2*((D2^31)+C2*((D2^30)+(C2*((D2^29)+C2*((D2^28)+C2*((D2^27)+C2*((D2^26)+C2*((D2^25)+C2*((D2^24)+C2*((D2^23)+C2*((D2^22)+C2*((D2^21)+C2*((D2^20)+(C2*((D2^19)+C2*((D2^18)+C2*((D2^17)+C2*((D2^16)+C2*((D2^15)+C2*((D2^14)+C2*((D2^13)+C2*((D2^12)+C2*((D2^11)+C2*((D2^10)+(C2*((D2^9)+C2*((D2^8)+C2*((D2^7)+C2*((D2^6)+C2*((D2^5)+C2*((D2^4)+C2*((D2^3)+C2*((D2^2)+C2*((D2^1)+C2*(D2^0)))))))))))))))))))))))))))))))))))))))))))))) -> 0
F44: 43 | G44: =(A2-((C2^(E2)*B2)))/((D2^42)+C2*((D2^41)+C2*((D2^40)+(C2*((D2^39)+C2*((D2^38)+C2*((D2^37)+C2*((D2^36)+C2*((D2^35)+C2*((D2^34)+C2*((D2^33)+C2*((D2^32)+C2*((D2^31)+C2*((D2^30)+(C2*((D2^29)+C2*((D2^28)+C2*((D2^27)+C2*((D2^26)+C2*((D2^25)+C2*((D2^24)+C2*((D2^23)+C2*((D2^22)+C2*((D2^21)+C2*((D2^20)+(C2*((D2^19)+C2*((D2^18)+C2*((D2^17)+C2*((D2^16)+C2*((D2^15)+C2*((D2^14)+C2*((D2^13)+C2*((D2^12)+C2*((D2^11)+C2*((D2^10)+(C2*((D2^9)+C2*((D2^8)+C2*((D2^7)+C2*((D2^6)+C2*((D2^5)+C2*((D2^4)+C2*((D2^3)+C2*((D2^2)+C2*((D2^1)+C2*(D2^0))))))))))))))))))))))))))))))))))))))))))))))) -> 0
F45: 44 | G45: =(A2-((C2^(E2)*B2)))/((D2^43)+C2*((D2^42)+C2*((D2^41)+C2*((D2^40)+(C2*((D2^39)+C2*((D2^38)+C2*((D2^37)+C2*((D2^36)+C2*((D2^35)+C2*((D2^34)+C2*((D2^33)+C2*((D2^32)+C2*((D2^31)+C2*((D2^30)+(C2*((D2^29)+C2*((D2^28)+C2*((D2^27)+C2*((D2^26)+C2*((D2^25)+C2*((D2^24)+C2*((D2^23)+C2*((D2^22)+C2*((D2^21)+C2*((D2^20)+(C2*((D2^19)+C2*((D2^18)+C2*((D2^17)+C2*((D2^16)+C2*((D2^15)+C2*((D2^14)+C2*((D2^13)+C2*((D2^12)+C2*((D2^11)+C2*((D2^10)+(C2*((D2^9)+C2*((D2^8)+C2*((D2^7)+C2*((D2^6)+C2*((D2^5)+C2*((D2^4)+C2*((D2^3)+C2*((D2^2)+C2*((D2^1)+C2*(D2^0)))))))))))))))))))))))))))))))))))))))))))))))) -> 0
F46: 45 | G46: =(A2-((C2^(E2)*B2)))/((D2^44)+C2*((D2^43)+C2*((D2^42)+C2*((D2^41)+C2*((D2^40)+(C2*((D2^39)+C2*((D2^38)+C2*((D2^37)+C2*((D2^36)+C2*((D2^35)+C2*((D2^34)+C2*((D2^33)+C2*((D2^32)+C2*((D2^31)+C2*((D2^30)+(C2*((D2^29)+C2*((D2^28)+C2*((D2^27)+C2*((D2^26)+C2*((D2^25)+C2*((D2^24)+C2*((D2^23)+C2*((D2^22)+C2*((D2^21)+C2*((D2^20)+(C2*((D2^19)+C2*((D2^18)+C2*((D2^17)+C2*((D2^16)+C2*((D2^15)+C2*((D2^14)+C2*((D2^13)+C2*((D2^12)+C2*((D2^11)+C2*((D2^10)+(C2*((D2^9)+C2*((D2^8)+C2*((D2^7)+C2*((D2^6)+C2*((D2^5)+C2*((D2^4)+C2*((D2^3)+C2*((D2^2)+C2*((D2^1)+C2*(D2^0))))))))))))))))))))))))))))))))))))))))))))))))) -> 0
F47: 46 | G47: =(A2-((C2^(E2)*B2)))/((D2^45)+C2*((D2^44)+C2*((D2^43)+C2*((D2^42)+C2*((D2^41)+C2*((D2^40)+(C2*((D2^39)+C2*((D2^38)+C2*((D2^37)+C2*((D2^36)+C2*((D2^35)+C2*((D2^34)+C2*((D2^33)+C2*((D2^32)+C2*((D2^31)+C2*((D2^30)+(C2*((D2^29)+C2*((D2^28)+C2*((D2^27)+C2*((D2^26)+C2*((D2^25)+C2*((D2^24)+C2*((D2^23)+C2*((D2^22)+C2*((D2^21)+C2*((D2^20)+(C2*((D2^19)+C2*((D2^18)+C2*((D2^17)+C2*((D2^16)+C2*((D2^15)+C2*((D2^14)+C2*((D2^13)+C2*((D2^12)+C2*((D2^11)+C2*((D2^10)+(C2*((D2^9)+C2*((D2^8)+C2*((D2^7)+C2*((D2^6)+C2*((D2^5)+C2*((D2^4)+C2*((D2^3)+C2*((D2^2)+C2*((D2^1)+C2*(D2^0)))))))))))))))))))))))))))))))))))))))))))))))))) -> 0
F48: 47 | G48: =(A2-((C2^(E2)*B2)))/((D2^46)+C2*((D2^45)+C2*((D2^44)+C2*((D2^43)+C2*((D2^42)+C2*((D2^41)+C2*((D2^40)+(C2*((D2^39)+C2*((D2^38)+C2*((D2^37)+C2*((D2^36)+C2*((D2^35)+C2*((D2^34)+C2*((D2^33)+C2*((D2^32)+C2*((D2^31)+C2*((D2^30)+(C2*((D2^29)+C2*((D2^28)+C2*((D2^27)+C2*((D2^26)+C2*((D2^25)+C2*((D2^24)+C2*((D2^23)+C2*((D2^22)+C2*((D2^21)+C2*((D2^20)+(C2*((D2^19)+C2*((D2^18)+C2*((D2^17)+C2*((D2^16)+C2*((D2^15)+C2*((D2^14)+C2*((D2^13)+C2*((D2^12)+C2*((D2^11)+C2*((D2^10)+(C2*((D2^9)+C2*((D2^8)+C2*((D2^7)+C2*((D2^6)+C2*((D2^5)+C2*((D2^4)+C2*((D2^3)+C2*((D2^2)+C2*((D2^1)+C2*(D2^0))))))))))))))))))))))))))))))))))))))))))))))))))) -> 0
F49: 48 | G49: =(A2-((C2^(E2)*B2)))/((D2^47)+C2*((D2^46)+C2*((D2^45)+C2*((D2^44)+C2*((D2^43)+C2*((D2^42)+C2*((D2^41)+C2*((D2^40)+(C2*((D2^39)+C2*((D2^38)+C2*((D2^37)+C2*((D2^36)+C2*((D2^35)+C2*((D2^34)+C2*((D2^33)+C2*((D2^32)+C2*((D2^31)+C2*((D2^30)+(C2*((D2^29)+C2*((D2^28)+C2*((D2^27)+C2*((D2^26)+C2*((D2^25)+C2*((D2^24)+C2*((D2^23)+C2*((D2^22)+C2*((D2^21)+C2*((D2^20)+(C2*((D2^19)+C2*((D2^18)+C2*((D2^17)+C2*((D2^16)+C2*((D2^15)+C2*((D2^14)+C2*((D2^13)+C2*((D2^12)+C2*((D2^11)+C2*((D2^10)+(C2*((D2^9)+C2*((D2^8)+C2*((D2^7)+C2*((D2^6)+C2*((D2^5)+C2*((D2^4)+C2*((D2^3)+C2*((D2^2)+C2*((D2^1)+C2*(D2^0)))))))))))))))))))))))))))))))))))))))))))))))))))) -> 0
F50: 49 | G50: =(A2-((C2^(E2)*B2)))/((D2^48)+C2*((D2^47)+C2*((D2^46)+C2*((D2^45)+C2*((D2^44)+C2*((D2^43)+C2*((D2^42)+C2*((D2^41)+C2*((D2^40)+(C2*((D2^39)+C2*((D2^38)+C2*((D2^37)+C2*((D2^36)+C2*((D2^35)+C2*((D2^34)+C2*((D2^33)+C2*((D2^32)+C2*((D2^31)+C2*((D2^30)+(C2*((D2^29)+C2*((D2^28)+C2*((D2^27)+C2*((D2^26)+C2*((D2^25)+C2*((D2^24)+C2*((D2^23)+C2*((D2^22)+C2*((D2^21)+C2*((D2^20)+(C2*((D2^19)+C2*((D2^18)+C2*((D2^17)+C2*((D2^16)+C2*((D2^15)+C2*((D2^14)+C2*((D2^13)+C2*((D2^12)+C2*((D2^11)+C2*((D2^10)+(C2*((D2^9)+C2*((D2^8)+C2*((D2^7)+C2*((D2^6)+C2*((D2^5)+C2*((D2^4)+C2*((D2^3)+C2*((D2^2)+C2*((D2^1)+C2*(D2^0))))))))))))))))))))))))))))))))))))))))))))))))))))) -> 0
F51: 50 | G51: =(A2-((C2^(E2)*B2)))/((D2^49)+C2*((D2^48)+C2*((D2^47)+C2*((D2^46)+C2*((D2^45)+C2*((D2^44)+C2*((D2^43)+C2*((D2^42)+C2*((D2^41)+C2*((D2^40)+(C2*((D2^39)+C2*((D2^38)+C2*((D2^37)+C2*((D2^36)+C2*((D2^35)+C2*((D2^34)+C2*((D2^33)+C2*((D2^32)+C2*((D2^31)+C2*((D2^30)+(C2*((D2^29)+C2*((D2^28)+C2*((D2^27)+C2*((D2^26)+C2*((D2^25)+C2*((D2^24)+C2*((D2^23)+C2*((D2^22)+C2*((D2^21)+C2*((D2^20)+(C2*((D2^19)+C2*((D2^18)+C2*((D2^17)+C2*((D2^16)+C2*((D2^15)+C2*((D2^14)+C2*((D2^13)+C2*((D2^12)+C2*((D2^11)+C2*((D2^10)+(C2*((D2^9)+C2*((D2^8)+C2*((D2^7)+C2*((D2^6)+C2*((D2^5)+C2*((D2^4)+C2*((D2^3)+C2*((D2^2)+C2*((D2^1)+C2*(D2^0)))))))))))))))))))))))))))))))))))))))))))))))))))))) -> 0
F52: 51 | G52: =(A2-((C2^(E2)*B2)))/((D2^50)+(C2*((D2^49)+C2*((D2^48)+C2*((D2^47)+C2*((D2^46)+C2*((D2^45)+C2*((D2^44)+C2*((D2^43)+C2*((D2^42)+C2*((D2^41)+C2*((D2^40)+(C2*((D2^39)+C2*((D2^38)+C2*((D2^37)+C2*((D2^36)+C2*((D2^35)+C2*((D2^34)+C2*((D2^33)+C2*((D2^32)+C2*((D2^31)+C2*((D2^30)+(C2*((D2^29)+C2*((D2^28)+C2*((D2^27)+C2*((D2^26)+C2*((D2^25)+C2*((D2^24)+C2*((D2^23)+C2*((D2^22)+C2*((D2^21)+C2*((D2^20)+(C2*((D2^19)+C2*((D2^18)+C2*((D2^17)+C2*((D2^16)+C2*((D2^15)+C2*((D2^14)+C2*((D2^13)+C2*((D2^12)+C2*((D2^11)+C2*((D2^10)+(C2*((D2^9)+C2*((D2^8)+C2*((D2^7)+C2*((D2^6)+C2*((D2^5)+C2*((D2^4)+C2*((D2^3)+C2*((D2^2)+C2*((D2^1)+C2*(D2^0)))))))))))))))))))))))))))))))))))))))))))))))))))))))) -> 0
F53: 52 | G53: =(A2-((C2^(E2)*B2)))/((D2^51)+C2*((D2^50)+(C2*((D2^49)+C2*((D2^48)+C2*((D2^47)+C2*((D2^46)+C2*((D2^45)+C2*((D2^44)+C2*((D2^43)+C2*((D2^42)+C2*((D2^41)+C2*((D2^40)+(C2*((D2^39)+C2*((D2^38)+C2*((D2^37)+C2*((D2^36)+C2*((D2^35)+C2*((D2^34)+C2*((D2^33)+C2*((D2^32)+C2*((D2^31)+C2*((D2^30)+(C2*((D2^29)+C2*((D2^28)+C2*((D2^27)+C2*((D2^26)+C2*((D2^25)+C2*((D2^24)+C2*((D2^23)+C2*((D2^22)+C2*((D2^21)+C2*((D2^20)+(C2*((D2^19)+C2*((D2^18)+C2*((D2^17)+C2*((D2^16)+C2*((D2^15)+C2*((D2^14)+C2*((D2^13)+C2*((D2^12)+C2*((D2^11)+C2*((D2^10)+(C2*((D2^9)+C2*((D2^8)+C2*((D2^7)+C2*((D2^6)+C2*((D2^5)+C2*((D2^4)+C2*((D2^3)+C2*((D2^2)+C2*((D2^1)+C2*(D2^0))))))))))))))))))))))))))))))))))))))))))))))))))))))))) -> 0
F54: 53 | G54: =(A2-((C2^(E2)*B2)))/((D2^52)+C2*((D2^51)+C2*((D2^50)+(C2*((D2^49)+C2*((D2^48)+C2*((D2^47)+C2*((D2^46)+C2*((D2^45)+C2*((D2^44)+C2*((D2^43)+C2*((D2^42)+C2*((D2^41)+C2*((D2^40)+(C2*((D2^39)+C2*((D2^38)+C2*((D2^37)+C2*((D2^36)+C2*((D2^35)+C2*((D2^34)+C2*((D2^33)+C2*((D2^32)+C2*((D2^31)+C2*((D2^30)+(C2*((D2^29)+C2*((D2^28)+C2*((D2^27)+C2*((D2^26)+C2*((D2^25)+C2*((D2^24)+C2*((D2^23)+C2*((D2^22)+C2*((D2^21)+C2*((D2^20)+(C2*((D2^19)+C2*((D2^18)+C2*((D2^17)+C2*((D2^16)+C2*((D2^15)+C2*((D2^14)+C2*((D2^13)+C2*((D2^12)+C2*((D2^11)+C2*((D2^10)+(C2*((D2^9)+C2*((D2^8)+C2*((D2^7)+C2*((D2^6)+C2*((D2^5)+C2*((D2^4)+C2*((D2^3)+C2*((D2^2)+C2*((D2^1)+C2*(D2^0)))))))))))))))))))))))))))))))))))))))))))))))))))))))))) -> 0
F55: 54 | G55: =(A2-((C2^(E2)*B2)))/((D2^53)+C2*((D2^52)+C2*((D2^51)+C2*((D2^50)+(C2*((D2^49)+C2*((D2^48)+C2*((D2^47)+C2*((D2^46)+C2*((D2^45)+C2*((D2^44)+C2*((D2^43)+C2*((D2^42)+C2*((D2^41)+C2*((D2^40)+(C2*((D2^39)+C2*((D2^38)+C2*((D2^37)+C2*((D2^36)+C2*((D2^35)+C2*((D2^34)+C2*((D2^33)+C2*((D2^32)+C2*((D2^31)+C2*((D2^30)+(C2*((D2^29)+C2*((D2^28)+C2*((D2^27)+C2*((D2^26)+C2*((D2^25)+C2*((D2^24)+C2*((D2^23)+C2*((D2^22)+C2*((D2^21)+C2*((D2^20)+(C2*((D2^19)+C2*((D2^18)+C2*((D2^17)+C2*((D2^16)+C2*((D2^15)+C2*((D2^14)+C2*((D2^13)+C2*((D2^12)+C2*((D2^11)+C2*((D2^10)+(C2*((D2^9)+C2*((D2^8)+C2*((D2^7)+C2*((D2^6)+C2*((D2^5)+C2*((D2^4)+C2*((D2^3)+C2*((D2^2)+C2*((D2^1)+C2*(D2^0))))))))))))))))))))))))))))))))))))))))))))))))))))))))))) -> 0
F56: 55 | G56: =(A2-((C2^(E2)*B2)))/((D2^54)+C2*((D2^53)+C2*((D2^52)+C2*((D2^51)+C2*((D2^50)+(C2*((D2^49)+C2*((D2^48)+C2*((D2^47)+C2*((D2^46)+C2*((D2^45)+C2*((D2^44)+C2*((D2^43)+C2*((D2^42)+C2*((D2^41)+C2*((D2^40)+(C2*((D2^39)+C2*((D2^38)+C2*((D2^37)+C2*((D2^36)+C2*((D2^35)+C2*((D2^34)+C2*((D2^33)+C2*((D2^32)+C2*((D2^31)+C2*((D2^30)+(C2*((D2^29)+C2*((D2^28)+C2*((D2^27)+C2*((D2^26)+C2*((D2^25)+C2*((D2^24)+C2*((D2^23)+C2*((D2^22)+C2*((D2^21)+C2*((D2^20)+(C2*((D2^19)+C2*((D2^18)+C2*((D2^17)+C2*((D2^16)+C2*((D2^15)+C2*((D2^14)+C2*((D2^13)+C2*((D2^12)+C2*((D2^11)+C2*((D2^10)+(C2*((D2^9)+C2*((D2^8)+C2*((D2^7)+C2*((D2^6)+C2*((D2^5)+C2*((D2^4)+C2*((D2^3)+C2*((D2^2)+C2*((D2^1)+C2*(D2^0)))))))))))))))))))))))))))))))))))))))))))))))))))))))))))) -> 0
F57: 56 | G57: =(A2-((C2^(E2)*B2)))/((D2^55)+C2*((D2^54)+C2*((D2^53)+C2*((D2^52)+C2*((D2^51)+C2*((D2^50)+(C2*((D2^49)+C2*((D2^48)+C2*((D2^47)+C2*((D2^46)+C2*((D2^45)+C2*((D2^44)+C2*((D2^43)+C2*((D2^42)+C2*((D2^41)+C2*((D2^40)+(C2*((D2^39)+C2*((D2^38)+C2*((D2^37)+C2*((D2^36)+C2*((D2^35)+C2*((D2^34)+C2*((D2^33)+C2*((D2^32)+C2*((D2^31)+C2*((D2^30)+(C2*((D2^29)+C2*((D2^28)+C2*((D2^27)+C2*((D2^26)+C2*((D2^25)+C2*((D2^24)+C2*((D2^23)+C2*((D2^22)+C2*((D2^21)+C2*((D2^20)+(C2*((D2^19)+C2*((D2^18)+C2*((D2^17)+C2*((D2^16)+C2*((D2^15)+C2*((D2^14)+C2*((D2^13)+C2*((D2^12)+C2*((D2^11)+C2*((D2^10)+(C2*((D2^9)+C2*((D2^8)+C2*((D2^7)+C2*((D2^6)+C2*((D2^5)+C2*((D2^4)+C2*((D2^3)+C2*((D2^2)+C2*((D2^1)+C2*(D2^0))))))))))))))))))))))))))))))))))))))))))))))))))))))))))))) -> 0
F58: 57 | G58: =(A2-((C2^(E2)*B2)))/((D2^56)+C2*((D2^55)+C2*((D2^54)+C2*((D2^53)+C2*((D2^52)+C2*((D2^51)+C2*((D2^50)+(C2*((D2^49)+C2*((D2^48)+C2*((D2^47)+C2*((D2^46)+C2*((D2^45)+C2*((D2^44)+C2*((D2^43)+C2*((D2^42)+C2*((D2^41)+C2*((D2^40)+(C2*((D2^39)+C2*((D2^38)+C2*((D2^37)+C2*((D2^36)+C2*((D2^35)+C2*((D2^34)+C2*((D2^33)+C2*((D2^32)+C2*((D2^31)+C2*((D2^30)+(C2*((D2^29)+C2*((D2^28)+C2*((D2^27)+C2*((D2^26)+C2*((D2^25)+C2*((D2^24)+C2*((D2^23)+C2*((D2^22)+C2*((D2^21)+C2*((D2^20)+(C2*((D2^19)+C2*((D2^18)+C2*((D2^17)+C2*((D2^16)+C2*((D2^15)+C2*((D2^14)+C2*((D2^13)+C2*((D2^12)+C2*((D2^11)+C2*((D2^10)+(C2*((D2^9)+C2*((D2^8)+C2*((D2^7)+C2*((D2^6)+C2*((D2^5)+C2*((D2^4)+C2*((D2^3)+C2*((D2^2)+C2*((D2^1)+C2*(D2^0)))))))))))))))))))))))))))))))))))))))))))))))))))))))))))))) -> 0
F59: 58 | G59: =(A2-((C2^(E2)*B2)))/((D2^57)+C2*((D2^56)+C2*((D2^55)+C2*((D2^54)+C2*((D2^53)+C2*((D2^52)+C2*((D2^51)+C2*((D2^50)+(C2*((D2^49)+C2*((D2^48)+C2*((D2^47)+C2*((D2^46)+C2*((D2^45)+C2*((D2^44)+C2*((D2^43)+C2*((D2^42)+C2*((D2^41)+C2*((D2^40)+(C2*((D2^39)+C2*((D2^38)+C2*((D2^37)+C2*((D2^36)+C2*((D2^35)+C2*((D2^34)+C2*((D2^33)+C2*((D2^32)+C2*((D2^31)+C2*((D2^30)+(C2*((D2^29)+C2*((D2^28)+C2*((D2^27)+C2*((D2^26)+C2*((D2^25)+C2*((D2^24)+C2*((D2^23)+C2*((D2^22)+C2*((D2^21)+C2*((D2^20)+(C2*((D2^19)+C2*((D2^18)+C2*((D2^17)+C2*((D2^16)+C2*((D2^15)+C2*((D2^14)+C2*((D2^13)+C2*((D2^12)+C2*((D2^11)+C2*((D2^10)+(C2*((D2^9)+C2*((D2^8)+C2*((D2^7)+C2*((D2^6)+C2*((D2^5)+C2*((D2^4)+C2*((D2^3)+C2*((D2^2)+C2*((D2^1)+C2*(D2^0))))))))))))))))))))))))))))))))))))))))))))))))))))))))))))))) -> 0
F60: 59 | G60: =(A2-((C2^(E2)*B2)))/((D2^58)+C2*((D2^57)+C2*((D2^56)+C2*((D2^55)+C2*((D2^54)+C2*((D2^53)+C2*((D2^52)+C2*((D2^51)+C2*((D2^50)+(C2*((D2^49)+C2*((D2^48)+C2*((D2^47)+C2*((D2^46)+C2*((D2^45)+C2*((D2^44)+C2*((D2^43)+C2*((D2^42)+C2*((D2^41)+C2*((D2^40)+(C2*((D2^39)+C2*((D2^38)+C2*((D2^37)+C2*((D2^36)+C2*((D2^35)+C2*((D2^34)+C2*((D2^33)+C2*((D2^32)+C2*((D2^31)+C2*((D2^30)+(C2*((D2^29)+C2*((D2^28)+C2*((D2^27)+C2*((D2^26)+C2*((D2^25)+C2*((D2^24)+C2*((D2^23)+C2*((D2^22)+C2*((D2^21)+C2*((D2^20)+(C2*((D2^19)+C2*((D2^18)+C2*((D2^17)+C2*((D2^16)+C2*((D2^15)+C2*((D2^14)+C2*((D2^13)+C2*((D2^12)+C2*((D2^11)+C2*((D2^10)+(C2*((D2^9)+C2*((D2^8)+C2*((D2^7)+C2*((D2^6)+C2*((D2^5)+C2*((D2^4)+C2*((D2^3)+C2*((D2^2)+C2*((D2^1)+C2*(D2^0)))))))))))))))))))))))))))))))))))))))))))))))))))))))))))))))) -> 0
F61: 60 | G61: =(A2-((C2^(E2)*B2)))/((D2^59)+C2*((D2^58)+C2*((D2^57)+C2*((D2^56)+C2*((D2^55)+C2*((D2^54)+C2*((D2^53)+C2*((D2^52)+C2*((D2^51)+C2*((D2^50)+(C2*((D2^49)+C2*((D2^48)+C2*((D2^47)+C2*((D2^46)+C2*((D2^45)+C2*((D2^44)+C2*((D2^43)+C2*((D2^42)+C2*((D2^41)+C2*((D2^40)+(C2*((D2^39)+C2*((D2^38)+C2*((D2^37)+C2*((D2^36)+C2*((D2^35)+C2*((D2^34)+C2*((D2^33)+C2*((D2^32)+C2*((D2^31)+C2*((D2^30)+(C2*((D2^29)+C2*((D2^28)+C2*((D2^27)+C2*((D2^26)+C2*((D2^25)+C2*((D2^24)+C2*((D2^23)+C2*((D2^22)+C2*((D2^21)+C2*((D2^20)+(C2*((D2^19)+C2*((D2^18)+C2*((D2^17)+C2*((D2^16)+C2*((D2^15)+C2*((D2^14)+C2*((D2^13)+C2*((D2^12)+C2*((D2^11)+C2*((D2^10)+(C2*((D2^9)+C2*((D2^8)+C2*((D2^7)+C2*((D2^6)+C2*((D2^5)+C2*((D2^4)+C2*((D2^3)+C2*((D2^2)+C2*((D2^1)+C2*(D2^0))))))))))))))))))))))))))))))))))))))))))))))))))))))))))))))))) -> 0
F62: 61 | G62: =(A2-((C2^(E2)*B2)))/((D2^60)+(C2*((D2^59)+C2*((D2^58)+C2*((D2^57)+C2*((D2^56)+C2*((D2^55)+C2*((D2^54)+C2*((D2^53)+C2*((D2^52)+C2*((D2^51)+C2*((D2^50)+(C2*((D2^49)+C2*((D2^48)+C2*((D2^47)+C2*((D2^46)+C2*((D2^45)+C2*((D2^44)+C2*((D2^43)+C2*((D2^42)+C2*((D2^41)+C2*((D2^40)+(C2*((D2^39)+C2*((D2^38)+C2*((D2^37)+C2*((D2^36)+C2*((D2^35)+C2*((D2^34)+C2*((D2^33)+C2*((D2^32)+C2*((D2^31)+C2*((D2^30)+(C2*((D2^29)+C2*((D2^28)+C2*((D2^27)+C2*((D2^26)+C2*((D2^25)+C2*((D2^24)+C2*((D2^23)+C2*((D2^22)+C2*((D2^21)+C2*((D2^20)+(C2*((D2^19)+C2*((D2^18)+C2*((D2^17)+C2*((D2^16)+C2*((D2^15)+C2*((D2^14)+C2*((D2^13)+C2*((D2^12)+C2*((D2^11)+C2*((D2^10)+(C2*((D2^9)+C2*((D2^8)+C2*((D2^7)+C2*((D2^6)+C2*((D2^5)+C2*((D2^4)+C2*((D2^3)+C2*((D2^2)+C2*((D2^1)+C2*(D2^0))))))))))))))))))))))))))))))))))))))))))))))))))))))))))))))))))) -> 0
F63: 62 | G63: =(A2-((C2^(E2)*B2)))/((D2^61)+C2*((D2^60)+(C2*((D2^59)+C2*((D2^58)+C2*((D2^57)+C2*((D2^56)+C2*((D2^55)+C2*((D2^54)+C2*((D2^53)+C2*((D2^52)+C2*((D2^51)+C2*((D2^50)+(C2*((D2^49)+C2*((D2^48)+C2*((D2^47)+C2*((D2^46)+C2*((D2^45)+C2*((D2^44)+C2*((D2^43)+C2*((D2^42)+C2*((D2^41)+C2*((D2^40)+(C2*((D2^39)+C2*((D2^38)+C2*((D2^37)+C2*((D2^36)+C2*((D2^35)+C2*((D2^34)+C2*((D2^33)+C2*((D2^32)+C2*((D2^31)+C2*((D2^30)+(C2*((D2^29)+C2*((D2^28)+C2*((D2^27)+C2*((D2^26)+C2*((D2^25)+C2*((D2^24)+C2*((D2^23)+C2*((D2^22)+C2*((D2^21)+C2*((D2^20)+(C2*((D2^19)+C2*((D2^18)+C2*((D2^17)+C2*((D2^16)+C2*((D2^15)+C2*((D2^14)+C2*((D2^13)+C2*((D2^12)+C2*((D2^11)+C2*((D2^10)+(C2*((D2^9)+C2*((D2^8)+C2*((D2^7)+C2*((D2^6)+C2*((D2^5)+C2*((D2^4)+C2*((D2^3)+C2*((D2^2)+C2*((D2^1)+C2*(D2^0)))))))))))))))))))))))))))))))))))))))))))))))))))))))))))))))))))) -> 0
F64: 63 | G64: =(A2-((C2^(E2)*B2)))/((D2^62)+C2*((D2^61)+C2*((D2^60)+(C2*((D2^59)+C2*((D2^58)+C2*((D2^57)+C2*((D2^56)+C2*((D2^55)+C2*((D2^54)+C2*((D2^53)+C2*((D2^52)+C2*((D2^51)+C2*((D2^50)+(C2*((D2^49)+C2*((D2^48)+C2*((D2^47)+C2*((D2^46)+C2*((D2^45)+C2*((D2^44)+C2*((D2^43)+C2*((D2^42)+C2*((D2^41)+C2*((D2^40)+(C2*((D2^39)+C2*((D2^38)+C2*((D2^37)+C2*((D2^36)+C2*((D2^35)+C2*((D2^34)+C2*((D2^33)+C2*((D2^32)+C2*((D2^31)+C2*((D2^30)+(C2*((D2^29)+C2*((D2^28)+C2*((D2^27)+C2*((D2^26)+C2*((D2^25)+C2*((D2^24)+C2*((D2^23)+C2*((D2^22)+C2*((D2^21)+C2*((D2^20)+(C2*((D2^19)+C2*((D2^18)+C2*((D2^17)+C2*((D2^16)+C2*((D2^15)+C2*((D2^14)+C2*((D2^13)+C2*((D2^12)+C2*((D2^11)+C2*((D2^10)+(C2*((D2^9)+C2*((D2^8)+C2*((D2^7)+C2*((D2^6)+C2*((D2^5)+C2*((D2^4)+C2*((D2^3)+C2*((D2^2)+C2*((D2^1)+C2*(D2^0))))))))))))))))))))))))))))))))))))))))))))))))))))))))))))))))))))) -> 0
F65: 64 | G65: =(A2-((C2^(E2)*B2)))/((D2^63)+C2*((D2^62)+C2*((D2^61)+C2*((D2^60)+(C2*((D2^59)+C2*((D2^58)+C2*((D2^57)+C2*((D2^56)+C2*((D2^55)+C2*((D2^54)+C2*((D2^53)+C2*((D2^52)+C2*((D2^51)+C2*((D2^50)+(C2*((D2^49)+C2*((D2^48)+C2*((D2^47)+C2*((D2^46)+C2*((D2^45)+C2*((D2^44)+C2*((D2^43)+C2*((D2^42)+C2*((D2^41)+C2*((D2^40)+(C2*((D2^39)+C2*((D2^38)+C2*((D2^37)+C2*((D2^36)+C2*((D2^35)+C2*((D2^34)+C2*((D2^33)+C2*((D2^32)+C2*((D2^31)+C2*((D2^30)+(C2*((D2^29)+C2*((D2^28)+C2*((D2^27)+C2*((D2^26)+C2*((D2^25)+C2*((D2^24)+C2*((D2^23)+C2*((D2^22)+C2*((D2^21)+C2*((D2^20)+(C2*((D2^19)+C2*((D2^18)+C2*((D2^17)+C2*((D2^16)+C2*((D2^15)+C2*((D2^14)+C2*((D2^13)+C2*((D2^12)+C2*((D2^11)+C2*((D2^10)+(C2*((D2^9)+C2*((D2^8)+C2*((D2^7)+C2*((D2^6)+C2*((D2^5)+C2*((D2^4)+C2*((D2^3)+C2*((D2^2)+C2*((D2^1)+C2*(D2^0)))))))))))))))))))))))))))))))))))))))))))))))))))))))))))))))))))))) -> 0
F66: 65 | G66: =(A2-((C2^(E2)*B2)))/((D2^64)+C2*((D2^63)+C2*((D2^62)+C2*((D2^61)+C2*((D2^60)+(C2*((D2^59)+C2*((D2^58)+C2*((D2^57)+C2*((D2^56)+C2*((D2^55)+C2*((D2^54)+C2*((D2^53)+C2*((D2^52)+C2*((D2^51)+C2*((D2^50)+(C2*((D2^49)+C2*((D2^48)+C2*((D2^47)+C2*((D2^46)+C2*((D2^45)+C2*((D2^44)+C2*((D2^43)+C2*((D2^42)+C2*((D2^41)+C2*((D2^40)+(C2*((D2^39)+C2*((D2^38)+C2*((D2^37)+C2*((D2^36)+C2*((D2^35)+C2*((D2^34)+C2*((D2^33)+C2*((D2^32)+C2*((D2^31)+C2*((D2^30)+(C2*((D2^29)+C2*((D2^28)+C2*((D2^27)+C2*((D2^26)+C2*((D2^25)+C2*((D2^24)+C2*((D2^23)+C2*((D2^22)+C2*((D2^21)+C2*((D2^20)+(C2*((D2^19)+C2*((D2^18)+C2*((D2^17)+C2*((D2^16)+C2*((D2^15)+C2*((D2^14)+C2*((D2^13)+C2*((D2^12)+C2*((D2^11)+C2*((D2^10)+(C2*((D2^9)+C2*((D2^8)+C2*((D2^7)+C2*((D2^6)+C2*((D2^5)+C2*((D2^4)+C2*((D2^3)+C2*((D2^2)+C2*((D2^1)+C2*(D2^0))))))))))))))))))))))))))))))))))))))))))))))))))))))))))))))))))))))) -> 0
F67: 66 | G67: =(A2-((C2^(E2)*B2)))/((D2^65)+C2*((D2^64)+C2*((D2^63)+C2*((D2^62)+C2*((D2^61)+C2*((D2^60)+(C2*((D2^59)+C2*((D2^58)+C2*((D2^57)+C2*((D2^56)+C2*((D2^55)+C2*((D2^54)+C2*((D2^53)+C2*((D2^52)+C2*((D2^51)+C2*((D2^50)+(C2*((D2^49)+C2*((D2^48)+C2*((D2^47)+C2*((D2^46)+C2*((D2^45)+C2*((D2^44)+C2*((D2^43)+C2*((D2^42)+C2*((D2^41)+C2*((D2^40)+(C2*((D2^39)+C2*((D2^38)+C2*((D2^37)+C2*((D2^36)+C2*((D2^35)+C2*((D2^34)+C2*((D2^33)+C2*((D2^32)+C2*((D2^31)+C2*((D2^30)+(C2*((D2^29)+C2*((D2^28)+C2*((D2^27)+C2*((D2^26)+C2*((D2^25)+C2*((D2^24)+C2*((D2^23)+C2*((D2^22)+C2*((D2^21)+C2*((D2^20)+(C2*((D2^19)+C2*((D2^18)+C2*((D2^17)+C2*((D2^16)+C2*((D2^15)+C2*((D2^14)+C2*((D2^13)+C2*((D2^12)+C2*((D2^11)+C2*((D2^10)+(C2*((D2^9)+C2*((D2^8)+C2*((D2^7)+C2*((D2^6)+C2*((D2^5)+C2*((D2^4)+C2*((D2^3)+C2*((D2^2)+C2*((D2^1)+C2*(D2^0)))))))))))))))))))))))))))))))))))))))))))))))))))))))))))))))))))))))) -> 0
F68: 67 | G68: =(A2-((C2^(E2)*B2)))/((D2^66)+C2*((D2^65)+C2*((D2^64)+C2*((D2^63)+C2*((D2^62)+C2*((D2^61)+C2*((D2^60)+(C2*((D2^59)+C2*((D2^58)+C2*((D2^57)+C2*((D2^56)+C2*((D2^55)+C2*((D2^54)+C2*((D2^53)+C2*((D2^52)+C2*((D2^51)+C2*((D2^50)+(C2*((D2^49)+C2*((D2^48)+C2*((D2^47)+C2*((D2^46)+C2*((D2^45)+C2*((D2^44)+C2*((D2^43)+C2*((D2^42)+C2*((D2^41)+C2*((D2^40)+(C2*((D2^39)+C2*((D2^38)+C2*((D2^37)+C2*((D2^36)+C2*((D2^35)+C2*((D2^34)+C2*((D2^33)+C2*((D2^32)+C2*((D2^31)+C2*((D2^30)+(C2*((D2^29)+C2*((D2^28)+C2*((D2^27)+C2*((D2^26)+C2*((D2^25)+C2*((D2^24)+C2*((D2^23)+C2*((D2^22)+C2*((D2^21)+C2*((D2^20)+(C2*((D2^19)+C2*((D2^18)+C2*((D2^17)+C2*((D2^16)+C2*((D2^15)+C2*((D2^14)+C2*((D2^13)+C2*((D2^12)+C2*((D2^11)+C2*((D2^10)+(C2*((D2^9)+C2*((D2^8)+C2*((D2^7)+C2*((D2^6)+C2*((D2^5)+C2*((D2^4)+C2*((D2^3)+C2*((D2^2)+C2*((D2^1)+C2*(D2^0))))))))))))))))))))))))))))))))))))))))))))))))))))))))))))))))))))))))) -> 0
F69: 68 | G69: =(A2-((C2^(E2)*B2)))/((D2^67)+C2*((D2^66)+C2*((D2^65)+C2*((D2^64)+C2*((D2^63)+C2*((D2^62)+C2*((D2^61)+C2*((D2^60)+(C2*((D2^59)+C2*((D2^58)+C2*((D2^57)+C2*((D2^56)+C2*((D2^55)+C2*((D2^54)+C2*((D2^53)+C2*((D2^52)+C2*((D2^51)+C2*((D2^50)+(C2*((D2^49)+C2*((D2^48)+C2*((D2^47)+C2*((D2^46)+C2*((D2^45)+C2*((D2^44)+C2*((D2^43)+C2*((D2^42)+C2*((D2^41)+C2*((D2^40)+(C2*((D2^39)+C2*((D2^38)+C2*((D2^37)+C2*((D2^36)+C2*((D2^35)+C2*((D2^34)+C2*((D2^33)+C2*((D2^32)+C2*((D2^31)+C2*((D2^30)+(C2*((D2^29)+C2*((D2^28)+C2*((D2^27)+C2*((D2^26)+C2*((D2^25)+C2*((D2^24)+C2*((D2^23)+C2*((D2^22)+C2*((D2^21)+C2*((D2^20)+(C2*((D2^19)+C2*((D2^18)+C2*((D2^17)+C2*((D2^16)+C2*((D2^15)+C2*((D2^14)+C2*((D2^13)+C2*((D2^12)+C2*((D2^11)+C2*((D2^10)+(C2*((D2^9)+C2*((D2^8)+C2*((D2^7)+C2*((D2^6)+C2*((D2^5)+C2*((D2^4)+C2*((D2^3)+C2*((D2^2)+C2*((D2^1)+C2*(D2^0)))))))))))))))))))))))))))))))))))))))))))))))))))))))))))))))))))))))))) -> 0
F70: 69 | G70: =(A2-((C2^(E2)*B2)))/((D2^68)+C2*((D2^67)+C2*((D2^66)+C2*((D2^65)+C2*((D2^64)+C2*((D2^63)+C2*((D2^62)+C2*((D2^61)+C2*((D2^60)+(C2*((D2^59)+C2*((D2^58)+C2*((D2^57)+C2*((D2^56)+C2*((D2^55)+C2*((D2^54)+C2*((D2^53)+C2*((D2^52)+C2*((D2^51)+C2*((D2^50)+(C2*((D2^49)+C2*((D2^48)+C2*((D2^47)+C2*((D2^46)+C2*((D2^45)+C2*((D2^44)+C2*((D2^43)+C2*((D2^42)+C2*((D2^41)+C2*((D2^40)+(C2*((D2^39)+C2*((D2^38)+C2*((D2^37)+C2*((D2^36)+C2*((D2^35)+C2*((D2^34)+C2*((D2^33)+C2*((D2^32)+C2*((D2^31)+C2*((D2^30)+(C2*((D2^29)+C2*((D2^28)+C2*((D2^27)+C2*((D2^26)+C2*((D2^25)+C2*((D2^24)+C2*((D2^23)+C2*((D2^22)+C2*((D2^21)+C2*((D2^20)+(C2*((D2^19)+C2*((D2^18)+C2*((D2^17)+C2*((D2^16)+C2*((D2^15)+C2*((D2^14)+C2*((D2^13)+C2*((D2^12)+C2*((D2^11)+C2*((D2^10)+(C2*((D2^9)+C2*((D2^8)+C2*((D2^7)+C2*((D2^6)+C2*((D2^5)+C2*((D2^4)+C2*((D2^3)+C2*((D2^2)+C2*((D2^1)+C2*(D2^0))))))))))))))))))))))))))))))))))))))))))))))))))))))))))))))))))))))))))) -> 0
F71: 70 | G71: =(A2-((C2^(E2)*B2)))/((D2^69)+C2*((D2^68)+C2*((D2^67)+C2*((D2^66)+C2*((D2^65)+C2*((D2^64)+C2*((D2^63)+C2*((D2^62)+C2*((D2^61)+C2*((D2^60)+(C2*((D2^59)+C2*((D2^58)+C2*((D2^57)+C2*((D2^56)+C2*((D2^55)+C2*((D2^54)+C2*((D2^53)+C2*((D2^52)+C2*((D2^51)+C2*((D2^50)+(C2*((D2^49)+C2*((D2^48)+C2*((D2^47)+C2*((D2^46)+C2*((D2^45)+C2*((D2^44)+C2*((D2^43)+C2*((D2^42)+C2*((D2^41)+C2*((D2^40)+(C2*((D2^39)+C2*((D2^38)+C2*((D2^37)+C2*((D2^36)+C2*((D2^35)+C2*((D2^34)+C2*((D2^33)+C2*((D2^32)+C2*((D2^31)+C2*((D2^30)+(C2*((D2^29)+C2*((D2^28)+C2*((D2^27)+C2*((D2^26)+C2*((D2^25)+C2*((D2^24)+C2*((D2^23)+C2*((D2^22)+C2*((D2^21)+C2*((D2^20)+(C2*((D2^19)+C2*((D2^18)+C2*((D2^17)+C2*((D2^16)+C2*((D2^15)+C2*((D2^14)+C2*((D2^13)+C2*((D2^12)+C2*((D2^11)+C2*((D2^10)+(C2*((D2^9)+C2*((D2^8)+C2*((D2^7)+C2*((D2^6)+C2*((D2^5)+C2*((D2^4)+C2*((D2^3)+C2*((D2^2)+C2*((D2^1)+C2*(D2^0)))))))))))))))))))))))))))))))))))))))))))))))))))))))))))))))))))))))))))) -> 0
F72: 71 | G72: =(A2-((C2^(E2)*B2)))/((D2^70)+(C2*((D2^69)+C2*((D2^68)+C2*((D2^67)+C2*((D2^66)+C2*((D2^65)+C2*((D2^64)+C2*((D2^63)+C2*((D2^62)+C2*((D2^61)+C2*((D2^60)+(C2*((D2^59)+C2*((D2^58)+C2*((D2^57)+C2*((D2^56)+C2*((D2^55)+C2*((D2^54)+C2*((D2^53)+C2*((D2^52)+C2*((D2^51)+C2*((D2^50)+(C2*((D2^49)+C2*((D2^48)+C2*((D2^47)+C2*((D2^46)+C2*((D2^45)+C2*((D2^44)+C2*((D2^43)+C2*((D2^42)+C2*((D2^41)+C2*((D2^40)+(C2*((D2^39)+C2*((D2^38)+C2*((D2^37)+C2*((D2^36)+C2*((D2^35)+C2*((D2^34)+C2*((D2^33)+C2*((D2^32)+C2*((D2^31)+C2*((D2^30)+(C2*((D2^29)+C2*((D2^28)+C2*((D2^27)+C2*((D2^26)+C2*((D2^25)+C2*((D2^24)+C2*((D2^23)+C2*((D2^22)+C2*((D2^21)+C2*((D2^20)+(C2*((D2^19)+C2*((D2^18)+C2*((D2^17)+C2*((D2^16)+C2*((D2^15)+C2*((D2^14)+C2*((D2^13)+C2*((D2^12)+C2*((D2^11)+C2*((D2^10)+(C2*((D2^9)+C2*((D2^8)+C2*((D2^7)+C2*((D2^6)+C2*((D2^5)+C2*((D2^4)+C2*((D2^3)+C2*((D2^2)+C2*((D2^1)+C2*(D2^0)))))))))))))))))))))))))))))))))))))))))))))))))))))))))))))))))))))))))))))) -> 0
F73: 72 | G73: =(A2-((C2^(E2)*B2)))/((D2^71)+C2*((D2^70)+(C2*((D2^69)+C2*((D2^68)+C2*((D2^67)+C2*((D2^66)+C2*((D2^65)+C2*((D2^64)+C2*((D2^63)+C2*((D2^62)+C2*((D2^61)+C2*((D2^60)+(C2*((D2^59)+C2*((D2^58)+C2*((D2^57)+C2*((D2^56)+C2*((D2^55)+C2*((D2^54)+C2*((D2^53)+C2*((D2^52)+C2*((D2^51)+C2*((D2^50)+(C2*((D2^49)+C2*((D2^48)+C2*((D2^47)+C2*((D2^46)+C2*((D2^45)+C2*((D2^44)+C2*((D2^43)+C2*((D2^42)+C2*((D2^41)+C2*((D2^40)+(C2*((D2^39)+C2*((D2^38)+C2*((D2^37)+C2*((D2^36)+C2*((D2^35)+C2*((D2^34)+C2*((D2^33)+C2*((D2^32)+C2*((D2^31)+C2*((D2^30)+(C2*((D2^29)+C2*((D2^28)+C2*((D2^27)+C2*((D2^26)+C2*((D2^25)+C2*((D2^24)+C2*((D2^23)+C2*((D2^22)+C2*((D2^21)+C2*((D2^20)+(C2*((D2^19)+C2*((D2^18)+C2*((D2^17)+C2*((D2^16)+C2*((D2^15)+C2*((D2^14)+C2*((D2^13)+C2*((D2^12)+C2*((D2^11)+C2*((D2^10)+(C2*((D2^9)+C2*((D2^8)+C2*((D2^7)+C2*((D2^6)+C2*((D2^5)+C2*((D2^4)+C2*((D2^3)+C2*((D2^2)+C2*((D2^1)+C2*(D2^0))))))))))))))))))))))))))))))))))))))))))))))))))))))))))))))))))))))))))))))) -> 0
F74: 73 | G74: =(A2-((C2^(E2)*B2)))/((D2^72)+C2*((D2^71)+C2*((D2^70)+(C2*((D2^69)+C2*((D2^68)+C2*((D2^67)+C2*((D2^66)+C2*((D2^65)+C2*((D2^64)+C2*((D2^63)+C2*((D2^62)+C2*((D2^61)+C2*((D2^60)+(C2*((D2^59)+C2*((D2^58)+C2*((D2^57)+C2*((D2^56)+C2*((D2^55)+C2*((D2^54)+C2*((D2^53)+C2*((D2^52)+C2*((D2^51)+C2*((D2^50)+(C2*((D2^49)+C2*((D2^48)+C2*((D2^47)+C2*((D2^46)+C2*((D2^45)+C2*((D2^44)+C2*((D2^43)+C2*((D2^42)+C2*((D2^41)+C2*((D2^40)+(C2*((D2^39)+C2*((D2^38)+C2*((D2^37)+C2*((D2^36)+C2*((D2^35)+C2*((D2^34)+C2*((D2^33)+C2*((D2^32)+C2*((D2^31)+C2*((D2^30)+(C2*((D2^29)+C2*((D2^28)+C2*((D2^27)+C2*((D2^26)+C2*((D2^25)+C2*((D2^24)+C2*((D2^23)+C2*((D2^22)+C2*((D2^21)+C2*((D2^20)+(C2*((D2^19)+C2*((D2^18)+C2*((D2^17)+C2*((D2^16)+C2*((D2^15)+C2*((D2^14)+C2*((D2^13)+C2*((D2^12)+C2*((D2^11)+C2*((D2^10)+(C2*((D2^9)+C2*((D2^8)+C2*((D2^7)+C2*((D2^6)+C2*((D2^5)+C2*((D2^4)+C2*((D2^3)+C2*((D2^2)+C2*((D2^1)+C2*(D2^0)))))))))))))))))))))))))))))))))))))))))))))))))))))))))))))))))))))))))))))))) -> 0
F75: 74 | G75: =(A2-((C2^(E2)*B2)))/((D2^73)+C2*((D2^72)+C2*((D2^71)+C2*((D2^70)+(C2*((D2^69)+C2*((D2^68)+C2*((D2^67)+C2*((D2^66)+C2*((D2^65)+C2*((D2^64)+C2*((D2^63)+C2*((D2^62)+C2*((D2^61)+C2*((D2^60)+(C2*((D2^59)+C2*((D2^58)+C2*((D2^57)+C2*((D2^56)+C2*((D2^55)+C2*((D2^54)+C2*((D2^53)+C2*((D2^52)+C2*((D2^51)+C2*((D2^50)+(C2*((D2^49)+C2*((D2^48)+C2*((D2^47)+C2*((D2^46)+C2*((D2^45)+C2*((D2^44)+C2*((D2^43)+C2*((D2^42)+C2*((D2^41)+C2*((D2^40)+(C2*((D2^39)+C2*((D2^38)+C2*((D2^37)+C2*((D2^36)+C2*((D2^35)+C2*((D2^34)+C2*((D2^33)+C2*((D2^32)+C2*((D2^31)+C2*((D2^30)+(C2*((D2^29)+C2*((D2^28)+C2*((D2^27)+C2*((D2^26)+C2*((D2^25)+C2*((D2^24)+C2*((D2^23)+C2*((D2^22)+C2*((D2^21)+C2*((D2^20)+(C2*((D2^19)+C2*((D2^18)+C2*((D2^17)+C2*((D2^16)+C2*((D2^15)+C2*((D2^14)+C2*((D2^13)+C2*((D2^12)+C2*((D2^11)+C2*((D2^10)+(C2*((D2^9)+C2*((D2^8)+C2*((D2^7)+C2*((D2^6)+C2*((D2^5)+C2*((D2^4)+C2*((D2^3)+C2*((D2^2)+C2*((D2^1)+C2*(D2^0))))))))))))))))))))))))))))))))))))))))))))))))))))))))))))))))))))))))))))))))) -> 0
F76: 75 | G76: =(A2-((C2^(E2)*B2)))/((D2^74)+C2*((D2^73)+C2*((D2^72)+C2*((D2^71)+C2*((D2^70)+(C2*((D2^69)+C2*((D2^68)+C2*((D2^67)+C2*((D2^66)+C2*((D2^65)+C2*((D2^64)+C2*((D2^63)+C2*((D2^62)+C2*((D2^61)+C2*((D2^60)+(C2*((D2^59)+C2*((D2^58)+C2*((D2^57)+C2*((D2^56)+C2*((D2^55)+C2*((D2^54)+C2*((D2^53)+C2*((D2^52)+C2*((D2^51)+C2*((D2^50)+(C2*((D2^49)+C2*((D2^48)+C2*((D2^47)+C2*((D2^46)+C2*((D2^45)+C2*((D2^44)+C2*((D2^43)+C2*((D2^42)+C2*((D2^41)+C2*((D2^40)+(C2*((D2^39)+C2*((D2^38)+C2*((D2^37)+C2*((D2^36)+C2*((D2^35)+C2*((D2^34)+C2*((D2^33)+C2*((D2^32)+C2*((D2^31)+C2*((D2^30)+(C2*((D2^29)+C2*((D2^28)+C2*((D2^27)+C2*((D2^26)+C2*((D2^25)+C2*((D2^24)+C2*((D2^23)+C2*((D2^22)+C2*((D2^21)+C2*((D2^20)+(C2*((D2^19)+C2*((D2^18)+C2*((D2^17)+C2*((D2^16)+C2*((D2^15)+C2*((D2^14)+C2*((D2^13)+C2*((D2^12)+C2*((D2^11)+C2*((D2^10)+(C2*((D2^9)+C2*((D2^8)+C2*((D2^7)+C2*((D2^6)+C2*((D2^5)+C2*((D2^4)+C2*((D2^3)+C2*((D2^2)+C2*((D2^1)+C2*(D2^0)))))))))))))))))))))))))))))))))))))))))))))))))))))))))))))))))))))))))))))))))) -> 0
F77: 76 | G77: =(A2-((C2^(E2)*B2)))/((D2^75)+C2*((D2^74)+C2*((D2^73)+C2*((D2^72)+C2*((D2^71)+C2*((D2^70)+(C2*((D2^69)+C2*((D2^68)+C2*((D2^67)+C2*((D2^66)+C2*((D2^65)+C2*((D2^64)+C2*((D2^63)+C2*((D2^62)+C2*((D2^61)+C2*((D2^60)+(C2*((D2^59)+C2*((D2^58)+C2*((D2^57)+C2*((D2^56)+C2*((D2^55)+C2*((D2^54)+C2*((D2^53)+C2*((D2^52)+C2*((D2^51)+C2*((D2^50)+(C2*((D2^49)+C2*((D2^48)+C2*((D2^47)+C2*((D2^46)+C2*((D2^45)+C2*((D2^44)+C2*((D2^43)+C2*((D2^42)+C2*((D2^41)+C2*((D2^40)+(C2*((D2^39)+C2*((D2^38)+C2*((D2^37)+C2*((D2^36)+C2*((D2^35)+C2*((D2^34)+C2*((D2^33)+C2*((D2^32)+C2*((D2^31)+C2*((D2^30)+(C2*((D2^29)+C2*((D2^28)+C2*((D2^27)+C2*((D2^26)+C2*((D2^25)+C2*((D2^24)+C2*((D2^23)+C2*((D2^22)+C2*((D2^21)+C2*((D2^20)+(C2*((D2^19)+C2*((D2^18)+C2*((D2^17)+C2*((D2^16)+C2*((D2^15)+C2*((D2^14)+C2*((D2^13)+C2*((D2^12)+C2*((D2^11)+C2*((D2^10)+(C2*((D2^9)+C2*((D2^8)+C2*((D2^7)+C2*((D2^6)+C2*((D2^5)+C2*((D2^4)+C2*((D2^3)+C2*((D2^2)+C2*((D2^1)+C2*(D2^0))))))))))))))))))))))))))))))))))))))))))))))))))))))))))))))))))))))))))))))))))) -> 0
F78: 77 | G78: =(A2-((C2^(E2)*B2)))/((D2^76)+C2*((D2^75)+C2*((D2^74)+C2*((D2^73)+C2*((D2^72)+C2*((D2^71)+C2*((D2^70)+(C2*((D2^69)+C2*((D2^68)+C2*((D2^67)+C2*((D2^66)+C2*((D2^65)+C2*((D2^64)+C2*((D2^63)+C2*((D2^62)+C2*((D2^61)+C2*((D2^60)+(C2*((D2^59)+C2*((D2^58)+C2*((D2^57)+C2*((D2^56)+C2*((D2^55)+C2*((D2^54)+C2*((D2^53)+C2*((D2^52)+C2*((D2^51)+C2*((D2^50)+(C2*((D2^49)+C2*((D2^48)+C2*((D2^47)+C2*((D2^46)+C2*((D2^45)+C2*((D2^44)+C2*((D2^43)+C2*((D2^42)+C2*((D2^41)+C2*((D2^40)+(C2*((D2^39)+C2*((D2^38)+C2*((D2^37)+C2*((D2^36)+C2*((D2^35)+C2*((D2^34)+C2*((D2^33)+C2*((D2^32)+C2*((D2^31)+C2*((D2^30)+(C2*((D2^29)+C2*((D2^28)+C2*((D2^27)+C2*((D2^26)+C2*((D2^25)+C2*((D2^24)+C2*((D2^23)+C2*((D2^22)+C2*((D2^21)+C2*((D2^20)+(C2*((D2^19)+C2*((D2^18)+C2*((D2^17)+C2*((D2^16)+C2*((D2^15)+C2*((D2^14)+C2*((D2^13)+C2*((D2^12)+C2*((D2^11)+C2*((D2^10)+(C2*((D2^9)+C2*((D2^8)+C2*((D2^7)+C2*((D2^6)+C2*((D2^5)+C2*((D2^4)+C2*((D2^3)+C2*((D2^2)+C2*((D2^1)+C2*(D2^0)))))))))))))))))))))))))))))))))))))))))))))))))))))))))))))))))))))))))))))))))))) -> 0
F79: 78 | G79: =(A2-((C2^(E2)*B2)))/((D2^77)+C2*((D2^76)+C2*((D2^75)+C2*((D2^74)+C2*((D2^73)+C2*((D2^72)+C2*((D2^71)+C2*((D2^70)+(C2*((D2^69)+C2*((D2^68)+C2*((D2^67)+C2*((D2^66)+C2*((D2^65)+C2*((D2^64)+C2*((D2^63)+C2*((D2^62)+C2*((D2^61)+C2*((D2^60)+(C2*((D2^59)+C2*((D2^58)+C2*((D2^57)+C2*((D2^56)+C2*((D2^55)+C2*((D2^54)+C2*((D2^53)+C2*((D2^52)+C2*((D2^51)+C2*((D2^50)+(C2*((D2^49)+C2*((D2^48)+C2*((D2^47)+C2*((D2^46)+C2*((D2^45)+C2*((D2^44)+C2*((D2^43)+C2*((D2^42)+C2*((D2^41)+C2*((D2^40)+(C2*((D2^39)+C2*((D2^38)+C2*((D2^37)+C2*((D2^36)+C2*((D2^35)+C2*((D2^34)+C2*((D2^33)+C2*((D2^32)+C2*((D2^31)+C2*((D2^30)+(C2*((D2^29)+C2*((D2^28)+C2*((D2^27)+C2*((D2^26)+C2*((D2^25)+C2*((D2^24)+C2*((D2^23)+C2*((D2^22)+C2*((D2^21)+C2*((D2^20)+(C2*((D2^19)+C2*((D2^18)+C2*((D2^17)+C2*((D2^16)+C2*((D2^15)+C2*((D2^14)+C2*((D2^13)+C2*((D2^12)+C2*((D2^11)+C2*((D2^10)+(C2*((D2^9)+C2*((D2^8)+C2*((D2^7)+C2*((D2^6)+C2*((D2^5)+C2*((D2^4)+C2*((D2^3)+C2*((D2^2)+C2*((D2^1)+C2*(D2^0))))))))))))))))))))))))))))))))))))))))))))))))))))))))))))))))))))))))))))))))))))) -> 0
F80: 79 | G80: =(A2-((C2^(E2)*B2)))/((D2^78)+C2*((D2^77)+C2*((D2^76)+C2*((D2^75)+C2*((D2^74)+C2*((D2^73)+C2*((D2^72)+C2*((D2^71)+C2*((D2^70)+(C2*((D2^69)+C2*((D2^68)+C2*((D2^67)+C2*((D2^66)+C2*((D2^65)+C2*((D2^64)+C2*((D2^63)+C2*((D2^62)+C2*((D2^61)+C2*((D2^60)+(C2*((D2^59)+C2*((D2^58)+C2*((D2^57)+C2*((D2^56)+C2*((D2^55)+C2*((D2^54)+C2*((D2^53)+C2*((D2^52)+C2*((D2^51)+C2*((D2^50)+(C2*((D2^49)+C2*((D2^48)+C2*((D2^47)+C2*((D2^46)+C2*((D2^45)+C2*((D2^44)+C2*((D2^43)+C2*((D2^42)+C2*((D2^41)+C2*((D2^40)+(C2*((D2^39)+C2*((D2^38)+C2*((D2^37)+C2*((D2^36)+C2*((D2^35)+C2*((D2^34)+C2*((D2^33)+C2*((D2^32)+C2*((D2^31)+C2*((D2^30)+(C2*((D2^29)+C2*((D2^28)+C2*((D2^27)+C2*((D2^26)+C2*((D2^25)+C2*((D2^24)+C2*((D2^23)+C2*((D2^22)+C2*((D2^21)+C2*((D2^20)+(C2*((D2^19)+C2*((D2^18)+C2*((D2^17)+C2*((D2^16)+C2*((D2^15)+C2*((D2^14)+C2*((D2^13)+C2*((D2^12)+C2*((D2^11)+C2*((D2^10)+(C2*((D2^9)+C2*((D2^8)+C2*((D2^7)+C2*((D2^6)+C2*((D2^5)+C2*((D2^4)+C2*((D2^3)+C2*((D2^2)+C2*((D2^1)+C2*(D2^0)))))))))))))))))))))))))))))))))))))))))))))))))))))))))))))))))))))))))))))))))))))) -> 0
F81: 80 | G81: =(A2-((C2^(E2)*B2)))/((D2^79)+C2*((D2^78)+C2*((D2^77)+C2*((D2^76)+C2*((D2^75)+C2*((D2^74)+C2*((D2^73)+C2*((D2^72)+C2*((D2^71)+C2*((D2^70)+(C2*((D2^69)+C2*((D2^68)+C2*((D2^67)+C2*((D2^66)+C2*((D2^65)+C2*((D2^64)+C2*((D2^63)+C2*((D2^62)+C2*((D2^61)+C2*((D2^60)+(C2*((D2^59)+C2*((D2^58)+C2*((D2^57)+C2*((D2^56)+C2*((D2^55)+C2*((D2^54)+C2*((D2^53)+C2*((D2^52)+C2*((D2^51)+C2*((D2^50)+(C2*((D2^49)+C2*((D2^48)+C2*((D2^47)+C2*((D2^46)+C2*((D2^45)+C2*((D2^44)+C2*((D2^43)+C2*((D2^42)+C2*((D2^41)+C2*((D2^40)+(C2*((D2^39)+C2*((D2^38)+C2*((D2^37)+C2*((D2^36)+C2*((D2^35)+C2*((D2^34)+C2*((D2^33)+C2*((D2^32)+C2*((D2^31)+C2*((D2^30)+(C2*((D2^29)+C2*((D2^28)+C2*((D2^27)+C2*((D2^26)+C2*((D2^25)+C2*((D2^24)+C2*((D2^23)+C2*((D2^22)+C2*((D2^21)+C2*((D2^20)+(C2*((D2^19)+C2*((D2^18)+C2*((D2^17)+C2*((D2^16)+C2*((D2^15)+C2*((D2^14)+C2*((D2^13)+C2*((D2^12)+C2*((D2^11)+C2*((D2^10)+(C2*((D2^9)+C2*((D2^8)+C2*((D2^7)+C2*((D2^6)+C2*((D2^5)+C2*((D2^4)+C2*((D2^3)+C2*((D2^2)+C2*((D2^1)+C2*(D2^0))))))))))))))))))))))))))))))))))))))))))))))))))))))))))))))))))))))))))))))))))))))) -> 0
F82: 81 | G82: =(A2-((C2^(E2)*B2)))/((D2^80)+(C2*((D2^79)+C2*((D2^78)+C2*((D2^77)+C2*((D2^76)+C2*((D2^75)+C2*((D2^74)+C2*((D2^73)+C2*((D2^72)+C2*((D2^71)+C2*((D2^70)+(C2*((D2^69)+C2*((D2^68)+C2*((D2^67)+C2*((D2^66)+C2*((D2^65)+C2*((D2^64)+C2*((D2^63)+C2*((D2^62)+C2*((D2^61)+C2*((D2^60)+(C2*((D2^59)+C2*((D2^58)+C2*((D2^57)+C2*((D2^56)+C2*((D2^55)+C2*((D2^54)+C2*((D2^53)+C2*((D2^52)+C2*((D2^51)+C2*((D2^50)+(C2*((D2^49)+C2*((D2^48)+C2*((D2^47)+C2*((D2^46)+C2*((D2^45)+C2*((D2^44)+C2*((D2^43)+C2*((D2^42)+C2*((D2^41)+C2*((D2^40)+(C2*((D2^39)+C2*((D2^38)+C2*((D2^37)+C2*((D2^36)+C2*((D2^35)+C2*((D2^34)+C2*((D2^33)+C2*((D2^32)+C2*((D2^31)+C2*((D2^30)+(C2*((D2^29)+C2*((D2^28)+C2*((D2^27)+C2*((D2^26)+C2*((D2^25)+C2*((D2^24)+C2*((D2^23)+C2*((D2^22)+C2*((D2^21)+C2*((D2^20)+(C2*((D2^19)+C2*((D2^18)+C2*((D2^17)+C2*((D2^16)+C2*((D2^15)+C2*((D2^14)+C2*((D2^13)+C2*((D2^12)+C2*((D2^11)+C2*((D2^10)+(C2*((D2^9)+C2*((D2^8)+C2*((D2^7)+C2*((D2^6)+C2*((D2^5)+C2*((D2^4)+C2*((D2^3)+C2*((D2^2)+C2*((D2^1)+C2*(D2^0))))))))))))))))))))))))))))))))))))))))))))))))))))))))))))))))))))))))))))))))))))))))) -> 0
F83: 82 | G83: =(A2-((C2^(E2)*B2)))/((D2^81)+C2*((D2^80)+(C2*((D2^79)+C2*((D2^78)+C2*((D2^77)+C2*((D2^76)+C2*((D2^75)+C2*((D2^74)+C2*((D2^73)+C2*((D2^72)+C2*((D2^71)+C2*((D2^70)+(C2*((D2^69)+C2*((D2^68)+C2*((D2^67)+C2*((D2^66)+C2*((D2^65)+C2*((D2^64)+C2*((D2^63)+C2*((D2^62)+C2*((D2^61)+C2*((D2^60)+(C2*((D2^59)+C2*((D2^58)+C2*((D2^57)+C2*((D2^56)+C2*((D2^55)+C2*((D2^54)+C2*((D2^53)+C2*((D2^52)+C2*((D2^51)+C2*((D2^50)+(C2*((D2^49)+C2*((D2^48)+C2*((D2^47)+C2*((D2^46)+C2*((D2^45)+C2*((D2^44)+C2*((D2^43)+C2*((D2^42)+C2*((D2^41)+C2*((D2^40)+(C2*((D2^39)+C2*((D2^38)+C2*((D2^37)+C2*((D2^36)+C2*((D2^35)+C2*((D2^34)+C2*((D2^33)+C2*((D2^32)+C2*((D2^31)+C2*((D2^30)+(C2*((D2^29)+C2*((D2^28)+C2*((D2^27)+C2*((D2^26)+C2*((D2^25)+C2*((D2^24)+C2*((D2^23)+C2*((D2^22)+C2*((D2^21)+C2*((D2^20)+(C2*((D2^19)+C2*((D2^18)+C2*((D2^17)+C2*((D2^16)+C2*((D2^15)+C2*((D2^14)+C2*((D2^13)+C2*((D2^12)+C2*((D2^11)+C2*((D2^10)+(C2*((D2^9)+C2*((D2^8)+C2*((D2^7)+C2*((D2^6)+C2*((D2^5)+C2*((D2^4)+C2*((D2^3)+C2*((D2^2)+C2*((D2^1)+C2*(D2^0)))))))))))))))))))))))))))))))))))))))))))))))))))))))))))))))))))))))))))))))))))))))))) -> 0
F84: 83 | G84: =(A2-((C2^(E2)*B2)))/((D2^82)+C2*((D2^81)+C2*((D2^80)+(C2*((D2^79)+C2*((D2^78)+C2*((D2^77)+C2*((D2^76)+C2*((D2^75)+C2*((D2^74)+C2*((D2^73)+C2*((D2^72)+C2*((D2^71)+C2*((D2^70)+(C2*((D2^69)+C2*((D2^68)+C2*((D2^67)+C2*((D2^66)+C2*((D2^65)+C2*((D2^64)+C2*((D2^63)+C2*((D2^62)+C2*((D2^61)+C2*((D2^60)+(C2*((D2^59)+C2*((D2^58)+C2*((D2^57)+C2*((D2^56)+C2*((D2^55)+C2*((D2^54)+C2*((D2^53)+C2*((D2^52)+C2*((D2^51)+C2*((D2^50)+(C2*((D2^49)+C2*((D2^48)+C2*((D2^47)+C2*((D2^46)+C2*((D2^45)+C2*((D2^44)+C2*((D2^43)+C2*((D2^42)+C2*((D2^41)+C2*((D2^40)+(C2*((D2^39)+C2*((D2^38)+C2*((D2^37)+C2*((D2^36)+C2*((D2^35)+C2*((D2^34)+C2*((D2^33)+C2*((D2^32)+C2*((D2^31)+C2*((D2^30)+(C2*((D2^29)+C2*((D2^28)+C2*((D2^27)+C2*((D2^26)+C2*((D2^25)+C2*((D2^24)+C2*((D2^23)+C2*((D2^22)+C2*((D2^21)+C2*((D2^20)+(C2*((D2^19)+C2*((D2^18)+C2*((D2^17)+C2*((D2^16)+C2*((D2^15)+C2*((D2^14)+C2*((D2^13)+C2*((D2^12)+C2*((D2^11)+C2*((D2^10)+(C2*((D2^9)+C2*((D2^8)+C2*((D2^7)+C2*((D2^6)+C2*((D2^5)+C2*((D2^4)+C2*((D2^3)+C2*((D2^2)+C2*((D2^1)+C2*(D2^0))))))))))))))))))))))))))))))))))))))))))))))))))))))))))))))))))))))))))))))))))))))))))) -> 0
F85: 84 | G85: =(A2-((C2^(E2)*B2)))/((D2^83)+C2*((D2^82)+C2*((D2^81)+C2*((D2^80)+(C2*((D2^79)+C2*((D2^78)+C2*((D2^77)+C2*((D2^76)+C2*((D2^75)+C2*((D2^74)+C2*((D2^73)+C2*((D2^72)+C2*((D2^71)+C2*((D2^70)+(C2*((D2^69)+C2*((D2^68)+C2*((D2^67)+C2*((D2^66)+C2*((D2^65)+C2*((D2^64)+C2*((D2^63)+C2*((D2^62)+C2*((D2^61)+C2*((D2^60)+(C2*((D2^59)+C2*((D2^58)+C2*((D2^57)+C2*((D2^56)+C2*((D2^55)+C2*((D2^54)+C2*((D2^53)+C2*((D2^52)+C2*((D2^51)+C2*((D2^50)+(C2*((D2^49)+C2*((D2^48)+C2*((D2^47)+C2*((D2^46)+C2*((D2^45)+C2*((D2^44)+C2*((D2^43)+C2*((D2^42)+C2*((D2^41)+C2*((D2^40)+(C2*((D2^39)+C2*((D2^38)+C2*((D2^37)+C2*((D2^36)+C2*((D2^35)+C2*((D2^34)+C2*((D2^33)+C2*((D2^32)+C2*((D2^31)+C2*((D2^30)+(C2*((D2^29)+C2*((D2^28)+C2*((D2^27)+C2*((D2^26)+C2*((D2^25)+C2*((D2^24)+C2*((D2^23)+C2*((D2^22)+C2*((D2^21)+C2*((D2^20)+(C2*((D2^19)+C2*((D2^18)+C2*((D2^17)+C2*((D2^16)+C2*((D2^15)+C2*((D2^14)+C2*((D2^13)+C2*((D2^12)+C2*((D2^11)+C2*((D2^10)+(C2*((D2^9)+C2*((D2^8)+C2*((D2^7)+C2*((D2^6)+C2*((D2^5)+C2*((D2^4)+C2*((D2^3)+C2*((D2^2)+C2*((D2^1)+C2*(D2^0)))))))))))))))))))))))))))))))))))))))))))))))))))))))))))))))))))))))))))))))))))))))))))) -> 0
F86: 85 | G86: =(A2-((C2^(E2)*B2)))/((D2^84)+C2*((D2^83)+C2*((D2^82)+C2*((D2^81)+C2*((D2^80)+(C2*((D2^79)+C2*((D2^78)+C2*((D2^77)+C2*((D2^76)+C2*((D2^75)+C2*((D2^74)+C2*((D2^73)+C2*((D2^72)+C2*((D2^71)+C2*((D2^70)+(C2*((D2^69)+C2*((D2^68)+C2*((D2^67)+C2*((D2^66)+C2*((D2^65)+C2*((D2^64)+C2*((D2^63)+C2*((D2^62)+C2*((D2^61)+C2*((D2^60)+(C2*((D2^59)+C2*((D2^58)+C2*((D2^57)+C2*((D2^56)+C2*((D2^55)+C2*((D2^54)+C2*((D2^53)+C2*((D2^52)+C2*((D2^51)+C2*((D2^50)+(C2*((D2^49)+C2*((D2^48)+C2*((D2^47)+C2*((D2^46)+C2*((D2^45)+C2*((D2^44)+C2*((D2^43)+C2*((D2^42)+C2*((D2^41)+C2*((D2^40)+(C2*((D2^39)+C2*((D2^38)+C2*((D2^37)+C2*((D2^36)+C2*((D2^35)+C2*((D2^34)+C2*((D2^33)+C2*((D2^32)+C2*((D2^31)+C2*((D2^30)+(C2*((D2^29)+C2*((D2^28)+C2*((D2^27)+C2*((D2^26)+C2*((D2^25)+C2*((D2^24)+C2*((D2^23)+C2*((D2^22)+C2*((D2^21)+C2*((D2^20)+(C2*((D2^19)+C2*((D2^18)+C2*((D2^17)+C2*((D2^16)+C2*((D2^15)+C2*((D2^14)+C2*((D2^13)+C2*((D2^12)+C2*((D2^11)+C2*((D2^10)+(C2*((D2^9)+C2*((D2^8)+C2*((D2^7)+C2*((D2^6)+C2*((D2^5)+C2*((D2^4)+C2*((D2^3)+C2*((D2^2)+C2*((D2^1)+C2*(D2^0))))))))))))))))))))))))))))))))))))))))))))))))))))))))))))))))))))))))))))))))))))))))))))) -> 0
F87: 86 | G87: =(A2-((C2^(E2)*B2)))/((D2^85)+C2*((D2^84)+C2*((D2^83)+C2*((D2^82)+C2*((D2^81)+C2*((D2^80)+(C2*((D2^79)+C2*((D2^78)+C2*((D2^77)+C2*((D2^76)+C2*((D2^75)+C2*((D2^74)+C2*((D2^73)+C2*((D2^72)+C2*((D2^71)+C2*((D2^70)+(C2*((D2^69)+C2*((D2^68)+C2*((D2^67)+C2*((D2^66)+C2*((D2^65)+C2*((D2^64)+C2*((D2^63)+C2*((D2^62)+C2*((D2^61)+C2*((D2^60)+(C2*((D2^59)+C2*((D2^58)+C2*((D2^57)+C2*((D2^56)+C2*((D2^55)+C2*((D2^54)+C2*((D2^53)+C2*((D2^52)+C2*((D2^51)+C2*((D2^50)+(C2*((D2^49)+C2*((D2^48)+C2*((D2^47)+C2*((D2^46)+C2*((D2^45)+C2*((D2^44)+C2*((D2^43)+C2*((D2^42)+C2*((D2^41)+C2*((D2^40)+(C2*((D2^39)+C2*((D2^38)+C2*((D2^37)+C2*((D2^36)+C2*((D2^35)+C2*((D2^34)+C2*((D2^33)+C2*((D2^32)+C2*((D2^31)+C2*((D2^30)+(C2*((D2^29)+C2*((D2^28)+C2*((D2^27)+C2*((D2^26)+C2*((D2^25)+C2*((D2^24)+C2*((D2^23)+C2*((D2^22)+C2*((D2^21)+C2*((D2^20)+(C2*((D2^19)+C2*((D2^18)+C2*((D2^17)+C2*((D2^16)+C2*((D2^15)+C2*((D2^14)+C2*((D2^13)+C2*((D2^12)+C2*((D2^11)+C2*((D2^10)+(C2*((D2^9)+C2*((D2^8)+C2*((D2^7)+C2*((D2^6)+C2*((D2^5)+C2*((D2^4)+C2*((D2^3)+C2*((D2^2)+C2*((D2^1)+C2*(D2^0)))))))))))))))))))))))))))))))))))))))))))))))))))))))))))))))))))))))))))))))))))))))))))))) -> 0
F88: 87 | G88: =(A2-((C2^(E2)*B2)))/((D2^86)+C2*((D2^85)+C2*((D2^84)+C2*((D2^83)+C2*((D2^82)+C2*((D2^81)+C2*((D2^80)+(C2*((D2^79)+C2*((D2^78)+C2*((D2^77)+C2*((D2^76)+C2*((D2^75)+C2*((D2^74)+C2*((D2^73)+C2*((D2^72)+C2*((D2^71)+C2*((D2^70)+(C2*((D2^69)+C2*((D2^68)+C2*((D2^67)+C2*((D2^66)+C2*((D2^65)+C2*((D2^64)+C2*((D2^63)+C2*((D2^62)+C2*((D2^61)+C2*((D2^60)+(C2*((D2^59)+C2*((D2^58)+C2*((D2^57)+C2*((D2^56)+C2*((D2^55)+C2*((D2^54)+C2*((D2^53)+C2*((D2^52)+C2*((D2^51)+C2*((D2^50)+(C2*((D2^49)+C2*((D2^48)+C2*((D2^47)+C2*((D2^46)+C2*((D2^45)+C2*((D2^44)+C2*((D2^43)+C2*((D2^42)+C2*((D2^41)+C2*((D2^40)+(C2*((D2^39)+C2*((D2^38)+C2*((D2^37)+C2*((D2^36)+C2*((D2^35)+C2*((D2^34)+C2*((D2^33)+C2*((D2^32)+C2*((D2^31)+C2*((D2^30)+(C2*((D2^29)+C2*((D2^28)+C2*((D2^27)+C2*((D2^26)+C2*((D2^25)+C2*((D2^24)+C2*((D2^23)+C2*((D2^22)+C2*((D2^21)+C2*((D2^20)+(C2*((D2^19)+C2*((D2^18)+C2*((D2^17)+C2*((D2^16)+C2*((D2^15)+C2*((D2^14)+C2*((D2^13)+C2*((D2^12)+C2*((D2^11)+C2*((D2^10)+(C2*((D2^9)+C2*((D2^8)+C2*((D2^7)+C2*((D2^6)+C2*((D2^5)+C2*((D2^4)+C2*((D2^3)+C2*((D2^2)+C2*((D2^1)+C2*(D2^0))))))))))))))))))))))))))))))))))))))))))))))))))))))))))))))))))))))))))))))))))))))))))))))) -> 0
